Workbook

Sheet TOTAL
A1: MDE-School Finance | T1: 2017-02-13 | X1: 2017-02-06
A2: General Education, Special Education and Pension Adjustment Revenue
A3: Governor's Recommendation
A4: Excluding Voluntary Pre-Kindergarten Proposed Increase
A5: District | D5: FY 2018 | K5: FY 2019 | R5: Biennium
D6: Total Revenue | G6: Adjusted ADM | H6: Revenue/Adjusted ADM | K6: Total Revenue | N6: Adjusted ADM | O6: Revenue/Adjusted ADM | R6: Total Revenue | U6: Adjusted ADM | V6: Revenue/Adjusted ADM
A8: DIST | B8: TYPE | C8: NAME | D8: Current | E8: Governor | F8: Change | H8: Current | I8: Governor | J8: Change | K8: Current | L8: Governor | M8: Change | O8: Current | P8: Governor | Q8: Change | R8: Current | S8: Governor | T8: Change | V8: Current | W8: Governor | X8: Change
C9: TOTAL | D9: =SUM(D10:D530) -> 9209755373 | E9: =SUM(E10:E530) -> 9381928621 | F9: 172173246 | G9: 858281 | H9: =D9/G9 -> 10730.46633 | I9: =E9/G9 -> 10931.06875 | J9: =I9-H9 -> 200.6024227 | K9: =SUM(K10:K530) -> 9385778461 | L9: =SUM(L10:L530) -> 9714620589 | M9: =SUM(M10:M530) -> 328842128 | N9: 863356 | O9: =K9/N9 -> 10871.27264 | P9: =L9/N9 -> 11252.16086 | Q9: =P9-O9 -> 380.8882176 | R9: =SUM(R10:R530) -> 18595533834 | S9: =SUM(S10:S530) -> 19096549210 | T9: 501015374 | U9: 1721641 | V9: =R9/U9 -> 10801.05192 | W9: =S9/U9 -> 11092.06229 | X9: =T9/U9 -> 291.0103639
A10: 1 | B10: 1 | C10: AITKIN | D10: =Gened!D10+'Specialed '!D10+Pension!D10 -> 10989355 | E10: =Gened!E10+'Specialed '!E10+Pension!E10 -> 11216649 | F10: =E10-D10 -> 227294 | G10: 1147 | H10: =D10/G10 -> 9580.954664 | I10: =E10/G10 -> 9779.11857 | J10: =I10-H10 -> 198.1639058 | K10: =Gened!K10+'Specialed '!K10+Pension!K10 -> 10964588 | L10: =Gened!L10+'Specialed '!L10+Pension!L10 -> 11396545 | M10: =L10-K10 -> 431957 | N10: 1143 | O10: =K10/N10 -> 9592.815398 | P10: =L10/N10 -> 9970.730534 | Q10: =P10-O10 -> 377.9151356 | R10: =D10+K10 -> 21953943 | S10: =E10+L10 -> 22613194 | T10: 659251 | U10: 2290 | V10: =R10/U10 -> 9586.874672 | W10: =S10/U10 -> 9874.757205 | X10: =T10/U10 -> 287.8825328
A11: 1.2 | B11: 3 | C11: MINNEAPOLIS | D11: =Gened!D11+'Specialed '!D11+Pension!D11 -> 475413749 | E11: =Gened!E11+'Specialed '!E11+Pension!E11 -> 483992921 | F11: 8579172 | G11: 35791 | H11: =D11/G11 -> 13283.05297 | I11: =E11/G11 -> 13522.75491 | J11: =I11-H11 -> 239.7019362 | K11: =Gened!K11+'Specialed '!K11+Pension!K11 -> 489319786 | L11: =Gened!L11+'Specialed '!L11+Pension!L11 -> 505871994 | M11: =L11-K11 -> 16552208 | N11: 36561 | O11: =K11/N11 -> 13383.65433 | P11: =L11/N11 -> 13836.38287 | Q11: =P11-O11 -> 452.7285359 | R11: =D11+K11 -> 964733535 | S11: =E11+L11 -> 989864915 | T11: =F11+M11 -> 25131380 | U11: 72352 | V11: =R11/U11 -> 13333.88897 | W11: =S11/U11 -> 13681.23777 | X11: =T11/U11 -> 347.3487948
A12: 2 | B12: 1 | C12: HILL CITY | D12: =Gened!D12+'Specialed '!D12+Pension!D12 -> 3417948 | E12: =Gened!E12+'Specialed '!E12+Pension!E12 -> 3478471 | F12: 60523 | G12: 257 | H12: 13299.40856 | I12: 13534.90661 | J12: 235.4980545 | K12: =Gened!K12+'Specialed '!K12+Pension!K12 -> 3355345 | L12: =Gened!L12+'Specialed '!L12+Pension!L12 -> 3474532 | M12: 119187 | N12: 249 | O12: 13475.28112 | P12: 13953.94378 | Q12: 478.6626506 | R12: 6773293 | S12: 6953003 | T12: 179710 | U12: 506 | V12: 13385.95455 | W12: 13741.11265 | X12: 355.1581028
A13: 4 | B13: 1 | C13: MCGREGOR | D13: =Gened!D13+'Specialed '!D13+Pension!D13 -> 5289327 | E13: =Gened!E13+'Specialed '!E13+Pension!E13 -> 5405332 | F13: 116006 | G13: 457 | H13: 11574.01969 | I13: 11827.85996 | J13: 253.8402626 | K13: =Gened!K13+'Specialed '!K13+Pension!K13 -> 5313082 | L13: =Gened!L13+'Specialed '!L13+Pension!L13 -> 5534267 | M13: 221185 | N13: 455 | O13: 11677.1033 | P13: 12163.22418 | Q13: 486.1208791 | R13: 10602409 | S13: 10939599 | T13: 337191 | U13: 912 | V13: 11625.44846 | W13: 11995.17434 | X13: 369.7269737
A14: 6 | B14: 3 | C14: SOUTH ST. PAUL | D14: =Gened!D14+'Specialed '!D14+Pension!D14 -> 37366037 | E14: =Gened!E14+'Specialed '!E14+Pension!E14 -> 38109817 | F14: 743781 | G14: 3641 | H14: 10262.57539 | I14: 10466.85444 | J14: 204.2790442 | K14: =Gened!K14+'Specialed '!K14+Pension!K14 -> 37880240 | L14: =Gened!L14+'Specialed '!L14+Pension!L14 -> 39286957 | M14: 1406717 | N14: 3650 | O14: 10378.14795 | P14: 10763.54986 | Q14: 385.4019178 | R14: 75246277 | S14: 77396774 | T14: 2150498 | U14: 7291 | V14: 10320.433 | W14: 10615.38527 | X14: 294.9524071
A15: 11 | B15: 1 | C15: ANOKA-HENNEPIN | D15: =Gened!D15+'Specialed '!D15+Pension!D15 -> 399603291 | E15: =Gened!E15+'Specialed '!E15+Pension!E15 -> 407067861 | F15: 7464570 | G15: 37429 | H15: 10676.30156 | I15: 10875.73435 | J15: 199.4327928 | K15: =Gened!K15+'Specialed '!K15+Pension!K15 -> 405197726 | L15: =Gened!L15+'Specialed '!L15+Pension!L15 -> 419044711 | M15: 13846985 | N15: 37497 | O15: 10806.13718 | P15: 11175.41966 | Q15: 369.2824759 | R15: 804801017 | S15: 826112572 | T15: 21311555 | U15: 74926 | V15: 10741.27829 | W15: 11025.713 | X15: 284.4347089
A16: 12 | B16: 1 | C16: CENTENNIAL | D16: =Gened!D16+'Specialed '!D16+Pension!D16 -> 65389537 | E16: =Gened!E16+'Specialed '!E16+Pension!E16 -> 66627463 | F16: 1237926 | G16: 6341 | H16: 10312.18057 | I16: 10507.40625 | J16: 195.2256742 | K16: =Gened!K16+'Specialed '!K16+Pension!K16 -> 66142221 | L16: =Gened!L16+'Specialed '!L16+Pension!L16 -> 68457882 | M16: 2315661 | N16: 6340 | O16: 10432.52697 | P16: 10797.77319 | Q16: 365.2462145 | R16: 131531758 | S16: 135085345 | T16: 3553587 | U16: 12681 | V16: 10372.34903 | W16: 10652.57827 | X16: 280.2292406
A17: 13 | B17: 1 | C17: COLUMBIA HEIGHTS | D17: =Gened!D17+'Specialed '!D17+Pension!D17 -> 39559396 | E17: =Gened!E17+'Specialed '!E17+Pension!E17 -> 40345310 | F17: 785915 | G17: 3350 | H17: 11808.77493 | I17: 12043.37612 | J17: 234.601194 | K17: =Gened!K17+'Specialed '!K17+Pension!K17 -> 40494671 | L17: =Gened!L17+'Specialed '!L17+Pension!L17 -> 42012882 | M17: 1518211 | N17: 3409 | O17: 11878.75359 | P17: 12324.10736 | Q17: 445.3537694 | R17: 80054067 | S17: 82358192 | T17: 2304126 | U17: 6759 | V17: 11844.06968 | W17: 12184.96701 | X17: 340.89747
A18: 14 | B18: 1 | C18: FRIDLEY | D18: =Gened!D18+'Specialed '!D18+Pension!D18 -> 35093895 | E18: =Gened!E18+'Specialed '!E18+Pension!E18 -> 35764200 | F18: 670305 | G18: 3068 | H18: 11438.68807 | I18: 11657.1708 | J18: 218.4827249 | K18: =Gened!K18+'Specialed '!K18+Pension!K18 -> 35678849 | L18: =Gened!L18+'Specialed '!L18+Pension!L18 -> 36952987 | M18: 1274138 | N18: 3080 | O18: 11584.04188 | P18: 11997.72305 | Q18: 413.6811688 | R18: 70772744 | S18: 72717187 | T18: 1944443 | U18: 6148 | V18: 11511.50683 | W18: 11827.77928 | X18: 316.2724463
A19: 15 | B19: 1 | C19: ST. FRANCIS | D19: =Gened!D19+'Specialed '!D19+Pension!D19 -> 44335035 | E19: =Gened!E19+'Specialed '!E19+Pension!E19 -> 45189136 | F19: 854102 | G19: 4344 | H19: 10206.03936 | I19: 10402.65562 | J19: 196.6162523 | K19: =Gened!K19+'Specialed '!K19+Pension!K19 -> 43925479 | L19: =Gened!L19+'Specialed '!L19+Pension!L19 -> 45499517 | M19: 1574038 | N19: 4278 | O19: 10267.7604 | P19: 10635.69822 | Q19: 367.9378214 | R19: 88260514 | S19: 90688653 | T19: 2428140 | U19: 8622 | V19: 10236.66365 | W19: 10518.28497 | X19: 281.6214335
A20: 16 | B20: 1 | C20: SPRING LAKE PARK | D20: =Gened!D20+'Specialed '!D20+Pension!D20 -> 54824928 | E20: =Gened!E20+'Specialed '!E20+Pension!E20 -> 55951280 | F20: 1126351 | G20: 5745 | H20: 9543.068407 | I20: 9739.126197 | J20: 196.0577894 | K20: =Gened!K20+'Specialed '!K20+Pension!K20 -> 55951095 | L20: =Gened!L20+'Specialed '!L20+Pension!L20 -> 58089596 | M20: 2138501 | N20: 5815 | O20: 9621.856406 | P20: 9989.612382 | Q20: 367.7559759 | R20: 110776023 | S20: 114040876 | T20: 3264852 | U20: 11560 | V20: 9582.700952 | W20: 9865.127682 | X20: 282.4266436
A21: 22 | B21: 1 | C21: DETROIT LAKES | D21: =Gened!D21+'Specialed '!D21+Pension!D21 -> 31218031 | E21: =Gened!E21+'Specialed '!E21+Pension!E21 -> 31786999 | F21: 568968 | G21: 3024 | H21: 10323.42295 | I21: 10511.57374 | J21: 188.1507937 | K21: =Gened!K21+'Specialed '!K21+Pension!K21 -> 31706207 | L21: =Gened!L21+'Specialed '!L21+Pension!L21 -> 32810010 | M21: 1103803 | N21: 3044 | O21: 10415.96813 | P21: 10778.5841 | Q21: 362.6159658 | R21: 62924238 | S21: 64597009 | T21: 1672771 | U21: 6068 | V21: 10369.84806 | W21: 10645.51895 | X21: 275.6708965
A22: 23 | B22: 1 | C22: FRAZEE | D22: =Gened!D22+'Specialed '!D22+Pension!D22 -> 8985380 | E22: =Gened!E22+'Specialed '!E22+Pension!E22 -> 9153091 | F22: 167710 | G22: 885 | H22: 10152.97175 | I22: 10342.47571 | J22: 189.5039548 | K22: =Gened!K22+'Specialed '!K22+Pension!K22 -> 8951139 | L22: =Gened!L22+'Specialed '!L22+Pension!L22 -> 9273824 | M22: 322685 | N22: 865 | O22: 10348.13757 | P22: 10721.18382 | Q22: 373.0462428 | R22: 17936519 | S22: 18426915 | T22: 490395 | U22: 1750 | V22: 10249.43943 | W22: 10529.66571 | X22: 280.2257143
A23: 25 | B23: 1 | C23: PINE POINT | D23: =Gened!D23+'Specialed '!D23+Pension!D23 -> 995350 | E23: =Gened!E23+'Specialed '!E23+Pension!E23 -> 1017991 | F23: 22641 | G23: 69 | H23: 14425.36232 | I23: 14753.49275 | J23: 328.1304348 | K23: =Gened!K23+'Specialed '!K23+Pension!K23 -> 1013162 | L23: =Gened!L23+'Specialed '!L23+Pension!L23 -> 1054902 | M23: 41740 | N23: 70 | O23: 14473.74286 | P23: 15070.02857 | Q23: 596.2857143 | R23: 2008512 | S23: 2072893 | T23: 64381 | U23: 139 | V23: 14449.72662 | W23: 14912.89928 | X23: 463.1726619
A24: 31 | B24: 1 | C24: BEMIDJI | D24: =Gened!D24+'Specialed '!D24+Pension!D24 -> 56367914 | E24: =Gened!E24+'Specialed '!E24+Pension!E24 -> 57456826 | F24: 1088912 | G24: 5180 | H24: 10881.83668 | I24: 11092.05135 | J24: 210.2146718 | K24: =Gened!K24+'Specialed '!K24+Pension!K24 -> 57165235 | L24: =Gened!L24+'Specialed '!L24+Pension!L24 -> 59223274 | M24: 2058039 | N24: 5196 | O24: 11001.77733 | P24: 11397.85874 | Q24: 396.0814088 | R24: 113533149 | S24: 116680100 | T24: 3146951 | U24: 10376 | V24: 10941.89948 | W24: 11245.19082 | X24: 303.2913454
A25: 32 | B25: 1 | C25: BLACKDUCK | D25: =Gened!D25+'Specialed '!D25+Pension!D25 -> 7660383 | E25: =Gened!E25+'Specialed '!E25+Pension!E25 -> 7798572 | F25: 138190 | G25: 636 | H25: 12044.62736 | I25: 12261.90566 | J25: 217.2783019 | K25: =Gened!K25+'Specialed '!K25+Pension!K25 -> 7555800 | L25: =Gened!L25+'Specialed '!L25+Pension!L25 -> 7824056 | M25: 268256 | N25: 606 | O25: 12468.31683 | P25: 12910.9835 | Q25: 442.6666667 | R25: 15216183 | S25: 15622628 | T25: 406446 | U25: 1242 | V25: 12251.35507 | W25: 12578.60548 | X25: 327.2512077
A26: 36 | B26: 1 | C26: KELLIHER | D26: =Gened!D26+'Specialed '!D26+Pension!D26 -> 3828578 | E26: =Gened!E26+'Specialed '!E26+Pension!E26 -> 3908366 | F26: 79789 | G26: 285 | H26: 13433.60702 | I26: 13713.56491 | J26: 279.9578947 | K26: =Gened!K26+'Specialed '!K26+Pension!K26 -> 3938494 | L26: =Gened!L26+'Specialed '!L26+Pension!L26 -> 4095379 | M26: 156885 | N26: 290 | O26: 13581.01379 | P26: 14121.99655 | Q26: 540.9827586 | R26: 7767072 | S26: 8003745 | T26: 236674 | U26: 575 | V26: 13507.9513 | W26: 13919.55652 | X26: 411.6069565
A27: 38 | B27: 1 | C27: RED LAKE | D27: =Gened!D27+'Specialed '!D27+Pension!D27 -> 21050040 | E27: =Gened!E27+'Specialed '!E27+Pension!E27 -> 21464850 | F27: 414810 | G27: 1611 | H27: 13066.4432 | I27: 13323.92924 | J27: 257.4860335 | K27: =Gened!K27+'Specialed '!K27+Pension!K27 -> 21909360 | L27: =Gened!L27+'Specialed '!L27+Pension!L27 -> 22721498 | M27: 812138 | N27: 1664 | O27: 13166.68269 | P27: 13654.74639 | Q27: 488.0637019 | R27: 42959400 | S27: 44186348 | T27: 1226948 | U27: 3275 | V27: 13117.37405 | W27: 13492.01466 | X27: 374.6406107
A28: 47 | B28: 1 | C28: SAUK RAPIDS | D28: =Gened!D28+'Specialed '!D28+Pension!D28 -> 41517779 | E28: =Gened!E28+'Specialed '!E28+Pension!E28 -> 42292426 | F28: 774647 | G28: 4374 | H28: 9491.947645 | I28: 9669.050297 | J28: 177.102652 | K28: =Gened!K28+'Specialed '!K28+Pension!K28 -> 41861608 | L28: =Gened!L28+'Specialed '!L28+Pension!L28 -> 43361375 | M28: 1499767 | N28: 4375 | O28: 9568.367543 | P28: 9911.171429 | Q28: 342.8038857 | R28: 83379387 | S28: 85653801 | T28: 2274414 | U28: 8749 | V28: 9530.161961 | W28: 9790.1247 | X28: 259.9627386
A29: 51 | B29: 1 | C29: FOLEY | D29: =Gened!D29+'Specialed '!D29+Pension!D29 -> 16621712 | E29: =Gened!E29+'Specialed '!E29+Pension!E29 -> 16945239 | F29: 323527 | G29: 1817 | H29: 9147.887727 | I29: 9325.943313 | J29: 178.0555861 | K29: =Gened!K29+'Specialed '!K29+Pension!K29 -> 16438708 | L29: =Gened!L29+'Specialed '!L29+Pension!L29 -> 17056628 | M29: 617920 | N29: 1781 | O29: 9230.043796 | P29: 9576.994947 | Q29: 346.951151 | R29: 33060420 | S29: 34001867 | T29: 941447 | U29: 3598 | V29: 9188.554753 | W29: 9450.213174 | X29: 261.6584213
A30: 75 | B30: 1 | C30: ST. CLAIR | D30: =Gened!D30+'Specialed '!D30+Pension!D30 -> 6206777 | E30: =Gened!E30+'Specialed '!E30+Pension!E30 -> 6316435 | F30: 109659 | G30: 670 | H30: 9263.846269 | I30: 9427.514925 | J30: 163.6686567 | K30: =Gened!K30+'Specialed '!K30+Pension!K30 -> 6115897 | L30: =Gened!L30+'Specialed '!L30+Pension!L30 -> 6331864 | M30: 215967 | N30: 649 | O30: 9423.570108 | P30: 9756.338983 | Q30: 332.7688752 | R30: 12322674 | S30: 12648299 | T30: 325626 | U30: 1319 | V30: 9342.436694 | W30: 9589.309325 | X30: 246.8733889
A31: 77 | B31: 1 | C31: MANKATO | D31: =Gened!D31+'Specialed '!D31+Pension!D31 -> 84136723 | E31: =Gened!E31+'Specialed '!E31+Pension!E31 -> 85629165 | F31: 1492442 | G31: 8483 | H31: 9918.274549 | I31: 10094.20783 | J31: 175.9332783 | K31: =Gened!K31+'Specialed '!K31+Pension!K31 -> 84839437 | L31: =Gened!L31+'Specialed '!L31+Pension!L31 -> 87721240 | M31: 2881803 | N31: 8419 | O31: 10077.13945 | P31: 10419.43699 | Q31: 342.2975413 | R31: 168976160 | S31: 173350405 | T31: 4374245 | U31: 16902 | V31: 9997.406224 | W31: 10256.20666 | X31: 258.8004378
A32: 81 | B32: 1 | C32: COMFREY | D32: =Gened!D32+'Specialed '!D32+Pension!D32 -> 1848770 | E32: =Gened!E32+'Specialed '!E32+Pension!E32 -> 1879383 | F32: 30614 | G32: 149 | H32: 12407.85235 | I32: 12613.30872 | J32: 205.4563758 | K32: =Gened!K32+'Specialed '!K32+Pension!K32 -> 1849416 | L32: =Gened!L32+'Specialed '!L32+Pension!L32 -> 1908801 | M32: 59385 | N32: 149 | O32: 12412.18792 | P32: 12810.74497 | Q32: 398.557047 | R32: 3698186 | S32: 3788184 | T32: 89999 | U32: 298 | V32: 12410.02013 | W32: 12712.02685 | X32: 302.0100671
A33: 84 | B33: 1 | C33: SLEEPY EYE | D33: =Gened!D33+'Specialed '!D33+Pension!D33 -> 5801154 | E33: =Gened!E33+'Specialed '!E33+Pension!E33 -> 5915192 | F33: 114038 | G33: 555 | H33: 10452.52973 | I33: 10658.0036 | J33: 205.4738739 | K33: =Gened!K33+'Specialed '!K33+Pension!K33 -> 5743701 | L33: =Gened!L33+'Specialed '!L33+Pension!L33 -> 5958508 | M33: 214807 | N33: 540 | O33: 10636.48333 | P33: 11034.27407 | Q33: 397.7907407 | R33: 11544855 | S33: 11873700 | T33: 328845 | U33: 1095 | V33: 10543.24658 | W33: 10843.56164 | X33: 300.3150685
A34: 85 | B34: 1 | C34: SPRINGFIELD | D34: =Gened!D34+'Specialed '!D34+Pension!D34 -> 5322414 | E34: =Gened!E34+'Specialed '!E34+Pension!E34 -> 5425603 | F34: 103190 | G34: 545 | H34: 9765.897248 | I34: 9955.234862 | J34: 189.3376147 | K34: =Gened!K34+'Specialed '!K34+Pension!K34 -> 5235771 | L34: =Gened!L34+'Specialed '!L34+Pension!L34 -> 5434452 | M34: 198681 | N34: 534 | O34: 9804.814607 | P34: 10176.8764 | Q34: 372.0617978 | R34: 10558185 | S34: 10860055 | T34: 301871 | U34: 1079 | V34: 9785.157553 | W34: 10064.92586 | X34: 279.7692308
A35: 88 | B35: 1 | C35: NEW ULM | D35: =Gened!D35+'Specialed '!D35+Pension!D35 -> 21537667 | E35: =Gened!E35+'Specialed '!E35+Pension!E35 -> 21933224 | F35: 395557 | G35: 2057 | H35: 10470.42635 | I35: 10662.72436 | J35: 192.2980068 | K35: =Gened!K35+'Specialed '!K35+Pension!K35 -> 21765716 | L35: =Gened!L35+'Specialed '!L35+Pension!L35 -> 22507745 | M35: 742029 | N35: 2055 | O35: 10591.58929 | P35: 10952.67397 | Q35: 361.0846715 | R35: 43303383 | S35: 44440969 | T35: 1137586 | U35: 4112 | V35: 10530.97836 | W35: 10807.62865 | X35: 276.6502918
A36: 91 | B36: 1 | C36: BARNUM | D36: =Gened!D36+'Specialed '!D36+Pension!D36 -> 7553228 | E36: =Gened!E36+'Specialed '!E36+Pension!E36 -> 7691957 | F36: 138728 | G36: 753 | H36: 10030.84728 | I36: 10215.08234 | J36: 184.2350598 | K36: =Gened!K36+'Specialed '!K36+Pension!K36 -> 7565518 | L36: =Gened!L36+'Specialed '!L36+Pension!L36 -> 7834749 | M36: 269231 | N36: 749 | O36: 10100.8251 | P36: 10460.27904 | Q36: 359.4539386 | R36: 15118746 | S36: 15526706 | T36: 407959 | U36: 1502 | V36: 10065.74301 | W36: 10337.35419 | X36: 271.6105193
A37: 93 | B37: 1 | C37: CARLTON | D37: =Gened!D37+'Specialed '!D37+Pension!D37 -> 4889213 | E37: =Gened!E37+'Specialed '!E37+Pension!E37 -> 4977040 | F37: 87827 | G37: 460 | H37: 10628.72391 | I37: 10819.65217 | J37: 190.9282609 | K37: =Gened!K37+'Specialed '!K37+Pension!K37 -> 5224887 | L37: =Gened!L37+'Specialed '!L37+Pension!L37 -> 5391642 | M37: 166755 | N37: 452 | O37: 11559.48451 | P37: 11928.4115 | Q37: 368.9269912 | R37: 10114100 | S37: 10368682 | T37: 254582 | U37: 912 | V37: 11090.02193 | W37: 11369.16886 | X37: 279.1469298
A38: 94 | B38: 1 | C38: CLOQUET | D38: =Gened!D38+'Specialed '!D38+Pension!D38 -> 26668668 | E38: =Gened!E38+'Specialed '!E38+Pension!E38 -> 27203037 | F38: 534369 | G38: 2707 | H38: 9851.742889 | I38: 10049.14555 | J38: 197.4026598 | K38: =Gened!K38+'Specialed '!K38+Pension!K38 -> 27299933 | L38: =Gened!L38+'Specialed '!L38+Pension!L38 -> 28334441 | M38: 1034508 | N38: 2760 | O38: 9891.280072 | P38: 10266.10181 | Q38: 374.8217391 | R38: 53968601 | S38: 55537478 | T38: 1568877 | U38: 5467 | V38: 9871.703128 | W38: 10158.67532 | X38: 286.9721968
A39: 95 | B39: 1 | C39: CROMWELL | D39: =Gened!D39+'Specialed '!D39+Pension!D39 -> 3566940 | E39: =Gened!E39+'Specialed '!E39+Pension!E39 -> 3634859 | F39: 67919 | G39: 310 | H39: 11506.25806 | I39: 11725.35161 | J39: 219.0935484 | K39: =Gened!K39+'Specialed '!K39+Pension!K39 -> 3523671 | L39: =Gened!L39+'Specialed '!L39+Pension!L39 -> 3654172 | M39: 130501 | N39: 310 | O39: 11366.68065 | P39: 11787.65161 | Q39: 420.9709677 | R39: 7090611 | S39: 7289031 | T39: 198420 | U39: 620 | V39: 11436.46935 | W39: 11756.50161 | X39: 320.0322581
A40: 97 | B40: 1 | C40: MOOSE LAKE | D40: =Gened!D40+'Specialed '!D40+Pension!D40 -> 6315994 | E40: =Gened!E40+'Specialed '!E40+Pension!E40 -> 6437198 | F40: 121204 | G40: 665 | H40: 9497.735338 | I40: 9679.996992 | J40: 182.2616541 | K40: =Gened!K40+'Specialed '!K40+Pension!K40 -> 6407997 | L40: =Gened!L40+'Specialed '!L40+Pension!L40 -> 6645570 | M40: 237573 | N40: 671 | O40: 9549.921013 | P40: 9903.979136 | Q40: 354.0581222 | R40: 12723991 | S40: 13082768 | T40: 358777 | U40: 1336 | V40: 9523.945359 | W40: 9792.491018 | X40: 268.5456587
A41: 99 | B41: 1 | C41: ESKO | D41: =Gened!D41+'Specialed '!D41+Pension!D41 -> 10465233 | E41: =Gened!E41+'Specialed '!E41+Pension!E41 -> 10671215 | F41: 205981 | G41: 1212 | H41: 8634.680693 | I41: 8804.632838 | J41: 169.9521452 | K41: =Gened!K41+'Specialed '!K41+Pension!K41 -> 10540743 | L41: =Gened!L41+'Specialed '!L41+Pension!L41 -> 10938839 | M41: 398096 | N41: 1212 | O41: 8696.982673 | P41: 9025.444719 | Q41: 328.4620462 | R41: 21005976 | S41: 21610054 | T41: 604077 | U41: 2424 | V41: 8665.831683 | W41: 8915.038779 | X41: 249.2066832
A42: 100 | B42: 1 | C42: WRENSHALL | D42: =Gened!D42+'Specialed '!D42+Pension!D42 -> 3390270 | E42: =Gened!E42+'Specialed '!E42+Pension!E42 -> 3455841 | F42: 65571 | G42: 341 | H42: 9942.140762 | I42: 10134.43109 | J42: 192.2903226 | K42: =Gened!K42+'Specialed '!K42+Pension!K42 -> 3460414 | L42: =Gened!L42+'Specialed '!L42+Pension!L42 -> 3589916 | M42: 129502 | N42: 346 | O42: 10001.19653 | P42: 10375.47977 | Q42: 374.283237 | R42: 6850684 | S42: 7045757 | T42: 195073 | U42: 687 | V42: 9971.883552 | W42: 10255.83261 | X42: 283.9490539
A43: 108 | B43: 1 | C43: NORWOOD | D43: =Gened!D43+'Specialed '!D43+Pension!D43 -> 8312703 | E43: =Gened!E43+'Specialed '!E43+Pension!E43 -> 8498772 | F43: 186069 | G43: 948 | H43: 8768.674051 | I43: 8964.949367 | J43: 196.2753165 | K43: =Gened!K43+'Specialed '!K43+Pension!K43 -> 8209003 | L43: =Gened!L43+'Specialed '!L43+Pension!L43 -> 8547899 | M43: 338896 | N43: 928 | O43: 8845.908405 | P43: 9211.09806 | Q43: 365.1896552 | R43: 16521706 | S43: 17046671 | T43: 524965 | U43: 1876 | V43: 8806.879531 | W43: 9086.71162 | X43: 279.8320896
A44: 110 | B44: 1 | C44: WACONIA | D44: =Gened!D44+'Specialed '!D44+Pension!D44 -> 37154176 | E44: =Gened!E44+'Specialed '!E44+Pension!E44 -> 37903161 | F44: 748985 | G44: 4090 | H44: 9084.150611 | I44: 9267.276528 | J44: 183.1259169 | K44: =Gened!K44+'Specialed '!K44+Pension!K44 -> 37114195 | L44: =Gened!L44+'Specialed '!L44+Pension!L44 -> 38500109 | M44: 1385914 | N44: 4035 | O44: 9198.065675 | P44: 9541.538786 | Q44: 343.4731103 | R44: 74268371 | S44: 76403270 | T44: 2134899 | U44: 8125 | V44: 9140.722585 | W44: 9403.479385 | X44: 262.7568
A45: 111 | B45: 1 | C45: WATERTOWN-MAYER | D45: =Gened!D45+'Specialed '!D45+Pension!D45 -> 15604861 | E45: =Gened!E45+'Specialed '!E45+Pension!E45 -> 15896983 | F45: 292121 | G45: 1676 | H45: 9310.776253 | I45: 9485.073389 | J45: 174.297136 | K45: =Gened!K45+'Specialed '!K45+Pension!K45 -> 15415074 | L45: =Gened!L45+'Specialed '!L45+Pension!L45 -> 15969284 | M45: 554210 | N45: 1627 | O45: 9474.538414 | P45: 9815.171481 | Q45: 340.633067 | R45: 31019935 | S45: 31866267 | T45: 846331 | U45: 3303 | V45: 9391.442628 | W45: 9647.673933 | X45: 256.2310021
A46: 112 | B46: 1 | C46: EASTERN CARVER CTY | D46: =Gened!D46+'Specialed '!D46+Pension!D46 -> 99122245 | E46: =Gened!E46+'Specialed '!E46+Pension!E46 -> 100847198 | F46: 1724953 | G46: 9667 | H46: 10253.67177 | I46: 10432.10903 | J46: 178.4372608 | K46: =Gened!K46+'Specialed '!K46+Pension!K46 -> 101340334 | L46: =Gened!L46+'Specialed '!L46+Pension!L46 -> 104717226 | M46: 3376892 | N46: 9836 | O46: 10303.00264 | P46: 10646.32229 | Q46: 343.3196421 | R46: 200462579 | S46: 205564424 | T46: 5101845 | U46: 19503 | V46: 10278.55094 | W46: 10540.14377 | X46: 261.5928319
A47: 113 | B47: 1 | C47: WALKER-AKELEY | D47: =Gened!D47+'Specialed '!D47+Pension!D47 -> 7770033 | E47: =Gened!E47+'Specialed '!E47+Pension!E47 -> 7917068 | F47: 147034 | G47: 716 | H47: 10852.0014 | I47: 11057.35754 | J47: 205.3561453 | K47: =Gened!K47+'Specialed '!K47+Pension!K47 -> 7736044 | L47: =Gened!L47+'Specialed '!L47+Pension!L47 -> 8019414 | M47: 283370 | N47: 702 | O47: 11020.0057 | P47: 11423.66667 | Q47: 403.6609687 | R47: 15506077 | S47: 15936482 | T47: 430404 | U47: 1418 | V47: 10935.17419 | W47: 11238.70381 | X47: 303.528914
A48: 115 | B48: 1 | C48: CASS LAKE | D48: =Gened!D48+'Specialed '!D48+Pension!D48 -> 14188362 | E48: =Gened!E48+'Specialed '!E48+Pension!E48 -> 14483425 | F48: 295063 | G48: 1086 | H48: 13064.79006 | I48: 13336.48711 | J48: 271.6970534 | K48: =Gened!K48+'Specialed '!K48+Pension!K48 -> 14620577 | L48: =Gened!L48+'Specialed '!L48+Pension!L48 -> 15195718 | M48: 575141 | N48: 1125 | O48: 12996.06844 | P48: 13507.30489 | Q48: 511.2364444 | R48: 28808939 | S48: 29679143 | T48: 870204 | U48: 2211 | V48: 13029.82316 | W48: 13423.40253 | X48: 393.5793758
A49: 116 | B49: 1 | C49: PILLAGER | D49: =Gened!D49+'Specialed '!D49+Pension!D49 -> 10637777 | E49: =Gened!E49+'Specialed '!E49+Pension!E49 -> 10835428 | F49: 197651 | G49: 1072 | H49: 9923.29944 | I49: 10107.67537 | J49: 184.3759328 | K49: =Gened!K49+'Specialed '!K49+Pension!K49 -> 11163947 | L49: =Gened!L49+'Specialed '!L49+Pension!L49 -> 11557283 | M49: 393336 | N49: 1121 | O49: 9958.91793 | P49: 10309.7975 | Q49: 350.8795718 | R49: 21801724 | S49: 22392711 | T49: 590987 | U49: 2193 | V49: 9941.506612 | W49: 10210.99453 | X49: 269.4879161
A50: 118 | B50: 1 | C50: NORTHLAND | D50: =Gened!D50+'Specialed '!D50+Pension!D50 -> 4558458 | E50: =Gened!E50+'Specialed '!E50+Pension!E50 -> 4638022 | F50: 79565 | G50: 326 | H50: 13983 | I50: 14227.06135 | J50: 244.0613497 | K50: =Gened!K50+'Specialed '!K50+Pension!K50 -> 4631799 | L50: =Gened!L50+'Specialed '!L50+Pension!L50 -> 4784545 | M50: 152746 | N50: 328 | O50: 14121.33841 | P50: 14587.02744 | Q50: 465.6890244 | R50: 9190257 | S50: 9422567 | T50: 232311 | U50: 654 | V50: 14052.38073 | W50: 14407.5948 | X50: 355.2155963
A51: 129 | B51: 1 | C51: MONTEVIDEO | D51: =Gened!D51+'Specialed '!D51+Pension!D51 -> 14905923 | E51: =Gened!E51+'Specialed '!E51+Pension!E51 -> 15198486 | F51: 292563 | G51: 1454 | H51: 10251.66644 | I51: 10452.87895 | J51: 201.2125172 | K51: =Gened!K51+'Specialed '!K51+Pension!K51 -> 14970466 | L51: =Gened!L51+'Specialed '!L51+Pension!L51 -> 15512253 | M51: 541787 | N51: 1445 | O51: 10360.18408 | P51: 10735.12318 | Q51: 374.9391003 | R51: 29876389 | S51: 30710739 | T51: 834350 | U51: 2899 | V51: 10305.75681 | W51: 10593.56295 | X51: 287.80614
A52: 138 | B52: 1 | C52: NORTH BRANCH | D52: =Gened!D52+'Specialed '!D52+Pension!D52 -> 28788616 | E52: =Gened!E52+'Specialed '!E52+Pension!E52 -> 29365350 | F52: 576734 | G52: 2974 | H52: 9680.099529 | I52: 9874.024882 | J52: 193.9253531 | K52: =Gened!K52+'Specialed '!K52+Pension!K52 -> 28983293 | L52: =Gened!L52+'Specialed '!L52+Pension!L52 -> 30029488 | M52: 1046195 | N52: 2982 | O52: 9719.414152 | P52: 10070.25084 | Q52: 350.8366868 | R52: 57771909 | S52: 59394838 | T52: 1622929 | U52: 5956 | V52: 9699.783244 | W52: 9972.269644 | X52: 272.4864003
A53: 139 | B53: 1 | C53: RUSH CITY | D53: =Gened!D53+'Specialed '!D53+Pension!D53 -> 7961644 | E53: =Gened!E53+'Specialed '!E53+Pension!E53 -> 8140540 | F53: 178896 | G53: 870 | H53: 9151.314943 | I53: 9356.942529 | J53: 205.6275862 | K53: =Gened!K53+'Specialed '!K53+Pension!K53 -> 8033017 | L53: =Gened!L53+'Specialed '!L53+Pension!L53 -> 8370560 | M53: 337543 | N53: 873 | O53: 9201.623139 | P53: 9588.270332 | Q53: 386.6471936 | R53: 15994661 | S53: 16511100 | T53: 516439 | U53: 1743 | V53: 9176.512335 | W53: 9472.805508 | X53: 296.2931727
A54: 146 | B54: 1 | C54: BARNESVILLE | D54: =Gened!D54+'Specialed '!D54+Pension!D54 -> 8335673 | E54: =Gened!E54+'Specialed '!E54+Pension!E54 -> 8494252 | F54: 158579 | G54: 902 | H54: 9241.322616 | I54: 9417.13082 | J54: 175.808204 | K54: =Gened!K54+'Specialed '!K54+Pension!K54 -> 8306993 | L54: =Gened!L54+'Specialed '!L54+Pension!L54 -> 8612191 | M54: 305198 | N54: 891 | O54: 9323.224467 | P54: 9665.758698 | Q54: 342.5342312 | R54: 16642666 | S54: 17106443 | T54: 463777 | U54: 1793 | V54: 9282.022309 | W54: 9540.682097 | X54: 258.6597881
A55: 150 | B55: 1 | C55: HAWLEY | D55: =Gened!D55+'Specialed '!D55+Pension!D55 -> 7756796 | E55: =Gened!E55+'Specialed '!E55+Pension!E55 -> 7918322 | F55: 161527 | G55: 913 | H55: 8495.943045 | I55: 8672.860898 | J55: 176.9178532 | K55: =Gened!K55+'Specialed '!K55+Pension!K55 -> 7901995 | L55: =Gened!L55+'Specialed '!L55+Pension!L55 -> 8217847 | M55: 315852 | N55: 921 | O55: 8579.799131 | P55: 8922.743757 | Q55: 342.9446254 | R55: 15658791 | S55: 16136169 | T55: 477379 | U55: 1834 | V55: 8538.05398 | W55: 8798.347328 | X55: 260.2938931
A56: 152 | B56: 1 | C56: MOORHEAD | D56: =Gened!D56+'Specialed '!D56+Pension!D56 -> 67402234 | E56: =Gened!E56+'Specialed '!E56+Pension!E56 -> 68754535 | F56: 1352302 | G56: 6391 | H56: 10546.42998 | I56: 10758.02457 | J56: 211.5945861 | K56: =Gened!K56+'Specialed '!K56+Pension!K56 -> 70373144 | L56: =Gened!L56+'Specialed '!L56+Pension!L56 -> 72779553 | M56: 2406409 | N56: 6469 | O56: 10878.51971 | P56: 11250.51059 | Q56: 371.9908796 | R56: 137775378 | S56: 141534088 | T56: 3758711 | U56: 12860 | V56: 10713.48196 | W56: 11005.76112 | X56: 292.2792379
A57: 160 | B57: 70 | C57: MINNESOTA STATE ACADEMIES | D57: =Gened!D57+'Specialed '!D57+Pension!D57 -> 2740286 | E57: =Gened!E57+'Specialed '!E57+Pension!E57 -> 2760993 | F57: 20707 | G57: 0 | K57: =Gened!K57+'Specialed '!K57+Pension!K57 -> 2802438 | L57: =Gened!L57+'Specialed '!L57+Pension!L57 -> 2843993 | M57: 41555 | N57: 0 | R57: 5542724 | S57: 5604986 | T57: 62262 | U57: 0
A58: 160 | B58: 90 | C58: FARIBAULT TRANSFER | D58: =Gened!D58+'Specialed '!D58+Pension!D58 -> 3080350 | E58: =Gened!E58+'Specialed '!E58+Pension!E58 -> 3092071 | F58: 11721 | G58: 0 | K58: =Gened!K58+'Specialed '!K58+Pension!K58 -> 3142502 | L58: =Gened!L58+'Specialed '!L58+Pension!L58 -> 3166234 | M58: 23732 | N58: 0 | R58: 6222852 | S58: 6258305 | T58: 35453 | U58: 0
A59: 162 | B59: 1 | C59: BAGLEY | D59: =Gened!D59+'Specialed '!D59+Pension!D59 -> 10638987 | E59: =Gened!E59+'Specialed '!E59+Pension!E59 -> 10832880 | F59: 193892 | G59: 1004 | H59: 10596.6006 | I59: 10789.72112 | J59: 193.1205179 | K59: =Gened!K59+'Specialed '!K59+Pension!K59 -> 10967999 | L59: =Gened!L59+'Specialed '!L59+Pension!L59 -> 11351518 | M59: 383519 | N59: 1035 | O59: 10597.10048 | P59: 10967.65024 | Q59: 370.5497585 | R59: 21606986 | S59: 22184398 | T59: 577411 | U59: 2039 | V59: 10596.85434 | W59: 10880.03825 | X59: 283.1834232
A60: 166 | B60: 1 | C60: COOK COUNTY | D60: =Gened!D60+'Specialed '!D60+Pension!D60 -> 5563582 | E60: =Gened!E60+'Specialed '!E60+Pension!E60 -> 5675669 | F60: 112087 | G60: 452 | H60: 12308.80973 | I60: 12556.78982 | J60: 247.9800885 | K60: =Gened!K60+'Specialed '!K60+Pension!K60 -> 5424914 | L60: =Gened!L60+'Specialed '!L60+Pension!L60 -> 5633720 | M60: 208806 | N60: 431 | O60: 12586.80742 | P60: 13071.2761 | Q60: 484.4686775 | R60: 10988496 | S60: 11309389 | T60: 320893 | U60: 883 | V60: 12444.50283 | W60: 12807.91506 | X60: 363.412231
A61: 173 | B61: 1 | C61: MOUNTAIN LAKE | D61: =Gened!D61+'Specialed '!D61+Pension!D61 -> 5633513 | E61: =Gened!E61+'Specialed '!E61+Pension!E61 -> 5728288 | F61: 94775 | G61: 478 | H61: 11785.59205 | I61: 11983.86611 | J61: 198.2740586 | K61: =Gened!K61+'Specialed '!K61+Pension!K61 -> 5624748 | L61: =Gened!L61+'Specialed '!L61+Pension!L61 -> 5806972 | M61: 182224 | N61: 476 | O61: 11816.69748 | P61: 12199.52101 | Q61: 382.8235294 | R61: 11258261 | S61: 11535260 | T61: 276999 | U61: 954 | V61: 11801.11216 | W61: 12091.46751 | X61: 290.3553459
A62: 177 | B62: 1 | C62: WINDOM | D62: =Gened!D62+'Specialed '!D62+Pension!D62 -> 11366750 | E62: =Gened!E62+'Specialed '!E62+Pension!E62 -> 11567982 | F62: 201232 | G62: 1068 | H62: 10643.02434 | I62: 10831.44382 | J62: 188.4194757 | K62: =Gened!K62+'Specialed '!K62+Pension!K62 -> 11547476 | L62: =Gened!L62+'Specialed '!L62+Pension!L62 -> 11939564 | M62: 392088 | N62: 1077 | O62: 10721.89044 | P62: 11085.94615 | Q62: 364.0557103 | R62: 22914226 | S62: 23507546 | T62: 593320 | U62: 2145 | V62: 10682.62284 | W62: 10959.2289 | X62: 276.6060606
A63: 181 | B63: 1 | C63: BRAINERD | D63: =Gened!D63+'Specialed '!D63+Pension!D63 -> 69283114 | E63: =Gened!E63+'Specialed '!E63+Pension!E63 -> 70608697 | F63: 1325583 | G63: 6541 | H63: 10592.12873 | I63: 10794.78627 | J63: 202.6575447 | K63: =Gened!K63+'Specialed '!K63+Pension!K63 -> 70537006 | L63: =Gened!L63+'Specialed '!L63+Pension!L63 -> 73043055 | M63: 2506049 | N63: 6571 | O63: 10734.5923 | P63: 11115.97245 | Q63: 381.3801552 | R63: 139820120 | S63: 143651752 | T63: 3831632 | U63: 13112 | V63: 10663.52349 | W63: 10955.7468 | X63: 292.2233069
A64: 182 | B64: 1 | C64: CROSBY | D64: =Gened!D64+'Specialed '!D64+Pension!D64 -> 10549889 | E64: =Gened!E64+'Specialed '!E64+Pension!E64 -> 10763591 | F64: 213702 | G64: 1018 | H64: 10363.34872 | I64: 10573.2721 | J64: 209.9233792 | K64: =Gened!K64+'Specialed '!K64+Pension!K64 -> 10466762 | L64: =Gened!L64+'Specialed '!L64+Pension!L64 -> 10864369 | M64: 397607 | N64: 997 | O64: 10498.25677 | P64: 10897.06018 | Q64: 398.8034102 | R64: 21016651 | S64: 21627960 | T64: 611309 | U64: 2015 | V64: 10430.09975 | W64: 10733.47891 | X64: 303.3791563
A65: 186 | B65: 1 | C65: PEQUOT LAKES | D65: =Gened!D65+'Specialed '!D65+Pension!D65 -> 15150427 | E65: =Gened!E65+'Specialed '!E65+Pension!E65 -> 15443943 | F65: 293516 | G65: 1660 | H65: 9126.763253 | I65: 9303.58012 | J65: 176.8168675 | K65: =Gened!K65+'Specialed '!K65+Pension!K65 -> 15014425 | L65: =Gened!L65+'Specialed '!L65+Pension!L65 -> 15574710 | M65: 560285 | N65: 1631 | O65: 9205.656039 | P65: 9549.178418 | Q65: 343.5223789 | R65: 30164852 | S65: 31018653 | T65: 853801 | U65: 3291 | V65: 9165.862048 | W65: 9425.297174 | X65: 259.4351261
A66: 191 | B66: 1 | C66: BURNSVILLE | D66: =Gened!D66+'Specialed '!D66+Pension!D66 -> 103945519 | E66: =Gened!E66+'Specialed '!E66+Pension!E66 -> 105856588 | F66: 1911070 | G66: 8940 | H66: 11627.01555 | I66: 11840.78166 | J66: 213.7661074 | K66: =Gened!K66+'Specialed '!K66+Pension!K66 -> 104443584 | L66: =Gened!L66+'Specialed '!L66+Pension!L66 -> 108040018 | M66: 3596434 | N66: 8902 | O66: 11732.59762 | P66: 12136.60054 | Q66: 404.0029207 | R66: 208389103 | S66: 213896606 | T66: 5507504 | U66: 17842 | V66: 11679.69415 | W66: 11988.37608 | X66: 308.6819863
A67: 192 | B67: 1 | C67: FARMINGTON | D67: =Gened!D67+'Specialed '!D67+Pension!D67 -> 63814374 | E67: =Gened!E67+'Specialed '!E67+Pension!E67 -> 65097190 | F67: 1282815 | G67: 6761 | H67: 9438.599911 | I67: 9628.337524 | J67: 189.7376128 | K67: =Gened!K67+'Specialed '!K67+Pension!K67 -> 63973229 | L67: =Gened!L67+'Specialed '!L67+Pension!L67 -> 66313423 | M67: 2340194 | N67: 6688 | O67: 9565.37515 | P67: 9915.284539 | Q67: 349.90939 | R67: 127787603 | S67: 131410613 | T67: 3623009 | U67: 13449 | V67: 9501.643468 | W67: 9771.03227 | X67: 269.3887278
A68: 194 | B68: 1 | C68: LAKEVILLE | D68: =Gened!D68+'Specialed '!D68+Pension!D68 -> 108267193 | E68: =Gened!E68+'Specialed '!E68+Pension!E68 -> 110277755 | F68: 2010562 | G68: 10515 | H68: 10296.45202 | I68: 10487.66096 | J68: 191.2089396 | K68: =Gened!K68+'Specialed '!K68+Pension!K68 -> 106091404 | L68: =Gened!L68+'Specialed '!L68+Pension!L68 -> 109757931 | M68: 3666527 | N68: 10089 | O68: 10515.55199 | P68: 10878.97026 | Q68: 363.4182773 | R68: 214358597 | S68: 220035686 | T68: 5677089 | U68: 20604 | V68: 10403.73699 | W68: 10679.27034 | X68: 275.533343
A69: 195 | B69: 1 | C69: RANDOLPH | D69: =Gened!D69+'Specialed '!D69+Pension!D69 -> 5838308 | E69: =Gened!E69+'Specialed '!E69+Pension!E69 -> 5951696 | F69: 113389 | G69: 676 | H69: 8636.550296 | I69: 8804.284024 | J69: 167.7337278 | K69: =Gened!K69+'Specialed '!K69+Pension!K69 -> 5946739 | L69: =Gened!L69+'Specialed '!L69+Pension!L69 -> 6171959 | M69: 225220 | N69: 684 | O69: 8694.062865 | P69: 9023.331871 | Q69: 329.2690058 | R69: 11785047 | S69: 12123655 | T69: 338609 | U69: 1360 | V69: 8665.475735 | W69: 8914.452206 | X69: 248.9772059
A70: 196 | B70: 1 | C70: ROSEMOUNT-APPLE | D70: =Gened!D70+'Specialed '!D70+Pension!D70 -> 297173781 | E70: =Gened!E70+'Specialed '!E70+Pension!E70 -> 302797136 | F70: 5623354 | G70: 27776 | H70: 10698.94085 | I70: 10901.39459 | J70: 202.453737 | K70: =Gened!K70+'Specialed '!K70+Pension!K70 -> 302062469 | L70: =Gened!L70+'Specialed '!L70+Pension!L70 -> 312611954 | M70: 10549485 | N70: 27855 | O70: 10844.10228 | P70: 11222.83087 | Q70: 378.7285945 | R70: 599236250 | S70: 615409090 | T70: 16172839 | U70: 55631 | V70: 10771.62463 | W70: 11062.34096 | X70: 290.7163093
A71: 197 | B71: 1 | C71: WEST ST. PAUL | D71: =Gened!D71+'Specialed '!D71+Pension!D71 -> 55630395 | E71: =Gened!E71+'Specialed '!E71+Pension!E71 -> 56587603 | F71: 957208 | G71: 4893 | H71: 11369.38381 | I71: 11565.01185 | J71: 195.6280401 | K71: =Gened!K71+'Specialed '!K71+Pension!K71 -> 59001714 | L71: =Gened!L71+'Specialed '!L71+Pension!L71 -> 60829255 | M71: 1827541 | N71: 4915 | O71: 12004.4179 | P71: 12376.2472 | Q71: 371.8292981 | R71: 114632109 | S71: 117416858 | T71: 2784749 | U71: 9808 | V71: 11687.61307 | W71: 11971.53936 | X71: 283.9262847
A72: 199 | B72: 1 | C72: INVER GROVE | D72: =Gened!D72+'Specialed '!D72+Pension!D72 -> 38512076 | E72: =Gened!E72+'Specialed '!E72+Pension!E72 -> 39283486 | F72: 771410 | G72: 3869 | H72: 9954.012923 | I72: 10153.39519 | J72: 199.3822693 | K72: =Gened!K72+'Specialed '!K72+Pension!K72 -> 38753058 | L72: =Gened!L72+'Specialed '!L72+Pension!L72 -> 40187954 | M72: 1434896 | N72: 3843 | O72: 10084.06401 | P72: 10457.44314 | Q72: 373.3791309 | R72: 77265134 | S72: 79471440 | T72: 2206306 | U72: 7712 | V72: 10018.81924 | W72: 10304.90664 | X72: 286.0873963
A73: 200 | B73: 1 | C73: HASTINGS | D73: =Gened!D73+'Specialed '!D73+Pension!D73 -> 45079800 | E73: =Gened!E73+'Specialed '!E73+Pension!E73 -> 45920078 | F73: 840279 | G73: 4343 | H73: 10379.87566 | I73: 10573.35436 | J73: 193.4787014 | K73: =Gened!K73+'Specialed '!K73+Pension!K73 -> 45263778 | L73: =Gened!L73+'Specialed '!L73+Pension!L73 -> 46830085 | M73: 1566307 | N73: 4319 | O73: 10480.15235 | P73: 10842.80736 | Q73: 362.6550127 | R73: 90343578 | S73: 92750163 | T73: 2406586 | U73: 8662 | V73: 10429.87509 | W73: 10707.70757 | X73: 277.8326022
A74: 203 | B74: 1 | C74: HAYFIELD | D74: =Gened!D74+'Specialed '!D74+Pension!D74 -> 7078635 | E74: =Gened!E74+'Specialed '!E74+Pension!E74 -> 7205705 | F74: 127069 | G74: 689 | H74: 10273.78084 | I74: 10458.20755 | J74: 184.4267054 | K74: =Gened!K74+'Specialed '!K74+Pension!K74 -> 7109983 | L74: =Gened!L74+'Specialed '!L74+Pension!L74 -> 7355526 | M74: 245543 | N74: 689 | O74: 10319.27866 | P74: 10675.65457 | Q74: 356.3759071 | R74: 14188618 | S74: 14561231 | T74: 372612 | U74: 1378 | V74: 10296.52975 | W74: 10566.93106 | X74: 270.4005806
A75: 204 | B75: 1 | C75: KASSON-MANTORVIL | D75: =Gened!D75+'Specialed '!D75+Pension!D75 -> 18170198 | E75: =Gened!E75+'Specialed '!E75+Pension!E75 -> 18525077 | F75: 354879 | G75: 2082 | H75: =D75/G75 -> 8727.2805 | I75: =E75/G75 -> 8897.731508 | J75: =I75-H75 -> 170.4510086 | K75: =Gened!K75+'Specialed '!K75+Pension!K75 -> 18376400 | L75: =Gened!L75+'Specialed '!L75+Pension!L75 -> 19067696 | M75: =L75-K75 -> 691296 | N75: 2092 | O75: =K75/N75 -> 8784.130019 | P75: =L75/N75 -> 9114.577438 | Q75: =P75-O75 -> 330.4474187 | R75: =D75+K75 -> 36546598 | S75: =E75+L75 -> 37592773 | T75: =F75+M75 -> 1046175 | U75: 4174 | V75: =R75/U75 -> 8755.773359 | W75: =S75/U75 -> 9006.414231 | X75: =T75/U75 -> 250.6408721
A76: 206 | B76: 1 | C76: ALEXANDRIA | D76: =Gened!D76+'Specialed '!D76+Pension!D76 -> 40748185 | E76: =Gened!E76+'Specialed '!E76+Pension!E76 -> 41613396 | F76: 865212 | G76: 4128 | H76: 9871.168847 | I76: 10080.76453 | J76: 209.595688 | K76: =Gened!K76+'Specialed '!K76+Pension!K76 -> 41436018 | L76: =Gened!L76+'Specialed '!L76+Pension!L76 -> 42968040 | M76: 1532022 | N76: 4161 | O76: 9958.187455 | P76: 10326.37347 | Q76: 368.186013 | R76: 82184203 | S76: 84581436 | T76: 2397234 | U76: 8289 | V76: 9914.851369 | W76: 10204.05791 | X76: 289.2066594
A77: 213 | B77: 1 | C77: OSAKIS | D77: =Gened!D77+'Specialed '!D77+Pension!D77 -> 7526887 | E77: =Gened!E77+'Specialed '!E77+Pension!E77 -> 7670037 | F77: 143151 | G77: 813 | H77: 9258.163592 | I77: 9434.239852 | J77: 176.0762608 | K77: =Gened!K77+'Specialed '!K77+Pension!K77 -> 7572686 | L77: =Gened!L77+'Specialed '!L77+Pension!L77 -> 7852582 | M77: 279896 | N77: 810 | O77: 9348.995062 | P77: 9694.545679 | Q77: 345.5506173 | R77: 15099573 | S77: 15522619 | T77: 423047 | U77: 1623 | V77: 9303.495379 | W77: 9564.152187 | X77: 260.6574245
A78: 227 | B78: 1 | C78: CHATFIELD | D78: =Gened!D78+'Specialed '!D78+Pension!D78 -> 8441968 | E78: =Gened!E78+'Specialed '!E78+Pension!E78 -> 8609518 | F78: 167550 | G78: 899 | H78: 9390.39822 | I78: 9576.771969 | J78: 186.3737486 | K78: =Gened!K78+'Specialed '!K78+Pension!K78 -> 8445203 | L78: =Gened!L78+'Specialed '!L78+Pension!L78 -> 8757818 | M78: 312615 | N78: 892 | O78: 9467.716368 | P78: 9818.181614 | Q78: 350.4652466 | R78: 16887171 | S78: 17367336 | T78: 480165 | U78: 1791 | V78: 9428.906198 | W78: 9697.005025 | X78: 268.0988275
A79: 229 | B79: 1 | C79: LANESBORO | D79: =Gened!D79+'Specialed '!D79+Pension!D79 -> 3031282 | E79: =Gened!E79+'Specialed '!E79+Pension!E79 -> 3088857 | F79: 57575 | G79: 305 | H79: 9938.629508 | I79: 10127.4 | J79: 188.7704918 | K79: =Gened!K79+'Specialed '!K79+Pension!K79 -> 2932395 | L79: =Gened!L79+'Specialed '!L79+Pension!L79 -> 3041352 | M79: 108957 | N79: 295 | O79: 9940.322034 | P79: 10309.6678 | Q79: 369.3457627 | R79: 5963677 | S79: 6130209 | T79: 166532 | U79: 600 | V79: 9939.461667 | W79: 10217.015 | X79: 277.5533333
A80: 238 | B80: 1 | C80: MABEL-CANTON | D80: =Gened!D80+'Specialed '!D80+Pension!D80 -> 2686459 | E80: =Gened!E80+'Specialed '!E80+Pension!E80 -> 2736183 | F80: 49724 | G80: 246 | H80: 10920.56504 | I80: 11122.69512 | J80: 202.1300813 | K80: =Gened!K80+'Specialed '!K80+Pension!K80 -> 2671090 | L80: =Gened!L80+'Specialed '!L80+Pension!L80 -> 2763856 | M80: 92766 | N80: 244 | O80: 10947.09016 | P80: 11327.27869 | Q80: 380.1885246 | R80: 5357549 | S80: 5500039 | T80: 142490 | U80: 490 | V80: 10933.77347 | W80: 11224.56939 | X80: 290.7959184
A81: 239 | B81: 1 | C81: RUSHFORD-PETERSO | D81: =Gened!D81+'Specialed '!D81+Pension!D81 -> 6543330 | E81: =Gened!E81+'Specialed '!E81+Pension!E81 -> 6670111 | F81: 126781 | G81: 637 | H81: 10272.10361 | I81: 10471.13187 | J81: 199.0282575 | K81: =Gened!K81+'Specialed '!K81+Pension!K81 -> 6445031 | L81: =Gened!L81+'Specialed '!L81+Pension!L81 -> 6677648 | M81: 232617 | N81: 625 | O81: 10312.0496 | P81: 10684.2368 | Q81: 372.1872 | R81: 12988361 | S81: 13347759 | T81: 359398 | U81: 1262 | V81: 10291.88669 | W81: 10576.67116 | X81: 284.7844691
A82: 241 | B82: 1 | C82: ALBERT LEA | D82: =Gened!D82+'Specialed '!D82+Pension!D82 -> 40043696 | E82: =Gened!E82+'Specialed '!E82+Pension!E82 -> 40771032 | F82: 727336 | G82: 3427 | H82: 11684.76685 | I82: 11897.00379 | J82: 212.2369419 | K82: =Gened!K82+'Specialed '!K82+Pension!K82 -> 40735204 | L82: =Gened!L82+'Specialed '!L82+Pension!L82 -> 42110689 | M82: 1375485 | N82: 3437 | O82: 11851.96509 | P82: 12252.16439 | Q82: 400.1993017 | R82: 80778900 | S82: 82881721 | T82: 2102821 | U82: 6864 | V82: 11768.48776 | W82: 12074.8428 | X82: 306.3550408
A83: 242 | B83: 1 | C83: ALDEN | D83: =Gened!D83+'Specialed '!D83+Pension!D83 -> 4989613 | E83: =Gened!E83+'Specialed '!E83+Pension!E83 -> 5084207 | F83: 94593 | G83: 492 | H83: 10141.48984 | I83: 10333.75407 | J83: 192.2642276 | K83: =Gened!K83+'Specialed '!K83+Pension!K83 -> 5024275 | L83: =Gened!L83+'Specialed '!L83+Pension!L83 -> 5204120 | M83: 179845 | N83: 492 | O83: 10211.94106 | P83: 10577.47967 | Q83: 365.5386179 | R83: 10013888 | S83: 10288327 | T83: 274438 | U83: 984 | V83: 10176.71545 | W83: 10455.61687 | X83: 278.9004065
A84: 252 | B84: 1 | C84: CANNON FALLS | D84: =Gened!D84+'Specialed '!D84+Pension!D84 -> 10705955 | E84: =Gened!E84+'Specialed '!E84+Pension!E84 -> 10906472 | F84: 200517 | G84: 1129 | H84: 9482.68822 | I84: 9660.294066 | J84: 177.6058459 | K84: =Gened!K84+'Specialed '!K84+Pension!K84 -> 10619119 | L84: =Gened!L84+'Specialed '!L84+Pension!L84 -> 11002021 | M84: 382902 | N84: 1112 | O84: 9549.567446 | P84: 9893.903777 | Q84: 344.3363309 | R84: 21325074 | S84: 21908493 | T84: 583419 | U84: 2241 | V84: 9515.874163 | W84: 9776.212851 | X84: 260.3386881
A85: 253 | B85: 1 | C85: GOODHUE | D85: =Gened!D85+'Specialed '!D85+Pension!D85 -> 5598644 | E85: =Gened!E85+'Specialed '!E85+Pension!E85 -> 5711191 | F85: 112548 | G85: 636 | H85: 8802.899371 | I85: 8979.860063 | J85: 176.9606918 | K85: =Gened!K85+'Specialed '!K85+Pension!K85 -> 5598113 | L85: =Gened!L85+'Specialed '!L85+Pension!L85 -> 5814728 | M85: 216615 | N85: 635 | O85: 8815.925984 | P85: 9157.051969 | Q85: 341.1259843 | R85: 11196757 | S85: 11525919 | T85: 329163 | U85: 1271 | V85: 8809.407553 | W85: 9068.38631 | X85: 258.9795437
A86: 255 | B86: 1 | C86: PINE ISLAND | D86: =Gened!D86+'Specialed '!D86+Pension!D86 -> 11125136 | E86: =Gened!E86+'Specialed '!E86+Pension!E86 -> 11344226 | F86: 219090 | G86: 1280 | H86: 8691.5125 | I86: 8862.676563 | J86: 171.1640625 | K86: =Gened!K86+'Specialed '!K86+Pension!K86 -> 11219277 | L86: =Gened!L86+'Specialed '!L86+Pension!L86 -> 11644867 | M86: 425590 | N86: 1288 | O86: 8710.618789 | P86: 9041.045807 | Q86: 330.4270186 | R86: 22344413 | S86: 22989093 | T86: 644680 | U86: 2568 | V86: 8701.095405 | W86: 8952.139019 | X86: 251.0436137
A87: 256 | B87: 1 | C87: RED WING | D87: =Gened!D87+'Specialed '!D87+Pension!D87 -> 27713474 | E87: =Gened!E87+'Specialed '!E87+Pension!E87 -> 28238141 | F87: 524667 | G87: 2660 | H87: 10418.59925 | I87: 10615.84248 | J87: 197.2432331 | K87: =Gened!K87+'Specialed '!K87+Pension!K87 -> 27718406 | L87: =Gened!L87+'Specialed '!L87+Pension!L87 -> 28699967 | M87: 981561 | N87: 2623 | O87: 10567.44415 | P87: 10941.65726 | Q87: 374.2131148 | R87: 55431880 | S87: 56938108 | T87: 1506228 | U87: 5283 | V87: 10492.50047 | W87: 10777.60893 | X87: 285.1084611
A88: 261 | B88: 1 | C88: ASHBY | D88: =Gened!D88+'Specialed '!D88+Pension!D88 -> 2815266 | E88: =Gened!E88+'Specialed '!E88+Pension!E88 -> 2863790 | F88: 48525 | G88: 274 | H88: 10274.69343 | I88: 10451.78832 | J88: 177.0948905 | K88: =Gened!K88+'Specialed '!K88+Pension!K88 -> 2907335 | L88: =Gened!L88+'Specialed '!L88+Pension!L88 -> 3004726 | M88: 97391 | N88: 283 | O88: 10273.26855 | P88: 10617.40636 | Q88: 344.1378092 | R88: 5722601 | S88: 5868516 | T88: 145916 | U88: 557 | V88: 10273.96948 | W88: 10535.93537 | X88: 261.967684
A89: 264 | B89: 1 | C89: HERMAN-NORCROSS | D89: =Gened!D89+'Specialed '!D89+Pension!D89 -> 1775135 | E89: =Gened!E89+'Specialed '!E89+Pension!E89 -> 1803231 | F89: 28095 | G89: 118 | H89: 15043.51695 | I89: 15281.61864 | J89: 238.1016949 | K89: =Gened!K89+'Specialed '!K89+Pension!K89 -> 1765780 | L89: =Gened!L89+'Specialed '!L89+Pension!L89 -> 1820450 | M89: 54670 | N89: 116 | O89: 15222.24138 | P89: 15693.53448 | Q89: 471.2931034 | R89: 3540915 | S89: 3623681 | T89: 82765 | U89: 234 | V89: 15132.11538 | W89: 15485.81624 | X89: 353.6965812
A90: 270 | B90: 1 | C90: HOPKINS | D90: =Gened!D90+'Specialed '!D90+Pension!D90 -> 81184899 | E90: =Gened!E90+'Specialed '!E90+Pension!E90 -> 82601985 | F90: 1417086 | G90: 6970 | H90: 11647.76169 | I90: 11851.07389 | J90: 203.3121951 | K90: =Gened!K90+'Specialed '!K90+Pension!K90 -> 82451028 | L90: =Gened!L90+'Specialed '!L90+Pension!L90 -> 85115186 | M90: 2664158 | N90: 6987 | O90: 11800.63375 | P90: 12181.93588 | Q90: 381.3021325 | R90: 163635927 | S90: 167717171 | T90: 4081244 | U90: 13957 | V90: 11724.29082 | W90: 12016.70638 | X90: 292.4155621
A91: 271 | B91: 1 | C91: BLOOMINGTON | D91: =Gened!D91+'Specialed '!D91+Pension!D91 -> 122262026 | E91: =Gened!E91+'Specialed '!E91+Pension!E91 -> 124470824 | F91: 2208797 | G91: 10604 | H91: 11529.80253 | I91: 11738.10109 | J91: 208.2985666 | K91: =Gened!K91+'Specialed '!K91+Pension!K91 -> 122675684 | L91: =Gened!L91+'Specialed '!L91+Pension!L91 -> 126808042 | M91: 4132358 | N91: 10459 | O91: 11729.1982 | P91: 12124.29888 | Q91: 395.1006788 | R91: 244937710 | S91: 251278866 | T91: 6341155 | U91: 21063 | V91: 11628.81403 | W91: 11929.87067 | X91: 301.0565921
A92: 272 | B92: 1 | C92: EDEN PRAIRIE | D92: =Gened!D92+'Specialed '!D92+Pension!D92 -> 94503090 | E92: =Gened!E92+'Specialed '!E92+Pension!E92 -> 96108498 | F92: 1605408 | G92: 8602 | H92: 10986.17647 | I92: 11172.80842 | J92: 186.6319461 | K92: =Gened!K92+'Specialed '!K92+Pension!K92 -> 93404049 | L92: =Gened!L92+'Specialed '!L92+Pension!L92 -> 96427783 | M92: 3023734 | N92: 8455 | O92: 11047.19681 | P92: 11404.82354 | Q92: 357.6267297 | R92: 187907139 | S92: 192536281 | T92: 4629142 | U92: 17057 | V92: 11016.4237 | W92: 11287.8162 | X92: 271.3925075
A93: 273 | B93: 1 | C93: EDINA | D93: =Gened!D93+'Specialed '!D93+Pension!D93 -> 88498986 | E93: =Gened!E93+'Specialed '!E93+Pension!E93 -> 90132139 | F93: 1633153 | G93: 8548 | H93: 10353.18039 | I93: 10544.23713 | J93: 191.0567384 | K93: =Gened!K93+'Specialed '!K93+Pension!K93 -> 89601604 | L93: =Gened!L93+'Specialed '!L93+Pension!L93 -> 92640533 | M93: 3038929 | N93: 8559 | O93: 10468.70008 | P93: 10823.75663 | Q93: 355.0565487 | R93: 178100590 | S93: 182772672 | T93: 4672082 | U93: 17107 | V93: 10410.97738 | W93: 10684.08675 | X93: 273.1093704
A94: 276 | B94: 1 | C94: MINNETONKA | D94: =Gened!D94+'Specialed '!D94+Pension!D94 -> 109441302 | E94: =Gened!E94+'Specialed '!E94+Pension!E94 -> 111239999 | F94: 1798697 | G94: 10550 | H94: 10373.58313 | I94: 10544.07573 | J94: 170.4926066 | K94: =Gened!K94+'Specialed '!K94+Pension!K94 -> 111298609 | L94: =Gened!L94+'Specialed '!L94+Pension!L94 -> 114831150 | M94: 3532541 | N94: 10652 | O94: 10448.61143 | P94: 10780.24315 | Q94: 331.6317124 | R94: 220739911 | S94: 226071149 | T94: 5331238 | U94: 21202 | V94: 10411.27776 | W94: 10662.72753 | X94: 251.4497689
A95: 277 | B95: 1 | C95: WESTONKA | D95: =Gened!D95+'Specialed '!D95+Pension!D95 -> 23563977 | E95: =Gened!E95+'Specialed '!E95+Pension!E95 -> 24002591 | F95: 438614 | G95: 2298 | H95: 10254.12402 | I95: 10444.99173 | J95: 190.8677111 | K95: =Gened!K95+'Specialed '!K95+Pension!K95 -> 23828068 | L95: =Gened!L95+'Specialed '!L95+Pension!L95 -> 24651880 | M95: 823812 | N95: 2296 | O95: 10378.0784 | P95: 10736.88153 | Q95: 358.8031359 | R95: 47392045 | S95: 48654471 | T95: 1262426 | U95: 4594 | V95: 10316.07423 | W95: 10590.8731 | X95: 274.7988681
A96: 278 | B96: 1 | C96: ORONO | D96: =Gened!D96+'Specialed '!D96+Pension!D96 -> 30110703 | E96: =Gened!E96+'Specialed '!E96+Pension!E96 -> 30605929 | F96: 495226 | G96: 2810 | H96: 10715.55267 | I96: 10891.78968 | J96: 176.2370107 | K96: =Gened!K96+'Specialed '!K96+Pension!K96 -> 30454770 | L96: =Gened!L96+'Specialed '!L96+Pension!L96 -> 31412511 | M96: 957741 | N96: 2814 | O96: 10822.59062 | P96: 11162.93923 | Q96: 340.3486141 | R96: 60565473 | S96: 62018440 | T96: 1452967 | U96: 5624 | V96: 10769.10971 | W96: 11027.46088 | X96: 258.3511735
A97: 279 | B97: 1 | C97: OSSEO | D97: =Gened!D97+'Specialed '!D97+Pension!D97 -> 237928776 | E97: =Gened!E97+'Specialed '!E97+Pension!E97 -> 242232691 | F97: 4303915 | G97: 20654 | H97: 11519.7432 | I97: 11728.12487 | J97: 208.3816694 | K97: =Gened!K97+'Specialed '!K97+Pension!K97 -> 242245599 | L97: =Gened!L97+'Specialed '!L97+Pension!L97 -> 250399986 | M97: 8154387 | N97: 20751 | O97: 11673.9241 | P97: 12066.88767 | Q97: 392.963568 | R97: 480174375 | S97: 492632677 | T97: 12458302 | U97: 41405 | V97: 11597.01425 | W97: 11897.90308 | X97: 300.8888299
A98: 280 | B98: 1 | C98: RICHFIELD | D98: =Gened!D98+'Specialed '!D98+Pension!D98 -> 48433665 | E98: =Gened!E98+'Specialed '!E98+Pension!E98 -> 49381360 | F98: 947696 | G98: 4183 | H98: 11578.69113 | I98: 11805.24982 | J98: 226.5586899 | K98: =Gened!K98+'Specialed '!K98+Pension!K98 -> 47285836 | L98: =Gened!L98+'Specialed '!L98+Pension!L98 -> 49038237 | M98: 1752401 | N98: 4003 | O98: 11812.59955 | P98: 12250.37147 | Q98: 437.7719211 | R98: 95719501 | S98: 98419597 | T98: 2700097 | U98: 8186 | V98: 11693.07366 | W98: 12022.91681 | X98: 329.843269
A99: 281 | B99: 1 | C99: ROBBINSDALE | D99: =Gened!D99+'Specialed '!D99+Pension!D99 -> 146486557 | E99: =Gened!E99+'Specialed '!E99+Pension!E99 -> 149250711 | F99: 2764155 | G99: 12927 | H99: 11331.82927 | I99: 11545.65723 | J99: 213.827957 | K99: =Gened!K99+'Specialed '!K99+Pension!K99 -> 149966469 | L99: =Gened!L99+'Specialed '!L99+Pension!L99 -> 155266175 | M99: 5299706 | N99: 13162 | O99: 11393.89675 | P99: 11796.54878 | Q99: 402.6520286 | R99: 296453026 | S99: 304516886 | T99: 8063861 | U99: 26089 | V99: 11363.14255 | W99: 11672.23297 | X99: 309.0904596
A100: 282 | B100: 1 | C100: ST. ANTHONY-NEW | D100: =Gened!D100+'Specialed '!D100+Pension!D100 -> 17693973 | E100: =Gened!E100+'Specialed '!E100+Pension!E100 -> 18034958 | F100: 340984 | G100: 1778 | H100: 9951.615861 | I100: 10143.39595 | J100: 191.78009 | K100: =Gened!K100+'Specialed '!K100+Pension!K100 -> 17782183 | L100: =Gened!L100+'Specialed '!L100+Pension!L100 -> 18417959 | M100: 635776 | N100: 1776 | O100: 10012.49043 | P100: 10370.47241 | Q100: 357.981982 | R100: 35476156 | S100: 36452917 | T100: 976760 | U100: 3554 | V100: 9982.036016 | W100: 10256.87029 | X100: 274.8339899
A101: 283 | B101: 1 | C101: ST. LOUIS PARK | D101: =Gened!D101+'Specialed '!D101+Pension!D101 -> 52287494 | E101: =Gened!E101+'Specialed '!E101+Pension!E101 -> 53171814 | F101: 884320 | G101: 4641 | H101: 11266.42836 | I101: 11456.9735 | J101: 190.5451411 | K101: =Gened!K101+'Specialed '!K101+Pension!K101 -> 52721923 | L101: =Gened!L101+'Specialed '!L101+Pension!L101 -> 54412862 | M101: 1690939 | N101: 4611 | O101: 11433.94556 | P101: 11800.66406 | Q101: 366.7184992 | R101: 105009417 | S101: 107584676 | T101: 2575259 | U101: 9252 | V101: 11349.91537 | W101: 11628.26157 | X101: 278.3461954
A102: 284 | B102: 1 | C102: WAYZATA | D102: =Gened!D102+'Specialed '!D102+Pension!D102 -> 118442629 | E102: =Gened!E102+'Specialed '!E102+Pension!E102 -> 120576225 | F102: 2133596 | G102: 11692 | H102: 10130.22828 | I102: 10312.71168 | J102: 182.4834075 | K102: =Gened!K102+'Specialed '!K102+Pension!K102 -> 122009444 | L102: =Gened!L102+'Specialed '!L102+Pension!L102 -> 126108486 | M102: 4099042 | N102: 11920 | O102: 10235.69161 | P102: 10579.57097 | Q102: 343.8793624 | R102: 240452073 | S102: 246684711 | T102: 6232638 | U102: 23612 | V102: 10183.46913 | W102: 10447.42974 | X102: 263.9606132
A103: 286 | B103: 1 | C103: BROOKLYN CENTER | D103: =Gened!D103+'Specialed '!D103+Pension!D103 -> 26668286 | E103: =Gened!E103+'Specialed '!E103+Pension!E103 -> 27225458 | F103: 557173 | G103: 2405 | H103: 11088.68441 | I103: 11320.35676 | J103: 231.6723493 | K103: =Gened!K103+'Specialed '!K103+Pension!K103 -> 26854225 | L103: =Gened!L103+'Specialed '!L103+Pension!L103 -> 27913669 | M103: 1059444 | N103: 2405 | O103: 11165.99792 | P103: 11606.51518 | Q103: 440.5172557 | R103: 53522511 | S103: 55139127 | T103: 1616617 | U103: 4810 | V103: 11127.34116 | W103: 11463.43597 | X103: 336.0950104
A104: 294 | B104: 1 | C104: HOUSTON | D104: =Gened!D104+'Specialed '!D104+Pension!D104 -> 19321863 | E104: =Gened!E104+'Specialed '!E104+Pension!E104 -> 19669255 | F104: 347393 | G104: 2024 | H104: 9546.375 | I104: 9718.011364 | J104: 171.6363636 | K104: =Gened!K104+'Specialed '!K104+Pension!K104 -> 19384139 | L104: =Gened!L104+'Specialed '!L104+Pension!L104 -> 20070458 | M104: 686319 | N104: 2025 | O104: 9572.414321 | P104: 9911.337284 | Q104: 338.922963 | R104: 38706002 | S104: 39739713 | T104: 1033712 | U104: 4049 | V104: 9559.397876 | W104: 9814.698197 | X104: 255.300568
A105: 297 | B105: 1 | C105: SPRING GROVE | D105: =Gened!D105+'Specialed '!D105+Pension!D105 -> 3672137 | E105: =Gened!E105+'Specialed '!E105+Pension!E105 -> 3737412 | F105: 65276 | G105: 348 | H105: 10552.11782 | I105: 10739.68966 | J105: 187.5718391 | K105: =Gened!K105+'Specialed '!K105+Pension!K105 -> 3666312 | L105: =Gened!L105+'Specialed '!L105+Pension!L105 -> 3790674 | M105: 124362 | N105: 346 | O105: 10596.27746 | P105: 10955.7052 | Q105: 359.4277457 | R105: 7338449 | S105: 7528086 | T105: 189638 | U105: 694 | V105: 10574.13401 | W105: 10847.38617 | X105: 273.2536023
A106: 299 | B106: 1 | C106: CALEDONIA | D106: =Gened!D106+'Specialed '!D106+Pension!D106 -> 6642435 | E106: =Gened!E106+'Specialed '!E106+Pension!E106 -> 6782265 | F106: 139830 | G106: 685 | H106: 9696.985401 | I106: 9901.116788 | J106: 204.1313869 | K106: =Gened!K106+'Specialed '!K106+Pension!K106 -> 6760986 | L106: =Gened!L106+'Specialed '!L106+Pension!L106 -> 7021306 | M106: 260320 | N106: 691 | O106: 9784.350217 | P106: 10161.07959 | Q106: 376.7293777 | R106: 13403421 | S106: 13803571 | T106: 400150 | U106: 1376 | V106: 9740.858285 | W106: 10031.66497 | X106: 290.806686
A107: 300 | B107: 1 | C107: LACRESCENT | D107: =Gened!D107+'Specialed '!D107+Pension!D107 -> 11291239 | E107: =Gened!E107+'Specialed '!E107+Pension!E107 -> 11506543 | F107: 215304 | G107: 1110 | H107: 10172.28739 | I107: 10366.25495 | J107: 193.9675676 | K107: =Gened!K107+'Specialed '!K107+Pension!K107 -> 11117694 | L107: =Gened!L107+'Specialed '!L107+Pension!L107 -> 11511871 | M107: 394177 | N107: 1071 | O107: 10380.66667 | P107: 10748.71242 | Q107: 368.0457516 | R107: 22408933 | S107: 23018414 | T107: 609481 | U107: 2181 | V107: 10274.61394 | W107: 10554.06419 | X107: 279.4502522
A108: 306 | B108: 1 | C108: LAPORTE | D108: =Gened!D108+'Specialed '!D108+Pension!D108 -> 3445465 | E108: =Gened!E108+'Specialed '!E108+Pension!E108 -> 3506721 | F108: 61256 | G108: 310 | H108: 11114.40323 | I108: 11312.00323 | J108: 197.6 | K108: =Gened!K108+'Specialed '!K108+Pension!K108 -> 3519635 | L108: =Gened!L108+'Specialed '!L108+Pension!L108 -> 3642316 | M108: 122681 | N108: 313 | O108: 11244.84026 | P108: 11636.79233 | Q108: 391.9520767 | R108: 6965100 | S108: 7149037 | T108: 183937 | U108: 623 | V108: 11179.93579 | W108: 11475.17978 | X108: 295.2439807
A109: 308 | B109: 1 | C109: NEVIS | D109: =Gened!D109+'Specialed '!D109+Pension!D109 -> 6278141 | E109: =Gened!E109+'Specialed '!E109+Pension!E109 -> 6397908 | F109: 119766 | G109: 625 | H109: 10045.0256 | I109: 10236.6528 | J109: 191.6272 | K109: =Gened!K109+'Specialed '!K109+Pension!K109 -> 6228813 | L109: =Gened!L109+'Specialed '!L109+Pension!L109 -> 6460192 | M109: 231379 | N109: 616 | O109: 10111.70942 | P109: 10487.32468 | Q109: 375.6152597 | R109: 12506954 | S109: 12858100 | T109: 351145 | U109: 1241 | V109: 10078.12571 | W109: 10361.07977 | X109: 282.9532635
A110: 309 | B110: 1 | C110: PARK RAPIDS | D110: =Gened!D110+'Specialed '!D110+Pension!D110 -> 15603868 | E110: =Gened!E110+'Specialed '!E110+Pension!E110 -> 15930844 | F110: 326976 | G110: 1577 | H110: 9894.653139 | I110: 10101.99366 | J110: 207.34052 | K110: =Gened!K110+'Specialed '!K110+Pension!K110 -> 15814372 | L110: =Gened!L110+'Specialed '!L110+Pension!L110 -> 16434165 | M110: 619793 | N110: 1582 | O110: 9996.442478 | P110: 10388.22061 | Q110: 391.778129 | R110: 31418240 | S110: 32365009 | T110: 946769 | U110: 3159 | V110: 9945.628363 | W110: 10245.33365 | X110: 299.7052865
A111: 314 | B111: 1 | C111: BRAHAM | D111: =Gened!D111+'Specialed '!D111+Pension!D111 -> 7002824 | E111: =Gened!E111+'Specialed '!E111+Pension!E111 -> 7163157 | F111: 160333 | G111: 764 | H111: 9166 | I111: 9375.859948 | J111: 209.8599476 | K111: =Gened!K111+'Specialed '!K111+Pension!K111 -> 6995715 | L111: =Gened!L111+'Specialed '!L111+Pension!L111 -> 7294419 | M111: 298704 | N111: 764 | O111: 9156.695026 | P111: 9547.668848 | Q111: 390.973822 | R111: 13998539 | S111: 14457576 | T111: 459037 | U111: 1528 | V111: 9161.347513 | W111: 9461.764398 | X111: 300.4168848
A112: 316 | B112: 1 | C112: GREENWAY | D112: =Gened!D112+'Specialed '!D112+Pension!D112 -> 11782017 | E112: =Gened!E112+'Specialed '!E112+Pension!E112 -> 12000170 | F112: 218153 | G112: 1049 | H112: 11231.6654 | I112: 11439.62822 | J112: 207.9628217 | K112: =Gened!K112+'Specialed '!K112+Pension!K112 -> 11918993 | L112: =Gened!L112+'Specialed '!L112+Pension!L112 -> 12330485 | M112: 411492 | N112: 1048 | O112: 11373.08492 | P112: 11765.72996 | Q112: 392.6450382 | R112: 23701010 | S112: 24330655 | T112: 629645 | U112: 2097 | V112: 11302.34144 | W112: 11602.60134 | X112: 300.2598951
A113: 317 | B113: 1 | C113: DEER RIVER | D113: =Gened!D113+'Specialed '!D113+Pension!D113 -> 10879419 | E113: =Gened!E113+'Specialed '!E113+Pension!E113 -> 11080305 | F113: 200887 | G113: 931 | H113: 11685.73469 | I113: 11901.50913 | J113: 215.7744361 | K113: =Gened!K113+'Specialed '!K113+Pension!K113 -> 10946002 | L113: =Gened!L113+'Specialed '!L113+Pension!L113 -> 11330334 | M113: 384332 | N113: 922 | O113: 11872.01952 | P113: 12288.86551 | Q113: 416.845987 | R113: 21825421 | S113: 22410639 | T113: 585219 | U113: 1853 | V113: 11778.42472 | W113: 12094.24663 | X113: 315.8224501
A114: 318 | B114: 1 | C114: GRAND RAPIDS | D114: =Gened!D114+'Specialed '!D114+Pension!D114 -> 39996983 | E114: =Gened!E114+'Specialed '!E114+Pension!E114 -> 40797397 | F114: 800413 | G114: 3981 | H114: 10046.96885 | I114: 10248.02738 | J114: 201.058528 | K114: =Gened!K114+'Specialed '!K114+Pension!K114 -> 40501316 | L114: =Gened!L114+'Specialed '!L114+Pension!L114 -> 42024735 | M114: 1523419 | N114: 4011 | O114: 10097.56071 | P114: 10477.37098 | Q114: 379.8102718 | R114: 80498299 | S114: 82822132 | T114: 2323832 | U114: 7992 | V114: 10072.35973 | W114: 10363.12963 | X114: 290.7697698
A115: 319 | B115: 1 | C115: NASHWAUK-KEEWATI | D115: =Gened!D115+'Specialed '!D115+Pension!D115 -> 6433315 | E115: =Gened!E115+'Specialed '!E115+Pension!E115 -> 6549940 | F115: 116626 | G115: 553 | H115: 11633.48101 | I115: 11844.37613 | J115: 210.8951175 | K115: =Gened!K115+'Specialed '!K115+Pension!K115 -> 6357915 | L115: =Gened!L115+'Specialed '!L115+Pension!L115 -> 6582254 | M115: 224339 | N115: 539 | O115: 11795.76067 | P115: 12211.97403 | Q115: 416.2133581 | R115: 12791230 | S115: 13132194 | T115: 340965 | U115: 1092 | V115: 11713.58059 | W115: 12025.81868 | X115: 312.239011
A116: 323 | B116: 2 | C116: FRANCONIA | D116: =Gened!D116+'Specialed '!D116+Pension!D116 -> 258753 | E116: =Gened!E116+'Specialed '!E116+Pension!E116 -> 263486 | F116: 4733 | G116: 30 | H116: 8625.1 | I116: 8782.866667 | J116: 157.7666667 | K116: =Gened!K116+'Specialed '!K116+Pension!K116 -> 215722 | L116: =Gened!L116+'Specialed '!L116+Pension!L116 -> 223342 | M116: 7620 | N116: 24 | O116: 8988.416667 | P116: 9305.916667 | Q116: 317.5 | R116: 474475 | S116: 486828 | T116: 12353 | U116: 54 | V116: 8786.574074 | W116: 9015.333333 | X116: 228.7592593
A117: 330 | B117: 1 | C117: HERON LAKE-OKABE | D117: =Gened!D117+'Specialed '!D117+Pension!D117 -> 3188160 | E117: =Gened!E117+'Specialed '!E117+Pension!E117 -> 3241971 | F117: 53810 | G117: 248 | H117: 12855.48387 | I117: 13072.46371 | J117: 216.9798387 | K117: =Gened!K117+'Specialed '!K117+Pension!K117 -> 3150338 | L117: =Gened!L117+'Specialed '!L117+Pension!L117 -> 3249954 | M117: 99616 | N117: 243 | O117: 12964.35391 | P117: 13374.2963 | Q117: 409.9423868 | R117: 6338498 | S117: 6491925 | T117: 153426 | U117: 491 | V117: 12909.36456 | W117: 13221.84318 | X117: 312.4765784
A118: 332 | B118: 1 | C118: MORA | D118: =Gened!D118+'Specialed '!D118+Pension!D118 -> 15391005 | E118: =Gened!E118+'Specialed '!E118+Pension!E118 -> 15722817 | F118: 331812 | G118: 1600 | H118: 9619.378125 | I118: 9826.760625 | J118: 207.3825 | K118: =Gened!K118+'Specialed '!K118+Pension!K118 -> 15242600 | L118: =Gened!L118+'Specialed '!L118+Pension!L118 -> 15852693 | M118: 610093 | N118: 1575 | O118: 9677.84127 | P118: 10065.2019 | Q118: 387.3606349 | R118: 30633605 | S118: 31575510 | T118: 941905 | U118: 3175 | V118: 9648.379528 | W118: 9945.04252 | X118: 296.6629921
A119: 333 | B119: 1 | C119: OGILVIE | D119: =Gened!D119+'Specialed '!D119+Pension!D119 -> 4586740 | E119: =Gened!E119+'Specialed '!E119+Pension!E119 -> 4678225 | F119: 91485 | G119: 466 | H119: 9842.7897 | I119: 10039.10944 | J119: 196.3197425 | K119: =Gened!K119+'Specialed '!K119+Pension!K119 -> 4687841 | L119: =Gened!L119+'Specialed '!L119+Pension!L119 -> 4866244 | M119: 178403 | N119: 473 | O119: 9910.868922 | P119: 10288.04228 | Q119: 377.1733615 | R119: 9274581 | S119: 9544469 | T119: 269888 | U119: 939 | V119: 9877.083067 | W119: 10164.50373 | X119: 287.4206603
A120: 345 | B120: 1 | C120: NEW LONDON-SPICE | D120: =Gened!D120+'Specialed '!D120+Pension!D120 -> 13903183 | E120: =Gened!E120+'Specialed '!E120+Pension!E120 -> 14161325 | F120: 258142 | G120: 1471 | H120: 9451.518015 | I120: 9627.005438 | J120: 175.4874235 | K120: =Gened!K120+'Specialed '!K120+Pension!K120 -> 14077405 | L120: =Gened!L120+'Specialed '!L120+Pension!L120 -> 14580590 | M120: 503185 | N120: 1480 | O120: 9511.760135 | P120: 9851.75 | Q120: 339.9898649 | R120: 27980588 | S120: 28741915 | T120: 761327 | U120: 2951 | V120: 9481.730939 | W120: 9739.720434 | X120: 257.9894951
A121: 347 | B121: 1 | C121: WILLMAR | D121: =Gened!D121+'Specialed '!D121+Pension!D121 -> 47139074 | E121: =Gened!E121+'Specialed '!E121+Pension!E121 -> 48046836 | F121: 907762 | G121: 4184 | H121: 11266.50908 | I121: 11483.46941 | J121: 216.960325 | K121: =Gened!K121+'Specialed '!K121+Pension!K121 -> 48061821 | L121: =Gened!L121+'Specialed '!L121+Pension!L121 -> 49777461 | M121: 1715640 | N121: 4223 | O121: 11380.96637 | P121: 11787.22733 | Q121: 406.2609519 | R121: 95200895 | S121: 97824297 | T121: 2623402 | U121: 8407 | V121: 11324.00321 | W121: 11636.05293 | X121: 312.0497205
A122: 356 | B122: 1 | C122: LANCASTER | D122: =Gened!D122+'Specialed '!D122+Pension!D122 -> 2173145 | E122: =Gened!E122+'Specialed '!E122+Pension!E122 -> 2204359 | F122: 31214 | G122: 144 | H122: 15091.28472 | I122: 15308.04861 | J122: 216.7638889 | K122: =Gened!K122+'Specialed '!K122+Pension!K122 -> 2172426 | L122: =Gened!L122+'Specialed '!L122+Pension!L122 -> 2230320 | M122: 57894 | N122: 144 | O122: 15086.29167 | P122: 15488.33333 | Q122: 402.0416667 | R122: 4345571 | S122: 4434679 | T122: 89108 | U122: 288 | V122: 15088.78819 | W122: 15398.19097 | X122: 309.4027778
A123: 361 | B123: 1 | C123: INTERNATIONAL FA | D123: =Gened!D123+'Specialed '!D123+Pension!D123 -> 10036957 | E123: =Gened!E123+'Specialed '!E123+Pension!E123 -> 10252515 | F123: 215559 | G123: 1068 | H123: 9397.899813 | I123: 9599.733146 | J123: 201.8333333 | K123: =Gened!K123+'Specialed '!K123+Pension!K123 -> 9932478 | L123: =Gened!L123+'Specialed '!L123+Pension!L123 -> 10331008 | M123: 398530 | N123: 1047 | O123: 9486.60745 | P123: 9867.247373 | Q123: 380.6399236 | R123: 19969435 | S123: 20583523 | T123: 614089 | U123: 2115 | V123: 9441.813239 | W123: 9732.162175 | X123: 290.349409
A124: 362 | B124: 1 | C124: LITTLEFORK-BIG F | D124: =Gened!D124+'Specialed '!D124+Pension!D124 -> 4183622 | E124: =Gened!E124+'Specialed '!E124+Pension!E124 -> 4258186 | F124: 74563 | G124: 333 | H124: 12563.42943 | I124: 12787.34535 | J124: 223.9159159 | K124: =Gened!K124+'Specialed '!K124+Pension!K124 -> 4099877 | L124: =Gened!L124+'Specialed '!L124+Pension!L124 -> 4247454 | M124: 147577 | N124: 321 | O124: 12772.20249 | P124: 13231.94393 | Q124: 459.741433 | R124: 8283499 | S124: 8505640 | T124: 222140 | U124: 654 | V124: 12665.90061 | W124: 13005.56575 | X124: 339.6636086
A125: 363 | B125: 1 | C125: SOUTH KOOCHICHIN | D125: =Gened!D125+'Specialed '!D125+Pension!D125 -> 3897088 | E125: =Gened!E125+'Specialed '!E125+Pension!E125 -> 3971754 | F125: 74665 | G125: 241 | H125: 16170.48963 | I125: 16480.30705 | J125: 309.8174274 | K125: =Gened!K125+'Specialed '!K125+Pension!K125 -> 3990670 | L125: =Gened!L125+'Specialed '!L125+Pension!L125 -> 4143535 | M125: 152865 | N125: 247 | O125: 16156.5587 | P125: 16775.44534 | Q125: 618.8866397 | R125: 7887758 | S125: 8115289 | T125: 227530 | U125: 488 | V125: 16163.43852 | W125: 16629.69057 | X125: 466.25
A126: 378 | B126: 1 | C126: DAWSON | D126: =Gened!D126+'Specialed '!D126+Pension!D126 -> 5672347 | E126: =Gened!E126+'Specialed '!E126+Pension!E126 -> 5773509 | F126: 101162 | G126: 543 | H126: 10446.31123 | I126: 10632.61326 | J126: 186.3020258 | K126: =Gened!K126+'Specialed '!K126+Pension!K126 -> 5611560 | L126: =Gened!L126+'Specialed '!L126+Pension!L126 -> 5804806 | M126: 193246 | N126: 530 | O126: 10587.84906 | P126: 10952.46415 | Q126: 364.6150943 | R126: 11283907 | S126: 11578315 | T126: 294408 | U126: 1073 | V126: 10516.22274 | W126: 10790.60112 | X126: 274.3783784
A127: 381 | B127: 1 | C127: LAKE SUPERIOR | D127: =Gened!D127+'Specialed '!D127+Pension!D127 -> 13979931 | E127: =Gened!E127+'Specialed '!E127+Pension!E127 -> 14266304 | F127: 286373 | G127: 1360 | H127: 10279.36103 | I127: 10489.92941 | J127: 210.5683824 | K127: =Gened!K127+'Specialed '!K127+Pension!K127 -> 14019718 | L127: =Gened!L127+'Specialed '!L127+Pension!L127 -> 14562700 | M127: 542982 | N127: 1365 | O127: 10270.85568 | P127: 10668.64469 | Q127: 397.789011 | R127: 27999649 | S127: 28829004 | T127: 829355 | U127: 2725 | V127: 10275.10055 | W127: 10579.45101 | X127: 304.3504587
A128: 390 | B128: 1 | C128: LAKE OF THE WOOD | D128: =Gened!D128+'Specialed '!D128+Pension!D128 -> 5510076 | E128: =Gened!E128+'Specialed '!E128+Pension!E128 -> 5621415 | F128: 111339 | G128: 464 | H128: 11875.16379 | I128: 12115.11853 | J128: 239.9547414 | K128: =Gened!K128+'Specialed '!K128+Pension!K128 -> 5666361 | L128: =Gened!L128+'Specialed '!L128+Pension!L128 -> 5874519 | M128: 208158 | N128: 459 | O128: 12345.01307 | P128: 12798.51634 | Q128: 453.503268 | R128: 11176437 | S128: 11495934 | T128: 319497 | U128: 923 | V128: 12108.81582 | W128: 12454.96641 | X128: 346.1505959
A129: 391 | B129: 1 | C129: CLEVELAND | D129: =Gened!D129+'Specialed '!D129+Pension!D129 -> 4787342 | E129: =Gened!E129+'Specialed '!E129+Pension!E129 -> 4871798 | F129: 84457 | G129: 497 | H129: 9632.478873 | I129: 9802.410463 | J129: 169.9315895 | K129: =Gened!K129+'Specialed '!K129+Pension!K129 -> 4787737 | L129: =Gened!L129+'Specialed '!L129+Pension!L129 -> 4953895 | M129: 166158 | N129: 496 | O129: 9652.695565 | P129: 9987.691532 | Q129: 334.9959677 | R129: 9575079 | S129: 9825693 | T129: 250615 | U129: 993 | V129: 9642.577039 | W129: 9894.957704 | X129: 252.3816717
A130: 402 | B130: 1 | C130: HENDRICKS | D130: =Gened!D130+'Specialed '!D130+Pension!D130 -> 1642445 | E130: =Gened!E130+'Specialed '!E130+Pension!E130 -> 1669391 | F130: 26946 | G130: 111 | H130: 14796.8018 | I130: 15039.55856 | J130: 242.7567568 | K130: =Gened!K130+'Specialed '!K130+Pension!K130 -> 1666913 | L130: =Gened!L130+'Specialed '!L130+Pension!L130 -> 1716236 | M130: 49323 | N130: 110 | O130: 15153.75455 | P130: 15602.14545 | Q130: 448.3909091 | R130: 3309358 | S130: 3385627 | T130: 76269 | U130: 221 | V130: 14974.47059 | W130: 15319.57919 | X130: 345.1085973
A131: 403 | B131: 1 | C131: IVANHOE | D131: =Gened!D131+'Specialed '!D131+Pension!D131 -> 1525319 | E131: =Gened!E131+'Specialed '!E131+Pension!E131 -> 1552063 | F131: 26743 | G131: 150 | H131: 10168.79333 | I131: 10347.08667 | J131: 178.2933333 | K131: =Gened!K131+'Specialed '!K131+Pension!K131 -> 1584590 | L131: =Gened!L131+'Specialed '!L131+Pension!L131 -> 1637605 | M131: 53015 | N131: 155 | O131: 10223.16129 | P131: 10565.19355 | Q131: 342.0322581 | R131: 3109909 | S131: 3189668 | T131: 79758 | U131: 305 | V131: 10196.42295 | W131: 10457.92787 | X131: 261.5016393
A132: 404 | B132: 1 | C132: LAKE BENTON | D132: =Gened!D132+'Specialed '!D132+Pension!D132 -> 2279427 | E132: =Gened!E132+'Specialed '!E132+Pension!E132 -> 2315058 | F132: 35630 | G132: 200 | H132: 11397.135 | I132: 11575.29 | J132: 178.155 | K132: =Gened!K132+'Specialed '!K132+Pension!K132 -> 2194085 | L132: =Gened!L132+'Specialed '!L132+Pension!L132 -> 2259881 | M132: 65796 | N132: 190 | O132: 11547.81579 | P132: 11894.11053 | Q132: 346.2947368 | R132: 4473512 | S132: 4574939 | T132: 101426 | U132: 390 | V132: 11470.54359 | W132: 11730.61282 | X132: 260.0666667
A133: 413 | B133: 1 | C133: MARSHALL | D133: =Gened!D133+'Specialed '!D133+Pension!D133 -> 25529114 | E133: =Gened!E133+'Specialed '!E133+Pension!E133 -> 25999070 | F133: 469956 | G133: 2506 | H133: 10187.19633 | I133: 10374.72865 | J133: 187.5323224 | K133: =Gened!K133+'Specialed '!K133+Pension!K133 -> 25932625 | L133: =Gened!L133+'Specialed '!L133+Pension!L133 -> 26848092 | M133: 915467 | N133: 2523 | O133: 10278.48791 | P133: 10641.3365 | Q133: 362.8485929 | R133: 51461739 | S133: 52847162 | T133: 1385423 | U133: 5029 | V133: 10232.99642 | W133: 10508.4832 | X133: 275.4867767
A134: 414 | B134: 1 | C134: MINNEOTA | D134: =Gened!D134+'Specialed '!D134+Pension!D134 -> 4716308 | E134: =Gened!E134+'Specialed '!E134+Pension!E134 -> 4802122 | F134: 85813 | G134: 456 | H134: 10342.7807 | I134: 10530.9693 | J134: 188.1885965 | K134: =Gened!K134+'Specialed '!K134+Pension!K134 -> 4717313 | L134: =Gened!L134+'Specialed '!L134+Pension!L134 -> 4883834 | M134: 166521 | N134: 453 | O134: 10413.49448 | P134: 10781.09051 | Q134: 367.5960265 | R134: 9433621 | S134: 9685956 | T134: 252334 | U134: 909 | V134: 10378.0209 | W134: 10655.61716 | X134: 277.5951595
A135: 415 | B135: 1 | C135: LYND | D135: =Gened!D135+'Specialed '!D135+Pension!D135 -> 2247236 | E135: =Gened!E135+'Specialed '!E135+Pension!E135 -> 2282741 | F135: 35505 | G135: 194 | H135: 11583.69072 | I135: 11766.70619 | J135: 183.0154639 | K135: =Gened!K135+'Specialed '!K135+Pension!K135 -> 2020239 | L135: =Gened!L135+'Specialed '!L135+Pension!L135 -> 2088812 | M135: 68573 | N135: 164 | O135: 12318.53049 | P135: 12736.65854 | Q135: 418.1280488 | R135: 4267475 | S135: 4371553 | T135: 104078 | U135: 358 | V135: 11920.32123 | W135: 12211.0419 | X135: 290.7206704
A136: 423 | B136: 1 | C136: HUTCHINSON | D136: =Gened!D136+'Specialed '!D136+Pension!D136 -> 27611090 | E136: =Gened!E136+'Specialed '!E136+Pension!E136 -> 28112813 | F136: 501723 | G136: 2760 | H136: 10004.01812 | I136: 10185.80181 | J136: 181.7836957 | K136: =Gened!K136+'Specialed '!K136+Pension!K136 -> 27372758 | L136: =Gened!L136+'Specialed '!L136+Pension!L136 -> 28383953 | M136: 1011195 | N136: 2704 | O136: 10123.06139 | P136: 10497.02404 | Q136: 373.9626479 | R136: 54983848 | S136: 56496766 | T136: 1512918 | U136: 5464 | V136: 10062.92972 | W136: 10339.81808 | X136: 276.8883602
A137: 424 | B137: 1 | C137: LESTER PRAIRIE | D137: =Gened!D137+'Specialed '!D137+Pension!D137 -> 4270471 | E137: =Gened!E137+'Specialed '!E137+Pension!E137 -> 4355258 | F137: 84787 | G137: 442 | H137: 9661.699095 | I137: 9853.524887 | J137: 191.8257919 | K137: =Gened!K137+'Specialed '!K137+Pension!K137 -> 4331075 | L137: =Gened!L137+'Specialed '!L137+Pension!L137 -> 4491296 | M137: 160221 | N137: 444 | O137: 9754.673423 | P137: 10115.53153 | Q137: 360.8581081 | R137: 8601546 | S137: 8846554 | T137: 245008 | U137: 886 | V137: 9708.291196 | W137: 9984.823928 | X137: 276.5327314
A138: 432 | B138: 1 | C138: MAHNOMEN | D138: =Gened!D138+'Specialed '!D138+Pension!D138 -> 7188609 | E138: =Gened!E138+'Specialed '!E138+Pension!E138 -> 7350661 | F138: 162052 | G138: 609 | H138: 11803.95567 | I138: 12070.0509 | J138: 266.0952381 | K138: =Gened!K138+'Specialed '!K138+Pension!K138 -> 7195009 | L138: =Gened!L138+'Specialed '!L138+Pension!L138 -> 7505286 | M138: 310277 | N138: 606 | O138: 11872.95215 | P138: 12384.9604 | Q138: 512.0082508 | R138: 14383618 | S138: 14855947 | T138: 472329 | U138: 1215 | V138: 11838.36872 | W138: 12227.11687 | X138: 388.7481481
A139: 435 | B139: 1 | C139: WAUBUN | D139: =Gened!D139+'Specialed '!D139+Pension!D139 -> 7020941 | E139: =Gened!E139+'Specialed '!E139+Pension!E139 -> 7168715 | F139: 147774 | G139: 577 | H139: =D139/G139 -> 12168.00867 | I139: =E139/G139 -> 12424.11612 | J139: =I139-H139 -> 256.1074523 | K139: =Gened!K139+'Specialed '!K139+Pension!K139 -> 7111432 | L139: =Gened!L139+'Specialed '!L139+Pension!L139 -> 7391460 | M139: =L139-K139 -> 280028 | N139: 584 | O139: =K139/N139 -> 12177.10959 | P139: =L139/N139 -> 12656.60959 | Q139: =P139-O139 -> 479.5 | R139: =D139+K139 -> 14132373 | S139: =E139+L139 -> 14560175 | T139: =F139+M139 -> 427802 | U139: 1161 | V139: =R139/U139 -> 12172.58656 | W139: =S139/U139 -> 12541.06374 | X139: =T139/U139 -> 368.4771748
A140: 441 | B140: 1 | C140: MARSHALL CTY CENTRAL | D140: =Gened!D140+'Specialed '!D140+Pension!D140 -> 4842740 | E140: =Gened!E140+'Specialed '!E140+Pension!E140 -> 4932860 | F140: 90120 | G140: 387 | H140: 12513.54005 | I140: 12746.40827 | J140: 232.8682171 | K140: =Gened!K140+'Specialed '!K140+Pension!K140 -> 4792036 | L140: =Gened!L140+'Specialed '!L140+Pension!L140 -> 4961584 | M140: 169548 | N140: 381 | O140: 12577.52231 | P140: 13022.53018 | Q140: 445.007874 | R140: 9634776 | S140: 9894444 | T140: 259668 | U140: 768 | V140: 12545.28125 | W140: 12883.39062 | X140: 338.109375
A141: 447 | B141: 1 | C141: GRYGLA | D141: =Gened!D141+'Specialed '!D141+Pension!D141 -> 2335884 | E141: =Gened!E141+'Specialed '!E141+Pension!E141 -> 2379623 | F141: 43739 | G141: 154 | H141: 15168.07792 | I141: 15452.0974 | J141: 284.0194805 | K141: =Gened!K141+'Specialed '!K141+Pension!K141 -> 2343484 | L141: =Gened!L141+'Specialed '!L141+Pension!L141 -> 2429172 | M141: 85688 | N141: 156 | O141: 15022.33333 | P141: 15571.61538 | Q141: 549.2820513 | R141: 4679368 | S141: 4808795 | T141: 129427 | U141: 310 | V141: 15094.73548 | W141: 15512.24194 | X141: 417.5064516
A142: 458 | B142: 1 | C142: TRUMAN | D142: =Gened!D142+'Specialed '!D142+Pension!D142 -> 2593388 | E142: =Gened!E142+'Specialed '!E142+Pension!E142 -> 2638538 | F142: 45150 | G142: 219 | H142: 11841.95434 | I142: 12048.11872 | J142: 206.1643836 | K142: =Gened!K142+'Specialed '!K142+Pension!K142 -> 2584467 | L142: =Gened!L142+'Specialed '!L142+Pension!L142 -> 2669189 | M142: 84722 | N142: 216 | O142: 11965.125 | P142: 12357.35648 | Q142: 392.2314815 | R142: 5177855 | S142: 5307727 | T142: 129872 | U142: 435 | V142: 11903.11494 | W142: 12201.67126 | X142: 298.5563218
A143: 463 | B143: 1 | C143: EDEN VALLEY | D143: =Gened!D143+'Specialed '!D143+Pension!D143 -> 8894341 | E143: =Gened!E143+'Specialed '!E143+Pension!E143 -> 9062310 | F143: 167969 | G143: 962 | H143: 9245.676715 | I143: 9420.280665 | J143: 174.6039501 | K143: =Gened!K143+'Specialed '!K143+Pension!K143 -> 8804176 | L143: =Gened!L143+'Specialed '!L143+Pension!L143 -> 9127884 | M143: 323708 | N143: 938 | O143: 9386.115139 | P143: 9731.219616 | Q143: 345.1044776 | R143: 17698517 | S143: 18190194 | T143: 491677 | U143: 1900 | V143: 9315.008947 | W143: 9573.786316 | X143: 258.7773684
A144: 465 | B144: 1 | C144: LITCHFIELD | D144: =Gened!D144+'Specialed '!D144+Pension!D144 -> 15035869 | E144: =Gened!E144+'Specialed '!E144+Pension!E144 -> 15323931 | F144: 288063 | G144: 1548 | H144: 9713.093669 | I144: 9899.180233 | J144: 186.0865633 | K144: =Gened!K144+'Specialed '!K144+Pension!K144 -> 15006602 | L144: =Gened!L144+'Specialed '!L144+Pension!L144 -> 15561087 | M144: 554485 | N144: 1526 | O144: 9833.946265 | P144: 10197.30472 | Q144: 363.3584535 | R144: 30042471 | S144: 30885018 | T144: 842548 | U144: 3074 | V144: 9773.087508 | W144: 10047.17567 | X144: 274.0884841
A145: 466 | B145: 1 | C145: DASSEL-COKATO | D145: =Gened!D145+'Specialed '!D145+Pension!D145 -> 20868067 | E145: =Gened!E145+'Specialed '!E145+Pension!E145 -> 21253837 | F145: 385769 | G145: 2214 | H145: 9425.504517 | I145: 9599.745709 | J145: 174.2411924 | K145: =Gened!K145+'Specialed '!K145+Pension!K145 -> 20797625 | L145: =Gened!L145+'Specialed '!L145+Pension!L145 -> 21540320 | M145: 742695 | N145: 2193 | O145: 9483.641131 | P145: 9822.307342 | Q145: 338.6662107 | R145: 41665692 | S145: 42794157 | T145: 1128464 | U145: 4407 | V145: 9454.434309 | W145: 9710.496256 | X145: 256.06172
A146: 473 | B146: 1 | C146: ISLE | D146: =Gened!D146+'Specialed '!D146+Pension!D146 -> 5015579 | E146: =Gened!E146+'Specialed '!E146+Pension!E146 -> 5115093 | F146: 99514 | G146: 452 | H146: 11096.41372 | I146: 11316.57743 | J146: 220.1637168 | K146: =Gened!K146+'Specialed '!K146+Pension!K146 -> 5036907 | L146: =Gened!L146+'Specialed '!L146+Pension!L146 -> 5220921 | M146: 184014 | N146: 452 | O146: 11143.59956 | P146: 11550.71018 | Q146: 407.1106195 | R146: 10052486 | S146: 10336014 | T146: 283528 | U146: 904 | V146: 11120.00664 | W146: 11433.64381 | X146: 313.6371681
A147: 477 | B147: 1 | C147: PRINCETON | D147: =Gened!D147+'Specialed '!D147+Pension!D147 -> 28959975 | E147: =Gened!E147+'Specialed '!E147+Pension!E147 -> 29521729 | F147: 561755 | G147: 3119 | H147: 9285.019237 | I147: 9465.126323 | J147: 180.1070856 | K147: =Gened!K147+'Specialed '!K147+Pension!K147 -> 29059552 | L147: =Gened!L147+'Specialed '!L147+Pension!L147 -> 30138201 | M147: 1078649 | N147: 3104 | O147: 9361.969072 | P147: 9709.471972 | Q147: 347.5028995 | R147: 58019527 | S147: 59659930 | T147: 1640404 | U147: 6223 | V147: 9323.401414 | W147: 9587.00466 | X147: 263.6034067
A148: 480 | B148: 1 | C148: ONAMIA | D148: =Gened!D148+'Specialed '!D148+Pension!D148 -> 8536944 | E148: =Gened!E148+'Specialed '!E148+Pension!E148 -> 8693035 | F148: 156091 | G148: 633 | H148: 13486.48341 | I148: 13733.07267 | J148: 246.5892575 | K148: =Gened!K148+'Specialed '!K148+Pension!K148 -> 8623536 | L148: =Gened!L148+'Specialed '!L148+Pension!L148 -> 8919609 | M148: 296073 | N148: 631 | O148: 13666.45959 | P148: 14135.67195 | Q148: 469.2123613 | R148: 17160480 | S148: 17612644 | T148: 452164 | U148: 1264 | V148: 13576.32911 | W148: 13934.0538 | X148: 357.7246835
A149: 482 | B149: 1 | C149: LITTLE FALLS | D149: =Gened!D149+'Specialed '!D149+Pension!D149 -> 23364638 | E149: =Gened!E149+'Specialed '!E149+Pension!E149 -> 23821331 | F149: 456693 | G149: 2306 | H149: 10132.10668 | I149: 10330.15221 | J149: 198.0455334 | K149: =Gened!K149+'Specialed '!K149+Pension!K149 -> 23278381 | L149: =Gened!L149+'Specialed '!L149+Pension!L149 -> 24139745 | M149: 861364 | N149: 2283 | O149: 10196.39991 | P149: 10573.6947 | Q149: 377.2947876 | R149: 46643019 | S149: 47961076 | T149: 1318057 | U149: 4589 | V149: 10164.09218 | W149: 10451.31314 | X149: 287.2209632
A150: 484 | B150: 1 | C150: PIERZ | D150: =Gened!D150+'Specialed '!D150+Pension!D150 -> 10618194 | E150: =Gened!E150+'Specialed '!E150+Pension!E150 -> 10829102 | F150: 210909 | G150: 1122 | H150: 9463.631016 | I150: 9651.606061 | J150: 187.9750446 | K150: =Gened!K150+'Specialed '!K150+Pension!K150 -> 10638092 | L150: =Gened!L150+'Specialed '!L150+Pension!L150 -> 11040788 | M150: 402696 | N150: 1115 | O150: 9540.889686 | P150: 9902.052018 | Q150: 361.1623318 | R150: 21256286 | S150: 21869890 | T150: 613605 | U150: 2237 | V150: 9502.139473 | W150: 9776.437193 | X150: 274.2981672
A151: 485 | B151: 1 | C151: ROYALTON | D151: =Gened!D151+'Specialed '!D151+Pension!D151 -> 8639662 | E151: =Gened!E151+'Specialed '!E151+Pension!E151 -> 8799544 | F151: 159882 | G151: 937 | H151: 9220.557097 | I151: 9391.188901 | J151: 170.6318036 | K151: =Gened!K151+'Specialed '!K151+Pension!K151 -> 8699784 | L151: =Gened!L151+'Specialed '!L151+Pension!L151 -> 9013046 | M151: 313262 | N151: 938 | O151: 9274.823028 | P151: 9608.791045 | Q151: 333.9680171 | R151: 17339446 | S151: 17812590 | T151: 473144 | U151: 1875 | V151: 9247.704533 | W151: 9500.048 | X151: 252.3434667
A152: 486 | B152: 1 | C152: SWANVILLE | D152: =Gened!D152+'Specialed '!D152+Pension!D152 -> 3278746 | E152: =Gened!E152+'Specialed '!E152+Pension!E152 -> 3337384 | F152: 58638 | G152: 317 | H152: 10343.04732 | I152: 10528.02524 | J152: 184.977918 | K152: =Gened!K152+'Specialed '!K152+Pension!K152 -> 3250460 | L152: =Gened!L152+'Specialed '!L152+Pension!L152 -> 3360876 | M152: 110416 | N152: 312 | O152: 10418.14103 | P152: 10772.03846 | Q152: 353.8974359 | R152: 6529206 | S152: 6698260 | T152: 169054 | U152: 629 | V152: 10380.29571 | W152: 10649.062 | X152: 268.7662957
A153: 487 | B153: 1 | C153: UPSALA | D153: =Gened!D153+'Specialed '!D153+Pension!D153 -> 3547790 | E153: =Gened!E153+'Specialed '!E153+Pension!E153 -> 3620022 | F153: 72232 | G153: 372 | H153: 9537.069892 | I153: 9731.241935 | J153: 194.172043 | K153: =Gened!K153+'Specialed '!K153+Pension!K153 -> 3589349 | L153: =Gened!L153+'Specialed '!L153+Pension!L153 -> 3725615 | M153: 136266 | N153: 374 | O153: 9597.18984 | P153: 9961.537433 | Q153: 364.3475936 | R153: 7137139 | S153: 7345637 | T153: 208498 | U153: 746 | V153: 9567.210456 | W153: 9846.698391 | X153: 279.4879357
A154: 492 | B154: 1 | C154: AUSTIN | D154: =Gened!D154+'Specialed '!D154+Pension!D154 -> 51719293 | E154: =Gened!E154+'Specialed '!E154+Pension!E154 -> 52714417 | F154: 995124 | G154: 4782 | H154: 10815.4105 | I154: 11023.50836 | J154: 208.097867 | K154: =Gened!K154+'Specialed '!K154+Pension!K154 -> 51852460 | L154: =Gened!L154+'Specialed '!L154+Pension!L154 -> 53710012 | M154: 1857552 | N154: 4726 | O154: 10971.74355 | P154: 11364.79306 | Q154: 393.0495133 | R154: 103571753 | S154: 106424429 | T154: 2852676 | U154: 9508 | V154: 10893.11664 | W154: 11193.14567 | X154: 300.0290282
A155: 495 | B155: 1 | C155: GRAND MEADOW | D155: =Gened!D155+'Specialed '!D155+Pension!D155 -> 4400332 | E155: =Gened!E155+'Specialed '!E155+Pension!E155 -> 4474258 | F155: 73926 | G155: 414 | H155: 10628.82126 | I155: 10807.38647 | J155: 178.5652174 | K155: =Gened!K155+'Specialed '!K155+Pension!K155 -> 4428767 | L155: =Gened!L155+'Specialed '!L155+Pension!L155 -> 4574156 | M155: 145389 | N155: 412 | O155: 10749.43447 | P155: 11102.32039 | Q155: 352.8859223 | R155: 8829099 | S155: 9048414 | T155: 219315 | U155: 826 | V155: 10688.98184 | W155: 10954.49637 | X155: 265.5145278
A156: 497 | B156: 1 | C156: LYLE | D156: =Gened!D156+'Specialed '!D156+Pension!D156 -> 2753535 | E156: =Gened!E156+'Specialed '!E156+Pension!E156 -> 2799913 | F156: 46377 | G156: 246 | H156: 11193.23171 | I156: 11381.76016 | J156: 188.5284553 | K156: =Gened!K156+'Specialed '!K156+Pension!K156 -> 2697716 | L156: =Gened!L156+'Specialed '!L156+Pension!L156 -> 2791873 | M156: 94157 | N156: 239 | O156: 11287.51464 | P156: 11681.47699 | Q156: 393.9623431 | R156: 5451251 | S156: 5591786 | T156: 140534 | U156: 485 | V156: 11239.69278 | W156: 11529.45567 | X156: 289.7608247
A157: 499 | B157: 1 | C157: LEROY | D157: =Gened!D157+'Specialed '!D157+Pension!D157 -> 3333457 | E157: =Gened!E157+'Specialed '!E157+Pension!E157 -> 3383953 | F157: 50495 | G157: 273 | H157: 12210.4652 | I157: 12395.43223 | J157: 184.967033 | K157: =Gened!K157+'Specialed '!K157+Pension!K157 -> 3327572 | L157: =Gened!L157+'Specialed '!L157+Pension!L157 -> 3426223 | M157: 98651 | N157: 270 | O157: 12324.34074 | P157: 12689.71481 | Q157: 365.3740741 | R157: 6661029 | S157: 6810176 | T157: 149146 | U157: 543 | V157: 12267.0884 | W157: 12541.76059 | X157: 274.6703499
A158: 500 | B158: 1 | C158: SOUTHLAND | D158: =Gened!D158+'Specialed '!D158+Pension!D158 -> 4844510 | E158: =Gened!E158+'Specialed '!E158+Pension!E158 -> 4919270 | F158: 74760 | G158: 407 | H158: 11902.97297 | I158: 12086.65848 | J158: 183.6855037 | K158: =Gened!K158+'Specialed '!K158+Pension!K158 -> 4647454 | L158: =Gened!L158+'Specialed '!L158+Pension!L158 -> 4791303 | M158: 143849 | N158: 386 | O158: 12040.03627 | P158: 12412.70207 | Q158: 372.6658031 | R158: 9491964 | S158: 9710573 | T158: 218609 | U158: 793 | V158: 11969.68979 | W158: 12245.36318 | X158: 275.6733922
A159: 505 | B159: 1 | C159: FULDA | D159: =Gened!D159+'Specialed '!D159+Pension!D159 -> 4021975 | E159: =Gened!E159+'Specialed '!E159+Pension!E159 -> 4094351 | F159: 72376 | G159: 300 | H159: 13406.58333 | I159: 13647.83667 | J159: 241.2533333 | K159: =Gened!K159+'Specialed '!K159+Pension!K159 -> 3908528 | L159: =Gened!L159+'Specialed '!L159+Pension!L159 -> 4037154 | M159: 128626 | N159: 292 | O159: 13385.36986 | P159: 13825.86986 | Q159: 440.5 | R159: 7930503 | S159: 8131505 | T159: 201002 | U159: 592 | V159: 13396.11993 | W159: 13735.65034 | X159: 339.5304054
A160: 507 | B160: 1 | C160: NICOLLET | D160: =Gened!D160+'Specialed '!D160+Pension!D160 -> 3819393 | E160: =Gened!E160+'Specialed '!E160+Pension!E160 -> 3885456 | F160: 66063 | G160: 366 | H160: 10435.5 | I160: 10616 | J160: 180.5 | K160: =Gened!K160+'Specialed '!K160+Pension!K160 -> 3806471 | L160: =Gened!L160+'Specialed '!L160+Pension!L160 -> 3931704 | M160: 125233 | N160: 363 | O160: 10486.14601 | P160: 10831.1405 | Q160: 344.9944904 | R160: 7625864 | S160: 7817160 | T160: 191296 | U160: 729 | V160: 10460.71879 | W160: 10723.12757 | X160: 262.4087791
A161: 508 | B161: 1 | C161: ST. PETER | D161: =Gened!D161+'Specialed '!D161+Pension!D161 -> 20952449 | E161: =Gened!E161+'Specialed '!E161+Pension!E161 -> 21340746 | F161: 388297 | G161: 2071 | H161: 10117.06857 | I161: 10304.56108 | J161: 187.4925157 | K161: =Gened!K161+'Specialed '!K161+Pension!K161 -> 21092847 | L161: =Gened!L161+'Specialed '!L161+Pension!L161 -> 21839235 | M161: 746388 | N161: 2067 | O161: 10204.57039 | P161: 10565.66763 | Q161: 361.0972424 | R161: 42045296 | S161: 43179981 | T161: 1134685 | U161: 4138 | V161: 10160.77719 | W161: 10434.98816 | X161: 274.2109715
A162: 511 | B162: 1 | C162: ADRIAN | D162: =Gened!D162+'Specialed '!D162+Pension!D162 -> 5700430 | E162: =Gened!E162+'Specialed '!E162+Pension!E162 -> 5791735 | F162: 91305 | G162: 549 | H162: 10383.2969 | I162: 10549.60838 | J162: 166.3114754 | K162: =Gened!K162+'Specialed '!K162+Pension!K162 -> 5780765 | L162: =Gened!L162+'Specialed '!L162+Pension!L162 -> 5966838 | M162: 186073 | N162: 551 | O162: 10491.40653 | P162: 10829.10708 | Q162: 337.7005445 | R162: 11481195 | S162: 11758573 | T162: 277378 | U162: 1100 | V162: 10437.45 | W162: 10689.61182 | X162: 252.1618182
A163: 514 | B163: 1 | C163: ELLSWORTH | D163: =Gened!D163+'Specialed '!D163+Pension!D163 -> 1674939 | E163: =Gened!E163+'Specialed '!E163+Pension!E163 -> 1702525 | F163: 27587 | G163: 136 | H163: 12315.72794 | I163: 12518.56618 | J163: 202.8382353 | K163: =Gened!K163+'Specialed '!K163+Pension!K163 -> 1683578 | L163: =Gened!L163+'Specialed '!L163+Pension!L163 -> 1737139 | M163: 53561 | N163: 134 | O163: 12564.01493 | P163: 12963.72388 | Q163: 399.7089552 | R163: 3358517 | S163: 3439664 | T163: 81148 | U163: 270 | V163: 12438.95185 | W163: 12739.4963 | X163: 300.5481481
A164: 518 | B164: 1 | C164: WORTHINGTON | D164: =Gened!D164+'Specialed '!D164+Pension!D164 -> 38286915 | E164: =Gened!E164+'Specialed '!E164+Pension!E164 -> 38980650 | F164: 693735 | G164: 3236 | H164: 11831.55593 | I164: 12045.93634 | J164: 214.3804079 | K164: =Gened!K164+'Specialed '!K164+Pension!K164 -> 39356679 | L164: =Gened!L164+'Specialed '!L164+Pension!L164 -> 40715569 | M164: 1358890 | N164: 3316 | O164: 11868.72105 | P164: 12278.519 | Q164: 409.7979493 | R164: 77643594 | S164: 79696219 | T164: 2052625 | U164: 6552 | V164: 11850.36538 | W164: 12163.64759 | X164: 313.2822039
A165: 531 | B165: 1 | C165: BYRON | D165: =Gened!D165+'Specialed '!D165+Pension!D165 -> 17924612 | E165: =Gened!E165+'Specialed '!E165+Pension!E165 -> 18270088 | F165: 345475 | G165: 2081 | H165: 8613.460836 | I165: 8779.475252 | J165: 166.0144161 | K165: =Gened!K165+'Specialed '!K165+Pension!K165 -> 18432925 | L165: =Gened!L165+'Specialed '!L165+Pension!L165 -> 19120036 | M165: 687111 | N165: 2126 | O165: 8670.237535 | P165: 8993.431797 | Q165: 323.1942615 | R165: 36357537 | S165: 37390124 | T165: 1032586 | U165: 4207 | V165: 8642.152841 | W165: 8887.597813 | X165: 245.444735
A166: 533 | B166: 1 | C166: DOVER-EYOTA | D166: =Gened!D166+'Specialed '!D166+Pension!D166 -> 11176332 | E166: =Gened!E166+'Specialed '!E166+Pension!E166 -> 11384231 | F166: 207899 | G166: 1190 | H166: 9391.87563 | I166: 9566.580672 | J166: 174.705042 | K166: =Gened!K166+'Specialed '!K166+Pension!K166 -> 11214722 | L166: =Gened!L166+'Specialed '!L166+Pension!L166 -> 11615609 | M166: 400887 | N166: 1191 | O166: 9416.223342 | P166: 9752.820319 | Q166: 336.5969773 | R166: 22391054 | S166: 22999840 | T166: 608786 | U166: 2381 | V166: 9404.054599 | W166: 9659.739605 | X166: 255.6850063
A167: 534 | B167: 1 | C167: STEWARTVILLE | D167: =Gened!D167+'Specialed '!D167+Pension!D167 -> 18928624 | E167: =Gened!E167+'Specialed '!E167+Pension!E167 -> 19295722 | F167: 367098 | G167: 2076 | H167: 9117.834297 | I167: 9294.663776 | J167: 176.8294798 | K167: =Gened!K167+'Specialed '!K167+Pension!K167 -> 19087400 | L167: =Gened!L167+'Specialed '!L167+Pension!L167 -> 19789176 | M167: 701776 | N167: 2072 | O167: 9212.065637 | P167: 9550.760618 | Q167: 338.6949807 | R167: 38016024 | S167: 39084898 | T167: 1068874 | U167: 4148 | V167: 9164.904532 | W167: 9422.588717 | X167: 257.6841851
A168: 535 | B168: 1 | C168: ROCHESTER | D168: =Gened!D168+'Specialed '!D168+Pension!D168 -> 189794779 | E168: =Gened!E168+'Specialed '!E168+Pension!E168 -> 193303819 | F168: 3509040 | G168: 17352 | H168: 10937.91949 | I168: 11140.14632 | J168: 202.2268326 | K168: =Gened!K168+'Specialed '!K168+Pension!K168 -> 192622290 | L168: =Gened!L168+'Specialed '!L168+Pension!L168 -> 199117568 | M168: 6495278 | N168: 17445 | O168: 11041.69046 | P168: 11414.01938 | Q168: 372.3289195 | R168: 382417069 | S168: 392421387 | T168: 10004318 | U168: 34797 | V168: 10989.94364 | W168: 11277.44883 | X168: 287.5051872
A169: 542 | B169: 1 | C169: BATTLE LAKE | D169: =Gened!D169+'Specialed '!D169+Pension!D169 -> 4090514 | E169: =Gened!E169+'Specialed '!E169+Pension!E169 -> 4174603 | F169: 84090 | G169: 436 | H169: 9381.912844 | I169: 9574.777523 | J169: 192.8646789 | K169: =Gened!K169+'Specialed '!K169+Pension!K169 -> 4159028 | L169: =Gened!L169+'Specialed '!L169+Pension!L169 -> 4316570 | M169: 157542 | N169: 426 | O169: 9762.976526 | P169: 10132.79343 | Q169: 369.8169014 | R169: 8249542 | S169: 8491173 | T169: 241632 | U169: 862 | V169: 9570.234339 | W169: 9850.548724 | X169: 280.3155452
A170: 544 | B170: 1 | C170: FERGUS FALLS | D170: =Gened!D170+'Specialed '!D170+Pension!D170 -> 22242688 | E170: =Gened!E170+'Specialed '!E170+Pension!E170 -> 22706078 | F170: 463390 | G170: 2407 | H170: 9240.834233 | I170: 9433.35189 | J170: 192.5176568 | K170: =Gened!K170+'Specialed '!K170+Pension!K170 -> 21991302 | L170: =Gened!L170+'Specialed '!L170+Pension!L170 -> 22858914 | M170: 867612 | N170: 2387 | O170: 9212.945957 | P170: 9576.419774 | Q170: 363.4738165 | R170: 44233990 | S170: 45564992 | T170: 1331002 | U170: 4794 | V170: 9226.948269 | W170: 9504.587401 | X170: 277.6391322
A171: 545 | B171: 1 | C171: HENNING | D171: =Gened!D171+'Specialed '!D171+Pension!D171 -> 3799886 | E171: =Gened!E171+'Specialed '!E171+Pension!E171 -> 3869179 | F171: 69294 | G171: 355 | H171: 10703.90423 | I171: 10899.09577 | J171: 195.1915493 | K171: =Gened!K171+'Specialed '!K171+Pension!K171 -> 3759555 | L171: =Gened!L171+'Specialed '!L171+Pension!L171 -> 3899273 | M171: 139718 | N171: 348 | O171: 10803.31897 | P171: 11204.80747 | Q171: 401.4885057 | R171: 7559441 | S171: 7768452 | T171: 209012 | U171: 703 | V171: 10753.11664 | W171: 11050.42959 | X171: 297.314367
A172: 547 | B172: 1 | C172: PARKERS PRAIRIE | D172: =Gened!D172+'Specialed '!D172+Pension!D172 -> 5861830 | E172: =Gened!E172+'Specialed '!E172+Pension!E172 -> 5963207 | F172: 101378 | G172: 544 | H172: 10775.42279 | I172: 10961.77757 | J172: 186.3547794 | K172: =Gened!K172+'Specialed '!K172+Pension!K172 -> 5780438 | L172: =Gened!L172+'Specialed '!L172+Pension!L172 -> 5975408 | M172: 194970 | N172: 532 | O172: 10865.48496 | P172: 11231.96992 | Q172: 366.4849624 | R172: 11642268 | S172: 11938615 | T172: 296348 | U172: 1076 | V172: 10819.95167 | W172: 11095.3671 | X172: 275.4163569
A173: 548 | B173: 1 | C173: PELICAN RAPIDS | D173: =Gened!D173+'Specialed '!D173+Pension!D173 -> 8877169 | E173: =Gened!E173+'Specialed '!E173+Pension!E173 -> 9059409 | F173: 182240 | G173: 897 | H173: 9896.509476 | I173: 10099.67559 | J173: 203.1661093 | K173: =Gened!K173+'Specialed '!K173+Pension!K173 -> 8827907 | L173: =Gened!L173+'Specialed '!L173+Pension!L173 -> 9175737 | M173: 347830 | N173: 884 | O173: 9986.320136 | P173: 10379.79299 | Q173: 393.4728507 | R173: 17705076 | S173: 18235146 | T173: 530070 | U173: 1781 | V173: 9941.08703 | W173: 10238.71196 | X173: 297.6249298
A174: 549 | B174: 1 | C174: PERHAM | D174: =Gened!D174+'Specialed '!D174+Pension!D174 -> 13744449 | E174: =Gened!E174+'Specialed '!E174+Pension!E174 -> 14003801 | F174: 259351 | G174: 1406 | H174: 9775.568279 | I174: 9960.029161 | J174: 184.4608819 | K174: =Gened!K174+'Specialed '!K174+Pension!K174 -> 13748022 | L174: =Gened!L174+'Specialed '!L174+Pension!L174 -> 14248267 | M174: 500245 | N174: 1403 | O174: 9799.017819 | P174: 10155.57163 | Q174: 356.5538133 | R174: 27492471 | S174: 28252068 | T174: 759596 | U174: 2809 | V174: 9787.280527 | W174: 10057.69598 | X174: 270.4150943
A175: 550 | B175: 1 | C175: UNDERWOOD | D175: =Gened!D175+'Specialed '!D175+Pension!D175 -> 5093260 | E175: =Gened!E175+'Specialed '!E175+Pension!E175 -> 5195619 | F175: 102360 | G175: 557 | H175: 9144.093357 | I175: 9327.861759 | J175: 183.7684022 | K175: =Gened!K175+'Specialed '!K175+Pension!K175 -> 5107560 | L175: =Gened!L175+'Specialed '!L175+Pension!L175 -> 5307063 | M175: 199503 | N175: 559 | O175: 9136.958855 | P175: 9493.851521 | Q175: 356.8926655 | R175: 10200820 | S175: 10502682 | T175: 301863 | U175: 1116 | V175: 9140.519713 | W175: 9411.005376 | X175: 270.4865591
A176: 553 | B176: 1 | C176: NEW YORK MILLS | D176: =Gened!D176+'Specialed '!D176+Pension!D176 -> 7099035 | E176: =Gened!E176+'Specialed '!E176+Pension!E176 -> 7234198 | F176: 135163 | G176: 747 | H176: 9503.393574 | I176: 9684.334672 | J176: 180.9410977 | K176: =Gened!K176+'Specialed '!K176+Pension!K176 -> 7092770 | L176: =Gened!L176+'Specialed '!L176+Pension!L176 -> 7353400 | M176: 260630 | N176: 743 | O176: 9546.123822 | P176: 9896.904441 | Q176: 350.7806191 | R176: 14191805 | S176: 14587598 | T176: 395793 | U176: 1490 | V176: 9524.701342 | W176: 9790.334228 | X176: 265.6328859
A177: 561 | B177: 1 | C177: GOODRIDGE | D177: =Gened!D177+'Specialed '!D177+Pension!D177 -> 2838594 | E177: =Gened!E177+'Specialed '!E177+Pension!E177 -> 2887517 | F177: 48923 | G177: 206 | H177: 13779.58252 | I177: 14017.07282 | J177: 237.4902913 | K177: =Gened!K177+'Specialed '!K177+Pension!K177 -> 2930920 | L177: =Gened!L177+'Specialed '!L177+Pension!L177 -> 3027097 | M177: 96177 | N177: 212 | O177: 13825.09434 | P177: 14278.75943 | Q177: 453.6650943 | R177: 5769514 | S177: 5914614 | T177: 145100 | U177: 418 | V177: 13802.66507 | W177: 14149.79426 | X177: 347.1291866
A178: 564 | B178: 1 | C178: THIEF RIVER FALL | D178: =Gened!D178+'Specialed '!D178+Pension!D178 -> 18151661 | E178: =Gened!E178+'Specialed '!E178+Pension!E178 -> 18506909 | F178: 355248 | G178: 1900 | H178: 9553.505789 | I178: 9740.478421 | J178: 186.9726316 | K178: =Gened!K178+'Specialed '!K178+Pension!K178 -> 18058337 | L178: =Gened!L178+'Specialed '!L178+Pension!L178 -> 18737485 | M178: 679148 | N178: 1900 | O178: 9504.387895 | P178: 9861.834211 | Q178: 357.4463158 | R178: 36209998 | S178: 37244394 | T178: 1034396 | U178: 3800 | V178: 9528.946842 | W178: 9801.156316 | X178: 272.2094737
A179: 577 | B179: 1 | C179: WILLOW RIVER | D179: =Gened!D179+'Specialed '!D179+Pension!D179 -> 4398430 | E179: =Gened!E179+'Specialed '!E179+Pension!E179 -> 4483462 | F179: 85033 | G179: 420 | H179: 10472.45238 | I179: 10674.90952 | J179: 202.4571429 | K179: =Gened!K179+'Specialed '!K179+Pension!K179 -> 4343308 | L179: =Gened!L179+'Specialed '!L179+Pension!L179 -> 4505936 | M179: 162628 | N179: 408 | O179: 10645.36275 | P179: 11043.96078 | Q179: 398.5980392 | R179: 8741738 | S179: 8989398 | T179: 247661 | U179: 828 | V179: 10557.65459 | W179: 10856.76087 | X179: 299.1074879
A180: 578 | B180: 1 | C180: PINE CITY | D180: =Gened!D180+'Specialed '!D180+Pension!D180 -> 17601198 | E180: =Gened!E180+'Specialed '!E180+Pension!E180 -> 17931563 | F180: 330364 | G180: 1588 | H180: 11083.87783 | I180: 11291.91625 | J180: 208.0384131 | K180: =Gened!K180+'Specialed '!K180+Pension!K180 -> 17873213 | L180: =Gened!L180+'Specialed '!L180+Pension!L180 -> 18478895 | M180: 605682 | N180: 1574 | O180: 11355.28145 | P180: 11740.08577 | Q180: 384.8043202 | R180: 35474411 | S180: 36410458 | T180: 936046 | U180: 3162 | V180: 11218.97881 | W180: 11515.00886 | X180: 296.029728
A181: 581 | B181: 1 | C181: EDGERTON | D181: =Gened!D181+'Specialed '!D181+Pension!D181 -> 4723571 | E181: =Gened!E181+'Specialed '!E181+Pension!E181 -> 4796630 | F181: 73059 | G181: 392 | H181: 12049.92602 | I181: 12236.30102 | J181: 186.375 | K181: =Gened!K181+'Specialed '!K181+Pension!K181 -> 4867980 | L181: =Gened!L181+'Specialed '!L181+Pension!L181 -> 5017975 | M181: 149995 | N181: 401 | O181: 12139.601 | P181: 12513.65337 | Q181: 374.0523691 | R181: 9591551 | S181: 9814605 | T181: 223054 | U181: 793 | V181: 12095.27238 | W181: 12376.55107 | X181: 281.2786885
A182: 592 | B182: 1 | C182: CLIMAX | D182: =Gened!D182+'Specialed '!D182+Pension!D182 -> 2344526 | E182: =Gened!E182+'Specialed '!E182+Pension!E182 -> 2383502 | F182: 38976 | G182: 181 | H182: 12953.18232 | I182: 13168.51934 | J182: 215.3370166 | K182: =Gened!K182+'Specialed '!K182+Pension!K182 -> 2341943 | L182: =Gened!L182+'Specialed '!L182+Pension!L182 -> 2420242 | M182: 78299 | N182: 181 | O182: 12938.9116 | P182: 13371.50276 | Q182: 432.5911602 | R182: 4686469 | S182: 4803744 | T182: 117275 | U182: 362 | V182: 12946.04696 | W182: 13270.01105 | X182: 323.9640884
A183: 593 | B183: 1 | C183: CROOKSTON | D183: =Gened!D183+'Specialed '!D183+Pension!D183 -> 13756178 | E183: =Gened!E183+'Specialed '!E183+Pension!E183 -> 14018004 | F183: 261827 | G183: 1252 | H183: 10987.36262 | I183: 11196.48882 | J183: 209.1261981 | K183: =Gened!K183+'Specialed '!K183+Pension!K183 -> 13676202 | L183: =Gened!L183+'Specialed '!L183+Pension!L183 -> 14163865 | M183: 487663 | N183: 1229 | O183: 11127.9105 | P183: 11524.70708 | Q183: 396.7965826 | R183: 27432380 | S183: 28181869 | T183: 749490 | U183: 2481 | V183: 11056.98509 | W183: 11359.07658 | X183: 302.0918984
A184: 595 | B184: 1 | C184: EAST GRAND FORKS | D184: =Gened!D184+'Specialed '!D184+Pension!D184 -> 17732956 | E184: =Gened!E184+'Specialed '!E184+Pension!E184 -> 18075453 | F184: 342497 | G184: 1907 | H184: 9298.875721 | I184: 9478.475616 | J184: 179.5998951 | K184: =Gened!K184+'Specialed '!K184+Pension!K184 -> 18036181 | L184: =Gened!L184+'Specialed '!L184+Pension!L184 -> 18694530 | M184: 658349 | N184: 1931 | O184: 9340.331952 | P184: 9681.268773 | Q184: 340.9368203 | R184: 35769137 | S184: 36769983 | T184: 1000846 | U184: 3838 | V184: 9319.733455 | W184: 9580.506253 | X184: 260.7727983
A185: 599 | B185: 1 | C185: FERTILE-BELTRAMI | D185: =Gened!D185+'Specialed '!D185+Pension!D185 -> 5132094 | E185: =Gened!E185+'Specialed '!E185+Pension!E185 -> 5227150 | F185: 95055 | G185: 454 | H185: 11304.17181 | I185: 11513.54626 | J185: 209.3744493 | K185: =Gened!K185+'Specialed '!K185+Pension!K185 -> 5107007 | L185: =Gened!L185+'Specialed '!L185+Pension!L185 -> 5286347 | M185: 179340 | N185: 451 | O185: 11323.74058 | P185: 11721.39024 | Q185: 397.6496674 | R185: 10239101 | S185: 10513497 | T185: 274395 | U185: 905 | V185: 11313.92376 | W185: 11617.12376 | X185: 303.198895
A186: 600 | B186: 1 | C186: FISHER | D186: =Gened!D186+'Specialed '!D186+Pension!D186 -> 2740147 | E186: =Gened!E186+'Specialed '!E186+Pension!E186 -> 2788024 | F186: 47876 | G186: 256 | H186: 10703.69922 | I186: 10890.71875 | J186: 187.0195312 | K186: =Gened!K186+'Specialed '!K186+Pension!K186 -> 2617440 | L186: =Gened!L186+'Specialed '!L186+Pension!L186 -> 2707327 | M186: 89887 | N186: 241 | O186: 10860.74689 | P186: 11233.72199 | Q186: 372.9751037 | R186: 5357587 | S186: 5495351 | T186: 137763 | U186: 497 | V186: 10779.85312 | W186: 11057.04427 | X186: 277.1891348
A187: 601 | B187: 1 | C187: FOSSTON | D187: =Gened!D187+'Specialed '!D187+Pension!D187 -> 7145949 | E187: =Gened!E187+'Specialed '!E187+Pension!E187 -> 7275336 | F187: 129386 | G187: 649 | H187: 11010.70724 | I187: 11210.07088 | J187: 199.3636364 | K187: =Gened!K187+'Specialed '!K187+Pension!K187 -> 7133136 | L187: =Gened!L187+'Specialed '!L187+Pension!L187 -> 7382460 | M187: 249324 | N187: 642 | O187: 11110.80374 | P187: 11499.15888 | Q187: 388.3551402 | R187: 14279085 | S187: 14657796 | T187: 378710 | U187: 1291 | V187: 11060.48412 | W187: 11353.83114 | X187: 293.3462432
A188: 621 | B188: 1 | C188: MOUNDS VIEW | D188: =Gened!D188+'Specialed '!D188+Pension!D188 -> 130253395 | E188: =Gened!E188+'Specialed '!E188+Pension!E188 -> 132668901 | F188: 2415507 | G188: 11511 | H188: 11315.5586 | I188: 11525.40188 | J188: 209.8432803 | K188: =Gened!K188+'Specialed '!K188+Pension!K188 -> 133122965 | L188: =Gened!L188+'Specialed '!L188+Pension!L188 -> 137537071 | M188: 4414106 | N188: 11649 | O188: 11427.84488 | P188: 11806.77062 | Q188: 378.9257447 | R188: 263376360 | S188: 270205972 | T188: 6829613 | U188: 23160 | V188: 11372.03627 | W188: 11666.92453 | X188: 294.8882988
A189: 622 | B189: 1 | C189: NORTH ST. PAUL-M | D189: =Gened!D189+'Specialed '!D189+Pension!D189 -> 121672413 | E189: =Gened!E189+'Specialed '!E189+Pension!E189 -> 123871618 | F189: 2199205 | G189: 10398 | H189: 11701.52077 | I189: 11913.02347 | J189: 211.5026928 | K189: =Gened!K189+'Specialed '!K189+Pension!K189 -> 122182295 | L189: =Gened!L189+'Specialed '!L189+Pension!L189 -> 126323727 | M189: 4141432 | N189: 10331 | O189: 11826.76362 | P189: 12227.63789 | Q189: 400.8742619 | R189: 243854708 | S189: 250195345 | T189: 6340637 | U189: 20729 | V189: 11763.93979 | W189: 12069.82223 | X189: 305.8824352
A190: 623 | B190: 1 | C190: ROSEVILLE | D190: =Gened!D190+'Specialed '!D190+Pension!D190 -> 84552210 | E190: =Gened!E190+'Specialed '!E190+Pension!E190 -> 86132694 | F190: 1580484 | G190: 7507 | H190: 11263.11576 | I190: 11473.65046 | J190: 210.5347009 | K190: =Gened!K190+'Specialed '!K190+Pension!K190 -> 86262501 | L190: =Gened!L190+'Specialed '!L190+Pension!L190 -> 89263183 | M190: 3000682 | N190: 7547 | O190: 11430.03856 | P190: 11827.63787 | Q190: 397.599311 | R190: 170814711 | S190: 175395877 | T190: 4581166 | U190: 15054 | V190: 11346.79892 | W190: 11651.11445 | X190: 304.3155308
A191: 624 | B191: 1 | C191: WHITE BEAR LAKE | D191: =Gened!D191+'Specialed '!D191+Pension!D191 -> 90942899 | E191: =Gened!E191+'Specialed '!E191+Pension!E191 -> 92580289 | F191: 1637390 | G191: 8376 | H191: 10857.55719 | I191: 11053.0431 | J191: 195.4859121 | K191: =Gened!K191+'Specialed '!K191+Pension!K191 -> 92767334 | L191: =Gened!L191+'Specialed '!L191+Pension!L191 -> 95856206 | M191: 3088872 | N191: 8425 | O191: 11010.95953 | P191: 11377.59122 | Q191: 366.6316914 | R191: 183710233 | S191: 188436495 | T191: 4726262 | U191: 16801 | V191: 10934.48205 | W191: 11215.79043 | X191: 281.3083745
A192: 625 | B192: 1 | C192: ST. PAUL | D192: =Gened!D192+'Specialed '!D192+Pension!D192 -> 455386056 | E192: =Gened!E192+'Specialed '!E192+Pension!E192 -> 464148387 | F192: 8762331 | G192: 36398 | H192: 12511.29337 | I192: 12752.02997 | J192: 240.7366064 | K192: =Gened!K192+'Specialed '!K192+Pension!K192 -> 458131407 | L192: =Gened!L192+'Specialed '!L192+Pension!L192 -> 474722918 | M192: 16591511 | N192: 36114 | O192: 12685.70103 | P192: 13145.1215 | Q192: 459.4204741 | R192: 913517463 | S192: 938871305 | T192: 25353842 | U192: 72512 | V192: 12598.15566 | W192: 12947.80595 | X192: 349.6502924
A193: 630 | B193: 1 | C193: RED LAKE FALLS | D193: =Gened!D193+'Specialed '!D193+Pension!D193 -> 4459072 | E193: =Gened!E193+'Specialed '!E193+Pension!E193 -> 4536879 | F193: 77806 | G193: 358 | H193: 12455.50838 | I193: 12672.84637 | J193: 217.3379888 | K193: =Gened!K193+'Specialed '!K193+Pension!K193 -> 4450652 | L193: =Gened!L193+'Specialed '!L193+Pension!L193 -> 4594918 | M193: 144266 | N193: 356 | O193: 12501.83146 | P193: 12907.07303 | Q193: 405.241573 | R193: 8909724 | S193: 9131797 | T193: 222072 | U193: 714 | V193: 12478.60504 | W193: 12789.63165 | X193: 311.0252101
A194: 635 | B194: 1 | C194: MILROY | D194: =Gened!D194+'Specialed '!D194+Pension!D194 -> 567524 | E194: =Gened!E194+'Specialed '!E194+Pension!E194 -> 575430 | F194: 7907 | G194: 43 | H194: 13198.23256 | I194: 13382.09302 | J194: 183.8604651 | K194: =Gened!K194+'Specialed '!K194+Pension!K194 -> 593608 | L194: =Gened!L194+'Specialed '!L194+Pension!L194 -> 610269 | M194: 16661 | N194: 45 | O194: 13191.28889 | P194: 13561.53333 | Q194: 370.2444444 | R194: 1161132 | S194: 1185699 | T194: 24568 | U194: 88 | V194: 13194.68182 | W194: 13473.85227 | X194: 279.1818182
A195: 640 | B195: 1 | C195: WABASSO | D195: =Gened!D195+'Specialed '!D195+Pension!D195 -> 3875326 | E195: =Gened!E195+'Specialed '!E195+Pension!E195 -> 3946347 | F195: 71021 | G195: 376 | H195: 10306.71809 | I195: 10495.60372 | J195: 188.8856383 | K195: =Gened!K195+'Specialed '!K195+Pension!K195 -> 3842751 | L195: =Gened!L195+'Specialed '!L195+Pension!L195 -> 3979904 | M195: 137153 | N195: 370 | O195: 10385.81351 | P195: 10756.4973 | Q195: 370.6837838 | R195: 7718077 | S195: 7926251 | T195: 208174 | U195: 746 | V195: 10345.94772 | W195: 10625.00134 | X195: 279.0536193
A196: 656 | B196: 1 | C196: FARIBAULT | D196: =Gened!D196+'Specialed '!D196+Pension!D196 -> 44212087 | E196: =Gened!E196+'Specialed '!E196+Pension!E196 -> 45047458 | F196: 835371 | G196: 3805 | H196: 11619.47096 | I196: 11839.01656 | J196: 219.5455979 | K196: =Gened!K196+'Specialed '!K196+Pension!K196 -> 44065564 | L196: =Gened!L196+'Specialed '!L196+Pension!L196 -> 45619366 | M196: 1553802 | N196: 3737 | O196: 11791.69494 | P196: 12207.48354 | Q196: 415.7886005 | R196: 88277651 | S196: 90666824 | T196: 2389173 | U196: 7542 | V196: 11704.80655 | W196: 12021.58897 | X196: 316.7824185
A197: 659 | B197: 1 | C197: NORTHFIELD | D197: =Gened!D197+'Specialed '!D197+Pension!D197 -> 42349102 | E197: =Gened!E197+'Specialed '!E197+Pension!E197 -> 43115521 | F197: 766418 | G197: 3854 | H197: 10988.35029 | I197: 11187.21354 | J197: 198.863259 | K197: =Gened!K197+'Specialed '!K197+Pension!K197 -> 41905077 | L197: =Gened!L197+'Specialed '!L197+Pension!L197 -> 43317481 | M197: 1412404 | N197: 3731 | O197: 11231.59394 | P197: 11610.15304 | Q197: 378.5590994 | R197: 84254179 | S197: 86433002 | T197: 2178822 | U197: 7585 | V197: 11107.99987 | W197: 11395.25405 | X197: 287.2540541
A198: 671 | B198: 1 | C198: HILLS-BEAVER CRE | D198: =Gened!D198+'Specialed '!D198+Pension!D198 -> 3985985 | E198: =Gened!E198+'Specialed '!E198+Pension!E198 -> 4054562 | F198: 68578 | G198: 376 | H198: 10601.02394 | I198: 10783.40957 | J198: 182.3856383 | K198: =Gened!K198+'Specialed '!K198+Pension!K198 -> 3937111 | L198: =Gened!L198+'Specialed '!L198+Pension!L198 -> 4067398 | M198: 130287 | N198: 366 | O198: 10757.13388 | P198: 11113.10929 | Q198: 355.9754098 | R198: 7923096 | S198: 8121960 | T198: 198865 | U198: 742 | V198: 10678.02695 | W198: 10946.03774 | X198: 268.0121294
A199: 676 | B199: 1 | C199: BADGER | D199: =Gened!D199+'Specialed '!D199+Pension!D199 -> 2190060 | E199: =Gened!E199+'Specialed '!E199+Pension!E199 -> 2229197 | F199: 39137 | G199: 189 | H199: 11587.61905 | I199: 11794.69312 | J199: 207.0740741 | K199: =Gened!K199+'Specialed '!K199+Pension!K199 -> 2159905 | L199: =Gened!L199+'Specialed '!L199+Pension!L199 -> 2237593 | M199: 77688 | N199: 185 | O199: 11675.16216 | P199: 12095.0973 | Q199: 419.9351351 | R199: 4349965 | S199: 4466790 | T199: 116825 | U199: 374 | V199: 11630.92246 | W199: 11943.28877 | X199: 312.3663102
A200: 682 | B200: 1 | C200: ROSEAU | D200: =Gened!D200+'Specialed '!D200+Pension!D200 -> 11380598 | E200: =Gened!E200+'Specialed '!E200+Pension!E200 -> 11615697 | F200: 235098 | G200: 1170 | H200: 9727.006838 | I200: 9927.946154 | J200: 200.9393162 | K200: =Gened!K200+'Specialed '!K200+Pension!K200 -> 11282407 | L200: =Gened!L200+'Specialed '!L200+Pension!L200 -> 11707545 | M200: 425138 | N200: 1147 | O200: 9836.448997 | P200: 10207.10113 | Q200: 370.652136 | R200: 22663005 | S200: 23323242 | T200: 660236 | U200: 2317 | V200: 9781.184722 | W200: 10066.13811 | X200: 284.9529564
A201: 690 | B201: 1 | C201: WARROAD | D201: =Gened!D201+'Specialed '!D201+Pension!D201 -> 10148072 | E201: =Gened!E201+'Specialed '!E201+Pension!E201 -> 10343175 | F201: 195104 | G201: 1023 | H201: 9919.913978 | I201: 10110.6305 | J201: 190.71652 | K201: =Gened!K201+'Specialed '!K201+Pension!K201 -> 10192667 | L201: =Gened!L201+'Specialed '!L201+Pension!L201 -> 10567080 | M201: 374413 | N201: 1016 | O201: 10032.15256 | P201: 10400.66929 | Q201: 368.5167323 | R201: 20340739 | S201: 20910255 | T201: 569517 | U201: 2039 | V201: 9975.840608 | W201: 10255.15204 | X201: 279.3119176
... 330 more rows

Sheet Gened
T1: 2017-02-13
A2: MDE-School Finance
A3: General Education
A4: Governor's Recommendation
A5: District | D5: FY 2018 | K5: FY 2019 | R5: Biennium
D6: Total Revenue | G6: Adjusted ADM | H6: Revenue/Adjusted ADM | K6: Total Revenue | N6: Adjusted ADM | O6: Revenue/Adjusted ADM | R6: Total Revenue | U6: Adjusted ADM | V6: Revenue/Adjusted ADM
A8: DIST | B8: TYPE | C8: NAME | D8: Current | E8: Governor | F8: Change | H8: Current | I8: Governor | J8: Change | K8: Current | L8: Governor | M8: Change | O8: Current | P8: Governor | Q8: Change | R8: Current | S8: Governor | T8: Change | V8: Current | W8: Governor | X8: Change
C9: TOTAL | D9: 7990723226 | E9: 8118802684 | F9: 128079458 | G9: 858281 | H9: 9310 | I9: 9459 | J9: 149 | K9: 8093411784 | L9: 8354957524 | M9: 261545740 | N9: 863356 | O9: 9374 | P9: 9677 | Q9: 303 | R9: =SUM(R10:R530) -> 16084135026 | S9: =SUM(S10:S530) -> 16473760224 | T9: 389625198 | U9: 1721641 | V9: =R9/U9 -> 9342.328061 | W9: =S9/U9 -> 9568.638423 | X9: =T9/U9 -> 226.310362
A10: 1 | B10: 1 | C10: AITKIN | D10: 9862510 | E10: 10040435 | F10: 177925 | G10: 1147 | H10: 8599 | I10: 8754 | J10: 155 | K10: 9800623 | L10: 10158492 | M10: 357869 | N10: 1143 | O10: 8574 | P10: 8888 | Q10: 314 | R10: =D10+K10 -> 19663133 | S10: =E10+L10 -> 20198927 | T10: =F10+M10 -> 535794 | U10: 2290 | V10: =R10/U10 -> 8586.520961 | W10: =S10/U10 -> 8820.49214 | X10: =T10/U10 -> 233.971179
A11: 1.2 | B11: 3 | C11: MINNEAPOLIS | D11: 405674266 | E11: 411666734 | F11: 5992468 | G11: 35791 | H11: 11334 | I11: 11502 | J11: 168 | K11: 413404054 | L11: 425752596 | M11: 12348542 | N11: 36561 | O11: 11307 | P11: 11645 | Q11: 338 | R11: =D11+K11 -> 819078320 | S11: 837419330 | T11: 18341010 | U11: 72352 | V11: =R11/U11 -> 11320.74193 | W11: =S11/U11 -> 11574.23886 | X11: =T11/U11 -> 253.4969317
A12: 2 | B12: 1 | C12: HILL CITY | D12: 2966380 | E12: 3018506 | F12: 52126 | G12: 257 | H12: 11542 | I12: 11745 | J12: 203 | K12: 2896677 | L12: 2999910 | M12: 103233 | N12: 249 | O12: 11633 | P12: 12048 | Q12: 415 | R12: 5863057 | S12: 6018416 | T12: 155359 | U12: 506 | V12: 11587.06917 | W12: 11894.10277 | X12: 307.0335968
A13: 4 | B13: 1 | C13: MCGREGOR | D13: 4900649 | E13: 4991939 | F13: 91290 | G13: 457 | H13: 10724 | I13: 10923 | J13: 199 | K13: 4892077 | L13: 5076523 | M13: 184446 | N13: 455 | O13: 10752 | P13: 11157 | Q13: 405 | R13: 9792726 | S13: 10068462 | T13: 275736 | U13: 912 | V13: 10737.63816 | W13: 11039.98026 | X13: 302.3421053
A14: 6 | B14: 3 | C14: SOUTH ST. PAUL | D14: 32899234 | E14: 33438849 | F14: 539615 | G14: 3641 | H14: 9036 | I14: 9184 | J14: 148 | K14: 33063655 | L14: 34161018 | M14: 1097363 | N14: 3650 | O14: 9058 | P14: 9359 | Q14: 301 | R14: 65962889 | S14: 67599867 | T14: 1636978 | U14: 7291 | V14: 9047.166232 | W14: 9271.6866 | X14: 224.5203676
A15: 11 | B15: 1 | C15: ANOKA-HENNEPIN | D15: 344287523 | E15: 349604673 | F15: 5317150 | G15: 37429 | H15: 9199 | I15: 9341 | J15: 142 | K15: 346409765 | L15: 357196770 | M15: 10787005 | N15: 37497 | O15: 9238 | P15: 9526 | Q15: 288 | R15: 690697288 | S15: 706801443 | T15: 16104155 | U15: 74926 | V15: 9218.392654 | W15: 9433.326789 | X15: 214.934135
A16: 12 | B16: 1 | C16: CENTENNIAL | D16: 52278997 | E16: 53142688 | F16: 863691 | G16: 6341 | H16: 8245 | I16: 8381 | J16: 136 | K16: 52183106 | L16: 53928268 | M16: 1745162 | N16: 6340 | O16: 8231 | P16: 8506 | Q16: 275 | R16: 104462103 | S16: 107070956 | T16: 2608853 | U16: 12681 | V16: 8237.686539 | W16: 8443.415819 | X16: 205.72928
A17: 13 | B17: 1 | C17: COLUMBIA HEIGHTS | D17: 35658646 | E17: 36260722 | F17: 602076 | G17: 3350 | H17: 10644 | I17: 10824 | J17: 180 | K17: 36224329 | L17: 37460020 | M17: 1235691 | N17: 3409 | O17: 10626 | P17: 10989 | Q17: 363 | R17: 71882975 | S17: 73720742 | T17: 1837767 | U17: 6759 | V17: 10635.14943 | W17: 10907.04868 | X17: 271.8992455
A18: 14 | B18: 1 | C18: FRIDLEY | D18: 29227527 | E18: 29724009 | F18: 496482 | G18: 3068 | H18: 9527 | I18: 9689 | J18: 162 | K18: 29395014 | L18: 30405433 | M18: 1010419 | N18: 3080 | O18: 9544 | P18: 9873 | Q18: 329 | R18: 58622541 | S18: 60129442 | T18: 1506901 | U18: 6148 | V18: 9535.221373 | W18: 9780.325634 | X18: 245.1042615
A19: 15 | B19: 1 | C19: ST. FRANCIS | D19: 36022495 | E19: 36634630 | F19: 612135 | G19: 4344 | H19: 8292 | I19: 8433 | J19: 141 | K19: 35360804 | L19: 36576905 | M19: 1216101 | N19: 4278 | O19: 8266 | P19: 8550 | Q19: 284 | R19: 71383299 | S19: 73211535 | T19: 1828236 | U19: 8622 | V19: 8279.204245 | W19: 8491.24739 | X19: 212.0431454
A20: 16 | B20: 1 | C20: SPRING LAKE PARK | D20: 49816880 | E20: 50645432 | F20: 828552 | G20: 5745 | H20: 8671 | I20: 8816 | J20: 145 | K20: 50442502 | L20: 52140727 | M20: 1698225 | N20: 5815 | O20: 8675 | P20: 8967 | Q20: 292 | R20: 100259382 | S20: 102786159 | T20: 2526777 | U20: 11560 | V20: 8672.95692 | W20: 8891.536246 | X20: 218.5793253
A21: 22 | B21: 1 | C21: DETROIT LAKES | D21: 26633080 | E21: 27083187 | F21: 450107 | G21: 3024 | H21: 8807 | I21: 8956 | J21: 149 | K21: 26832687 | L21: 27750866 | M21: 918179 | N21: 3044 | O21: 8815 | P21: 9117 | Q21: 302 | R21: 53465767 | S21: 54834053 | T21: 1368286 | U21: 6068 | V21: 8811.102011 | W21: 9036.5941 | X21: 225.4920897
A22: 23 | B22: 1 | C22: FRAZEE | D22: 7853961 | E22: 7987248 | F22: 133287 | G22: 885 | H22: 8875 | I22: 9025 | J22: 150 | K22: 7762352 | L22: 8029152 | M22: 266800 | N22: 865 | O22: 8974 | P22: 9282 | Q22: 308 | R22: 15616313 | S22: 16016400 | T22: 400087 | U22: 1750 | V22: 8923.607429 | W22: 9152.228571 | X22: 228.6211429
A23: 25 | B23: 1 | C23: PINE POINT | D23: 884236 | E23: 900161 | F23: 15925 | G23: 69 | H23: 12815 | I23: 13046 | J23: 231 | K23: 890575 | L23: 923015 | M23: 32440 | N23: 70 | O23: 12723 | P23: 13186 | Q23: 463 | R23: 1774811 | S23: 1823176 | T23: 48365 | U23: 139 | V23: 12768.42446 | W23: 13116.3741 | X23: 347.9496403
A24: 31 | B24: 1 | C24: BEMIDJI | D24: 47438807 | E24: 48243328 | F24: 804521 | G24: 5180 | H24: 9158 | I24: 9313 | J24: 155 | K24: 47597988 | L24: 49231965 | M24: 1633977 | N24: 5196 | O24: 9161 | P24: 9475 | Q24: 314 | R24: 95036795 | S24: 97475293 | T24: 2438498 | U24: 10376 | V24: 9159.290189 | W24: 9394.303489 | X24: 235.0132999
A25: 32 | B25: 1 | C25: BLACKDUCK | D25: 6443914 | E25: 6556872 | F25: 112958 | G25: 636 | H25: 10135 | I25: 10313 | J25: 178 | K25: 6278942 | L25: 6502180 | M25: 223238 | N25: 606 | O25: 10365 | P25: 10733 | Q25: 368 | R25: 12722856 | S25: 13059052 | T25: 336196 | U25: 1242 | V25: 10243.84541 | W25: 10514.53462 | X25: 270.689211
A26: 36 | B26: 1 | C26: KELLIHER | D26: 3442271 | E26: 3506951 | F26: 64680 | G26: 285 | H26: 12078 | I26: 12305 | J26: 227 | K26: 3512006 | L26: 3645596 | M26: 133590 | N26: 290 | O26: 12110 | P26: 12571 | Q26: 461 | R26: 6954277 | S26: 7152547 | T26: 198270 | U26: 575 | V26: 12094.39478 | W26: 12439.21217 | X26: 344.8173913
A27: 38 | B27: 1 | C27: RED LAKE | D27: 18657760 | E27: 18971297 | F27: 313537 | G27: 1611 | H27: 11581 | I27: 11776 | J27: 195 | K27: 19262822 | L27: 19914028 | M27: 651206 | N27: 1664 | O27: 11576 | P27: 11968 | Q27: 392 | R27: 37920582 | S27: 38885325 | T27: 964743 | U27: 3275 | V27: 11578.80366 | W27: 11873.38168 | X27: 294.5780153
A28: 47 | B28: 1 | C28: SAUK RAPIDS | D28: 36300331 | E28: 36921258 | F28: 620927 | G28: 4374 | H28: 8299 | I28: 8441 | J28: 142 | K28: 36326473 | L28: 37584614 | M28: 1258141 | N28: 4375 | O28: 8303 | P28: 8591 | Q28: 288 | R28: 72626804 | S28: 74505872 | T28: 1879068 | U28: 8749 | V28: 8301.154875 | W28: 8515.930049 | X28: 214.7751743
A29: 51 | B29: 1 | C29: FOLEY | D29: 14639655 | E29: 14898884 | F29: 259229 | G29: 1817 | H29: 8057 | I29: 8200 | J29: 143 | K29: 14388982 | L29: 14905025 | M29: 516043 | N29: 1781 | O29: 8079 | P29: 8369 | Q29: 290 | R29: 29028637 | S29: 29803909 | T29: 775272 | U29: 3598 | V29: 8067.992496 | W29: 8283.465536 | X29: 215.4730406
A30: 75 | B30: 1 | C30: ST. CLAIR | D30: 5572798 | E30: 5665956 | F30: 93158 | G30: 670 | H30: 8318 | I30: 8457 | J30: 139 | K30: 5462276 | L30: 5647145 | M30: 184869 | N30: 649 | O30: 8416 | P30: 8701 | Q30: 285 | R30: 11035074 | S30: 11313101 | T30: 278027 | U30: 1319 | V30: 8366.242608 | W30: 8577.02881 | X30: 210.7862017
A31: 77 | B31: 1 | C31: MANKATO | D31: 72989101 | E31: 74206595 | F31: 1217494 | G31: 8483 | H31: 8604 | I31: 8748 | J31: 144 | K31: 72860930 | L31: 75313953 | M31: 2453023 | N31: 8419 | O31: 8654 | P31: 8946 | Q31: 292 | R31: 145850031 | S31: 149520548 | T31: 3670517 | U31: 16902 | V31: 8629.158147 | W31: 8846.322802 | X31: 217.1646551
A32: 81 | B32: 1 | C32: COMFREY | D32: 1640271 | E32: 1664147 | F32: 23876 | G32: 149 | H32: 11009 | I32: 11169 | J32: 160 | K32: 1638076 | L32: 1686167 | M32: 48091 | N32: 149 | O32: 10994 | P32: 11317 | Q32: 323 | R32: 3278347 | S32: 3350314 | T32: 71967 | U32: 298 | V32: 11001.16443 | W32: 11242.66443 | X32: 241.5
A33: 84 | B33: 1 | C33: SLEEPY EYE | D33: 5214310 | E33: 5302459 | F33: 88149 | G33: 555 | H33: 9395 | I33: 9554 | J33: 159 | K33: 5123362 | L33: 5298816 | M33: 175454 | N33: 540 | O33: 9488 | P33: 9813 | Q33: 325 | R33: 10337672 | S33: 10601275 | T33: 263603 | U33: 1095 | V33: 9440.796347 | W33: 9681.52968 | X33: 240.7333333
A34: 85 | B34: 1 | C34: SPRINGFIELD | D34: 4866767 | E34: 4948450 | F34: 81683 | G34: 545 | H34: 8930 | I34: 9080 | J34: 150 | K34: 4767818 | L34: 4929986 | M34: 162168 | N34: 534 | O34: 8928 | P34: 9232 | Q34: 304 | R34: 9634585 | S34: 9878436 | T34: 243851 | U34: 1079 | V34: 8929.179796 | W34: 9155.177016 | X34: 225.9972196
A35: 88 | B35: 1 | C35: NEW ULM | D35: 18869256 | E35: 19160297 | F35: 291041 | G35: 2057 | H35: 9173 | I35: 9315 | J35: 142 | K35: 18905038 | L35: 19493398 | M35: 588360 | N35: 2055 | O35: 9200 | P35: 9486 | Q35: 286 | R35: 37774294 | S35: 38653695 | T35: 879401 | U35: 4112 | V35: 9186.355545 | W35: 9400.217656 | X35: 213.8621109
A36: 91 | B36: 1 | C36: BARNUM | D36: 6500906 | E36: 6611641 | F36: 110735 | G36: 753 | H36: 8633 | I36: 8780 | J36: 147 | K36: 6478411 | L36: 6701736 | M36: 223325 | N36: 749 | O36: 8649 | P36: 8948 | Q36: 299 | R36: 12979317 | S36: 13313377 | T36: 334060 | U36: 1502 | V36: 8641.356192 | W36: 8863.766312 | X36: 222.4101198
A37: 93 | B37: 1 | C37: CARLTON | D37: 4466524 | E37: 4534406 | F37: 67882 | G37: 460 | H37: 9710 | I37: 9857 | J37: 147 | K37: 4796416 | L37: 4931300 | M37: 134884 | N37: 452 | O37: 10612 | P37: 10910 | Q37: 298 | R37: 9262940 | S37: 9465706 | T37: 202766 | U37: 912 | V37: 10156.73246 | W37: 10379.0636 | X37: 222.3311404
A38: 94 | B38: 1 | C38: CLOQUET | D38: 23758684 | E38: 24172780 | F38: 414096 | G38: 2707 | H38: 8777 | I38: 8930 | J38: 153 | K38: 24208733 | L38: 25062520 | M38: 853787 | N38: 2760 | O38: 8771 | P38: 9081 | Q38: 310 | R38: 47967417 | S38: 49235300 | T38: 1267883 | U38: 5467 | V38: 8773.9925 | W38: 9005.908176 | X38: 231.9156759
A39: 95 | B39: 1 | C39: CROMWELL | D39: 3274857 | E39: 3331193 | F39: 56336 | G39: 310 | H39: 10564 | I39: 10746 | J39: 182 | K39: 3239060 | L39: 3351517 | M39: 112457 | N39: 310 | O39: 10449 | P39: 10811 | Q39: 362 | R39: 6513917 | S39: 6682710 | T39: 168793 | U39: 620 | V39: 10506.31774 | W39: 10778.56452 | X39: 272.2467742
A40: 97 | B40: 1 | C40: MOOSE LAKE | D40: 5539014 | E40: 5635645 | F40: 96631 | G40: 665 | H40: 8329 | I40: 8475 | J40: 146 | K40: 5592911 | L40: 5790533 | M40: 197622 | N40: 671 | O40: 8335 | P40: 8630 | Q40: 295 | R40: 11131925 | S40: 11426178 | T40: 294253 | U40: 1336 | V40: 8332.279192 | W40: 8552.528443 | X40: 220.2492515
A41: 99 | B41: 1 | C41: ESKO | D41: 9663701 | E41: 9826896 | F41: 163195 | G41: 1212 | H41: 7973 | I41: 8108 | J41: 135 | K41: 9695181 | L41: 10026689 | M41: 331508 | N41: 1212 | O41: 7999 | P41: 8273 | Q41: 274 | R41: 19358882 | S41: 19853585 | T41: 494703 | U41: 2424 | V41: 7986.337459 | W41: 8190.422855 | X41: 204.085396
A42: 100 | B42: 1 | C42: WRENSHALL | D42: 3118446 | E42: 3170352 | F42: 51906 | G42: 341 | H42: 9145 | I42: 9297 | J42: 152 | K42: 3172587 | L42: 3279549 | M42: 106962 | N42: 346 | O42: 9169 | P42: 9478 | Q42: 309 | R42: 6291033 | S42: 6449901 | T42: 158868 | U42: 687 | V42: 9157.253275 | W42: 9388.502183 | X42: 231.2489083
A43: 108 | B43: 1 | C43: NORWOOD | D43: 7786600 | E43: 7918522 | F43: 131922 | G43: 948 | H43: 8214 | I43: 8353 | J43: 139 | K43: 7628749 | L43: 7890596 | M43: 261847 | N43: 928 | O43: 8221 | P43: 8503 | Q43: 282 | R43: 15415349 | S43: 15809118 | T43: 393769 | U43: 1876 | V43: 8217.136994 | W43: 8427.035181 | X43: 209.8981876
A44: 110 | B44: 1 | C44: WACONIA | D44: 32787140 | E44: 33338226 | F44: 551086 | G44: 4090 | H44: 8016 | I44: 8151 | J44: 135 | K44: 32407160 | L44: 33511343 | M44: 1104183 | N44: 4035 | O44: 8032 | P44: 8305 | Q44: 273 | R44: 65194300 | S44: 66849569 | T44: 1655269 | U44: 8125 | V44: 8023.913846 | W44: 8227.639262 | X44: 203.7254154
A45: 111 | B45: 1 | C45: WATERTOWN-MAYER | D45: 13549548 | E45: 13777989 | F45: 228441 | G45: 1676 | H45: 8084 | I45: 8221 | J45: 137 | K45: 13261197 | L45: 13713619 | M45: 452422 | N45: 1627 | O45: 8151 | P45: 8429 | Q45: 278 | R45: 26810745 | S45: 27491608 | T45: 680863 | U45: 3303 | V45: 8117.08901 | W45: 8323.223736 | X45: 206.134726
A46: 112 | B46: 1 | C46: EASTERN CARVER CTY | D46: 88589140 | E46: 89910820 | F46: 1321680 | G46: 9667 | H46: 9164 | I46: 9301 | J46: 137 | K46: 90016018 | L46: 92734589 | M46: 2718571 | N46: 9836 | O46: 9152 | P46: 9428 | Q46: 276 | R46: 178605158 | S46: 182645409 | T46: 4040251 | U46: 19503 | V46: 9157.829975 | W46: 9364.990463 | X46: 207.1604881
A47: 113 | B47: 1 | C47: WALKER-AKELEY | D47: 6774129 | E47: 6891374 | F47: 117245 | G47: 716 | H47: 9461 | I47: 9625 | J47: 164 | K47: 6701825 | L47: 6937122 | M47: 235297 | N47: 702 | O47: 9547 | P47: 9882 | Q47: 335 | R47: 13475954 | S47: 13828496 | T47: 352542 | U47: 1418 | V47: 9503.493653 | W47: 9752.112835 | X47: 248.6191819
A48: 115 | B48: 1 | C48: CASS LAKE | D48: 12542727 | E48: 12769683 | F48: 226956 | G48: 1086 | H48: 11549 | I48: 11758 | J48: 209 | K48: 12796740 | L48: 13263681 | M48: 466941 | N48: 1125 | O48: 11375 | P48: 11790 | Q48: 415 | R48: 25339467 | S48: 26033364 | T48: 693897 | U48: 2211 | V48: 11460.63636 | W48: 11774.4749 | X48: 313.8385346
A49: 116 | B49: 1 | C49: PILLAGER | D49: 9130089 | E49: 9286795 | F49: 156706 | G49: 1072 | H49: 8517 | I49: 8663 | J49: 146 | K49: 9517253 | L49: 9847696 | M49: 330443 | N49: 1121 | O49: 8490 | P49: 8785 | Q49: 295 | R49: 18647342 | S49: 19134491 | T49: 487149 | U49: 2193 | V49: 8503.119927 | W49: 8725.258094 | X49: 222.1381669
A50: 118 | B50: 1 | C50: NORTHLAND | D50: 4057791 | E50: 4117596 | F50: 59805 | G50: 326 | H50: 12447 | I50: 12631 | J50: 184 | K50: 4094337 | L50: 4216434 | M50: 122097 | N50: 328 | O50: 12483 | P50: 12855 | Q50: 372 | R50: 8152128 | S50: 8334030 | T50: 181902 | U50: 654 | V50: 12465.02752 | W50: 12743.16514 | X50: 278.1376147
A51: 129 | B51: 1 | C51: MONTEVIDEO | D51: 13015126 | E51: 13230377 | F51: 215251 | G51: 1454 | H51: 8951 | I51: 9099 | J51: 148 | K51: 12971044 | L51: 13405474 | M51: 434430 | N51: 1445 | O51: 8977 | P51: 9277 | Q51: 300 | R51: 25986170 | S51: 26635851 | T51: 649681 | U51: 2899 | V51: 8963.839255 | W51: 9187.944464 | X51: 224.1052087
A52: 138 | B52: 1 | C52: NORTH BRANCH | D52: 24896658 | E52: 25317236 | F52: 420578 | G52: 2974 | H52: 8371 | I52: 8513 | J52: 142 | K52: 24865314 | L52: 25715501 | M52: 850187 | N52: 2982 | O52: 8338 | P52: 8624 | Q52: 286 | R52: 49761972 | S52: 51032737 | T52: 1270765 | U52: 5956 | V52: 8354.931498 | W52: 8568.290296 | X52: 213.3587979
A53: 139 | B53: 1 | C53: RUSH CITY | D53: 7238880 | E53: 7362558 | F53: 123678 | G53: 870 | H53: 8321 | I53: 8463 | J53: 142 | K53: 7264658 | L53: 7516035 | M53: 251377 | N53: 873 | O53: 8321 | P53: 8609 | Q53: 288 | R53: 14503538 | S53: 14878593 | T53: 375055 | U53: 1743 | V53: 8321.02008 | W53: 8536.197935 | X53: 215.1778543
A54: 146 | B54: 1 | C54: BARNESVILLE | D54: 7694542 | E54: 7821066 | F54: 126524 | G54: 902 | H54: 8531 | I54: 8671 | J54: 140 | K54: 7631045 | L54: 7885245 | M54: 254200 | N54: 891 | O54: 8565 | P54: 8850 | Q54: 285 | R54: 15325587 | S54: 15706311 | T54: 380724 | U54: 1793 | V54: 8547.455103 | W54: 8759.7942 | X54: 212.3390965
A55: 150 | B55: 1 | C55: HAWLEY | D55: 7161992 | E55: 7287330 | F55: 125338 | G55: 913 | H55: 7844 | I55: 7982 | J55: 138 | K55: 7275005 | L55: 7532807 | M55: 257802 | N55: 921 | O55: 7899 | P55: 8179 | Q55: 280 | R55: 14436997 | S55: 14820137 | T55: 383140 | U55: 1834 | V55: 7871.863141 | W55: 8080.772628 | X55: 208.9094875
A56: 152 | B56: 1 | C56: MOORHEAD | D56: 56420018 | E56: 57352172 | F56: 932154 | G56: 6391 | H56: 8828 | I56: 8974 | J56: 146 | K56: 58572815 | L56: 60482224 | M56: 1909409 | N56: 6469 | O56: 9054 | P56: 9350 | Q56: 296 | R56: 114992833 | S56: 117834396 | T56: 2841563 | U56: 12860 | V56: 8941.899922 | W56: 9162.861275 | X56: 220.961353
A57: 160 | B57: 70 | C57: MINNESOTA STATE ACADEMIES | D57: 247598 | E57: 253329 | F57: 5731 | G57: 0 | H57: 0 | I57: 0 | J57: 0 | K57: 247598 | L57: 259201 | M57: 11603 | N57: 0 | O57: 0 | P57: 0 | Q57: 0 | R57: 495196 | S57: 512530 | T57: 17334 | U57: 0
A58: 160 | B58: 90 | C58: FARIBAULT TRANSFER | D58: 587662 | E58: 599383 | F58: 11721 | G58: 0 | H58: 0 | I58: 0 | J58: 0 | K58: 587662 | L58: 611394 | M58: 23732 | N58: 0 | O58: 0 | P58: 0 | Q58: 0 | R58: 1175324 | S58: 1210777 | T58: 35453 | U58: 0
A59: 162 | B59: 1 | C59: BAGLEY | D59: 9085322 | E59: 9243562 | F59: 158240 | G59: 1004 | H59: 9051 | I59: 9209 | J59: 158 | K59: 9331357 | L59: 9660128 | M59: 328771 | N59: 1035 | O59: 9018 | P59: 9336 | Q59: 318 | R59: 18416679 | S59: 18903690 | T59: 487011 | U59: 2039 | V59: 9032.211378 | W59: 9271.059343 | X59: 238.8479647
A60: 166 | B60: 1 | C60: COOK COUNTY | D60: 5291288 | E60: 5377186 | F60: 85898 | G60: 452 | H60: 11704 | I60: 11894 | J60: 190 | K60: 5138482 | L60: 5308035 | M60: 169553 | N60: 431 | O60: 11920 | P60: 12313 | Q60: 393 | R60: 10429770 | S60: 10685221 | T60: 255451 | U60: 883 | V60: 11811.74405 | W60: 12101.04304 | X60: 289.2989807
A61: 173 | B61: 1 | C61: MOUNTAIN LAKE | D61: 5136863 | E61: 5211725 | F61: 74862 | G61: 478 | H61: 10747 | I61: 10903 | J61: 156 | K61: 5105986 | L61: 5256571 | M61: 150585 | N61: 476 | O61: 10727 | P61: 11043 | Q61: 316 | R61: 10242849 | S61: 10468296 | T61: 225447 | U61: 954 | V61: 10736.73899 | W61: 10973.0566 | X61: 236.3176101
A62: 177 | B62: 1 | C62: WINDOM | D62: 9967063 | E62: 10127000 | F62: 159937 | G62: 1068 | H62: 9332 | I62: 9482 | J62: 150 | K62: 10055214 | L62: 10381691 | M62: 326477 | N62: 1077 | O62: 9336 | P62: 9639 | Q62: 303 | R62: 20022277 | S62: 20508691 | T62: 486414 | U62: 2145 | V62: 9334.394872 | W62: 9561.161305 | X62: 226.7664336
A63: 181 | B63: 1 | C63: BRAINERD | D63: 56146048 | E63: 57109136 | F63: 963088 | G63: 6541 | H63: 8584 | I63: 8731 | J63: 147 | K63: 56474916 | L63: 58436188 | M63: 1961272 | N63: 6571 | O63: 8595 | P63: 8893 | Q63: 298 | R63: 112620964 | S63: 115545324 | T63: 2924360 | U63: 13112 | V63: 8589.152227 | W63: 8812.181513 | X63: 223.0292862
A64: 182 | B64: 1 | C64: CROSBY | D64: 9068978 | E64: 9227651 | F64: 158673 | G64: 1018 | H64: 8909 | I64: 9064 | J64: 155 | K64: 8912237 | L64: 9228276 | M64: 316039 | N64: 997 | O64: 8939 | P64: 9256 | Q64: 317 | R64: 17981215 | S64: 18455927 | T64: 474712 | U64: 2015 | V64: 8923.679901 | W64: 9159.268983 | X64: 235.5890819
A65: 186 | B65: 1 | C65: PEQUOT LAKES | D65: 13551389 | E65: 13785513 | F65: 234124 | G65: 1660 | H65: 8163 | I65: 8305 | J65: 142 | K65: 13382334 | L65: 13850755 | M65: 468421 | N65: 1631 | O65: 8205 | P65: 8492 | Q65: 287 | R65: 26933723 | S65: 27636268 | T65: 702545 | U65: 3291 | V65: 8184.054391 | W65: 8397.529019 | X65: 213.4746278
A66: 191 | B66: 1 | C66: BURNSVILLE | D66: 90247582 | E66: 91610293 | F66: 1362711 | G66: 8940 | H66: 10095 | I66: 10247 | J66: 152 | K66: 89845187 | L66: 92591516 | M66: 2746329 | N66: 8902 | O66: 10093 | P66: 10401 | Q66: 308 | R66: 180092769 | S66: 184201809 | T66: 4109040 | U66: 17842 | V66: 10093.75457 | W66: 10324.0561 | X66: 230.3015357
A67: 192 | B67: 1 | C67: FARMINGTON | D67: 57557668 | E67: 58466031 | F67: 908363 | G67: 6761 | H67: 8513 | I67: 8648 | J67: 135 | K67: 57212745 | L67: 59041548 | M67: 1828803 | N67: 6688 | O67: 8555 | P67: 8828 | Q67: 273 | R67: 114770413 | S67: 117507579 | T67: 2737166 | U67: 13449 | V67: 8533.750688 | W67: 8737.272585 | X67: 203.5218975
A68: 194 | B68: 1 | C68: LAKEVILLE | D68: 95010213 | E68: 96433284 | F68: 1423071 | G68: 10515 | H68: 9036 | I68: 9171 | J68: 135 | K68: 92418054 | L68: 95213411 | M68: 2795357 | N68: 10089 | O68: 9160 | P68: 9437 | Q68: 277 | R68: 187428267 | S68: 191646695 | T68: 4218428 | U68: 20604 | V68: 9096.693215 | W68: 9301.431518 | X68: 204.7383032
A69: 195 | B69: 1 | C69: RANDOLPH | D69: 5455221 | E69: 5547828 | F69: 92607 | G69: 676 | H69: 8070 | I69: 8207 | J69: 137 | K69: 5536254 | L69: 5726714 | M69: 190460 | N69: 684 | O69: 8094 | P69: 8372 | Q69: 278 | R69: 10991475 | S69: 11274542 | T69: 283067 | U69: 1360 | V69: 8081.966912 | W69: 8290.104412 | X69: 208.1375
A70: 196 | B70: 1 | C70: ROSEMOUNT-APPLE | D70: 251719339 | E70: 255542416 | F70: 3823077 | G70: 27776 | H70: 9062 | I70: 9200 | J70: 138 | K70: 253668007 | L70: 261433102 | M70: 7765095 | N70: 27855 | O70: 9107 | P70: 9385 | Q70: 278 | R70: 505387346 | S70: 516975518 | T70: 11588172 | U70: 55631 | V70: 9084.635293 | W70: 9292.939512 | X70: 208.3042189
A71: 197 | B71: 1 | C71: WEST ST. PAUL | D71: 47923634 | E71: 48637548 | F71: 713914 | G71: 4893 | H71: 9794 | I71: 9940 | J71: 146 | K71: 50842127 | L71: 52293343 | M71: 1451216 | N71: 4915 | O71: 10344 | P71: 10640 | Q71: 296 | R71: 98765761 | S71: 100930891 | T71: 2165130 | U71: 9808 | V71: 10069.91854 | W71: 10290.66996 | X71: 220.7514274
A72: 199 | B72: 1 | C72: INVER GROVE | D72: 34120474 | E72: 34681722 | F72: 561248 | G72: 3869 | H72: 8819 | I72: 8964 | J72: 145 | K72: 34050758 | L72: 35183947 | M72: 1133189 | N72: 3843 | O72: 8860 | P72: 9155 | Q72: 295 | R72: 68171232 | S72: 69865669 | T72: 1694437 | U72: 7712 | V72: 8839.630705 | W72: 9059.345047 | X72: 219.7143413
A73: 200 | B73: 1 | C73: HASTINGS | D73: 40202616 | E73: 40806048 | F73: 603432 | G73: 4343 | H73: 9257 | I73: 9396 | J73: 139 | K73: 40035404 | L73: 41247784 | M73: 1212380 | N73: 4319 | O73: 9270 | P73: 9550 | Q73: 280 | R73: 80238020 | S73: 82053832 | T73: 1815812 | U73: 8662 | V73: 9263.220965 | W73: 9472.850612 | X73: 209.6296467
A74: 203 | B74: 1 | C74: HAYFIELD | D74: 6296477 | E74: 6395846 | F74: 99369 | G74: 689 | H74: 9139 | I74: 9283 | J74: 144 | K74: 6291942 | L74: 6492919 | M74: 200977 | N74: 689 | O74: 9132 | P74: 9424 | Q74: 292 | R74: 12588419 | S74: 12888765 | T74: 300346 | U74: 1378 | V74: 9135.282293 | W74: 9353.240203 | X74: 217.95791
A75: 204 | B75: 1 | C75: KASSON-MANTORVIL | D75: 16852837 | E75: 17136002 | F75: 283165 | G75: 2082 | H75: 8095 | I75: 8231 | J75: 136 | K75: 16975968 | L75: 17553315 | M75: 577347 | N75: 2092 | O75: 8115 | P75: 8391 | Q75: 276 | R75: =D75+K75 -> 33828805 | S75: 34689317 | T75: 860512 | U75: 4174 | V75: =R75/U75 -> 8104.649018 | W75: =S75/U75 -> 8310.809056 | X75: =T75/U75 -> 206.1600383
A76: 206 | B76: 1 | C76: ALEXANDRIA | D76: 34414268 | E76: 34995207 | F76: 580939 | G76: 4128 | H76: 8337 | I76: 8478 | J76: 141 | K76: 34674547 | L76: 35859735 | M76: 1185188 | N76: 4161 | O76: 8333 | P76: 8618 | Q76: 285 | R76: 69088815 | S76: 70854942 | T76: 1766127 | U76: 8289 | V76: 8335 | W76: 8548.068766 | X76: 213.0687658
A77: 213 | B77: 1 | C77: OSAKIS | D77: 6494314 | E77: 6611107 | F77: 116793 | G77: 813 | H77: 7988 | I77: 8132 | J77: 144 | K77: 6493779 | L77: 6730240 | M77: 236461 | N77: 810 | O77: 8017 | P77: 8309 | Q77: 292 | R77: 12988093 | S77: 13341347 | T77: 353254 | U77: 1623 | V77: 8002.521873 | W77: 8220.176833 | X77: 217.65496
A78: 227 | B78: 1 | C78: CHATFIELD | D78: 7782403 | E78: 7907337 | F78: 124934 | G78: 899 | H78: 8657 | I78: 8796 | J78: 139 | K78: 7752303 | L78: 8004331 | M78: 252028 | N78: 892 | O78: 8691 | P78: 8973 | Q78: 282 | R78: 15534706 | S78: 15911668 | T78: 376962 | U78: 1791 | V78: 8673.761027 | W78: 8884.236739 | X78: 210.4757119
A79: 229 | B79: 1 | C79: LANESBORO | D79: 2684953 | E79: 2731361 | F79: 46408 | G79: 305 | H79: 8803 | I79: 8955 | J79: 152 | K79: 2591391 | L79: 2681892 | M79: 90501 | N79: 295 | O79: 8784 | P79: 9091 | Q79: 307 | R79: 5276344 | S79: 5413253 | T79: 136909 | U79: 600 | V79: 8793.906667 | W79: 9022.088333 | X79: 228.1816667
A80: 238 | B80: 1 | C80: MABEL-CANTON | D80: 2517902 | E80: 2554090 | F80: 36188 | G80: 246 | H80: 10235 | I80: 10382 | J80: 147 | K80: 2488019 | L80: 2560497 | M80: 72478 | N80: 244 | O80: 10197 | P80: 10494 | Q80: 297 | R80: 5005921 | S80: 5114587 | T80: 108666 | U80: 490 | V80: 10216.16531 | W80: 10437.93265 | X80: 221.7673469
A81: 239 | B81: 1 | C81: RUSHFORD-PETERSO | D81: 5754364 | E81: 5846416 | F81: 92052 | G81: 637 | H81: 9034 | I81: 9178 | J81: 144 | K81: 5648141 | L81: 5830143 | M81: 182002 | N81: 625 | O81: 9037 | P81: 9328 | Q81: 291 | R81: 11402505 | S81: 11676559 | T81: 274054 | U81: 1262 | V81: 9035.265452 | W81: 9252.42393 | X81: 217.1584786
A82: 241 | B82: 1 | C82: ALBERT LEA | D82: 32805243 | E82: 33333889 | F82: 528646 | G82: 3427 | H82: 9573 | I82: 9727 | J82: 154 | K82: 33002898 | L82: 34075478 | M82: 1072580 | N82: 3437 | O82: 9602 | P82: 9914 | Q82: 312 | R82: 65808141 | S82: 67409367 | T82: 1601226 | U82: 6864 | V82: 9587.433129 | W82: 9820.711976 | X82: 233.2788462
A83: 242 | B83: 1 | C83: ALDEN | D83: 4420747 | E83: 4492695 | F83: 71948 | G83: 492 | H83: 8985 | I83: 9131 | J83: 146 | K83: 4422837 | L83: 4568567 | M83: 145730 | N83: 492 | O83: 8990 | P83: 9286 | Q83: 296 | R83: 8843584 | S83: 9061262 | T83: 217678 | U83: 984 | V83: 8987.382114 | W83: 9208.599593 | X83: 221.2174797
A84: 252 | B84: 1 | C84: CANNON FALLS | D84: 9819118 | E84: 9975747 | F84: 156629 | G84: 1129 | H84: 8697 | I84: 8836 | J84: 139 | K84: 9683562 | L84: 9996483 | M84: 312921 | N84: 1112 | O84: 8708 | P84: 8990 | Q84: 282 | R84: 19502680 | S84: 19972230 | T84: 469550 | U84: 2241 | V84: 8702.668452 | W84: 8912.195448 | X84: 209.5269969
A85: 253 | B85: 1 | C85: GOODHUE | D85: 5349663 | E85: 5438289 | F85: 88626 | G85: 636 | H85: 8411 | I85: 8551 | J85: 140 | K85: 5332938 | L85: 5511750 | M85: 178812 | N85: 635 | O85: 8398 | P85: 8680 | Q85: 282 | R85: 10682601 | S85: 10950039 | T85: 267438 | U85: 1271 | V85: 8404.878836 | W85: 8615.294256 | X85: 210.4154209
A86: 255 | B86: 1 | C86: PINE ISLAND | D86: 10251182 | E86: 10425039 | F86: 173857 | G86: 1280 | H86: 8009 | I86: 8145 | J86: 136 | K86: 10289493 | L86: 10642746 | M86: 353253 | N86: 1288 | O86: 7989 | P86: 8263 | Q86: 274 | R86: 20540675 | S86: 21067785 | T86: 527110 | U86: 2568 | V86: 7998.705218 | W86: 8203.966121 | X86: 205.2609034
A87: 256 | B87: 1 | C87: RED WING | D87: 23877459 | E87: 24262470 | F87: 385011 | G87: 2660 | H87: 8976 | I87: 9121 | J87: 145 | K87: 23665906 | L87: 24439621 | M87: 773715 | N87: 2623 | O87: 9022 | P87: 9317 | Q87: 295 | R87: 47543365 | S87: 48702091 | T87: 1158726 | U87: 5283 | V87: 8999.311944 | W87: 9218.643006 | X87: 219.3310619
A88: 261 | B88: 1 | C88: ASHBY | D88: 2614275 | E88: 2654506 | F88: 40231 | G88: 274 | H88: 9541 | I88: 9688 | J88: 147 | K88: 2688864 | L88: 2772632 | M88: 83768 | N88: 283 | O88: 9501 | P88: 9797 | Q88: 296 | R88: 5303139 | S88: 5427138 | T88: 123999 | U88: 557 | V88: 9520.895871 | W88: 9743.51526 | X88: 222.6193896
A89: 264 | B89: 1 | C89: HERMAN-NORCROSS | D89: 1707530 | E89: 1730489 | F89: 22959 | G89: 118 | H89: 14471 | I89: 14665 | J89: 194 | K89: 1694451 | L89: 1740737 | M89: 46286 | N89: 116 | O89: 14607 | P89: 15006 | Q89: 399 | R89: 3401981 | S89: 3471226 | T89: 69245 | U89: 234 | V89: 14538.38034 | W89: 14834.29915 | X89: 295.9188034
A90: 270 | B90: 1 | C90: HOPKINS | D90: 71915250 | E90: 72929769 | F90: 1014519 | G90: 6970 | H90: 10318 | I90: 10463 | J90: 145 | K90: 72480792 | L90: 74538010 | M90: 2057218 | N90: 6987 | O90: 10374 | P90: 10668 | Q90: 294 | R90: 144396042 | S90: 147467779 | T90: 3071737 | U90: 13957 | V90: 10345.77932 | W90: 10565.86509 | X90: 220.0857634
A91: 271 | B91: 1 | C91: BLOOMINGTON | D91: 104684879 | E91: 106248367 | F91: 1563488 | G91: 10604 | H91: 9872 | I91: 10019 | J91: 147 | K91: 104148097 | L91: 107285873 | M91: 3137776 | N91: 10459 | O91: 9957 | P91: 10257 | Q91: 300 | R91: 208832976 | S91: 213534240 | T91: 4701264 | U91: 21063 | V91: 9914.683378 | W91: 10137.88349 | X91: 223.2001139
A92: 272 | B92: 1 | C92: EDEN PRAIRIE | D92: 83775759 | E92: 84961231 | F92: 1185472 | G92: 8602 | H92: 9739 | I92: 9877 | J92: 138 | K92: 82293976 | L92: 84651765 | M92: 2357789 | N92: 8455 | O92: 9733 | P92: 10012 | Q92: 279 | R92: 166069735 | S92: 169612996 | T92: 3543261 | U92: 17057 | V92: 9736.163159 | W92: 9943.893768 | X92: 207.7306091
A93: 273 | B93: 1 | C93: EDINA | D93: 77999964 | E93: 79139560 | F93: 1139596 | G93: 8548 | H93: 9125 | I93: 9258 | J93: 133 | K93: 78430873 | L93: 80740966 | M93: 2310093 | N93: 8559 | O93: 9164 | P93: 9433 | Q93: 269 | R93: 156430837 | S93: 159880526 | T93: 3449689 | U93: 17107 | V93: 9144.2589 | W93: 9345.91255 | X93: 201.6536506
A94: 276 | B94: 1 | C94: MINNETONKA | D94: 97222682 | E94: 98620776 | F94: 1398094 | G94: 10550 | H94: 9215 | I94: 9348 | J94: 133 | K94: 98265065 | L94: 101125511 | M94: 2860446 | N94: 10652 | O94: 9225 | P94: 9494 | Q94: 269 | R94: 195487747 | S94: 199746287 | T94: 4258540 | U94: 21202 | V94: 9220.250307 | W94: 9421.105886 | X94: 200.8555797
A95: 277 | B95: 1 | C95: WESTONKA | D95: 21029156 | E95: 21339230 | F95: 310074 | G95: 2298 | H95: 9151 | I95: 9286 | J95: 135 | K95: 21097409 | L95: 21726344 | M95: 628935 | N95: 2296 | O95: 9189 | P95: 9463 | Q95: 274 | R95: 42126565 | S95: 43065574 | T95: 939009 | U95: 4594 | V95: 9169.909665 | W95: 9374.308663 | X95: 204.3989987
A96: 278 | B96: 1 | C96: ORONO | D96: 27214194 | E96: 27592894 | F96: 378700 | G96: 2810 | H96: 9685 | I96: 9820 | J96: 135 | K96: 27395455 | L96: 28162677 | M96: 767222 | N96: 2814 | O96: 9735 | P96: 10008 | Q96: 273 | R96: 54609649 | S96: 55755571 | T96: 1145922 | U96: 5624 | V96: 9710.108286 | W96: 9913.863976 | X96: 203.7556899
A97: 279 | B97: 1 | C97: OSSEO | D97: 210951819 | E97: 214044871 | F97: 3093052 | G97: 20654 | H97: 10214 | I97: 10364 | J97: 150 | K97: 213142334 | L97: 219434675 | M97: 6292341 | N97: 20751 | O97: 10272 | P97: 10575 | Q97: 303 | R97: 424094153 | S97: 433479546 | T97: 9385393 | U97: 41405 | V97: 10242.58309 | W97: 10469.25603 | X97: 226.6729381
A98: 280 | B98: 1 | C98: RICHFIELD | D98: 43040209 | E98: 43728953 | F98: 688744 | G98: 4183 | H98: 10288 | I98: 10453 | J98: 165 | K98: 41747236 | L98: 43100789 | M98: 1353553 | N98: 4003 | O98: 10428 | P98: 10766 | Q98: 338 | R98: 84787445 | S98: 86829742 | T98: 2042297 | U98: 8186 | V98: 10357.61605 | W98: 10607.10261 | X98: 249.4865624
A99: 281 | B99: 1 | C99: ROBBINSDALE | D99: 131701809 | E99: 133707522 | F99: 2005713 | G99: 12927 | H99: 10188 | I99: 10343 | J99: 155 | K99: 133758503 | L99: 137882625 | M99: 4124122 | N99: 13162 | O99: 10162 | P99: 10476 | Q99: 314 | R99: 265460312 | S99: 271590147 | T99: 6129835 | U99: 26089 | V99: 10175.18157 | W99: 10410.14017 | X99: 234.9586032
A100: 282 | B100: 1 | C100: ST. ANTHONY-NEW | D100: 16022613 | E100: 16267155 | F100: 244542 | G100: 1778 | H100: 9012 | I100: 9149 | J100: 137 | K100: 16009067 | L100: 16503708 | M100: 494641 | N100: 1776 | O100: 9014 | P100: 9293 | Q100: 279 | R100: 32031680 | S100: 32770863 | T100: 739183 | U100: 3554 | V100: 9012.853123 | W100: 9220.839336 | X100: 207.9862127
A101: 283 | B101: 1 | C101: ST. LOUIS PARK | D101: 47559368 | E101: 48220785 | F101: 661417 | G101: 4641 | H101: 10248 | I101: 10390 | J101: 142 | K101: 47632581 | L101: 48966505 | M101: 1333924 | N101: 4611 | O101: 10330 | P101: 10619 | Q101: 289 | R101: 95191949 | S101: 97187290 | T101: 1995341 | U101: 9252 | V101: 10288.79691 | W101: 10504.46282 | X101: 215.6659101
A102: 284 | B102: 1 | C102: WAYZATA | D102: 107786789 | E102: 109353293 | F102: 1566504 | G102: 11692 | H102: 9219 | I102: 9353 | J102: 134 | K102: 110292112 | L102: 113519720 | M102: 3227608 | N102: 11920 | O102: 9253 | P102: 9523 | Q102: 270 | R102: 218078901 | S102: 222873013 | T102: 4794112 | U102: 23612 | V102: 9235.93516 | W102: 9438.97226 | X102: 203.0370998
A103: 286 | B103: 1 | C103: BROOKLYN CENTER | D103: 24465857 | E103: 24891617 | F103: 425760 | G103: 2405 | H103: 10173 | I103: 10350 | J103: 177 | K103: 24465857 | L103: 25327931 | M103: 862074 | N103: 2405 | O103: 10173 | P103: 10531 | Q103: 358 | R103: 48931714 | S103: 50219548 | T103: 1287834 | U103: 4810 | V103: 10172.91351 | W103: 10440.65447 | X103: 267.7409563
A104: 294 | B104: 1 | C104: HOUSTON | D104: 17430370 | E104: 17728809 | F104: 298439 | G104: 2024 | H104: 8612 | I104: 8759 | J104: 147 | K104: 17412532 | L104: 18016105 | M104: 603573 | N104: 2025 | O104: 8599 | P104: 8897 | Q104: 298 | R104: 34842902 | S104: 35744914 | T104: 902012 | U104: 4049 | V104: 8605.310447 | W104: 8828.084465 | X104: 222.7740183
A105: 297 | B105: 1 | C105: SPRING GROVE | D105: 3355439 | E105: 3404894 | F105: 49455 | G105: 348 | H105: 9642 | I105: 9784 | J105: 142 | K105: 3332368 | L105: 3431825 | M105: 99457 | N105: 346 | O105: 9631 | P105: 9919 | Q105: 288 | R105: 6687807 | S105: 6836719 | T105: 148912 | U105: 694 | V105: 9636.60951 | W105: 9851.180115 | X105: 214.5706052
A106: 299 | B106: 1 | C106: CALEDONIA | D106: 5879778 | E106: 5977263 | F106: 97485 | G106: 685 | H106: 8584 | I106: 8726 | J106: 142 | K106: 5939373 | L106: 6138857 | M106: 199484 | N106: 691 | O106: 8595 | P106: 8884 | Q106: 289 | R106: 11819151 | S106: 12116120 | T106: 296969 | U106: 1376 | V106: 8589.499273 | W106: 8805.319767 | X106: 215.8204942
A107: 300 | B107: 1 | C107: LACRESCENT | D107: 9182992 | E107: 9338497 | F107: 155505 | G107: 1110 | H107: 8273 | I107: 8413 | J107: 140 | K107: 8948878 | L107: 9255413 | M107: 306535 | N107: 1071 | O107: 8356 | P107: 8642 | Q107: 286 | R107: 18131870 | S107: 18593910 | T107: 462040 | U107: 2181 | V107: 8313.558001 | W107: 8525.405777 | X107: 211.8477762
A108: 306 | B108: 1 | C108: LAPORTE | D108: 2951043 | E108: 3003956 | F108: 52913 | G108: 310 | H108: 9532 | I108: 9703 | J108: 171 | K108: 2990064 | L108: 3098586 | M108: 108522 | N108: 313 | O108: 9565 | P108: 9912 | Q108: 347 | R108: 5941107 | S108: 6102542 | T108: 161435 | U108: 623 | V108: 9536.287319 | W108: 9795.41252 | X108: 259.1252006
A109: 308 | B109: 1 | C109: NEVIS | D109: 5790687 | E109: 5889408 | F109: 98721 | G109: 625 | H109: 9262 | I109: 9420 | J109: 158 | K109: 5722703 | L109: 5920241 | M109: 197538 | N109: 616 | O109: 9287 | P109: 9608 | Q109: 321 | R109: 11513390 | S109: 11809649 | T109: 296259 | U109: 1241 | V109: 9277.510073 | W109: 9516.2361 | X109: 238.7260274
A110: 309 | B110: 1 | C110: PARK RAPIDS | D110: 14061705 | E110: 14306649 | F110: 244944 | G110: 1577 | H110: 8919 | I110: 9074 | J110: 155 | K110: 14139692 | L110: 14638324 | M110: 498632 | N110: 1582 | O110: 8940 | P110: 9255 | Q110: 315 | R110: 28201397 | S110: 28944973 | T110: 743576 | U110: 3159 | V110: 8927.317822 | W110: 9162.701171 | X110: 235.3833492
A111: 314 | B111: 1 | C111: BRAHAM | D111: 6703967 | E111: 6819079 | F111: 115112 | G111: 764 | H111: 8775 | I111: 8925 | J111: 150 | K111: 6681620 | L111: 6913791 | M111: 232171 | N111: 764 | O111: 8746 | P111: 9049 | Q111: 303 | R111: 13385587 | S111: 13732870 | T111: 347283 | U111: 1528 | V111: 8760.200916 | W111: 8987.480366 | X111: 227.2794503
A112: 316 | B112: 1 | C112: GREENWAY | D112: 9359020 | E112: 9522220 | F112: 163200 | G112: 1049 | H112: 8922 | I112: 9077 | J112: 155 | K112: 9345281 | L112: 9675209 | M112: 329928 | N112: 1048 | O112: 8917 | P112: 9232 | Q112: 315 | R112: 18704301 | S112: 19197429 | T112: 493128 | U112: 2097 | V112: 8919.552217 | W112: 9154.711016 | X112: 235.1587983
A113: 317 | B113: 1 | C113: DEER RIVER | D113: 9144670 | E113: 9305088 | F113: 160418 | G113: 931 | H113: 9827 | I113: 9999 | J113: 172 | K113: 9115694 | L113: 9439564 | M113: 323870 | N113: 922 | O113: 9891 | P113: 10243 | Q113: 352 | R113: 18260364 | S113: 18744652 | T113: 484288 | U113: 1853 | V113: 9854.486778 | W113: 10115.84026 | X113: 261.3534808
A114: 318 | B114: 1 | C114: GRAND RAPIDS | D114: 35729882 | E114: 36341578 | F114: 611696 | G114: 3981 | H114: 8975 | I114: 9129 | J114: 154 | K114: 35951955 | L114: 37198639 | M114: 1246684 | N114: 4011 | O114: 8963 | P114: 9274 | Q114: 311 | R114: 71681837 | S114: 73540217 | T114: 1858380 | U114: 7992 | V114: 8969.198824 | W114: 9201.728854 | X114: 232.53003
A115: 319 | B115: 1 | C115: NASHWAUK-KEEWATI | D115: 5471197 | E115: 5565763 | F115: 94566 | G115: 553 | H115: 9894 | I115: 10065 | J115: 171 | K115: 5373811 | L115: 5561930 | M115: 188119 | N115: 539 | O115: 9970 | P115: 10319 | Q115: 349 | R115: 10845008 | S115: 11127693 | T115: 282685 | U115: 1092 | V115: 9931.326007 | W115: 10190.19505 | X115: 258.8690476
A116: 323 | B116: 2 | C116: FRANCONIA | D116: 311562 | E116: 315684 | F116: 4122 | G116: 30 | H116: 10385 | I116: 10523 | J116: 138 | K116: 259166 | L116: 266252 | M116: 7086 | N116: 24 | O116: 10799 | P116: 11094 | Q116: 295 | R116: 570728 | S116: 581936 | T116: 11208 | U116: 54 | V116: 10569.03704 | W116: 10776.59259 | X116: 207.5555556
A117: 330 | B117: 1 | C117: HERON LAKE-OKABE | D117: 2817802 | E117: 2859396 | F117: 41594 | G117: 248 | H117: 11369 | I117: 11537 | J117: 168 | K117: 2768007 | L117: 2850775 | M117: 82768 | N117: 243 | O117: 11398 | P117: 11739 | Q117: 341 | R117: 5585809 | S117: 5710171 | T117: 124362 | U117: 491 | V117: 11376.39308 | W117: 11629.67617 | X117: 253.2830957
A118: 332 | B118: 1 | C118: MORA | D118: 13999069 | E118: 14241162 | F118: 242093 | G118: 1600 | H118: 8749 | I118: 8901 | J118: 152 | K118: 13794472 | L118: 14277648 | M118: 483176 | N118: 1575 | O118: 8758 | P118: 9065 | Q118: 307 | R118: 27793541 | S118: 28518810 | T118: 725269 | U118: 3175 | V118: 8753.871181 | W118: 8982.302362 | X118: 228.4311811
A119: 333 | B119: 1 | C119: OGILVIE | D119: 4187786 | E119: 4257614 | F119: 69828 | G119: 466 | H119: 8987 | I119: 9137 | J119: 150 | K119: 4257610 | L119: 4401388 | M119: 143778 | N119: 473 | O119: 9001 | P119: 9305 | Q119: 304 | R119: 8445396 | S119: 8659002 | T119: 213606 | U119: 939 | V119: 8994.031949 | W119: 9221.514377 | X119: 227.4824281
A120: 345 | B120: 1 | C120: NEW LONDON-SPICE | D120: 12110418 | E120: 12316484 | F120: 206066 | G120: 1471 | H120: 8233 | I120: 8373 | J120: 140 | K120: 12199375 | L120: 12619589 | M120: 420214 | N120: 1480 | O120: 8243 | P120: 8527 | Q120: 284 | R120: 24309793 | S120: 24936073 | T120: 626280 | U120: 2951 | V120: 8237.815317 | W120: 8450.041681 | X120: 212.2263639
A121: 347 | B121: 1 | C121: WILLMAR | D121: 40630723 | E121: 41319094 | F121: 688371 | G121: 4184 | H121: 9710 | I121: 9875 | J121: 165 | K121: 41092082 | L121: 42497517 | M121: 1405435 | N121: 4223 | O121: 9730 | P121: 10062 | Q121: 332 | R121: 81722805 | S121: 83816611 | T121: 2093806 | U121: 8407 | V121: 9720.804687 | W121: 9969.85976 | X121: 249.0550732
A122: 356 | B122: 1 | C122: LANCASTER | D122: 2033330 | E122: 2055143 | F122: 21813 | G122: 144 | H122: 14120 | I122: 14272 | J122: 152 | K122: 2023361 | L122: 2067227 | M122: 43866 | N122: 144 | O122: 14051 | P122: 14356 | Q122: 305 | R122: 4056691 | S122: 4122370 | T122: 65679 | U122: 288 | V122: 14085.73264 | W122: 14313.78472 | X122: 228.0520833
A123: 361 | B123: 1 | C123: INTERNATIONAL FA | D123: 9293317 | E123: 9452264 | F123: 158947 | G123: 1068 | H123: 8702 | I123: 8850 | J123: 148 | K123: 9133709 | L123: 9450233 | M123: 316524 | N123: 1047 | O123: 8724 | P123: 9026 | Q123: 302 | R123: 18427026 | S123: 18902497 | T123: 475471 | U123: 2115 | V123: 8712.541844 | W123: 8937.350827 | X123: 224.8089835
A124: 362 | B124: 1 | C124: LITTLEFORK-BIG F | D124: 3645921 | E124: 3712901 | F124: 66980 | G124: 333 | H124: 10949 | I124: 11150 | J124: 201 | K124: 3556630 | L124: 3689039 | M124: 132409 | N124: 321 | O124: 11080 | P124: 11492 | Q124: 412 | R124: 7202551 | S124: 7401940 | T124: 199389 | U124: 654 | V124: 11013.07492 | W124: 11317.95107 | X124: 304.8761468
A125: 363 | B125: 1 | C125: SOUTH KOOCHICHIN | D125: 3394718 | E125: 3459092 | F125: 64374 | G125: 241 | H125: 14086 | I125: 14353 | J125: 267 | K125: 3451149 | L125: 3583431 | M125: 132282 | N125: 247 | O125: 13972 | P125: 14508 | Q125: 536 | R125: 6845867 | S125: 7042523 | T125: 196656 | U125: 488 | V125: 14028.41598 | W125: 14431.39959 | X125: 402.9836066
A126: 378 | B126: 1 | C126: DAWSON | D126: 4983570 | E126: 5064158 | F126: 80588 | G126: 543 | H126: 9178 | I126: 9326 | J126: 148 | K126: 4895941 | L126: 5056326 | M126: 160385 | N126: 530 | O126: 9238 | P126: 9540 | Q126: 302 | R126: 9879511 | S126: 10120484 | T126: 240973 | U126: 1073 | V126: 9207.372787 | W126: 9431.951538 | X126: 224.5787512
A127: 381 | B127: 1 | C127: LAKE SUPERIOR | D127: 12675094 | E127: 12892243 | F127: 217149 | G127: 1360 | H127: 9320 | I127: 9480 | J127: 160 | K127: 12669322 | L127: 13108521 | M127: 439199 | N127: 1365 | O127: 9282 | P127: 9603 | Q127: 321 | R127: 25344416 | S127: 26000764 | T127: 656348 | U127: 2725 | V127: 9300.703119 | W127: 9541.564771 | X127: 240.8616514
A128: 390 | B128: 1 | C128: LAKE OF THE WOOD | D128: 4945944 | E128: 5032373 | F128: 86429 | G128: 464 | H128: 10659 | I128: 10846 | J128: 187 | K128: 5068868 | L128: 5242691 | M128: 173823 | N128: 459 | O128: 11043 | P128: 11422 | Q128: 379 | R128: 10014812 | S128: 10275064 | T128: 260252 | U128: 923 | V128: 10850.28386 | W128: 11132.24702 | X128: 281.9631636
A129: 391 | B129: 1 | C129: CLEVELAND | D129: 4562796 | E129: 4633035 | F129: 70239 | G129: 497 | H129: 9181 | I129: 9322 | J129: 141 | K129: 4549627 | L129: 4691427 | M129: 141800 | N129: 496 | O129: 9173 | P129: 9459 | Q129: 286 | R129: 9112423 | S129: 9324462 | T129: 212039 | U129: 993 | V129: 9176.659617 | W129: 9390.193353 | X129: 213.5337362
A130: 402 | B130: 1 | C130: HENDRICKS | D130: 1462288 | E130: 1480951 | F130: 18663 | G130: 111 | H130: 13150 | I130: 13318 | J130: 168 | K130: 1471334 | L130: 1509411 | M130: 38077 | N130: 110 | O130: 13351 | P130: 13697 | Q130: 346 | R130: 2933622 | S130: 2990362 | T130: 56740 | U130: 221 | V130: 13274.30769 | W130: 13531.04977 | X130: 256.7420814
A131: 403 | B131: 1 | C131: IVANHOE | D131: 1500962 | E131: 1522512 | F131: 21550 | G131: 150 | H131: 10006 | I131: 10150 | J131: 144 | K131: 1554876 | L131: 1600070 | M131: 45194 | N131: 155 | O131: 10031 | P131: 10323 | Q131: 292 | R131: 3055838 | S131: 3122582 | T131: 66744 | U131: 305 | V131: 10019.14098 | W131: 10237.97377 | X131: 218.8327869
A132: 404 | B132: 1 | C132: LAKE BENTON | D132: 2103607 | E132: 2131909 | F132: 28302 | G132: 200 | H132: 10518 | I132: 10660 | J132: 142 | K132: 2014191 | L132: 2069366 | M132: 55175 | N132: 190 | O132: 10601 | P132: 10891 | Q132: 290 | R132: 4117798 | S132: 4201275 | T132: 83477 | U132: 390 | V132: 10558.45641 | W132: 10772.5 | X132: 214.0435897
A133: 413 | B133: 1 | C133: MARSHALL | D133: 22157790 | E133: 22530214 | F133: 372424 | G133: 2506 | H133: 8842 | I133: 8991 | J133: 149 | K133: 22319902 | L133: 23079073 | M133: 759171 | N133: 2523 | O133: 8847 | P133: 9147 | Q133: 300 | R133: 44477692 | S133: 45609287 | T133: 1131595 | U133: 5029 | V133: 8844.241798 | W133: 9069.255717 | X133: 225.0139193
A134: 414 | B134: 1 | C134: MINNEOTA | D134: 4130229 | E134: 4199024 | F134: 68795 | G134: 456 | H134: 9058 | I134: 9208 | J134: 150 | K134: 4106668 | L134: 4245160 | M134: 138492 | N134: 453 | O134: 9065 | P134: 9371 | Q134: 306 | R134: 8236897 | S134: 8444184 | T134: 207287 | U134: 909 | V134: 9061.492849 | W134: 9289.531353 | X134: 228.0385039
A135: 415 | B135: 1 | C135: LYND | D135: 2044363 | E135: 2075532 | F135: 31169 | G135: 194 | H135: 10527 | I135: 10688 | J135: 161 | K135: 1840465 | L135: 1898066 | M135: 57601 | N135: 164 | O135: 11209 | P135: 11559 | Q135: 350 | R135: 3884828 | S135: 3973598 | T135: 88770 | U135: 358 | V135: 10851.47486 | W135: 11099.43575 | X135: 247.9608939
A136: 423 | B136: 1 | C136: HUTCHINSON | D136: 24069844 | E136: 24464390 | F136: 394546 | G136: 2760 | H136: 8721 | I136: 8864 | J136: 143 | K136: 23643943 | L136: 24429047 | M136: 785104 | N136: 2704 | O136: 8744 | P136: 9034 | Q136: 290 | R136: 47713787 | S136: 48893437 | T136: 1179650 | U136: 5464 | V136: 8732.391471 | W136: 8948.28642 | X136: 215.8949488
A137: 424 | B137: 1 | C137: LESTER PRAIRIE | D137: 4106249 | E137: 4168319 | F137: 62070 | G137: 442 | H137: 9290 | I137: 9431 | J137: 141 | K137: 4143478 | L137: 4270295 | M137: 126817 | N137: 444 | O137: 9332 | P137: 9618 | Q137: 286 | R137: 8249727 | S137: 8438614 | T137: 188887 | U137: 886 | V137: 9311.204289 | W137: 9524.395034 | X137: 213.1907449
A138: 432 | B138: 1 | C138: MAHNOMEN | D138: 7040677 | E138: 7167968 | F138: 127291 | G138: 609 | H138: 11561 | I138: 11770 | J138: 209 | K138: 7021016 | L138: 7278263 | M138: 257247 | N138: 606 | O138: 11586 | P138: 12010 | Q138: 424 | R138: 14061693 | S138: 14446231 | T138: 384538 | U138: =G138+N138 -> 1215 | V138: 11573.40988 | W138: 11889.90206 | X138: 316.4921811
A139: 435 | B139: 1 | C139: WAUBUN | D139: 6297295 | E139: 6409445 | F139: 112150 | G139: 577 | H139: 10914 | I139: 11108 | J139: 194 | K139: 6348063 | L139: 6576915 | M139: 228852 | N139: 584 | O139: 10870 | P139: 11262 | Q139: 392 | R139: =D139+K139 -> 12645358 | S139: 12986360 | T139: 341002 | U139: 1161 | V139: =R139/U139 -> 10891.78122 | W139: =S139/U139 -> 11185.49526 | X139: =T139/U139 -> 293.7140396
A140: 441 | B140: 1 | C140: MARSHALL CTY CENTRAL | D140: 4354497 | E140: 4425272 | F140: 70775 | G140: 387 | H140: 11252 | I140: 11435 | J140: 183 | K140: 4292719 | L140: 4433976 | M140: 141257 | N140: 381 | O140: 11267 | P140: 11638 | Q140: 371 | R140: 8647216 | S140: 8859248 | T140: 212032 | U140: 768 | V140: 11259.39583 | W140: 11535.47917 | X140: 276.0833333
A141: 447 | B141: 1 | C141: GRYGLA | D141: 2103905 | E141: 2141168 | F141: 37263 | G141: 154 | H141: 13662 | I141: 13904 | J141: 242 | K141: 2097927 | L141: 2172993 | M141: 75066 | N141: 156 | O141: 13448 | P141: 13929 | Q141: 481 | R141: 4201832 | S141: 4314161 | T141: 112329 | U141: 310 | V141: 13554.29677 | W141: 13916.64839 | X141: 362.3516129
A142: 458 | B142: 1 | C142: TRUMAN | D142: 2491126 | E142: 2524139 | F142: 33013 | G142: 219 | H142: 11375 | I142: 11526 | J142: 151 | K142: 2471602 | L142: 2538025 | M142: 66423 | N142: 216 | O142: 11443 | P142: 11750 | Q142: 307 | R142: 4962728 | S142: 5062164 | T142: 99436 | U142: 435 | V142: 11408.57011 | W142: 11637.15862 | X142: 228.5885057
A143: 463 | B143: 1 | C143: EDEN VALLEY | D143: 8015296 | E143: 8152043 | F143: 136747 | G143: 962 | H143: 8332 | I143: 8474 | J143: 142 | K143: 7884387 | L143: 8157035 | M143: 272648 | N143: 938 | O143: 8406 | P143: 8696 | Q143: 290 | R143: 15899683 | S143: 16309078 | T143: 409395 | U143: 1900 | V143: 8368.254211 | W143: 8583.725263 | X143: 215.4710526
A144: 465 | B144: 1 | C144: LITCHFIELD | D144: 13215181 | E144: 13441761 | F144: 226580 | G144: 1548 | H144: 8537 | I144: 8683 | J144: 146 | K144: 13105686 | L144: 13560683 | M144: 454997 | N144: 1526 | O144: 8588 | P144: 8886 | Q144: 298 | R144: 26320867 | S144: 27002444 | T144: 681577 | U144: 3074 | V144: 8562.41607 | W144: 8784.139232 | X144: 221.723162
A145: 466 | B145: 1 | C145: DASSEL-COKATO | D145: 18457851 | E145: 18767024 | F145: 309173 | G145: 2214 | H145: 8337 | I145: 8477 | J145: 140 | K145: 18297396 | L145: 18916946 | M145: 619550 | N145: 2193 | O145: 8344 | P145: 8626 | Q145: 282 | R145: 36755247 | S145: 37683970 | T145: 928723 | U145: 4407 | V145: 8340.196732 | W145: 8550.934876 | X145: 210.7381439
A146: 473 | B146: 1 | C146: ISLE | D146: 4544914 | E146: 4617838 | F146: 72924 | G146: 452 | H146: 10063 | I146: 10225 | J146: 162 | K146: 4537911 | L146: 4685273 | M146: 147362 | N146: 452 | O146: 10048 | P146: 10374 | Q146: 326 | R146: 9082825 | S146: 9303111 | T146: 220286 | U146: 904 | V146: 10047.37279 | W146: 10291.05199 | X146: 243.6792035
A147: 477 | B147: 1 | C147: PRINCETON | D147: 25850963 | E147: 26292263 | F147: 441300 | G147: 3119 | H147: 8288 | I147: 8430 | J147: 142 | K147: 25778466 | L147: 26669350 | M147: 890884 | N147: 3104 | O147: 8305 | P147: 8592 | Q147: 287 | R147: 51629429 | S147: 52961613 | T147: 1332184 | U147: 6223 | V147: 8296.549735 | W147: 8510.623976 | X147: 214.0742407
A148: 480 | B148: 1 | C148: ONAMIA | D148: 6733532 | E148: 6850812 | F148: 117280 | G148: 633 | H148: 10631 | I148: 10816 | J148: 185 | K148: 6715790 | L148: 6952837 | M148: 237047 | N148: 631 | O148: 10636 | P148: 11012 | Q148: 376 | R148: 13449322 | S148: 13803649 | T148: 354327 | U148: 1264 | V148: 10640.28639 | W148: 10920.60839 | X148: 280.3219937
A149: 482 | B149: 1 | C149: LITTLE FALLS | D149: 20690221 | E149: 21038031 | F149: 347810 | G149: 2306 | H149: 8972 | I149: 9123 | J149: 151 | K149: 20497067 | L149: 21194655 | M149: 697588 | N149: 2283 | O149: 8978 | P149: 9284 | Q149: 306 | R149: 41187288 | S149: 42232686 | T149: 1045398 | U149: 4589 | V149: 8975.220745 | W149: 9203.025932 | X149: 227.8051863
A150: 484 | B150: 1 | C150: PIERZ | D150: 9351926 | E150: 9517221 | F150: 165295 | G150: 1122 | H150: 8335 | I150: 8482 | J150: 147 | K150: 9313554 | L150: 9646882 | M150: 333328 | N150: 1115 | O150: 8353 | P150: 8652 | Q150: 299 | R150: 18665480 | S150: 19164103 | T150: 498623 | U150: 2237 | V150: 8343.978543 | W150: 8566.87662 | X150: 222.8980778
A151: 485 | B151: 1 | C151: ROYALTON | D151: 7754997 | E151: 7887034 | F151: 132037 | G151: 937 | H151: 8276 | I151: 8417 | J151: 141 | K151: 7766542 | L151: 8034242 | M151: 267700 | N151: 938 | O151: 8280 | P151: 8565 | Q151: 285 | R151: 15521539 | S151: 15921276 | T151: 399737 | U151: 1875 | V151: 8278.154133 | W151: 8491.3472 | X151: 213.1930667
A152: 486 | B152: 1 | C152: SWANVILLE | D152: 2948312 | E152: 2994665 | F152: 46353 | G152: 317 | H152: 9301 | I152: 9447 | J152: 146 | K152: 2908986 | L152: 3001612 | M152: 92626 | N152: 312 | O152: 9324 | P152: 9621 | Q152: 297 | R152: 5857298 | S152: 5996277 | T152: 138979 | U152: 629 | V152: 9312.079491 | W152: 9533.031797 | X152: 220.9523052
A153: 487 | B153: 1 | C153: UPSALA | D153: 3331381 | E153: 3384836 | F153: 53455 | G153: 372 | H153: 8955 | I153: 9099 | J153: 144 | K153: 3348957 | L153: 3457759 | M153: 108802 | N153: 374 | O153: 8954 | P153: 9245 | Q153: 291 | R153: 6680338 | S153: 6842595 | T153: 162257 | U153: 746 | V153: 8954.876676 | W153: 9172.379357 | X153: 217.502681
A154: 492 | B154: 1 | C154: AUSTIN | D154: 44460529 | E154: 45216960 | F154: 756431 | G154: 4782 | H154: 9297 | I154: 9455 | J154: 158 | K154: 44133511 | L154: 45654984 | M154: 1521473 | N154: 4726 | O154: 9338 | P154: 9660 | Q154: 322 | R154: 88594040 | S154: 90871944 | T154: 2277904 | U154: 9508 | V154: 9317.841817 | W154: 9557.419436 | X154: 239.5776188
A155: 495 | B155: 1 | C155: GRAND MEADOW | D155: 3876250 | E155: 3936626 | F155: 60376 | G155: 414 | H155: 9363 | I155: 9509 | J155: 146 | K155: 3879193 | L155: 4001049 | M155: 121856 | N155: 412 | O155: 9416 | P155: 9711 | Q155: 295 | R155: 7755443 | S155: 7937675 | T155: 182232 | U155: 826 | V155: 9389.156174 | W155: 9609.776029 | X155: 220.6198547
A156: 497 | B156: 1 | C156: LYLE | D156: 2398353 | E156: 2438998 | F156: 40645 | G156: 246 | H156: 9757 | I156: 9923 | J156: 166 | K156: 2334542 | L156: 2414790 | M156: 80248 | N156: 239 | O156: 9776 | P156: 10112 | Q156: 336 | R156: 4732895 | S156: 4853788 | T156: 120893 | U156: 485 | V156: 9758.546392 | W156: 10007.81031 | X156: 249.2639175
A157: 499 | B157: 1 | C157: LEROY | D157: 2846698 | E157: 2887536 | F157: 40838 | G157: 273 | H157: 10427 | I157: 10577 | J157: 150 | K157: 2818464 | L157: 2900297 | M157: 81833 | N157: 270 | O157: 10439 | P157: 10742 | Q157: 303 | R157: 5665162 | S157: 5787833 | T157: 122671 | U157: 543 | V157: 10433.07919 | W157: 10658.99263 | X157: 225.9134438
A158: 500 | B158: 1 | C158: SOUTHLAND | D158: 4146454 | E158: 4206264 | F158: 59810 | G158: 407 | H158: 10188 | I158: 10335 | J158: 147 | K158: 3954707 | L158: 4070346 | M158: 115639 | N158: 386 | O158: 10245 | P158: 10545 | Q158: 300 | R158: 8101161 | S158: 8276610 | T158: 175449 | U158: 793 | V158: 10215.83985 | W158: 10437.08701 | X158: 221.2471627
A159: 505 | B159: 1 | C159: FULDA | D159: 3584389 | E159: 3632380 | F159: 47991 | G159: 300 | H159: 11948 | I159: 12108 | J159: 160 | K159: 3476932 | L159: 3570972 | M159: 94040 | N159: 292 | O159: 11907 | P159: 12229 | Q159: 322 | R159: 7061321 | S159: 7203352 | T159: 142031 | U159: 592 | V159: 11927.90709 | W159: 12167.82432 | X159: 239.9172297
A160: 507 | B160: 1 | C160: NICOLLET | D160: 3467563 | E160: 3519131 | F160: 51568 | G160: 366 | H160: 9474 | I160: 9615 | J160: 141 | K160: 3444173 | L160: 3547768 | M160: 103595 | N160: 363 | O160: 9488 | P160: 9773 | Q160: 285 | R160: 6911736 | S160: 7066899 | T160: 155163 | U160: 729 | V160: 9481.119342 | W160: 9693.962963 | X160: 212.8436214
A161: 508 | B161: 1 | C161: ST. PETER | D161: 18489441 | E161: 18795127 | F161: 305686 | G161: 2071 | H161: 8928 | I161: 9075 | J161: 147 | K161: 18467656 | L161: 19086439 | M161: 618783 | N161: 2067 | O161: 8935 | P161: 9234 | Q161: 299 | R161: 36957097 | S161: 37881566 | T161: 924469 | U161: 4138 | V161: 8931.149589 | W161: 9154.559207 | X161: 223.4096182
A162: 511 | B162: 1 | C162: ADRIAN | D162: 5012121 | E162: 5092117 | F162: 79996 | G162: 549 | H162: 9130 | I162: 9275 | J162: 145 | K162: 5056716 | L162: 5220170 | M162: 163454 | N162: 551 | O162: 9177 | P162: 9474 | Q162: 297 | R162: 10068837 | S162: 10312287 | T162: 243450 | U162: 1100 | V162: 9153.488182 | W162: 9374.806364 | X162: 221.3181818
A163: 514 | B163: 1 | C163: ELLSWORTH | D163: 1433974 | E163: 1454894 | F163: 20920 | G163: 136 | H163: 10544 | I163: 10698 | J163: 154 | K163: 1431136 | L163: 1473405 | M163: 42269 | N163: 134 | O163: 10680 | P163: 10996 | Q163: 316 | R163: 2865110 | S163: 2928299 | T163: 63189 | U163: 270 | V163: 10611.51852 | W163: 10845.55185 | X163: 234.0333333
A164: 518 | B164: 1 | C164: WORTHINGTON | D164: 34033703 | E164: 34590382 | F164: 556679 | G164: 3236 | H164: 10517 | I164: 10689 | J164: 172 | K164: 34785760 | L164: 35937106 | M164: 1151346 | N164: 3316 | O164: 10490 | P164: 10837 | Q164: 347 | R164: 68819463 | S164: 70527488 | T164: 1708025 | U164: 6552 | V164: 10503.58104 | W164: 10764.26862 | X164: 260.6875763
A165: 531 | B165: 1 | C165: BYRON | D165: 16353723 | E165: 16634748 | F165: 281025 | G165: 2081 | H165: 7859 | I165: 7994 | J165: 135 | K165: 16722145 | L165: 17303812 | M165: 581667 | N165: 2126 | O165: 7866 | P165: 8139 | Q165: 273 | R165: 33075868 | S165: 33938560 | T165: 862692 | U165: 4207 | V165: 7862.103161 | W165: 8067.16425 | X165: 205.0610887
A166: 533 | B166: 1 | C166: DOVER-EYOTA | D166: 10149341 | E166: 10313773 | F166: 164432 | G166: 1190 | H166: 8529 | I166: 8667 | J166: 138 | K166: 10143843 | L166: 10476521 | M166: 332678 | N166: 1191 | O166: 8517 | P166: 8796 | Q166: 279 | R166: 20293184 | S166: 20790294 | T166: 497110 | U166: 2381 | V166: 8522.966821 | W166: 8731.748845 | X166: 208.7820244
A167: 534 | B167: 1 | C167: STEWARTVILLE | D167: 16875933 | E167: 17161933 | F167: 286000 | G167: 2076 | H167: 8129 | I167: 8267 | J167: 138 | K167: 16890797 | L167: 17470402 | M167: 579605 | N167: 2072 | O167: 8152 | P167: 8432 | Q167: 280 | R167: 33766730 | S167: 34632335 | T167: 865605 | U167: 4148 | V167: 8140.484571 | W167: 8349.164658 | X167: 208.6800868
A168: 535 | B168: 1 | C168: ROCHESTER | D168: 162827501 | E168: 165364610 | F168: 2537109 | G168: 17352 | H168: 9384 | I168: 9530 | J168: 146 | K168: 163765117 | L168: 168930029 | M168: 5164912 | N168: 17445 | O168: 9388 | P168: 9684 | Q168: 296 | R168: 326592618 | S168: 334294639 | T168: 7702021 | U168: 34797 | V168: 9385.654453 | W168: 9606.995977 | X168: 221.3415237
A169: 542 | B169: 1 | C169: BATTLE LAKE | D169: 3924689 | E169: 3989585 | F169: 64896 | G169: 436 | H169: 9002 | I169: 9150 | J169: 148 | K169: 3992341 | L169: 4120482 | M169: 128141 | N169: 426 | O169: 9372 | P169: 9672 | Q169: 300 | R169: 7917030 | S169: 8110067 | T169: 193037 | U169: 862 | V169: 9184.489559 | W169: 9408.430394 | X169: 223.9408353
A170: 544 | B170: 1 | C170: FERGUS FALLS | D170: 20580156 | E170: 20931962 | F170: 351806 | G170: 2407 | H170: 8550 | I170: 8696 | J170: 146 | K170: 20275937 | L170: 20977334 | M170: 701397 | N170: 2387 | O170: 8494 | P170: 8788 | Q170: 294 | R170: 40856093 | S170: 41909296 | T170: 1053203 | U170: 4794 | V170: 8522.338965 | W170: 8742.030872 | X170: 219.6919065
A171: 545 | B171: 1 | C171: HENNING | D171: 3634560 | E171: 3691306 | F171: 56746 | G171: 355 | H171: 10238 | I171: 10398 | J171: 160 | K171: 3578659 | L171: 3691904 | M171: 113245 | N171: 348 | O171: 10284 | P171: 10609 | Q171: 325 | R171: 7213219 | S171: 7383210 | T171: 169991 | U171: 703 | V171: 10260.62447 | W171: 10502.43243 | X171: 241.8079659
A172: 547 | B172: 1 | C172: PARKERS PRAIRIE | D172: 5125024 | E172: 5208063 | F172: 83039 | G172: 544 | H172: 9421 | I172: 9574 | J172: 153 | K172: 5029554 | L172: 5194454 | M172: 164900 | N172: 532 | O172: 9454 | P172: 9764 | Q172: 310 | R172: 10154578 | S172: 10402517 | T172: 247939 | U172: 1076 | V172: 9437.340149 | W172: 9667.766729 | X172: 230.4265799
A173: 548 | B173: 1 | C173: PELICAN RAPIDS | D173: 8340610 | E173: 8482652 | F173: 142042 | G173: 897 | H173: 9300 | I173: 9459 | J173: 159 | K173: 8260616 | L173: 8545453 | M173: 284837 | N173: 884 | O173: 9347 | P173: 9669 | Q173: 322 | R173: 16601226 | S173: 17028105 | T173: 426879 | U173: 1781 | V173: 9321.294778 | W173: 9560.979787 | X173: 239.6850084
A174: 549 | B174: 1 | C174: PERHAM | D174: 12341796 | E174: 12549775 | F174: 207979 | G174: 1406 | H174: 8778 | I174: 8926 | J174: 148 | K174: 12271788 | L174: 12690106 | M174: 418318 | N174: 1403 | O174: 8747 | P174: 9045 | Q174: 298 | R174: 24613584 | S174: 25239881 | T174: 626297 | U174: 2809 | V174: 8762.400854 | W174: 8985.361695 | X174: 222.9608402
A175: 550 | B175: 1 | C175: UNDERWOOD | D175: 4702367 | E175: 4786588 | F175: 84221 | G175: 557 | H175: 8442 | I175: 8594 | J175: 152 | K175: 4699885 | L175: 4870270 | M175: 170385 | N175: 559 | O175: 8408 | P175: 8712 | Q175: 304 | R175: 9402252 | S175: 9656858 | T175: 254606 | U175: 1116 | V175: 8424.956989 | W175: 8653.098566 | X175: 228.1415771
A176: 553 | B176: 1 | C176: NEW YORK MILLS | D176: 6455160 | E176: 6565216 | F176: 110056 | G176: 747 | H176: 8641 | I176: 8789 | J176: 148 | K176: 6422570 | L176: 6644199 | M176: 221629 | N176: 743 | O176: 8644 | P176: 8942 | Q176: 298 | R176: 12877730 | S176: 13209415 | T176: 331685 | U176: 1490 | V176: 8642.771812 | W176: 8865.379195 | X176: 222.6073826
A177: 561 | B177: 1 | C177: GOODRIDGE | D177: 2603229 | E177: 2642493 | F177: 39264 | G177: 206 | H177: 12637 | I177: 12828 | J177: 191 | K177: 2684266 | L177: 2766063 | M177: 81797 | N177: 212 | O177: 12662 | P177: 13047 | Q177: 385 | R177: 5287495 | S177: 5408556 | T177: 121061 | U177: 418 | V177: 12649.50957 | W177: 12939.12919 | X177: 289.6196172
A178: 564 | B178: 1 | C178: THIEF RIVER FALL | D178: 16540231 | E178: 16818020 | F178: 277789 | G178: 1900 | H178: 8705 | I178: 8852 | J178: 147 | K178: 16409306 | L178: 16968037 | M178: 558731 | N178: 1900 | O178: 8636 | P178: 8931 | Q178: 295 | R178: 32949537 | S178: 33786057 | T178: 836520 | U178: 3800 | V178: 8670.930789 | W178: 8891.067632 | X178: 220.1368421
A179: 577 | B179: 1 | C179: WILLOW RIVER | D179: 4013271 | E179: 4080565 | F179: 67294 | G179: 420 | H179: 9555 | I179: 9716 | J179: 161 | K179: 3944134 | L179: 4078153 | M179: 134019 | N179: 408 | O179: 9667 | P179: 9995 | Q179: 328 | R179: 7957405 | S179: 8158718 | T179: 201313 | U179: 828 | V179: 9610.392512 | W179: 9853.524155 | X179: 243.1316425
A180: 578 | B180: 1 | C180: PINE CITY | D180: 14062516 | E180: 14299098 | F180: 236582 | G180: 1588 | H180: 8855 | I180: 9004 | J180: 149 | K180: 14131849 | L180: 14608570 | M180: 476721 | N180: 1574 | O180: 8978 | P180: 9281 | Q180: 303 | R180: 28194365 | S180: 28907668 | T180: 713303 | U180: 3162 | V180: 8916.623972 | W180: 9142.209994 | X180: 225.5860215
A181: 581 | B181: 1 | C181: EDGERTON | D181: 3897950 | E181: 3961154 | F181: 63204 | G181: 392 | H181: 9944 | I181: 10105 | J181: 161 | K181: 3980396 | L181: 4110681 | M181: 130285 | N181: 401 | O181: 9926 | P181: 10251 | Q181: 325 | R181: 7878346 | S181: 8071835 | T181: 193489 | U181: 793 | V181: 9934.862547 | W181: 10178.85876 | X181: 243.9962169
A182: 592 | B182: 1 | C182: CLIMAX | D182: 2128630 | E182: 2162385 | F182: 33755 | G182: 181 | H182: 11734 | I182: 11921 | J182: 187 | K182: 2115628 | L182: 2183484 | M182: 67856 | N182: 181 | O182: 11663 | P182: 12037 | Q182: 374 | R182: 4244258 | S182: 4345869 | T182: 101611 | U182: 362 | V182: 11724.46961 | W182: 12005.16298 | X182: 280.6933702
A183: 593 | B183: 1 | C183: CROOKSTON | D183: 12053943 | E183: 12248564 | F183: 194621 | G183: 1252 | H183: 9628 | I183: 9783 | J183: 155 | K183: 11885043 | L183: 12274114 | M183: 389071 | N183: 1229 | O183: 9670 | P183: 9987 | Q183: 317 | R183: 23938986 | S183: 24522678 | T183: 583692 | U183: 2481 | V183: 9648.926239 | W183: 9884.191052 | X183: 235.2648126
A184: 595 | B184: 1 | C184: EAST GRAND FORKS | D184: 15821991 | E184: 16093443 | F184: 271452 | G184: 1907 | H184: 8297 | I184: 8439 | J184: 142 | K184: 15991638 | L184: 16547072 | M184: 555434 | N184: 1931 | O184: 8282 | P184: 8569 | Q184: 287 | R184: 31813629 | S184: 32640515 | T184: 826886 | U184: 3838 | V184: 8289.116467 | W184: 8504.563575 | X184: 215.4471079
A185: 599 | B185: 1 | C185: FERTILE-BELTRAMI | D185: 4676125 | E185: 4751515 | F185: 75390 | G185: 454 | H185: 10300 | I185: 10466 | J185: 166 | K185: 4641126 | L185: 4792449 | M185: 151323 | N185: 451 | O185: 10291 | P185: 10626 | Q185: 335 | R185: 9317251 | S185: 9543964 | T185: 226713 | U185: 905 | V185: 10295.30497 | W185: 10545.81657 | X185: 250.5116022
A186: 600 | B186: 1 | C186: FISHER | D186: 2430552 | E186: 2470130 | F186: 39578 | G186: 256 | H186: 9494 | I186: 9649 | J186: 155 | K186: 2308598 | L186: 2384775 | M186: 76177 | N186: 241 | O186: 9579 | P186: 9895 | Q186: 316 | R186: 4739150 | S186: 4854905 | T186: 115755 | U186: 497 | V186: 9535.513078 | W186: 9768.420523 | X186: 232.9074447
A187: 601 | B187: 1 | C187: FOSSTON | D187: 6335720 | E187: 6439934 | F187: 104214 | G187: 649 | H187: 9762 | I187: 9923 | J187: 161 | K187: 6288035 | L187: 6497332 | M187: 209297 | N187: 642 | O187: 9794 | P187: 10120 | Q187: 326 | R187: 12623755 | S187: 12937266 | T187: 313511 | U187: 1291 | V187: 9778.27653 | W187: 10021.12006 | X187: 242.8435321
A188: 621 | B188: 1 | C188: MOUNDS VIEW | D188: 106245898 | E188: 107869924 | F188: 1624026 | G188: 11511 | H188: 9230 | I188: 9371 | J188: 141 | K188: 107450407 | L188: 110775084 | M188: 3324677 | N188: 11649 | O188: 9224 | P188: 9509 | Q188: 285 | R188: 213696305 | S188: 218645008 | T188: 4948703 | U188: 23160 | V188: 9226.956174 | W188: 9440.630743 | X188: 213.6745682
A189: 622 | B189: 1 | C189: NORTH ST. PAUL-M | D189: 104743980 | E189: 106360219 | F189: 1616239 | G189: 10398 | H189: 10073 | I189: 10229 | J189: 156 | K189: 104199358 | L189: 107455575 | M189: 3256217 | N189: 10331 | O189: 10086 | P189: 10401 | Q189: 315 | R189: 208943338 | S189: 213815794 | T189: 4872456 | U189: 20729 | V189: 10079.75966 | W189: 10314.8147 | X189: 235.0550437
A190: 623 | B190: 1 | C190: ROSEVILLE | D190: 74060192 | E190: 75193084 | F190: 1132892 | G190: 7507 | H190: 9865 | I190: 10016 | J190: 151 | K190: 74943750 | L190: 77253450 | M190: 2309700 | N190: 7547 | O190: 9930 | P190: 10236 | Q190: 306 | R190: 149003942 | S190: 152446534 | T190: 3442592 | U190: 15054 | V190: 9897.963465 | W190: 10126.64634 | X190: 228.682875
A191: 624 | B191: 1 | C191: WHITE BEAR LAKE | D191: 79059657 | E191: 80213907 | F191: 1154250 | G191: 8376 | H191: 9439 | I191: 9577 | J191: 138 | K191: 79963116 | L191: 82313319 | M191: 2350203 | N191: 8425 | O191: 9491 | P191: 9770 | Q191: 279 | R191: 159022773 | S191: 162527226 | T191: 3504453 | U191: 16801 | V191: 9465.077853 | W191: 9673.66383 | X191: 208.585977
A192: 625 | B192: 1 | C192: ST. PAUL | D192: 393937604 | E192: 400313670 | F192: 6376066 | G192: 36398 | H192: 10823 | I192: 10998 | J192: 175 | K192: 392966571 | L192: 405797330 | M192: 12830759 | N192: 36114 | O192: 10881 | P192: 11237 | Q192: 356 | R192: 786904175 | S192: 806111000 | T192: 19206825 | U192: 72512 | V192: 10852.05449 | W192: 11116.93237 | X192: 264.8778823
A193: 630 | B193: 1 | C193: RED LAKE FALLS | D193: 4043359 | E193: 4100781 | F193: 57422 | G193: 358 | H193: 11294 | I193: 11455 | J193: 161 | K193: 4013218 | L193: 4128722 | M193: 115504 | N193: 356 | O193: 11273 | P193: 11598 | Q193: 325 | R193: 8056577 | S193: 8229503 | T193: 172926 | U193: 714 | V193: 11283.72129 | W193: 11525.91457 | X193: 242.1932773
A194: 635 | B194: 1 | C194: MILROY | D194: 586338 | E194: 593422 | F194: 7084 | G194: 43 | H194: 13636 | I194: 13801 | J194: 165 | K194: 614308 | L194: 629324 | M194: 15016 | N194: 45 | O194: 13651 | P194: 13985 | Q194: 334 | R194: 1200646 | S194: 1222746 | T194: 22100 | U194: 88 | V194: 13643.70455 | W194: 13894.84091 | X194: 251.1363636
A195: 640 | B195: 1 | C195: WABASSO | D195: 3591602 | E195: 3648475 | F195: 56873 | G195: 376 | H195: 9552 | I195: 9703 | J195: 151 | K195: 3547678 | L195: 3661437 | M195: 113759 | N195: 370 | O195: 9588 | P195: 9896 | Q195: 308 | R195: 7139280 | S195: 7309912 | T195: 170632 | U195: 746 | V195: 9570.080429 | W195: 9798.809651 | X195: 228.7292225
A196: 656 | B196: 1 | C196: FARIBAULT | D196: 38541061 | E196: 39170592 | F196: 629531 | G196: 3805 | H196: 10128 | I196: 10293 | J196: 165 | K196: 38101202 | L196: 39358335 | M196: 1257133 | N196: 3737 | O196: 10195 | P196: 10531 | Q196: 336 | R196: 76642263 | S196: 78528927 | T196: 1886664 | U196: 7542 | V196: 10162.06086 | W196: 10412.21519 | X196: 250.1543357
A197: 659 | B197: 1 | C197: NORTHFIELD | D197: 36934432 | E197: 37479094 | F197: 544662 | G197: 3854 | H197: 9583 | I197: 9725 | J197: 142 | K197: 36283252 | L197: 37363552 | M197: 1080300 | N197: 3731 | O197: 9725 | P197: 10014 | Q197: 289 | R197: 73217684 | S197: 74842646 | T197: 1624962 | U197: 7585 | V197: 9652.95768 | W197: 9867.191299 | X197: 214.233619
A198: 671 | B198: 1 | C198: HILLS-BEAVER CRE | D198: 3670470 | E198: 3725185 | F198: 54715 | G198: 376 | H198: 9762 | I198: 9907 | J198: 145 | K198: 3605969 | L198: 3714929 | M198: 108960 | N198: 366 | O198: 9852 | P198: 10150 | Q198: 298 | R198: 7276439 | S198: 7440114 | T198: 163675 | U198: 742 | V198: 9806.521563 | W198: 10027.10782 | X198: 220.5862534
A199: 676 | B199: 1 | C199: BADGER | D199: 2065029 | E199: 2095462 | F199: 30433 | G199: 189 | H199: 10926 | I199: 11087 | J199: 161 | K199: 2027938 | L199: 2088550 | M199: 60612 | N199: 185 | O199: 10962 | P199: 11289 | Q199: 327 | R199: 4092967 | S199: 4184012 | T199: 91045 | U199: 374 | V199: 10943.76203 | W199: 11187.19786 | X199: 243.4358289
A200: 682 | B200: 1 | C200: ROSEAU | D200: 10147768 | E200: 10315836 | F200: 168068 | G200: 1170 | H200: 8673 | I200: 8817 | J200: 144 | K200: 9985615 | L200: 10320817 | M200: 335202 | N200: 1147 | O200: 8706 | P200: 8998 | Q200: 292 | R200: 20133383 | S200: 20636653 | T200: 503270 | U200: 2317 | V200: 8689.418645 | W200: 8906.626241 | X200: 217.207596
A201: 690 | B201: 1 | C201: WARROAD | D201: 8965099 | E201: 9120049 | F201: 154950 | G201: 1023 | H201: 8764 | I201: 8915 | J201: 151 | K201: 8927857 | L201: 9240378 | M201: 312521 | N201: 1016 | O201: 8787 | P201: 9095 | Q201: 308 | R201: 17892956 | S201: 18360427 | T201: 467471 | U201: 2039 | V201: 8775.358509 | W201: 9004.623345 | X201: 229.2648357
... 330 more rows

Sheet Specialed
A2: MDE-School Finance | T2: 2017-02-13
A3: Special Education
A4: Governor's Recommendation
A5: District | D5: FY 2018 | K5: FY 2019 | R5: Biennium
D6: Total Revenue | G6: Adjusted ADM | H6: Revenue/Adjusted ADM | K6: Total Revenue | N6: Adjusted ADM | O6: Revenue/Adjusted ADM | R6: Total Revenue | U6: Adjusted ADM | V6: Revenue/Adjusted ADM
A8: DIST | B8: TYPE | C8: NAME | D8: Current | E8: Governor | F8: Change | H8: Current | I8: Governor | J8: Change | K8: Current | L8: Governor | M8: Change | O8: Current | P8: Governor | Q8: Change | R8: Current | S8: Governor | T8: Change | V8: Current | W8: Governor | X8: Change
C9: TOTAL | D9: 1219032138 | E9: 1240274913 | F9: 21242775 | G9: 858281 | H9: 1420 | I9: 1445 | J9: 25 | K9: 1292366650 | L9: 1313960046 | M9: 21593396 | N9: 863356 | O9: 1497 | P9: 1522 | Q9: 25 | R9: =SUM(R10:R530) -> 2511398808 | S9: =SUM(S10:S530) -> 2554234977 | T9: 42836173 | U9: 1721641 | V9: =R9/U9 -> 1458.723862 | W9: =S9/U9 -> 1483.604873 | X9: =T9/U9 -> 24.88101352
A10: 1 | B10: 1 | C10: AITKIN | D10: 1126845 | E10: 1150719 | F10: 23874 | G10: 1147 | H10: 982 | I10: 1003 | J10: 21 | K10: 1163965 | L10: 1187063 | M10: 23099 | N10: 1143 | O10: 1018 | P10: 1039 | Q10: 21 | R10: =D10+K10 -> 2290810 | S10: =E10+L10 -> 2337782 | T10: =F10+M10 -> 46973 | U10: 2290 | V10: =R10/U10 -> 1000.353712 | W10: =S10/U10 -> 1020.865502 | X10: =T10/U10 -> 20.51222707
A11: 1.2 | B11: 3 | C11: MINNEAPOLIS | D11: 69739483 | E11: 70845272 | F11: 1105789 | G11: 35791 | H11: 1949 | I11: 1979 | J11: 30 | K11: 75915732 | L11: 77157503 | M11: 1241771 | N11: 36561 | O11: 2076 | P11: 2110 | Q11: 34 | R11: =D11+K11 -> 145655215 | S11: 148002775 | T11: 2347560 | U11: 72352 | V11: =R11/U11 -> 2013.147045 | W11: =S11/U11 -> 2045.593418 | X11: =T11/U11 -> 32.44637329
A12: 2 | B12: 1 | C12: HILL CITY | D12: 451568 | E12: 451469 | F12: -99 | G12: 257 | H12: 1757 | I12: 1757 | J12: 0 | K12: 458668 | L12: 457629 | M12: -1039 | N12: 249 | O12: 1842 | P12: 1838 | Q12: -4 | R12: 910236 | S12: 909098 | T12: -1138 | U12: 506 | V12: 1798.885375 | W12: 1796.636364 | X12: -2.249011858
A13: 4 | B13: 1 | C13: MCGREGOR | D13: 388678 | E13: 402701 | F13: 14023 | G13: 457 | H13: 850 | I13: 881 | J13: 31 | K13: 421005 | L13: 436359 | M13: 15354 | N13: 455 | O13: 925 | P13: 959 | Q13: 34 | R13: 809683 | S13: 839060 | T13: 29377 | U13: 912 | V13: 887.810307 | W13: 920.0219298 | X13: 32.21162281
A14: 6 | B14: 3 | C14: SOUTH ST. PAUL | D14: 4466803 | E14: 4577086 | F14: 110284 | G14: 3641 | H14: 1227 | I14: 1257 | J14: 30 | K14: 4816585 | L14: 4938171 | M14: 121585 | N14: 3650 | O14: 1320 | P14: 1353 | Q14: 33 | R14: 9283388 | S14: 9515257 | T14: 231869 | U14: 7291 | V14: 1273.266767 | W14: 1305.068852 | X14: 31.80208476
A15: 11 | B15: 1 | C15: ANOKA-HENNEPIN | D15: 55315768 | E15: 56410656 | F15: 1094889 | G15: 37429 | H15: 1478 | I15: 1507 | J15: 29 | K15: 58787961 | L15: 59742831 | M15: 954870 | N15: 37497 | O15: 1568 | P15: 1593 | Q15: 25 | R15: 114103729 | S15: 116153487 | T15: 2049759 | U15: 74926 | V15: 1522.885634 | W15: 1550.242733 | X15: 27.35711235
A16: 12 | B16: 1 | C16: CENTENNIAL | D16: 13110540 | E16: 13308131 | F16: 197591 | G16: 6341 | H16: 2068 | I16: 2099 | J16: 31 | K16: 13959115 | L16: 14176319 | M16: 217204 | N16: 6340 | O16: 2202 | P16: 2236 | Q16: 34 | R16: 27069655 | S16: 27484450 | T16: 414795 | U16: 12681 | V16: 2134.662487 | W16: 2167.372447 | X16: 32.70995978
A17: 13 | B17: 1 | C17: COLUMBIA HEIGHTS | D17: 3900750 | E17: 3997434 | F17: 96685 | G17: 3350 | H17: 1164 | I17: 1193 | J17: 29 | K17: 4270342 | L17: 4378549 | M17: 108207 | N17: 3409 | O17: 1253 | P17: 1284 | Q17: 31 | R17: 8171092 | S17: 8375983 | T17: 204892 | U17: 6759 | V17: 1208.920254 | W17: 1239.234058 | X17: 30.31395177
A18: 14 | B18: 1 | C18: FRIDLEY | D18: 5866368 | E18: 5960133 | F18: 93765 | G18: 3068 | H18: 1912 | I18: 1943 | J18: 31 | K18: 6283835 | L18: 6387434 | M18: 103599 | N18: 3080 | O18: 2040 | P18: 2074 | Q18: 34 | R18: 12150203 | S18: 12347567 | T18: 197364 | U18: 6148 | V18: 1976.285459 | W18: 2008.387606 | X18: 32.10214704
A19: 15 | B19: 1 | C19: ST. FRANCIS | D19: 8312540 | E19: 8434291 | F19: 121752 | G19: 4344 | H19: 1914 | I19: 1942 | J19: 28 | K19: 8564675 | L19: 8682176 | M19: 117501 | N19: 4278 | O19: 2002 | P19: 2029 | Q19: 27 | R19: 16877215 | S19: 17116467 | T19: 239253 | U19: 8622 | V19: 1957.459406 | W19: 1985.20842 | X19: 27.74913013
A20: 16 | B20: 1 | C20: SPRING LAKE PARK | D20: 5008048 | E20: 5183175 | F20: 175127 | G20: 5745 | H20: 872 | I20: 902 | J20: 30 | K20: 5508593 | L20: 5703519 | M20: 194926 | N20: 5815 | O20: 947 | P20: 981 | Q20: 34 | R20: 10516641 | S20: 10886694 | T20: 370053 | U20: 11560 | V20: 909.7440311 | W20: 941.7555363 | X20: 32.01150519
A21: 22 | B21: 1 | C21: DETROIT LAKES | D21: 4584951 | E21: 4630455 | F21: 45504 | G21: 3024 | H21: 1516 | I21: 1531 | J21: 15 | K21: 4873520 | L21: 4912428 | M21: 38909 | N21: 3044 | O21: 1601 | P21: 1614 | Q21: 13 | R21: 9458471 | S21: 9542883 | T21: 84413 | U21: 6068 | V21: 1558.746045 | W21: 1572.657053 | X21: 13.91117337
A22: 23 | B22: 1 | C22: FRAZEE | D22: 1131419 | E22: 1144008 | F22: 12588 | G22: 885 | H22: 1278 | I22: 1293 | J22: 15 | K22: 1188787 | L22: 1201002 | M22: 12215 | N22: 865 | O22: 1374 | P22: 1388 | Q22: 14 | R22: 2320206 | S22: 2345010 | T22: 24803 | U22: 1750 | V22: 1325.832 | W22: 1340.005714 | X22: 14.17314286
A23: 25 | B23: 1 | C23: PINE POINT | D23: 111114 | E23: 114689 | F23: 3574 | G23: 69 | H23: 1610 | I23: 1662 | J23: 52 | K23: 122587 | L23: 125605 | M23: 3018 | N23: 70 | O23: 1751 | P23: 1794 | Q23: 43 | R23: 233701 | S23: 240294 | T23: 6592 | U23: 139 | V23: 1681.302158 | W23: 1728.733813 | X23: 47.42446043
A24: 31 | B24: 1 | C24: BEMIDJI | D24: 8929107 | E24: 9090426 | F24: 161319 | G24: 5180 | H24: 1724 | I24: 1755 | J24: 31 | K24: 9567247 | L24: 9745159 | M24: 177912 | N24: 5196 | O24: 1841 | P24: 1876 | Q24: 35 | R24: 18496354 | S24: 18835585 | T24: 339231 | U24: 10376 | V24: 1782.609291 | W24: 1815.303103 | X24: 32.69381264
A25: 32 | B25: 1 | C25: BLACKDUCK | D25: 1216469 | E25: 1229446 | F25: 12977 | G25: 636 | H25: 1913 | I25: 1934 | J25: 21 | K25: 1276858 | L25: 1297367 | M25: 20510 | N25: 606 | O25: 2108 | P25: 2142 | Q25: 34 | R25: 2493327 | S25: 2526813 | T25: 33487 | U25: 1242 | V25: 2007.509662 | W25: 2034.471014 | X25: 26.96215781
A26: 36 | B26: 1 | C26: KELLIHER | D26: 386307 | E26: 393109 | F26: 6802 | G26: 285 | H26: 1355 | I26: 1379 | J26: 24 | K26: 426488 | L26: 433170 | M26: 6682 | N26: 290 | O26: 1471 | P26: 1494 | Q26: 23 | R26: 812795 | S26: 826279 | T26: 13484 | U26: 575 | V26: 1413.556522 | W26: 1437.006957 | X26: 23.45043478
A27: 38 | B27: 1 | C27: RED LAKE | D27: 2392280 | E27: 2440463 | F27: 48183 | G27: 1611 | H27: 1485 | I27: 1515 | J27: 30 | K27: 2646538 | L27: 2701288 | M27: 54750 | N27: 1664 | O27: 1590 | P27: 1623 | Q27: 33 | R27: 5038818 | S27: 5141751 | T27: 102933 | U27: 3275 | V27: 1538.570382 | W27: 1570.000305 | X27: 31.42992366
A28: 47 | B28: 1 | C28: SAUK RAPIDS | D28: 5217448 | E28: 5281661 | F28: 64212 | G28: 4374 | H28: 1193 | I28: 1208 | J28: 15 | K28: 5535135 | L28: 5597743 | M28: 62608 | N28: 4375 | O28: 1265 | P28: 1279 | Q28: 14 | R28: 10752583 | S28: 10879404 | T28: 126820 | U28: 8749 | V28: 1229.007087 | W28: 1243.502572 | X28: 14.4953709
A29: 51 | B29: 1 | C29: FOLEY | D29: 1982057 | E29: 2006432 | F29: 24375 | G29: 1817 | H29: 1091 | I29: 1104 | J29: 13 | K29: 2049726 | L29: 2071756 | M29: 22029 | N29: 1781 | O29: 1151 | P29: 1163 | Q29: 12 | R29: 4031783 | S29: 4078188 | T29: 46404 | U29: 3598 | V29: 1120.562257 | W29: 1133.4597 | X29: 12.89716509
A30: 75 | B30: 1 | C30: ST. CLAIR | D30: 633979 | E30: 636613 | F30: 2635 | G30: 670 | H30: 946 | I30: 950 | J30: 4 | K30: 653621 | L30: 656986 | M30: 3365 | N30: 649 | O30: 1007 | P30: 1012 | Q30: 5 | R30: 1287600 | S30: 1293599 | T30: 6000 | U30: 1319 | V30: 976.1940864 | W30: 980.742229 | X30: 4.548900682
A31: 77 | B31: 1 | C31: MANKATO | D31: 11147622 | E31: 11221081 | F31: 73459 | G31: 8483 | H31: 1314 | I31: 1323 | J31: 9 | K31: 11978507 | L31: 12004301 | M31: 25794 | N31: 8419 | O31: 1423 | P31: 1426 | Q31: 3 | R31: 23126129 | S31: 23225382 | T31: 99253 | U31: 16902 | V31: 1368.248077 | W31: 1374.120341 | X31: 5.872263637
A32: 81 | B32: 1 | C32: COMFREY | D32: 208499 | E32: 210472 | F32: 1974 | G32: 149 | H32: 1399 | I32: 1413 | J32: 14 | K32: 211340 | L32: 213106 | M32: 1766 | N32: 149 | O32: 1418 | P32: 1430 | Q32: 12 | R32: 419839 | S32: 423578 | T32: 3740 | U32: 298 | V32: 1408.855705 | W32: 1421.402685 | X32: 12.55033557
A33: 84 | B33: 1 | C33: SLEEPY EYE | D33: 586844 | E33: 599487 | F33: 12643 | G33: 555 | H33: 1057 | I33: 1080 | J33: 23 | K33: 620339 | L33: 633200 | M33: 12861 | N33: 540 | O33: 1149 | P33: 1173 | Q33: 24 | R33: 1207183 | S33: 1232687 | T33: 25504 | U33: 1095 | V33: 1102.450228 | W33: 1125.741553 | X33: 23.2913242
A34: 85 | B34: 1 | C34: SPRINGFIELD | D34: 455647 | E34: 463334 | F34: 7687 | G34: 545 | H34: 836 | I34: 850 | J34: 14 | K34: 467953 | L34: 476826 | M34: 8873 | N34: 534 | O34: 876 | P34: 893 | Q34: 17 | R34: 923600 | S34: 940160 | T34: 16560 | U34: 1079 | V34: 855.9777572 | W34: 871.3253012 | X34: 15.34754402
A35: 88 | B35: 1 | C35: NEW ULM | D35: 2668411 | E35: 2729787 | F35: 61376 | G35: 2057 | H35: 1297 | I35: 1327 | J35: 30 | K35: 2860678 | L35: 2928066 | M35: 67388 | N35: 2055 | O35: 1392 | P35: 1425 | Q35: 33 | R35: 5529089 | S35: 5657853 | T35: 128764 | U35: 4112 | V35: 1344.622811 | W35: 1375.937014 | X35: 31.31420233
A36: 91 | B36: 1 | C36: BARNUM | D36: 1052322 | E36: 1061226 | F36: 8904 | G36: 753 | H36: 1398 | I36: 1409 | J36: 11 | K36: 1087107 | L36: 1094832 | M36: 7725 | N36: 749 | O36: 1451 | P36: 1462 | Q36: 11 | R36: 2139429 | S36: 2156058 | T36: 16629 | U36: 1502 | V36: 1424.386818 | W36: 1435.458056 | X36: 11.07123835
A37: 93 | B37: 1 | C37: CARLTON | D37: 422689 | E37: 431755 | F37: 9066 | G37: 460 | H37: 919 | I37: 939 | J37: 20 | K37: 428471 | L37: 438584 | M37: 10114 | N37: 452 | O37: 948 | P37: 970 | Q37: 22 | R37: 851160 | S37: 870339 | T37: 19180 | U37: 912 | V37: 933.2894737 | W37: 954.3190789 | X37: 21.03070175
A38: 94 | B38: 1 | C38: CLOQUET | D38: 2909984 | E38: 2967796 | F38: 57812 | G38: 2707 | H38: 1075 | I38: 1096 | J38: 21 | K38: 3091200 | L38: 3146996 | M38: 55795 | N38: 2760 | O38: 1120 | P38: 1140 | Q38: 20 | R38: 6001184 | S38: 6114792 | T38: 113607 | U38: 5467 | V38: 1097.710627 | W38: 1118.491312 | X38: 20.78050119
A39: 95 | B39: 1 | C39: CROMWELL | D39: 292083 | E39: 296884 | F39: 4800 | G39: 310 | H39: 942 | I39: 958 | J39: 16 | K39: 284611 | L39: 289091 | M39: 4480 | N39: 310 | O39: 918 | P39: 933 | Q39: 15 | R39: 576694 | S39: 585975 | T39: 9280 | U39: 620 | V39: 930.1516129 | W39: 945.1209677 | X39: 14.96774194
A40: 97 | B40: 1 | C40: MOOSE LAKE | D40: 776980 | E40: 786029 | F40: 9048 | G40: 665 | H40: 1168 | I40: 1182 | J40: 14 | K40: 815086 | L40: 823988 | M40: 8902 | N40: 671 | O40: 1215 | P40: 1228 | Q40: 13 | R40: 1592066 | S40: 1610017 | T40: 17950 | U40: 1336 | V40: 1191.666168 | W40: 1205.102545 | X40: 13.43562874
A41: 99 | B41: 1 | C41: ESKO | D41: 801532 | E41: 818940 | F41: 17408 | G41: 1212 | H41: 661 | I41: 676 | J41: 15 | K41: 845562 | L41: 861392 | M41: 15830 | N41: 1212 | O41: 698 | P41: 711 | Q41: 13 | R41: 1647094 | S41: 1680332 | T41: 33238 | U41: 2424 | V41: 679.4942244 | W41: 693.2062706 | X41: 13.7120462
A42: 100 | B42: 1 | C42: WRENSHALL | D42: 271824 | E42: 277272 | F42: 5448 | G42: 341 | H42: 797 | I42: 813 | J42: 16 | K42: 287827 | L42: 293933 | M42: 6106 | N42: 346 | O42: 832 | P42: 850 | Q42: 18 | R42: 559651 | S42: 571205 | T42: 11554 | U42: 687 | V42: 814.6302766 | W42: 831.4483261 | X42: 16.81804949
A43: 108 | B43: 1 | C43: NORWOOD | D43: 526103 | E43: 557101 | F43: 30998 | G43: 948 | H43: 555 | I43: 588 | J43: 33 | K43: 580254 | L43: 611005 | M43: 30751 | N43: 928 | O43: 625 | P43: 658 | Q43: 33 | R43: 1106357 | S43: 1168106 | T43: 61749 | U43: 1876 | V43: 589.7425373 | W43: 622.6577825 | X43: 32.9152452
A44: 110 | B44: 1 | C44: WACONIA | D44: 4367036 | E44: 4477767 | F44: 110731 | G44: 4090 | H44: 1068 | I44: 1095 | J44: 27 | K44: 4707035 | L44: 4814427 | M44: 107392 | N44: 4035 | O44: 1167 | P44: 1193 | Q44: 26 | R44: 9074071 | S44: 9292194 | T44: 218123 | U44: 8125 | V44: 1116.808738 | W44: 1143.654646 | X44: 26.84590769
A45: 111 | B45: 1 | C45: WATERTOWN-MAYER | D45: 2055313 | E45: 2083861 | F45: 28547 | G45: 1676 | H45: 1226 | I45: 1243 | J45: 17 | K45: 2153877 | L45: 2185397 | M45: 31520 | N45: 1627 | O45: 1324 | P45: 1343 | Q45: 19 | R45: 4209190 | S45: 4269258 | T45: 60067 | U45: 3303 | V45: 1274.353618 | W45: 1292.53951 | X45: 18.18558886
A46: 112 | B46: 1 | C46: EASTERN CARVER CTY | D46: 10533105 | E46: 10676661 | F46: 143556 | G46: 9667 | H46: 1090 | I46: 1104 | J46: 14 | K46: 11324316 | L46: 11463192 | M46: 138876 | N46: 9836 | O46: 1151 | P46: 1165 | Q46: 14 | R46: 21857421 | S46: 22139853 | T46: 282432 | U46: 19503 | V46: 1120.720966 | W46: 1135.20243 | X46: 14.48146439
A47: 113 | B47: 1 | C47: WALKER-AKELEY | D47: 995904 | E47: 1006891 | F47: 10987 | G47: 716 | H47: 1391 | I47: 1406 | J47: 15 | K47: 1034219 | L47: 1044685 | M47: 10466 | N47: 702 | O47: 1473 | P47: 1488 | Q47: 15 | R47: 2030123 | S47: 2051576 | T47: 21453 | U47: 1418 | V47: 1431.680536 | W47: 1446.809591 | X47: 15.12905501
A48: 115 | B48: 1 | C48: CASS LAKE | D48: 1645635 | E48: 1678165 | F48: 32530 | G48: 1086 | H48: 1515 | I48: 1545 | J48: 30 | K48: 1823837 | L48: 1860882 | M48: 37045 | N48: 1125 | O48: 1621 | P48: 1654 | Q48: 33 | R48: 3469472 | S48: 3539047 | T48: 69575 | U48: 2211 | V48: 1569.186793 | W48: 1600.654455 | X48: 31.46766169
A49: 116 | B49: 1 | C49: PILLAGER | D49: 1507688 | E49: 1527154 | F49: 19466 | G49: 1072 | H49: 1406 | I49: 1425 | J49: 19 | K49: 1646694 | L49: 1666628 | M49: 19934 | N49: 1121 | O49: 1469 | P49: 1487 | Q49: 18 | R49: 3154382 | S49: 3193782 | T49: 39400 | U49: 2193 | V49: 1438.386685 | W49: 1456.352941 | X49: 17.96625627
A50: 118 | B50: 1 | C50: NORTHLAND | D50: 500667 | E50: 509521 | F50: 8854 | G50: 326 | H50: 1536 | I50: 1563 | J50: 27 | K50: 537462 | L50: 546300 | M50: 8838 | N50: 328 | O50: 1639 | P50: 1666 | Q50: 27 | R50: 1038129 | S50: 1055821 | T50: 17692 | U50: 654 | V50: 1587.353211 | W50: 1614.405199 | X50: 27.05198777
A51: 129 | B51: 1 | C51: MONTEVIDEO | D51: 1890797 | E51: 1930970 | F51: 40174 | G51: 1454 | H51: 1300 | I51: 1328 | J51: 28 | K51: 1999422 | L51: 2032499 | M51: 33077 | N51: 1445 | O51: 1384 | P51: 1407 | Q51: 23 | R51: 3890219 | S51: 3963469 | T51: 73251 | U51: 2899 | V51: 1341.917558 | W51: 1367.184891 | X51: 25.26767851
A52: 138 | B52: 1 | C52: NORTH BRANCH | D52: 3891958 | E52: 3982281 | F52: 90323 | G52: 2974 | H52: 1309 | I52: 1339 | J52: 30 | K52: 4117979 | L52: 4182318 | M52: 64339 | N52: 2982 | O52: 1381 | P52: 1403 | Q52: 22 | R52: 8009937 | S52: 8164599 | T52: 154662 | U52: 5956 | V52: 1344.851746 | W52: 1370.819174 | X52: 25.9674278
A53: 139 | B53: 1 | C53: RUSH CITY | D53: 722764 | E53: 745920 | F53: 23156 | G53: 870 | H53: 831 | I53: 857 | J53: 26 | K53: 768359 | L53: 790400 | M53: 22041 | N53: 873 | O53: 880 | P53: 905 | Q53: 25 | R53: 1491123 | S53: 1536320 | T53: 45197 | U53: 1743 | V53: 855.4922547 | W53: 881.4228342 | X53: 25.93057946
A54: 146 | B54: 1 | C54: BARNESVILLE | D54: 641131 | E54: 655039 | F54: 13908 | G54: 902 | H54: 711 | I54: 726 | J54: 15 | K54: 675948 | L54: 690651 | M54: 14703 | N54: 891 | O54: 759 | P54: 775 | Q54: 16 | R54: 1317079 | S54: 1345690 | T54: 28611 | U54: 1793 | V54: 734.5672058 | W54: 750.524261 | X54: 15.95705521
A55: 150 | B55: 1 | C55: HAWLEY | D55: 594804 | E55: 608596 | F55: 13792 | G55: 913 | H55: 651 | I55: 667 | J55: 16 | K55: 626990 | L55: 640247 | M55: 13257 | N55: 921 | O55: 681 | P55: 695 | Q55: 14 | R55: 1221794 | S55: 1248843 | T55: 27049 | U55: 1834 | V55: 666.1908397 | W55: 680.9394766 | X55: 14.74863686
A56: 152 | B56: 1 | C56: MOORHEAD | D56: 10982216 | E56: 11253719 | F56: 271503 | G56: 6391 | H56: 1718 | I56: 1761 | J56: 43 | K56: 11800329 | L56: 12000034 | M56: 199704 | N56: 6469 | O56: 1824 | P56: 1855 | Q56: 31 | R56: 22782545 | S56: 23253753 | T56: 471207 | U56: 12860 | V56: 1771.582037 | W56: 1808.223406 | X56: 36.64129082
A57: 160 | B57: 70 | C57: MINNESOTA STATE ACADEMIES | D57: 2492688 | E57: 2492688 | F57: 0 | G57: 0 | H57: 0 | I57: 0 | J57: 0 | K57: 2554840 | L57: 2554840 | M57: 0 | N57: 0 | O57: 0 | P57: 0 | Q57: 0 | R57: 5047528 | S57: 5047528 | T57: 0 | U57: 0
A58: 160 | B58: 90 | C58: FARIBAULT TRANSFER | D58: 2492688 | E58: 2492688 | F58: 0 | G58: 0 | H58: 0 | I58: 0 | J58: 0 | K58: 2554840 | L58: 2554840 | M58: 0 | N58: 0 | O58: 0 | P58: 0 | Q58: 0 | R58: 5047528 | S58: 5047528 | T58: 0 | U58: 0
A59: 162 | B59: 1 | C59: BAGLEY | D59: 1553665 | E59: 1568500 | F59: 14835 | G59: 1004 | H59: 1548 | I59: 1563 | J59: 15 | K59: 1636642 | L59: 1649753 | M59: 13111 | N59: 1035 | O59: 1582 | P59: 1594 | Q59: 12 | R59: 3190307 | S59: 3218253 | T59: 27946 | U59: 2039 | V59: 1564.642962 | W59: 1578.3487 | X59: 13.70573811
A60: 166 | B60: 1 | C60: COOK COUNTY | D60: 272294 | E60: 286082 | F60: 13788 | G60: 452 | H60: 602 | I60: 633 | J60: 31 | K60: 286432 | L60: 300883 | M60: 14451 | N60: 431 | O60: 664 | P60: 698 | Q60: 34 | R60: 558726 | S60: 586965 | T60: 28239 | U60: 883 | V60: 632.7587769 | W60: 664.7395243 | X60: 31.98074745
A61: 173 | B61: 1 | C61: MOUNTAIN LAKE | D61: 496650 | E61: 504111 | F61: 7461 | G61: 478 | H61: 1039 | I61: 1055 | J61: 16 | K61: 518762 | L61: 525497 | M61: 6735 | N61: 476 | O61: 1090 | P61: 1104 | Q61: 14 | R61: 1015412 | S61: 1029608 | T61: 14196 | U61: 954 | V61: 1064.373166 | W61: 1079.253669 | X61: 14.88050314
A62: 177 | B62: 1 | C62: WINDOM | D62: 1399687 | E62: 1415332 | F62: 15645 | G62: 1068 | H62: 1311 | I62: 1325 | J62: 14 | K62: 1492262 | L62: 1506572 | M62: 14310 | N62: 1077 | O62: 1386 | P62: 1399 | Q62: 13 | R62: 2891949 | S62: 2921904 | T62: 29955 | U62: 2145 | V62: 1348.227972 | W62: 1362.193007 | X62: 13.96503497
A63: 181 | B63: 1 | C63: BRAINERD | D63: 13137066 | E63: 13338395 | F63: 201329 | G63: 6541 | H63: 2008 | I63: 2039 | J63: 31 | K63: 14062090 | L63: 14284528 | M63: 222438 | N63: 6571 | O63: 2140 | P63: 2174 | Q63: 34 | R63: 27199156 | S63: 27622923 | T63: 423767 | U63: 13112 | V63: 2074.371263 | W63: 2106.690284 | X63: 32.31902074
A64: 182 | B64: 1 | C64: CROSBY | D64: 1480911 | E64: 1511793 | F64: 30882 | G64: 1018 | H64: 1455 | I64: 1485 | J64: 30 | K64: 1554525 | L64: 1587798 | M64: 33273 | N64: 997 | O64: 1559 | P64: 1593 | Q64: 34 | R64: 3035436 | S64: 3099591 | T64: 64155 | U64: 2015 | V64: 1506.419851 | W64: 1538.258561 | X64: 31.83870968
A65: 186 | B65: 1 | C65: PEQUOT LAKES | D65: 1599038 | E65: 1624050 | F65: 25012 | G65: 1660 | H65: 963 | I65: 978 | J65: 15 | K65: 1632091 | L65: 1655194 | M65: 23103 | N65: 1631 | O65: 1001 | P65: 1015 | Q65: 14 | R65: 3231129 | S65: 3279244 | T65: 48115 | U65: 3291 | V65: 981.8076572 | W65: 996.4278335 | X65: 14.62017624
A66: 191 | B66: 1 | C66: BURNSVILLE | D66: 13697937 | E66: 13970427 | F66: 272490 | G66: 8940 | H66: 1532 | I66: 1563 | J66: 31 | K66: 14598397 | L66: 14896754 | M66: 298357 | N66: 8902 | O66: 1640 | P66: 1673 | Q66: 33 | R66: 28296334 | S66: 28867181 | T66: 570847 | U66: 17842 | V66: 1585.939581 | W66: 1617.934144 | X66: 31.99456339
A67: 192 | B67: 1 | C67: FARMINGTON | D67: 6256706 | E67: 6467671 | F67: 210964 | G67: 6761 | H67: 925 | I67: 957 | J67: 32 | K67: 6760484 | L67: 6944893 | M67: 184409 | N67: 6688 | O67: 1011 | P67: 1038 | Q67: 27 | R67: 13017190 | S67: 13412564 | T67: 395373 | U67: 13449 | V67: 967.8927801 | W67: 997.2908023 | X67: 29.3979478
A68: 194 | B68: 1 | C68: LAKEVILLE | D68: 13256980 | E68: 13578484 | F68: 321504 | G68: 10515 | H68: 1261 | I68: 1291 | J68: 30 | K68: 13673350 | L68: 14012534 | M68: 339184 | N68: 10089 | O68: 1355 | P68: 1389 | Q68: 34 | R68: 26930330 | S68: 27591018 | T68: 660688 | U68: 20604 | V68: 1307.043778 | W68: 1339.109785 | X68: 32.0660066
A69: 195 | B69: 1 | C69: RANDOLPH | D69: 383087 | E69: 390522 | F69: 7436 | G69: 676 | H69: 567 | I69: 578 | J69: 11 | K69: 410485 | L69: 418552 | M69: 8067 | N69: 684 | O69: 600 | P69: 612 | Q69: 12 | R69: 793572 | S69: 809074 | T69: 15503 | U69: 1360 | V69: 583.5088235 | W69: 594.9073529 | X69: 11.39926471
A70: 196 | B70: 1 | C70: ROSEMOUNT-APPLE | D70: 45454442 | E70: 46448915 | F70: 994472 | G70: 27776 | H70: 1636 | I70: 1672 | J70: 36 | K70: 48394462 | L70: 49567207 | M70: 1172744 | N70: 27855 | O70: 1737 | P70: 1779 | Q70: 42 | R70: 93848904 | S70: 96016122 | T70: 2167216 | U70: 55631 | V70: 1686.98934 | W70: 1725.946361 | X70: 38.95698442
A71: 197 | B71: 1 | C71: WEST ST. PAUL | D71: 7706761 | E71: 7806033 | F71: 99272 | G71: 4893 | H71: 1575 | I71: 1595 | J71: 20 | K71: 8159587 | L71: 8247862 | M71: 88275 | N71: 4915 | O71: 1660 | P71: 1678 | Q71: 18 | R71: 15866348 | S71: 16053895 | T71: 187547 | U71: 9808 | V71: 1617.694535 | W71: 1636.816374 | X71: 19.12183931
A72: 199 | B72: 1 | C72: INVER GROVE | D72: 4391602 | E72: 4509131 | F72: 117529 | G72: 3869 | H72: 1135 | I72: 1165 | J72: 30 | K72: 4702300 | L72: 4818736 | M72: 116435 | N72: 3843 | O72: 1224 | P72: 1254 | Q72: 30 | R72: 9093902 | S72: 9327867 | T72: 233964 | U72: 7712 | V72: 1179.188537 | W72: 1209.526323 | X72: 30.3376556
A73: 200 | B73: 1 | C73: HASTINGS | D73: 4877184 | E73: 5009293 | F73: 132110 | G73: 4343 | H73: 1123 | I73: 1153 | J73: 30 | K73: 5228374 | L73: 5372822 | M73: 144447 | N73: 4319 | O73: 1211 | P73: 1244 | Q73: 33 | R73: 10105558 | S73: 10382115 | T73: 276557 | U73: 8662 | V73: 1166.654121 | W73: 1198.581736 | X73: 31.92761487
A74: 203 | B74: 1 | C74: HAYFIELD | D74: 782158 | E74: 792928 | F74: 10769 | G74: 689 | H74: 1135 | I74: 1151 | J74: 16 | K74: 818041 | L74: 828745 | M74: 10704 | N74: 689 | O74: 1187 | P74: 1203 | Q74: 16 | R74: 1600199 | S74: 1621673 | T74: 21473 | U74: 1378 | V74: 1161.24746 | W74: 1176.830914 | X74: 15.58272859
A75: 204 | B75: 1 | C75: KASSON-MANTORVIL | D75: 1317361 | E75: 1346258 | F75: 28897 | G75: 2082 | H75: 633 | I75: 647 | J75: 14 | K75: 1400432 | L75: 1428745 | M75: 28312 | N75: 2092 | O75: 669 | P75: 683 | Q75: 14 | R75: =D75+K75 -> 2717793 | S75: 2775003 | T75: 57209 | U75: 4174 | V75: =R75/U75 -> 651.1243412 | W75: =S75/U75 -> 664.8306181 | X75: =T75/U75 -> 13.70603737
A76: 206 | B76: 1 | C76: ALEXANDRIA | D76: 6333917 | E76: 6522550 | F76: 188634 | G76: 4128 | H76: 1534 | I76: 1580 | J76: 46 | K76: 6761471 | L76: 6917022 | M76: 155551 | N76: 4161 | O76: 1625 | P76: 1662 | Q76: 37 | R76: 13095388 | S76: 13439572 | T76: 344185 | U76: 8289 | V76: 1579.851369 | W76: 1621.374352 | X76: 41.52310291
A77: 213 | B77: 1 | C77: OSAKIS | D77: 1032573 | E77: 1041460 | F77: 8887 | G77: 813 | H77: 1270 | I77: 1281 | J77: 11 | K77: 1078907 | L77: 1087401 | M77: 8494 | N77: 810 | O77: 1332 | P77: 1342 | Q77: 10 | R77: 2111480 | S77: 2128861 | T77: 17381 | U77: 1623 | V77: 1300.973506 | W77: 1311.682686 | X77: 10.70918053
A78: 227 | B78: 1 | C78: CHATFIELD | D78: 659565 | E78: 683801 | F78: 24236 | G78: 899 | H78: 734 | I78: 761 | J78: 27 | K78: 692900 | L78: 716727 | M78: 23827 | N78: 892 | O78: 777 | P78: 804 | Q78: 27 | R78: 1352465 | S78: 1400528 | T78: 48063 | U78: 1791 | V78: 755.1451703 | W78: 781.9810162 | X78: 26.8358459
A79: 229 | B79: 1 | C79: LANESBORO | D79: 346329 | E79: 349827 | F79: 3498 | G79: 305 | H79: 1136 | I79: 1147 | J79: 11 | K79: 341004 | L79: 344122 | M79: 3118 | N79: 295 | O79: 1156 | P79: 1167 | Q79: 11 | R79: 687333 | S79: 693949 | T79: 6616 | U79: 600 | V79: 1145.555 | W79: 1156.581667 | X79: 11.02666667
A80: 238 | B80: 1 | C80: MABEL-CANTON | D80: 168557 | E80: 176004 | F80: 7446 | G80: 246 | H80: 685 | I80: 715 | J80: 30 | K80: 183071 | L80: 191180 | M80: 8109 | N80: 244 | O80: 750 | P80: 784 | Q80: 34 | R80: 351628 | S80: 367184 | T80: 15555 | U80: 490 | V80: 717.6081633 | W80: 749.355102 | X80: 31.74489796
A81: 239 | B81: 1 | C81: RUSHFORD-PETERSO | D81: 788966 | E81: 807488 | F81: 18522 | G81: 637 | H81: 1239 | I81: 1268 | J81: 29 | K81: 796890 | L81: 815090 | M81: 18200 | N81: 625 | O81: 1275 | P81: 1304 | Q81: 29 | R81: 1585856 | S81: 1622578 | T81: 36722 | U81: 1262 | V81: 1256.621236 | W81: 1285.719493 | X81: 29.09825674
A82: 241 | B82: 1 | C82: ALBERT LEA | D82: 7238453 | E82: 7343832 | F82: 105379 | G82: 3427 | H82: 2112 | I82: 2143 | J82: 31 | K82: 7732306 | L82: 7848586 | M82: 116281 | N82: 3437 | O82: 2250 | P82: 2284 | Q82: 34 | R82: 14970759 | S82: 15192418 | T82: 221660 | U82: 6864 | V82: 2181.054633 | W82: 2213.347611 | X82: 32.29312354
A83: 242 | B83: 1 | C83: ALDEN | D83: 568866 | E83: 580571 | F83: 11705 | G83: 492 | H83: 1156 | I83: 1180 | J83: 24 | K83: 601438 | L83: 613672 | M83: 12234 | N83: 492 | O83: 1222 | P83: 1247 | Q83: 25 | R83: 1170304 | S83: 1194243 | T83: 23939 | U83: 984 | V83: 1189.333333 | W83: 1213.661585 | X83: 24.32825203
A84: 252 | B84: 1 | C84: CANNON FALLS | D84: 886837 | E84: 906998 | F84: 20161 | G84: 1129 | H84: 786 | I84: 803 | J84: 17 | K84: 935557 | L84: 958083 | M84: 22525 | N84: 1112 | O84: 841 | P84: 862 | Q84: 21 | R84: 1822394 | S84: 1865081 | T84: 42686 | U84: 2241 | V84: 813.2057117 | W84: 832.2539045 | X84: 19.04774654
A85: 253 | B85: 1 | C85: GOODHUE | D85: 248981 | E85: 259819 | F85: 10839 | G85: 636 | H85: 391 | I85: 409 | J85: 18 | K85: 265175 | L85: 276811 | M85: 11636 | N85: 635 | O85: 418 | P85: 436 | Q85: 18 | R85: 514156 | S85: 536630 | T85: 22475 | U85: 1271 | V85: 404.5287175 | W85: 422.2108576 | X85: 17.68292683
A86: 255 | B86: 1 | C86: PINE ISLAND | D86: 873954 | E86: 891888 | F86: 17933 | G86: 1280 | H86: 683 | I86: 697 | J86: 14 | K86: 929784 | L86: 947521 | M86: 17737 | N86: 1288 | O86: 722 | P86: 736 | Q86: 14 | R86: 1803738 | S86: 1839409 | T86: 35670 | U86: 2568 | V86: 702.3901869 | W86: 716.2807632 | X86: 13.89018692
A87: 256 | B87: 1 | C87: RED WING | D87: 3836015 | E87: 3914111 | F87: 78096 | G87: 2660 | H87: 1442 | I87: 1471 | J87: 29 | K87: 4052500 | L87: 4137223 | M87: 84723 | N87: 2623 | O87: 1545 | P87: 1577 | Q87: 32 | R87: 7888515 | S87: 8051334 | T87: 162819 | U87: 5283 | V87: 1493.188529 | W87: 1524.00795 | X87: 30.81942078
A88: 261 | B88: 1 | C88: ASHBY | D88: 200991 | E88: 203865 | F88: 2875 | G88: 274 | H88: 734 | I88: 744 | J88: 10 | K88: 218471 | L88: 221256 | M88: 2785 | N88: 283 | O88: 772 | P88: 782 | Q88: 10 | R88: 419462 | S88: 425121 | T88: 5660 | U88: 557 | V88: 753.0736086 | W88: 763.2333932 | X88: 10.16157989
A89: 264 | B89: 1 | C89: HERMAN-NORCROSS | D89: 67605 | E89: 69550 | F89: 1945 | G89: 118 | H89: 573 | I89: 589 | J89: 16 | K89: 71329 | L89: 73330 | M89: 2002 | N89: 116 | O89: 615 | P89: 632 | Q89: 17 | R89: 138934 | S89: 142880 | T89: 3947 | U89: 234 | V89: 593.7350427 | W89: 610.5982906 | X89: 16.86752137
A90: 270 | B90: 1 | C90: HOPKINS | D90: 9269649 | E90: 9451392 | F90: 181744 | G90: 6970 | H90: 1330 | I90: 1356 | J90: 26 | K90: 9970236 | L90: 10135519 | M90: 165283 | N90: 6987 | O90: 1427 | P90: 1451 | Q90: 24 | R90: 19239885 | S90: 19586911 | T90: 347027 | U90: 13957 | V90: 1378.5115 | W90: 1403.375439 | X90: 24.86401089
A91: 271 | B91: 1 | C91: BLOOMINGTON | D91: 17577147 | E91: 17900554 | F91: 323406 | G91: 10604 | H91: 1658 | I91: 1688 | J91: 30 | K91: 18527587 | L91: 18878349 | M91: 350761 | N91: 10459 | O91: 1771 | P91: 1805 | Q91: 34 | R91: 36104734 | S91: 36778903 | T91: 674167 | U91: 21063 | V91: 1714.130656 | W91: 1746.13792 | X91: 32.00716897
A92: 272 | B92: 1 | C92: EDEN PRAIRIE | D92: 10727331 | E92: 10882162 | F92: 154831 | G92: 8602 | H92: 1247 | I92: 1265 | J92: 18 | K92: 11110073 | L92: 11245796 | M92: 135723 | N92: 8455 | O92: 1314 | P92: 1330 | Q92: 16 | R92: 21837404 | S92: 22127958 | T92: 290554 | U92: 17057 | V92: 1280.260538 | W92: 1297.294835 | X92: 17.03429677
A93: 273 | B93: 1 | C93: EDINA | D93: 10499022 | E93: 10751310 | F93: 252288 | G93: 8548 | H93: 1228 | I93: 1258 | J93: 30 | K93: 11170731 | L93: 11417018 | M93: 246288 | N93: 8559 | O93: 1305 | P93: 1334 | Q93: 29 | R93: 21669753 | S93: 22168328 | T93: 498576 | U93: 17107 | V93: 1266.718478 | W93: 1295.86298 | X93: 29.14456071
A94: 276 | B94: 1 | C94: MINNETONKA | D94: 12218620 | E94: 12343365 | F94: 124744 | G94: 10550 | H94: 1158 | I94: 1170 | J94: 12 | K94: 13033544 | L94: 13153910 | M94: 120366 | N94: 10652 | O94: 1224 | P94: 1235 | Q94: 11 | R94: 25252164 | S94: 25497275 | T94: 245110 | U94: 21202 | V94: 1191.02745 | W94: 1202.588199 | X94: 11.56070182
A95: 277 | B95: 1 | C95: WESTONKA | D95: 2534821 | E95: 2603831 | F95: 69010 | G95: 2298 | H95: 1103 | I95: 1133 | J95: 30 | K95: 2730659 | L95: 2806474 | M95: 75814 | N95: 2296 | O95: 1189 | P95: 1222 | Q95: 33 | R95: 5265480 | S95: 5410305 | T95: 144824 | U95: 4594 | V95: 1146.164562 | W95: 1177.689377 | X95: 31.5245973
A96: 278 | B96: 1 | C96: ORONO | D96: 2896509 | E96: 2937489 | F96: 40979 | G96: 2810 | H96: 1031 | I96: 1045 | J96: 14 | K96: 3059315 | L96: 3098738 | M96: 39423 | N96: 2814 | O96: 1087 | P96: 1101 | Q96: 14 | R96: 5955824 | S96: 6036227 | T96: 80402 | U96: 5624 | V96: 1059.001422 | W96: 1073.297831 | X96: 14.29623044
A97: 279 | B97: 1 | C97: OSSEO | D97: 26976957 | E97: 27602111 | F97: 625154 | G97: 20654 | H97: 1306 | I97: 1336 | J97: 30 | K97: 29103265 | L97: 29793868 | M97: 690603 | N97: 20751 | O97: 1403 | P97: 1436 | Q97: 33 | R97: 56080222 | S97: 57395979 | T97: 1315757 | U97: 41405 | V97: 1354.431156 | W97: 1386.208888 | X97: 31.77773216
A98: 280 | B98: 1 | C98: RICHFIELD | D98: 5393456 | E98: 5518972 | F98: 125516 | G98: 4183 | H98: 1289 | I98: 1319 | J98: 30 | K98: 5538600 | L98: 5670572 | M98: 131972 | N98: 4003 | O98: 1383 | P98: 1416 | Q98: 33 | R98: 10932056 | S98: 11189544 | T98: 257488 | U98: 8186 | V98: 1335.457611 | W98: 1366.912289 | X98: 31.45467872
A99: 281 | B99: 1 | C99: ROBBINSDALE | D99: 14784748 | E99: 15172219 | F99: 387471 | G99: 12927 | H99: 1144 | I99: 1174 | J99: 30 | K99: 16207966 | L99: 16641593 | M99: 433627 | N99: 13162 | O99: 1231 | P99: 1264 | Q99: 33 | R99: 30992714 | S99: 31813812 | T99: 821098 | U99: 26089 | V99: 1187.96098 | W99: 1219.433938 | X99: 31.47295795
A100: 282 | B100: 1 | C100: ST. ANTHONY-NEW | D100: 1671360 | E100: 1724399 | F100: 53038 | G100: 1778 | H100: 940 | I100: 970 | J100: 30 | K100: 1773116 | L100: 1827441 | M100: 54324 | N100: 1776 | O100: 998 | P100: 1029 | Q100: 31 | R100: 3444476 | S100: 3551840 | T100: 107362 | U100: 3554 | V100: 969.1828925 | W100: 999.3922341 | X100: 30.20877884
A101: 283 | B101: 1 | C101: ST. LOUIS PARK | D101: 4728126 | E101: 4814415 | F101: 86289 | G101: 4641 | H101: 1019 | I101: 1037 | J101: 18 | K101: 5089342 | L101: 5173122 | M101: 83780 | N101: 4611 | O101: 1104 | P101: 1122 | Q101: 18 | R101: 9817468 | S101: 9987537 | T101: 170069 | U101: 9252 | V101: 1061.118461 | W101: 1079.500324 | X101: 18.38186338
A102: 284 | B102: 1 | C102: WAYZATA | D102: 10655840 | E102: 10924645 | F102: 268805 | G102: 11692 | H102: 911 | I102: 934 | J102: 23 | K102: 11717332 | L102: 11992179 | M102: 274848 | N102: 11920 | O102: 983 | P102: 1006 | Q102: 23 | R102: 22373172 | S102: 22916824 | T102: 543653 | U102: 23612 | V102: 947.5339658 | W102: 970.5583602 | X102: 23.02443673
A103: 286 | B103: 1 | C103: BROOKLYN CENTER | D103: 2202429 | E103: 2275120 | F103: 72692 | G103: 2405 | H103: 916 | I103: 946 | J103: 30 | K103: 2388368 | L103: 2468293 | M103: 79925 | N103: 2405 | O103: 993 | P103: 1026 | Q103: 33 | R103: 4590797 | S103: 4743413 | T103: 152617 | U103: 4810 | V103: 954.4276507 | W103: 986.1565489 | X103: 31.72910603
A104: 294 | B104: 1 | C104: HOUSTON | D104: 1891493 | E104: 1906264 | F104: 14772 | G104: 2024 | H104: 935 | I104: 942 | J104: 7 | K104: 1971607 | L104: 1985987 | M104: 14380 | N104: 2025 | O104: 974 | P104: 981 | Q104: 7 | R104: 3863100 | S104: 3892251 | T104: 29152 | U104: 4049 | V104: 954.087429 | W104: 961.2869844 | X104: 7.19980242
A105: 297 | B105: 1 | C105: SPRING GROVE | D105: 316698 | E105: 324206 | F105: 7509 | G105: 348 | H105: 910 | I105: 932 | J105: 22 | K105: 333944 | L105: 342225 | M105: 8281 | N105: 346 | O105: 965 | P105: 989 | Q105: 24 | R105: 650642 | S105: 666431 | T105: 15790 | U105: 694 | V105: 937.5244957 | W105: 960.2752161 | X105: 22.75216138
A106: 299 | B106: 1 | C106: CALEDONIA | D106: 762657 | E106: 788977 | F106: 26320 | G106: 685 | H106: 1113 | I106: 1152 | J106: 39 | K106: 821613 | L106: 850397 | M106: 28784 | N106: 691 | O106: 1189 | P106: 1231 | Q106: 42 | R106: 1584270 | S106: 1639374 | T106: 55104 | U106: 1376 | V106: 1151.359012 | W106: 1191.405523 | X106: 40.04651163
A107: 300 | B107: 1 | C107: LACRESCENT | D107: 2108247 | E107: 2142278 | F107: 34031 | G107: 1110 | H107: 1899 | I107: 1930 | J107: 31 | K107: 2168816 | L107: 2204921 | M107: 36105 | N107: 1071 | O107: 2025 | P107: 2059 | Q107: 34 | R107: 4277063 | S107: 4347199 | T107: 70136 | U107: 2181 | V107: 1961.055938 | W107: 1993.213663 | X107: 32.15772581
A108: 306 | B108: 1 | C108: LAPORTE | D108: 494422 | E108: 496361 | F108: 1940 | G108: 310 | H108: 1597 | I108: 1603 | J108: 6 | K108: 529571 | L108: 530922 | M108: 1352 | N108: 313 | O108: 1694 | P108: 1698 | Q108: 4 | R108: 1023993 | S108: 1027283 | T108: 3292 | U108: 623 | V108: 1643.648475 | W108: 1648.929374 | X108: 5.284109149
A109: 308 | B109: 1 | C109: NEVIS | D109: 487454 | E109: 495175 | F109: 7721 | G109: 625 | H109: 780 | I109: 792 | J109: 12 | K109: 506110 | L109: 513301 | M109: 7192 | N109: 616 | O109: 821 | P109: 833 | Q109: 12 | R109: 993564 | S109: 1008476 | T109: 14913 | U109: 1241 | V109: 800.6156326 | W109: 812.6317486 | X109: 12.01692184
A110: 309 | B110: 1 | C110: PARK RAPIDS | D110: 1542163 | E110: 1590006 | F110: 47843 | G110: 1577 | H110: 978 | I110: 1008 | J110: 30 | K110: 1674680 | L110: 1727461 | M110: 52782 | N110: 1582 | O110: 1059 | P110: 1092 | Q110: 33 | R110: 3216843 | S110: 3317467 | T110: 100625 | U110: 3159 | V110: 1018.310541 | W110: 1050.163659 | X110: 31.85343463
A111: 314 | B111: 1 | C111: BRAHAM | D111: 298857 | E111: 326229 | F111: 27372 | G111: 764 | H111: 391 | I111: 427 | J111: 36 | K111: 314095 | L111: 344929 | M111: 30834 | N111: 764 | O111: 411 | P111: 451 | Q111: 40 | R111: 612952 | S111: 671158 | T111: 58206 | U111: 1528 | V111: 401.1465969 | W111: 439.2395288 | X111: 38.09293194
A112: 316 | B112: 1 | C112: GREENWAY | D112: 2422997 | E112: 2454453 | F112: 31456 | G112: 1049 | H112: 2310 | I112: 2340 | J112: 30 | K112: 2573712 | L112: 2608282 | M112: 34570 | N112: 1048 | O112: 2456 | P112: 2489 | Q112: 33 | R112: 4996709 | S112: 5062735 | T112: 66026 | U112: 2097 | V112: 2382.789223 | W112: 2414.275155 | X112: 31.48593228
A113: 317 | B113: 1 | C113: DEER RIVER | D113: 1734749 | E113: 1750624 | F113: 15875 | G113: 931 | H113: 1864 | I113: 1881 | J113: 17 | K113: 1830308 | L113: 1841583 | M113: 11275 | N113: 922 | O113: 1986 | P113: 1998 | Q113: 12 | R113: 3565057 | S113: 3592207 | T113: 27150 | U113: 1853 | V113: 1923.937938 | W113: 1938.589854 | X113: 14.65191581
A114: 318 | B114: 1 | C114: GRAND RAPIDS | D114: 4267101 | E114: 4360173 | F114: 93072 | G114: 3981 | H114: 1072 | I114: 1095 | J114: 23 | K114: 4549361 | L114: 4634800 | M114: 85439 | N114: 4011 | O114: 1134 | P114: 1156 | Q114: 22 | R114: 8816462 | S114: 8994973 | T114: 178511 | U114: 7992 | V114: 1103.160911 | W114: 1125.497122 | X114: 22.33621121
A115: 319 | B115: 1 | C115: NASHWAUK-KEEWATI | D115: 962118 | E115: 969840 | F115: 7722 | G115: 553 | H115: 1740 | I115: 1754 | J115: 14 | K115: 984104 | L115: 991649 | M115: 7545 | N115: 539 | O115: 1826 | P115: 1840 | Q115: 14 | R115: 1946222 | S115: 1961489 | T115: 15267 | U115: 1092 | V115: 1782.254579 | W115: 1796.235348 | X115: 13.98076923
A116: 323 | B116: 2 | C116: FRANCONIA | D116: -52809 | E116: -52198 | F116: 611 | G116: 30 | H116: -1760 | I116: -1740 | J116: 20 | K116: -43444 | L116: -42910 | M116: 534 | N116: 24 | O116: -1810 | P116: -1788 | Q116: 22 | R116: -96253 | S116: -95108 | T116: 1145 | U116: 54 | V116: -1782.462963 | W116: -1761.259259 | X116: 21.2037037
A117: 330 | B117: 1 | C117: HERON LAKE-OKABE | D117: 370358 | E117: 374861 | F117: 4503 | G117: 248 | H117: 1494 | I117: 1513 | J117: 19 | K117: 382331 | L117: 383751 | M117: 1419 | N117: 243 | O117: 1574 | P117: 1580 | Q117: 6 | R117: 752689 | S117: 758612 | T117: 5922 | U117: 491 | V117: 1532.971487 | W117: 1545.034623 | X117: 12.0610998
A118: 332 | B118: 1 | C118: MORA | D118: 1391936 | E118: 1442419 | F118: 50482 | G118: 1600 | H118: 870 | I118: 902 | J118: 32 | K118: 1448128 | L118: 1496571 | M118: 48443 | N118: 1575 | O118: 919 | P118: 950 | Q118: 31 | R118: 2840064 | S118: 2938990 | T118: 98925 | U118: 3175 | V118: 894.5083465 | W118: 925.6661417 | X118: 31.15748031
A119: 333 | B119: 1 | C119: OGILVIE | D119: 398954 | E119: 408497 | F119: 9543 | G119: 466 | H119: 856 | I119: 877 | J119: 21 | K119: 430231 | L119: 440628 | M119: 10397 | N119: 473 | O119: 910 | P119: 932 | Q119: 22 | R119: 829185 | S119: 849125 | T119: 19940 | U119: 939 | V119: 883.0511182 | W119: 904.286475 | X119: 21.23535676
A120: 345 | B120: 1 | C120: NEW LONDON-SPICE | D120: 1792765 | E120: 1812549 | F120: 19784 | G120: 1471 | H120: 1219 | I120: 1232 | J120: 13 | K120: 1878030 | L120: 1896415 | M120: 18385 | N120: 1480 | O120: 1269 | P120: 1281 | Q120: 12 | R120: 3670795 | S120: 3708964 | T120: 38169 | U120: 2951 | V120: 1243.915622 | W120: 1256.849881 | X120: 12.93425957
A121: 347 | B121: 1 | C121: WILLMAR | D121: 6508351 | E121: 6625298 | F121: 116947 | G121: 4184 | H121: 1555 | I121: 1583 | J121: 28 | K121: 6969739 | L121: 7075051 | M121: 105312 | N121: 4223 | O121: 1650 | P121: 1675 | Q121: 25 | R121: 13478090 | S121: 13700349 | T121: 222259 | U121: 8407 | V121: 1603.198525 | W121: 1629.635899 | X121: 26.43737362
A122: 356 | B122: 1 | C122: LANCASTER | D122: 139815 | E122: 144604 | F122: 4789 | G122: 144 | H122: 971 | I122: 1004 | J122: 33 | K122: 149065 | L122: 153870 | M122: 4805 | N122: 144 | O122: 1035 | P122: 1069 | Q122: 34 | R122: 288880 | S122: 298474 | T122: 9594 | U122: 288 | V122: 1003.055556 | W122: 1036.368056 | X122: 33.3125
A123: 361 | B123: 1 | C123: INTERNATIONAL FA | D123: 743640 | E123: 776201 | F123: 32562 | G123: 1068 | H123: 696 | I123: 727 | J123: 31 | K123: 798769 | L123: 832674 | M123: 33905 | N123: 1047 | O123: 763 | P123: 795 | Q123: 32 | R123: 1542409 | S123: 1608875 | T123: 66467 | U123: 2115 | V123: 729.2713948 | W123: 760.6973995 | X123: 31.42647754
A124: 362 | B124: 1 | C124: LITTLEFORK-BIG F | D124: 537701 | E124: 537701 | F124: 0 | G124: 333 | H124: 1615 | I124: 1615 | J124: 0 | K124: 543247 | L124: 543247 | M124: 0 | N124: 321 | O124: 1692 | P124: 1692 | Q124: 0 | R124: 1080948 | S124: 1080948 | T124: 0 | U124: 654 | V124: 1652.825688 | W124: 1652.825688 | X124: 0
A125: 363 | B125: 1 | C125: SOUTH KOOCHICHIN | D125: 502370 | E125: 502370 | F125: 0 | G125: 241 | H125: 2085 | I125: 2085 | J125: 0 | K125: 539521 | L125: 539521 | M125: 0 | N125: 247 | O125: 2184 | P125: 2184 | Q125: 0 | R125: 1041891 | S125: 1041891 | T125: 0 | U125: 488 | V125: 2135.022541 | W125: 2135.022541 | X125: 0
A126: 378 | B126: 1 | C126: DAWSON | D126: 688777 | E126: 696334 | F126: 7557 | G126: 543 | H126: 1268 | I126: 1282 | J126: 14 | K126: 715619 | L126: 722446 | M126: 6827 | N126: 530 | O126: 1350 | P126: 1363 | Q126: 13 | R126: 1404396 | S126: 1418780 | T126: 14384 | U126: 1073 | V126: 1308.849953 | W126: 1322.255359 | X126: 13.40540541
A127: 381 | B127: 1 | C127: LAKE SUPERIOR | D127: 1304837 | E127: 1338300 | F127: 33463 | G127: 1360 | H127: 959 | I127: 984 | J127: 25 | K127: 1350396 | L127: 1382655 | M127: 32259 | N127: 1365 | O127: 989 | P127: 1013 | Q127: 24 | R127: 2655233 | S127: 2720955 | T127: 65722 | U127: 2725 | V127: 974.3974312 | W127: 998.5155963 | X127: 24.11816514
A128: 390 | B128: 1 | C128: LAKE OF THE WOOD | D128: 564132 | E128: 577350 | F128: 13218 | G128: 464 | H128: 1216 | I128: 1244 | J128: 28 | K128: 597493 | L128: 608444 | M128: 10951 | N128: 459 | O128: 1302 | P128: 1326 | Q128: 24 | R128: 1161625 | S128: 1185794 | T128: 24169 | U128: 923 | V128: 1258.531961 | W128: 1284.717226 | X128: 26.18526544
A129: 391 | B129: 1 | C129: CLEVELAND | D129: 224546 | E129: 229315 | F129: 4769 | G129: 497 | H129: 452 | I129: 461 | J129: 9 | K129: 238110 | L129: 243571 | M129: 5462 | N129: 496 | O129: 480 | P129: 491 | Q129: 11 | R129: 462656 | S129: 472886 | T129: 10231 | U129: 993 | V129: 465.917422 | W129: 476.2195368 | X129: 10.30312185
A130: 402 | B130: 1 | C130: HENDRICKS | D130: 180157 | E130: 184695 | F130: 4539 | G130: 111 | H130: 1620 | I130: 1661 | J130: 41 | K130: 195579 | L130: 199335 | M130: 3756 | N130: 110 | O130: 1775 | P130: 1809 | Q130: 34 | R130: 375736 | S130: 384030 | T130: 8295 | U130: 221 | V130: 1700.162896 | W130: 1737.692308 | X130: 37.53393665
A131: 403 | B131: 1 | C131: IVANHOE | D131: 24357 | E131: 27328 | F131: 2971 | G131: 150 | H131: 162 | I131: 182 | J131: 20 | K131: 29714 | L131: 33089 | M131: 3374 | N131: 155 | O131: 192 | P131: 213 | Q131: 21 | R131: 54071 | S131: 60417 | T131: 6345 | U131: 305 | V131: 177.2819672 | W131: 198.0885246 | X131: 20.80327869
A132: 404 | B132: 1 | C132: LAKE BENTON | D132: 175820 | E132: 180055 | F132: 4235 | G132: 200 | H132: 879 | I132: 900 | J132: 21 | K132: 179894 | L132: 184327 | M132: 4433 | N132: 190 | O132: 947 | P132: 970 | Q132: 23 | R132: 355714 | S132: 364382 | T132: 8668 | U132: 390 | V132: 912.0871795 | W132: 934.3128205 | X132: 22.22564103
A133: 413 | B133: 1 | C133: MARSHALL | D133: 3371324 | E133: 3408314 | F133: 36990 | G133: 2506 | H133: 1345 | I133: 1360 | J133: 15 | K133: 3612723 | L133: 3647933 | M133: 35210 | N133: 2523 | O133: 1432 | P133: 1446 | Q133: 14 | R133: 6984047 | S133: 7056247 | T133: 72200 | U133: 5029 | V133: 1388.754623 | W133: 1403.111354 | X133: 14.35673096
A134: 414 | B134: 1 | C134: MINNEOTA | D134: 586079 | E134: 591366 | F134: 5287 | G134: 456 | H134: 1285 | I134: 1297 | J134: 12 | K134: 610645 | L134: 615209 | M134: 4564 | N134: 453 | O134: 1348 | P134: 1358 | Q134: 10 | R134: 1196724 | S134: 1206575 | T134: 9851 | U134: 909 | V134: 1316.528053 | W134: 1327.365237 | X134: 10.83718372
A135: 415 | B135: 1 | C135: LYND | D135: 202873 | E135: 202873 | F135: 0 | G135: 194 | H135: 1045 | I135: 1045 | J135: 0 | K135: 179774 | L135: 182073 | M135: 2300 | N135: 164 | O135: 1095 | P135: 1109 | Q135: 14 | R135: 382647 | S135: 384946 | T135: 2300 | U135: 358 | V135: 1068.846369 | W135: 1075.268156 | X135: 6.424581006
A136: 423 | B136: 1 | C136: HUTCHINSON | D136: 3541246 | E136: 3581278 | F136: 40032 | G136: 2760 | H136: 1283 | I136: 1298 | J136: 15 | K136: 3728815 | L136: 3820613 | M136: 91798 | N136: 2704 | O136: 1379 | P136: 1413 | Q136: 34 | R136: 7270061 | S136: 7401891 | T136: 131830 | U136: 5464 | V136: 1330.53825 | W136: 1354.665264 | X136: 24.12701318
A137: 424 | B137: 1 | C137: LESTER PRAIRIE | D137: 164222 | E137: 177654 | F137: 13432 | G137: 442 | H137: 372 | I137: 402 | J137: 30 | K137: 187597 | L137: 202431 | M137: 14833 | N137: 444 | O137: 423 | P137: 456 | Q137: 33 | R137: 351819 | S137: 380085 | T137: 28265 | U137: 886 | V137: 397.0869074 | W137: 428.989842 | X137: 31.90180587
A138: 432 | B138: 1 | C138: MAHNOMEN | D138: 147932 | E138: 166134 | F138: 18202 | G138: 609 | H138: 243 | I138: 273 | J138: 30 | K138: 173993 | L138: 193905 | M138: 19912 | N138: 606 | O138: 287 | P138: 320 | Q138: 33 | R138: 321925 | S138: 360039 | T138: 38114 | U138: =G138+N138 -> 1215 | V138: 264.9588477 | W138: 296.3283951 | X138: 31.36954733
A139: 435 | B139: 1 | C139: WAUBUN | D139: 723646 | E139: 742778 | F139: 19132 | G139: 577 | H139: 1254 | I139: 1287 | J139: 33 | K139: 763369 | L139: 781560 | M139: 18191 | N139: 584 | O139: 1307 | P139: 1338 | Q139: 31 | R139: =D139+K139 -> 1487015 | S139: 1524338 | T139: 37323 | U139: 1161 | V139: =R139/U139 -> 1280.80534 | W139: =S139/U139 -> 1312.952627 | X139: =T139/U139 -> 32.14728682
A140: 441 | B140: 1 | C140: MARSHALL CTY CENTRAL | D140: 488243 | E140: 498104 | F140: 9861 | G140: 387 | H140: 1262 | I140: 1287 | J140: 25 | K140: 499317 | L140: 508639 | M140: 9322 | N140: 381 | O140: 1311 | P140: 1335 | Q140: 24 | R140: 987560 | S140: 1006743 | T140: 19183 | U140: 768 | V140: 1285.885417 | W140: 1310.863281 | X140: 24.97786458
A141: 447 | B141: 1 | C141: GRYGLA | D141: 231979 | E141: 233144 | F141: 1165 | G141: 154 | H141: 1506 | I141: 1514 | J141: 8 | K141: 245557 | L141: 245557 | M141: 0 | N141: 156 | O141: 1574 | P141: 1574 | Q141: 0 | R141: 477536 | S141: 478701 | T141: 1165 | U141: 310 | V141: 1540.43871 | W141: 1544.196774 | X141: 3.758064516
A142: 458 | B142: 1 | C142: TRUMAN | D142: 102262 | E142: 108795 | F142: 6532 | G142: 219 | H142: 467 | I142: 497 | J142: 30 | K142: 112865 | L142: 119956 | M142: 7091 | N142: 216 | O142: 523 | P142: 555 | Q142: 32 | R142: 215127 | S142: 228751 | T142: 13623 | U142: 435 | V142: 494.5448276 | W142: 525.8643678 | X142: 31.31724138
A143: 463 | B143: 1 | C143: EDEN VALLEY | D143: 879045 | E143: 889791 | F143: 10746 | G143: 962 | H143: 914 | I143: 925 | J143: 11 | K143: 919789 | L143: 929895 | M143: 10106 | N143: 938 | O143: 981 | P143: 991 | Q143: 10 | R143: 1798834 | S143: 1819686 | T143: 20852 | U143: 1900 | V143: 946.7547368 | W143: 957.7294737 | X143: 10.97473684
A144: 465 | B144: 1 | C144: LITCHFIELD | D144: 1820688 | E144: 1847922 | F144: 27235 | G144: 1548 | H144: 1176 | I144: 1194 | J144: 18 | K144: 1900916 | L144: 1931907 | M144: 30991 | N144: 1526 | O144: 1246 | P144: 1266 | Q144: 20 | R144: 3721604 | S144: 3779829 | T144: 58226 | U144: 3074 | V144: 1210.671438 | W144: 1229.612557 | X144: 18.94144437
A145: 466 | B145: 1 | C145: DASSEL-COKATO | D145: 2410216 | E145: 2437127 | F145: 26910 | G145: 2214 | H145: 1089 | I145: 1101 | J145: 12 | K145: 2500229 | L145: 2523999 | M145: 23770 | N145: 2193 | O145: 1140 | P145: 1151 | Q145: 11 | R145: 4910445 | S145: 4961126 | T145: 50680 | U145: 4407 | V145: 1114.237577 | W145: 1125.73769 | X145: 11.49988654
A146: 473 | B146: 1 | C146: ISLE | D146: 470665 | E146: 487728 | F146: 17063 | G146: 452 | H146: 1042 | I146: 1080 | J146: 38 | K146: 498996 | L146: 516593 | M146: 17598 | N146: 452 | O146: 1105 | P146: 1144 | Q146: 39 | R146: 969661 | S146: 1004321 | T146: 34661 | U146: 904 | V146: 1072.63385 | W146: 1110.974558 | X146: 38.34181416
A147: 477 | B147: 1 | C147: PRINCETON | D147: 3109012 | E147: 3159381 | F147: 50369 | G147: 3119 | H147: 997 | I147: 1013 | J147: 16 | K147: 3281086 | L147: 3328677 | M147: 47591 | N147: 3104 | O147: 1057 | P147: 1072 | Q147: 15 | R147: 6390098 | S147: 6488058 | T147: 97960 | U147: 6223 | V147: 1026.851679 | W147: 1042.593283 | X147: 15.74160373
A148: 480 | B148: 1 | C148: ONAMIA | D148: 1803412 | E148: 1823990 | F148: 20578 | G148: 633 | H148: 2847 | I148: 2880 | J148: 33 | K148: 1907746 | L148: 1930305 | M148: 22558 | N148: 631 | O148: 3021 | P148: 3057 | Q148: 36 | R148: 3711158 | S148: 3754295 | T148: 43136 | U148: 1264 | V148: 2936.042722 | W148: 2970.170095 | X148: 34.12658228
A149: 482 | B149: 1 | C149: LITTLE FALLS | D149: 2674417 | E149: 2718998 | F149: 44581 | G149: 2306 | H149: 1160 | I149: 1179 | J149: 19 | K149: 2781314 | L149: 2816483 | M149: 35169 | N149: 2283 | O149: 1218 | P149: 1234 | Q149: 16 | R149: 5455731 | S149: 5535481 | T149: 79750 | U149: 4589 | V149: 1188.871432 | W149: 1206.249946 | X149: 17.37851384
A150: 484 | B150: 1 | C150: PIERZ | D150: 1266268 | E150: 1288498 | F150: 22231 | G150: 1122 | H150: 1129 | I150: 1148 | J150: 19 | K150: 1324538 | L150: 1347139 | M150: 22601 | N150: 1115 | O150: 1188 | P150: 1208 | Q150: 20 | R150: 2590806 | S150: 2635637 | T150: 44832 | U150: 2237 | V150: 1158.16093 | W150: 1178.201609 | X150: 20.04112651
A151: 485 | B151: 1 | C151: ROYALTON | D151: 884665 | E151: 895518 | F151: 10853 | G151: 937 | H151: 944 | I151: 956 | J151: 12 | K151: 933242 | L151: 944819 | M151: 11577 | N151: 938 | O151: 995 | P151: 1007 | Q151: 12 | R151: 1817907 | S151: 1840337 | T151: 22430 | U151: 1875 | V151: 969.5504 | W151: 981.5130667 | X151: 11.96266667
A152: 486 | B152: 1 | C152: SWANVILLE | D152: 330434 | E152: 336338 | F152: 5904 | G152: 317 | H152: 1042 | I152: 1061 | J152: 19 | K152: 341474 | L152: 346501 | M152: 5027 | N152: 312 | O152: 1094 | P152: 1111 | Q152: 17 | R152: 671908 | S152: 682839 | T152: 10931 | U152: 629 | V152: 1068.216216 | W152: 1085.594595 | X152: 17.37837838
A153: 487 | B153: 1 | C153: UPSALA | D153: 216409 | E153: 227685 | F153: 11276 | G153: 372 | H153: 582 | I153: 612 | J153: 30 | K153: 240392 | L153: 252854 | M153: 12462 | N153: 374 | O153: 643 | P153: 676 | Q153: 33 | R153: 456801 | S153: 480539 | T153: 23738 | U153: 746 | V153: 612.3337802 | W153: 644.1541555 | X153: 31.82037534
A154: 492 | B154: 1 | C154: AUSTIN | D154: 7258764 | E154: 7371811 | F154: 113047 | G154: 4782 | H154: 1518 | I154: 1541 | J154: 23 | K154: 7718949 | L154: 7803731 | M154: 84781 | N154: 4726 | O154: 1633 | P154: 1651 | Q154: 18 | R154: 14977713 | S154: 15175542 | T154: 197828 | U154: 9508 | V154: 1575.274821 | W154: 1596.081405 | X154: 20.80647875
A155: 495 | B155: 1 | C155: GRAND MEADOW | D155: 524082 | E155: 527474 | F155: 3392 | G155: 414 | H155: 1266 | I155: 1274 | J155: 8 | K155: 549574 | L155: 552791 | M155: 3217 | N155: 412 | O155: 1334 | P155: 1342 | Q155: 8 | R155: 1073656 | S155: 1080265 | T155: 6609 | U155: 826 | V155: 1299.825666 | W155: 1307.826877 | X155: 8.001210654
A156: 497 | B156: 1 | C156: LYLE | D156: 355182 | E156: 355182 | F156: 0 | G156: 246 | H156: 1445 | I156: 1445 | J156: 0 | K156: 363174 | L156: 365618 | M156: 2444 | N156: 239 | O156: 1521 | P156: 1531 | Q156: 10 | R156: 718356 | S156: 720800 | T156: 2444 | U156: 485 | V156: 1481.146392 | W156: 1486.185567 | X156: 5.039175258
A157: 499 | B157: 1 | C157: LEROY | D157: 486759 | E157: 489315 | F157: 2556 | G157: 273 | H157: 1783 | I157: 1792 | J157: 9 | K157: 509108 | L157: 511722 | M157: 2613 | N157: 270 | O157: 1886 | P157: 1895 | Q157: 9 | R157: 995867 | S157: 1001037 | T157: 5169 | U157: 543 | V157: 1834.009208 | W157: 1843.530387 | X157: 9.519337017
A158: 500 | B158: 1 | C158: SOUTHLAND | D158: 698056 | E158: 700614 | F158: 2559 | G158: 407 | H158: 1715 | I158: 1721 | J158: 6 | K158: 692747 | L158: 696172 | M158: 3425 | N158: 386 | O158: 1795 | P158: 1804 | Q158: 9 | R158: 1390803 | S158: 1396786 | T158: 5984 | U158: 793 | V158: 1753.849937 | W158: 1761.394704 | X158: 7.546027743
A159: 505 | B159: 1 | C159: FULDA | D159: 437586 | E159: 452135 | F159: 14549 | G159: 300 | H159: 1459 | I159: 1507 | J159: 48 | K159: 431596 | L159: 446510 | M159: 14914 | N159: 292 | O159: 1478 | P159: 1529 | Q159: 51 | R159: 869182 | S159: 898645 | T159: 29463 | U159: 592 | V159: 1468.212838 | W159: 1517.981419 | X159: 49.76858108
A160: 507 | B160: 1 | C160: NICOLLET | D160: 351830 | E160: 359050 | F160: 7220 | G160: 366 | H160: 961 | I160: 981 | J160: 20 | K160: 362298 | L160: 369386 | M160: 7088 | N160: 363 | O160: 998 | P160: 1018 | Q160: 20 | R160: 714128 | S160: 728436 | T160: 14308 | U160: 729 | V160: 979.5994513 | W160: 999.2263374 | X160: 19.62688615
A161: 508 | B161: 1 | C161: ST. PETER | D161: 2463008 | E161: 2499462 | F161: 36453 | G161: 2071 | H161: 1189 | I161: 1207 | J161: 18 | K161: 2625191 | L161: 2660480 | M161: 35290 | N161: 2067 | O161: 1270 | P161: 1287 | Q161: 17 | R161: 5088199 | S161: 5159942 | T161: 71743 | U161: 4138 | V161: 1229.627598 | W161: 1246.965201 | X161: 17.33760271
A162: 511 | B162: 1 | C162: ADRIAN | D162: 688309 | E162: 688309 | F162: 0 | G162: 549 | H162: 1254 | I162: 1254 | J162: 0 | K162: 724049 | L162: 724049 | M162: 0 | N162: 551 | O162: 1314 | P162: 1314 | Q162: 0 | R162: 1412358 | S162: 1412358 | T162: 0 | U162: 1100 | V162: 1283.961818 | W162: 1283.961818 | X162: 0
A163: 514 | B163: 1 | C163: ELLSWORTH | D163: 240965 | E163: 243183 | F163: 2218 | G163: 136 | H163: 1772 | I163: 1788 | J163: 16 | K163: 252442 | L163: 254837 | M163: 2394 | N163: 134 | O163: 1884 | P163: 1902 | Q163: 18 | R163: 493407 | S163: 498020 | T163: 4612 | U163: 270 | V163: 1827.433333 | W163: 1844.518519 | X163: 17.08148148
A164: 518 | B164: 1 | C164: WORTHINGTON | D164: 4253212 | E164: 4313974 | F164: 60762 | G164: 3236 | H164: 1314 | I164: 1333 | J164: 19 | K164: 4570919 | L164: 4625871 | M164: 54952 | N164: 3316 | O164: 1378 | P164: 1395 | Q164: 17 | R164: 8824131 | S164: 8939845 | T164: 115714 | U164: 6552 | V164: 1346.784341 | W164: 1364.445208 | X164: 17.66086691
A165: 531 | B165: 1 | C165: BYRON | D165: 1570889 | E165: 1594265 | F165: 23376 | G165: 2081 | H165: 755 | I165: 766 | J165: 11 | K165: 1710780 | L165: 1734073 | M165: 23293 | N165: 2126 | O165: 805 | P165: 816 | Q165: 11 | R165: 3281669 | S165: 3328338 | T165: 46669 | U165: 4207 | V165: 780.0496791 | W165: 791.1428571 | X165: 11.09317804
A166: 533 | B166: 1 | C166: DOVER-EYOTA | D166: 1026991 | E166: 1046312 | F166: 19321 | G166: 1190 | H166: 863 | I166: 879 | J166: 16 | K166: 1070879 | L166: 1090795 | M166: 19916 | N166: 1191 | O166: 899 | P166: 916 | Q166: 17 | R166: 2097870 | S166: 2137107 | T166: 39237 | U166: 2381 | V166: 881.0877782 | W166: 897.5669887 | X166: 16.47921042
A167: 534 | B167: 1 | C167: STEWARTVILLE | D167: 2052691 | E167: 2091597 | F167: 38907 | G167: 2076 | H167: 989 | I167: 1008 | J167: 19 | K167: 2196603 | L167: 2234389 | M167: 37787 | N167: 2072 | O167: 1060 | P167: 1078 | Q167: 18 | R167: 4249294 | S167: 4325986 | T167: 76694 | U167: 4148 | V167: 1024.419961 | W167: 1042.908872 | X167: 18.48939248
A168: 535 | B168: 1 | C168: ROCHESTER | D168: 26967278 | E168: 27498415 | F168: 531138 | G168: 17352 | H168: 1554 | I168: 1585 | J168: 31 | K168: 28857173 | L168: 29305933 | M168: 448760 | N168: 17445 | O168: 1654 | P168: 1680 | Q168: 26 | R168: 55824451 | S168: 56804348 | T168: 979898 | U168: 34797 | V168: 1604.289192 | W168: 1632.449579 | X168: 28.16041613
A169: 542 | B169: 1 | C169: BATTLE LAKE | D169: 165825 | E169: 175454 | F169: 9630 | G169: 436 | H169: 380 | I169: 402 | J169: 22 | K169: 166687 | L169: 176959 | M169: 10272 | N169: 426 | O169: 391 | P169: 415 | Q169: 24 | R169: 332512 | S169: 352413 | T169: 19902 | U169: 862 | V169: 385.7447796 | W169: 408.8317865 | X169: 23.08816705
A170: 544 | B170: 1 | C170: FERGUS FALLS | D170: 1662532 | E170: 1721780 | F170: 59248 | G170: 2407 | H170: 691 | I170: 715 | J170: 24 | K170: 1715365 | L170: 1776906 | M170: 61541 | N170: 2387 | O170: 719 | P170: 744 | Q170: 25 | R170: 3377897 | S170: 3498686 | T170: 120789 | U170: 4794 | V170: 704.6093033 | W170: 729.8051731 | X170: 25.19586984
A171: 545 | B171: 1 | C171: HENNING | D171: 165326 | E171: 169268 | F171: 3943 | G171: 355 | H171: 466 | I171: 477 | J171: 11 | K171: 180896 | L171: 190159 | M171: 9263 | N171: 348 | O171: 520 | P171: 546 | Q171: 26 | R171: 346222 | S171: 359427 | T171: 13206 | U171: 703 | V171: 492.4921764 | W171: 511.2759602 | X171: 18.78520626
A172: 547 | B172: 1 | C172: PARKERS PRAIRIE | D172: 736806 | E172: 743168 | F172: 6363 | G172: 544 | H172: 1354 | I172: 1366 | J172: 12 | K172: 750884 | L172: 757002 | M172: 6118 | N172: 532 | O172: 1411 | P172: 1423 | Q172: 12 | R172: 1487690 | S172: 1500170 | T172: 12481 | U172: 1076 | V172: 1382.611524 | W172: 1394.210037 | X172: 11.59944238
A173: 548 | B173: 1 | C173: PELICAN RAPIDS | D173: 536559 | E173: 554235 | F173: 17676 | G173: 897 | H173: 598 | I173: 618 | J173: 20 | K173: 567291 | L173: 585238 | M173: 17948 | N173: 884 | O173: 642 | P173: 662 | Q173: 20 | R173: 1103850 | S173: 1139473 | T173: 35624 | U173: 1781 | V173: 619.7922515 | W173: 639.793936 | X173: 20.00224593
A174: 549 | B174: 1 | C174: PERHAM | D174: 1402653 | E174: 1423164 | F174: 20511 | G174: 1406 | H174: 998 | I174: 1012 | J174: 14 | K174: 1476234 | L174: 1496436 | M174: 20201 | N174: 1403 | O174: 1052 | P174: 1067 | Q174: 15 | R174: 2878887 | S174: 2919600 | T174: 40712 | U174: 2809 | V174: 1024.879672 | W174: 1039.373443 | X174: 14.49341403
A175: 550 | B175: 1 | C175: UNDERWOOD | D175: 390893 | E175: 397622 | F175: 6729 | G175: 557 | H175: 702 | I175: 714 | J175: 12 | K175: 407675 | L175: 413974 | M175: 6298 | N175: 559 | O175: 729 | P175: 741 | Q175: 12 | R175: 798568 | S175: 811596 | T175: 13027 | U175: 1116 | V175: 715.562724 | W175: 727.2365591 | X175: 11.67293907
A176: 553 | B176: 1 | C176: NEW YORK MILLS | D176: 643875 | E176: 654782 | F176: 10907 | G176: 747 | H176: 862 | I176: 877 | J176: 15 | K176: 670200 | L176: 680800 | M176: 10600 | N176: 743 | O176: 902 | P176: 916 | Q176: 14 | R176: 1314075 | S176: 1335582 | T176: 21507 | U176: 1490 | V176: 881.9295302 | W176: 896.3637584 | X176: 14.43422819
A177: 561 | B177: 1 | C177: GOODRIDGE | D177: 235365 | E177: 240113 | F177: 4748 | G177: 206 | H177: 1143 | I177: 1166 | J177: 23 | K177: 246654 | L177: 251212 | M177: 4559 | N177: 212 | O177: 1163 | P177: 1185 | Q177: 22 | R177: 482019 | S177: 491325 | T177: 9307 | U177: 418 | V177: 1153.155502 | W177: 1175.41866 | X177: 22.26555024
A178: 564 | B178: 1 | C178: THIEF RIVER FALL | D178: 1611430 | E178: 1643051 | F178: 31621 | G178: 1900 | H178: 848 | I178: 865 | J178: 17 | K178: 1649031 | L178: 1677771 | M178: 28741 | N178: 1900 | O178: 868 | P178: 883 | Q178: 15 | R178: 3260461 | S178: 3320822 | T178: 60362 | U178: 3800 | V178: 858.0160526 | W178: 873.9005263 | X178: 15.88473684
A179: 577 | B179: 1 | C179: WILLOW RIVER | D179: 385159 | E179: 392636 | F179: 7478 | G179: 420 | H179: 917 | I179: 935 | J179: 18 | K179: 399174 | L179: 407261 | M179: 8086 | N179: 408 | O179: 978 | P179: 998 | Q179: 20 | R179: 784333 | S179: 799897 | T179: 15564 | U179: 828 | V179: 947.2620773 | W179: 966.0591787 | X179: 18.79710145
A180: 578 | B180: 1 | C180: PINE CITY | D180: 3538682 | E180: 3593011 | F180: 54329 | G180: 1588 | H180: 2228 | I180: 2263 | J180: 35 | K180: 3741364 | L180: 3791416 | M180: 50052 | N180: 1574 | O180: 2377 | P180: 2409 | Q180: 32 | R180: 7280046 | S180: 7384427 | T180: 104381 | U180: 3162 | V180: 2302.354839 | W180: 2335.365908 | X180: 33.01106894
A181: 581 | B181: 1 | C181: EDGERTON | D181: 825621 | E181: 825621 | F181: 0 | G181: 392 | H181: 2106 | I181: 2106 | J181: 0 | K181: 887584 | L181: 887584 | M181: 0 | N181: 401 | O181: 2213 | P181: 2213 | Q181: 0 | R181: 1713205 | S181: 1713205 | T181: 0 | U181: 793 | V181: 2160.409836 | W181: 2160.409836 | X181: 0
A182: 592 | B182: 1 | C182: CLIMAX | D182: 215896 | E182: 215896 | F182: 0 | G182: 181 | H182: 1190 | I182: 1190 | J182: 0 | K182: 226315 | L182: 226315 | M182: 0 | N182: 181 | O182: 1248 | P182: 1248 | Q182: 0 | R182: 442211 | S182: 442211 | T182: 0 | U182: 362 | V182: 1221.577348 | W182: 1221.577348 | X182: 0
A183: 593 | B183: 1 | C183: CROOKSTON | D183: 1702235 | E183: 1741079 | F183: 38844 | G183: 1252 | H183: 1360 | I183: 1391 | J183: 31 | K183: 1791159 | L183: 1833028 | M183: 41869 | N183: 1229 | O183: 1457 | P183: 1491 | Q183: 34 | R183: 3493394 | S183: 3574107 | T183: 80713 | U183: 2481 | V183: 1408.058847 | W183: 1440.591294 | X183: 32.53244659
A184: 595 | B184: 1 | C184: EAST GRAND FORKS | D184: 1910965 | E184: 1941874 | F184: 30909 | G184: 1907 | H184: 1002 | I184: 1018 | J184: 16 | K184: 2044543 | L184: 2067185 | M184: 22642 | N184: 1931 | O184: 1059 | P184: 1071 | Q184: 12 | R184: 3955508 | S184: 4009059 | T184: 53551 | U184: 3838 | V184: 1030.616988 | W184: 1044.569828 | X184: 13.95284002
A185: 599 | B185: 1 | C185: FERTILE-BELTRAMI | D185: 455969 | E185: 465134 | F185: 9164 | G185: 454 | H185: 1004 | I185: 1025 | J185: 21 | K185: 465881 | L185: 472896 | M185: 7015 | N185: 451 | O185: 1033 | P185: 1049 | Q185: 16 | R185: 921850 | S185: 938030 | T185: 16179 | U185: 905 | V185: 1018.618785 | W185: 1036.497238 | X185: 17.87734807
A186: 600 | B186: 1 | C186: FISHER | D186: 309595 | E186: 312113 | F186: 2518 | G186: 256 | H186: 1209 | I186: 1219 | J186: 10 | K186: 308842 | L186: 310990 | M186: 2148 | N186: 241 | O186: 1282 | P186: 1290 | Q186: 8 | R186: 618437 | S186: 623103 | T186: 4666 | U186: 497 | V186: 1244.34004 | W186: 1253.72837 | X186: 9.38832998
A187: 601 | B187: 1 | C187: FOSSTON | D187: 810229 | E187: 819810 | F187: 9581 | G187: 649 | H187: 1248 | I187: 1263 | J187: 15 | K187: 845101 | L187: 853944 | M187: 8843 | N187: 642 | O187: 1316 | P187: 1330 | Q187: 14 | R187: 1655330 | S187: 1673754 | T187: 18424 | U187: 1291 | V187: 1282.207591 | W187: 1296.478699 | X187: 14.27110767
A188: 621 | B188: 1 | C188: MOUNDS VIEW | D188: 24007497 | E188: 24494162 | F188: 486666 | G188: 11511 | H188: 2086 | I188: 2128 | J188: 42 | K188: 25672558 | L188: 26152344 | M188: 479786 | N188: 11649 | O188: 2204 | P188: 2245 | Q188: 41 | R188: 49680055 | S188: 50646506 | T188: 966452 | U188: 23160 | V188: 2145.080095 | W188: 2186.809413 | X188: 41.72936097
A189: 622 | B189: 1 | C189: NORTH ST. PAUL-M | D189: 16928433 | E189: 17238004 | F189: 309571 | G189: 10398 | H189: 1628 | I189: 1658 | J189: 30 | K189: 17982937 | L189: 18321350 | M189: 338413 | N189: 10331 | O189: 1741 | P189: 1773 | Q189: 32 | R189: 34911370 | S189: 35559354 | T189: 647984 | U189: 20729 | V189: 1684.180134 | W189: 1715.439915 | X189: 31.25978098
A190: 623 | B190: 1 | C190: ROSEVILLE | D190: 10492018 | E190: 10720502 | F190: 228484 | G190: 7507 | H190: 1398 | I190: 1428 | J190: 30 | K190: 11318751 | L190: 11571507 | M190: 252755 | N190: 7547 | O190: 1500 | P190: 1533 | Q190: 33 | R190: 21810769 | S190: 22292009 | T190: 481239 | U190: 15054 | V190: 1448.835459 | W190: 1480.803042 | X190: 31.96751694
A191: 624 | B191: 1 | C191: WHITE BEAR LAKE | D191: 11883242 | E191: 12137656 | F191: 254413 | G191: 8376 | H191: 1419 | I191: 1449 | J191: 30 | K191: 12804218 | L191: 13085424 | M191: 281206 | N191: 8425 | O191: 1520 | P191: 1553 | Q191: 33 | R191: 24687460 | S191: 25223080 | T191: 535619 | U191: 16801 | V191: 1469.404202 | W191: 1501.284447 | X191: 31.8801857
A192: 625 | B192: 1 | C192: ST. PAUL | D192: 61448452 | E192: 62562171 | F192: 1113719 | G192: 36398 | H192: 1688 | I192: 1719 | J192: 31 | K192: 65164836 | L192: 66380440 | M192: 1215605 | N192: 36114 | O192: 1804 | P192: 1838 | Q192: 34 | R192: 126613288 | S192: 128942611 | T192: 2329324 | U192: 72512 | V192: 1746.101169 | W192: 1778.224446 | X192: 32.12328994
A193: 630 | B193: 1 | C193: RED LAKE FALLS | D193: 415713 | E193: 425836 | F193: 10122 | G193: 358 | H193: 1161 | I193: 1189 | J193: 28 | K193: 437434 | L193: 445672 | M193: 8238 | N193: 356 | O193: 1229 | P193: 1252 | Q193: 23 | R193: 853147 | S193: 871508 | T193: 18360 | U193: 714 | V193: 1194.883754 | W193: 1220.59944 | X193: 25.71428571
A194: 635 | B194: 1 | C194: MILROY | D194: -18814 | E194: -18814 | F194: 0 | G194: 43 | H194: -438 | I194: -438 | J194: 0 | K194: -20700 | L194: -20700 | M194: 0 | N194: 45 | O194: -460 | P194: -460 | Q194: 0 | R194: -39514 | S194: -39514 | T194: 0 | U194: 88 | V194: -449.0227273 | W194: -449.0227273 | X194: 0
A195: 640 | B195: 1 | C195: WABASSO | D195: 283724 | E195: 289110 | F195: 5386 | G195: 376 | H195: 755 | I195: 769 | J195: 14 | K195: 295073 | L195: 300943 | M195: 5870 | N195: 370 | O195: 797 | P195: 813 | Q195: 16 | R195: 578797 | S195: 590053 | T195: 11256 | U195: 746 | V195: 775.8672922 | W195: 790.9557641 | X195: 15.08847185
A196: 656 | B196: 1 | C196: FARIBAULT | D196: 5671026 | E196: 5773961 | F196: 102935 | G196: 3805 | H196: 1490 | I196: 1517 | J196: 27 | K196: 5964362 | L196: 6055216 | M196: 90854 | N196: 3737 | O196: 1596 | P196: 1620 | Q196: 24 | R196: 11635388 | S196: 11829177 | T196: 193789 | U196: 7542 | V196: 1542.745691 | W196: 1568.440334 | X196: 25.69464333
A197: 659 | B197: 1 | C197: NORTHFIELD | D197: 5414670 | E197: 5533757 | F197: 119087 | G197: 3854 | H197: 1405 | I197: 1436 | J197: 31 | K197: 5621825 | L197: 5748585 | M197: 126759 | N197: 3731 | O197: 1507 | P197: 1541 | Q197: 34 | R197: 11036495 | S197: 11282342 | T197: 245846 | U197: 7585 | V197: 1455.042189 | W197: 1487.45445 | X197: 32.4121292
A198: 671 | B198: 1 | C198: HILLS-BEAVER CRE | D198: 315515 | E198: 321837 | F198: 6322 | G198: 376 | H198: 839 | I198: 856 | J198: 17 | K198: 331142 | L198: 337388 | M198: 6246 | N198: 366 | O198: 905 | P198: 922 | Q198: 17 | R198: 646657 | S198: 659225 | T198: 12568 | U198: 742 | V198: 871.5053908 | W198: 888.4433962 | X198: 16.93800539
A199: 676 | B199: 1 | C199: BADGER | D199: 125031 | E199: 127473 | F199: 2442 | G199: 189 | H199: 662 | I199: 674 | J199: 12 | K199: 131967 | L199: 136518 | M199: 4552 | N199: 185 | O199: 713 | P199: 738 | Q199: 25 | R199: 256998 | S199: 263991 | T199: 6994 | U199: 374 | V199: 687.1604278 | W199: 705.8582888 | X199: 18.70053476
A200: 682 | B200: 1 | C200: ROSEAU | D200: 1232830 | E200: 1273380 | F200: 40550 | G200: 1170 | H200: 1054 | I200: 1088 | J200: 34 | K200: 1296792 | L200: 1333766 | M200: 36974 | N200: 1147 | O200: 1131 | P200: 1163 | Q200: 32 | R200: 2529622 | S200: 2607146 | T200: 77524 | U200: 2317 | V200: 1091.766077 | W200: 1125.22486 | X200: 33.45878291
A201: 690 | B201: 1 | C201: WARROAD | D201: 1182973 | E201: 1199591 | F201: 16618 | G201: 1023 | H201: 1156 | I201: 1173 | J201: 17 | K201: 1264810 | L201: 1279630 | M201: 14820 | N201: 1016 | O201: 1245 | P201: 1259 | Q201: 14 | R201: 2447783 | S201: 2479221 | T201: 31438 | U201: 2039 | V201: 1200.482099 | W201: 1215.900441 | X201: 15.41834232
A202: 695 | B202: 1 | C202: CHISHOLM | D202: 597208 | E202: 613908 | F202: 16701 | G202: 721 | H202: 828 | I202: 851 | J202: 23 | K202: 617078 | L202: 633465 | M202: 16387 | N202: 716 | O202: 862 | P202: 885 | Q202: 23 | R202: 1214286 | S202: 1247373 | T202: 33088 | U202: =G202+N202 -> 1437 | V202: 845.0146138 | W202: 868.039666 | X202: 23.02574809
... 329 more rows

Sheet Pension
A2: MDE-School Finance | T2: 2017-02-13
A3: Pension Adjustment Revenue
A4: Governor's Recommendation
A5: District | D5: FY 2018 | K5: FY 2019 | R5: Biennium
D6: Total Revenue | G6: Adjusted ADM | H6: Revenue/Adjusted ADM | K6: Total Revenue | N6: Adjusted ADM | O6: Revenue/Adjusted ADM | R6: Total Revenue | U6: Adjusted ADM | V6: Revenue/Adjusted ADM
A8: DIST | B8: TYPE | C8: NAME | D8: Current | E8: Governor | F8: Change | H8: Current | I8: Governor | J8: Change | K8: Current | L8: Governor | M8: Change | O8: Current | P8: Governor | Q8: Change | R8: Current | S8: Governor | T8: Change | V8: Current | W8: Governor | X8: Change
C9: TOTAL | D9: =SUM(D10:D530) -> 0 | E9: 22851000 | F9: 22851000 | G9: 858281 | H9: 0 | I9: =F9/G9 -> 26.62414757 | J9: =F9/G9 -> 26.62414757 | K9: =SUM(K10:K530) -> 0 | L9: 45703000 | M9: 45703000 | N9: 863356 | O9: 0 | P9: =M9/N9 -> 52.936448 | Q9: =M9/N9 -> 52.936448 | R9: =SUM(R10:R530) -> 0 | S9: =SUM(S10:S530) -> 68554009 | T9: 68554009 | U9: 1721641 | V9: =R9/U9 -> 0 | W9: =S9/U9 -> 39.81899188 | X9: =T9/U9 -> 39.81899188
A10: 1 | B10: 1 | C10: AITKIN | D10: 0 | E10: =F10 -> 25495 | F10: 25495 | G10: 1147 | H10: 0 | I10: =F10/G10 -> 22.22755013 | J10: =F10/G10 -> 22.22755013 | K10: 0 | L10: =M10 -> 50990 | M10: 50990 | N10: 1143 | O10: 0 | P10: =M10/N10 -> 44.61067367 | Q10: =M10/N10 -> 44.61067367 | R10: =D10+K10 -> 0 | S10: =E10+L10 -> 76485 | T10: =F10+M10 -> 76485 | U10: 2290 | V10: =R10/U10 -> 0 | W10: =S10/U10 -> 33.39956332 | X10: =T10/U10 -> 33.39956332
A11: 1.2 | B11: 3 | C11: MINNEAPOLIS | D11: 0 | E11: =F11 -> 1480915 | F11: 1480915 | G11: 35791 | H11: 0 | I11: =F11/G11 -> 41.37674276 | J11: =F11/G11 -> 41.37674276 | K11: 0 | L11: =M11 -> 2961895 | M11: 2961895 | N11: 36561 | O11: 0 | P11: =M11/N11 -> 81.0124176 | Q11: =M11/N11 -> 81.0124176 | R11: =D11+K11 -> 0 | S11: 4442810 | T11: 4442810 | U11: 72352 | V11: =R11/U11 -> 0 | W11: =S11/U11 -> 61.40548983 | X11: =T11/U11 -> 61.40548983
A12: 2 | B12: 1 | C12: HILL CITY | D12: 0 | E12: 8496 | F12: 8496 | G12: 257 | H12: 0 | I12: 33.05836576 | J12: 33.05836576 | K12: 0 | L12: 16993 | M12: 16993 | N12: 249 | O12: 0 | P12: 68.24497992 | Q12: 68.24497992 | R12: 0 | S12: 25489 | T12: 25489 | U12: 506 | V12: 0 | W12: 50.37351779 | X12: 50.37351779
A13: 4 | B13: 1 | C13: MCGREGOR | D13: 0 | E13: 10692 | F13: 10692 | G13: 457 | H13: 0 | I13: 23.39606127 | J13: 23.39606127 | K13: 0 | L13: 21385 | M13: 21385 | N13: 455 | O13: 0 | P13: 47 | Q13: 47 | R13: 0 | S13: 32077 | T13: 32077 | U13: 912 | V13: 0 | W13: 35.17214912 | X13: 35.17214912
A14: 6 | B14: 3 | C14: SOUTH ST. PAUL | D14: 0 | E14: 93882 | F14: 93882 | G14: 3641 | H14: 0 | I14: 25.78467454 | J14: 25.78467454 | K14: 0 | L14: 187768 | M14: 187768 | N14: 3650 | O14: 0 | P14: 51.44328767 | Q14: 51.44328767 | R14: 0 | S14: 281650 | T14: 281650 | U14: 7291 | V14: 0 | W14: 38.62981758 | X14: 38.62981758
A15: 11 | B15: 1 | C15: ANOKA-HENNEPIN | D15: 0 | E15: 1052532 | F15: 1052532 | G15: 37429 | H15: 0 | I15: 28.12076198 | J15: 28.12076198 | K15: 0 | L15: 2105110 | M15: 2105110 | N15: 37497 | O15: 0 | P15: 56.14075793 | Q15: 56.14075793 | R15: 0 | S15: 3157642 | T15: 3157642 | U15: 74926 | V15: 0 | W15: 42.1434749 | X15: 42.1434749
A16: 12 | B16: 1 | C16: CENTENNIAL | D16: 0 | E16: 176644 | F16: 176644 | G16: 6341 | H16: 0 | I16: 27.85743574 | J16: 27.85743574 | K16: 0 | L16: 353295 | M16: 353295 | N16: 6340 | O16: 0 | P16: 55.72476341 | Q16: 55.72476341 | R16: 0 | S16: 529939 | T16: 529939 | U16: 12681 | V16: 0 | W16: 41.79000079 | X16: 41.79000079
A17: 13 | B17: 1 | C17: COLUMBIA HEIGHTS | D17: 0 | E17: 87154 | F17: 87154 | G17: 3350 | H17: 0 | I17: 26.0161194 | J17: 26.0161194 | K17: 0 | L17: 174313 | M17: 174313 | N17: 3409 | O17: 0 | P17: 51.13317688 | Q17: 51.13317688 | R17: 0 | S17: 261467 | T17: 261467 | U17: 6759 | V17: 0 | W17: 38.68427282 | X17: 38.68427282
A18: 14 | B18: 1 | C18: FRIDLEY | D18: 0 | E18: 80058 | F18: 80058 | G18: 3068 | H18: 0 | I18: 26.09452412 | J18: 26.09452412 | K18: 0 | L18: 160120 | M18: 160120 | N18: 3080 | O18: 0 | P18: 51.98701299 | Q18: 51.98701299 | R18: 0 | S18: 240178 | T18: 240178 | U18: 6148 | V18: 0 | W18: 39.06603774 | X18: 39.06603774
A19: 15 | B19: 1 | C19: ST. FRANCIS | D19: 0 | E19: 120215 | F19: 120215 | G19: 4344 | H19: 0 | I19: 27.67380295 | J19: 27.67380295 | K19: 0 | L19: 240436 | M19: 240436 | N19: 4278 | O19: 0 | P19: 56.20289855 | Q19: 56.20289855 | R19: 0 | S19: 360651 | T19: 360651 | U19: 8622 | V19: 0 | W19: 41.82915797 | X19: 41.82915797
A20: 16 | B20: 1 | C20: SPRING LAKE PARK | D20: 0 | E20: 122673 | F20: 122673 | G20: 5745 | H20: 0 | I20: 21.35300261 | J20: 21.35300261 | K20: 0 | L20: 245350 | M20: 245350 | N20: 5815 | O20: 0 | P20: 42.19260533 | Q20: 42.19260533 | R20: 0 | S20: 368023 | T20: 368023 | U20: 11560 | V20: 0 | W20: 31.83589965 | X20: 31.83589965
A21: 22 | B21: 1 | C21: DETROIT LAKES | D21: 0 | E21: 73357 | F21: 73357 | G21: 3024 | H21: 0 | I21: 24.2582672 | J21: 24.2582672 | K21: 0 | L21: 146716 | M21: 146716 | N21: 3044 | O21: 0 | P21: 48.19842313 | Q21: 48.19842313 | R21: 0 | S21: 220073 | T21: 220073 | U21: 6068 | V21: 0 | W21: 36.26779829 | X21: 36.26779829
A22: 23 | B22: 1 | C22: FRAZEE | D22: 0 | E22: 21835 | F22: 21835 | G22: 885 | H22: 0 | I22: 24.67231638 | J22: 24.67231638 | K22: 0 | L22: 43670 | M22: 43670 | N22: 865 | O22: 0 | P22: 50.48554913 | Q22: 50.48554913 | R22: 0 | S22: 65505 | T22: 65505 | U22: 1750 | V22: 0 | W22: 37.43142857 | X22: 37.43142857
A23: 25 | B23: 1 | C23: PINE POINT | D23: 0 | E23: 3141 | F23: 3141 | G23: 69 | H23: 0 | I23: 45.52173913 | J23: 45.52173913 | K23: 0 | L23: 6282 | M23: 6282 | N23: 70 | O23: 0 | P23: 89.74285714 | Q23: 89.74285714 | R23: 0 | S23: 9423 | T23: 9423 | U23: 139 | V23: 0 | W23: 67.79136691 | X23: 67.79136691
A24: 31 | B24: 1 | C24: BEMIDJI | D24: 0 | E24: 123072 | F24: 123072 | G24: 5180 | H24: 0 | I24: 23.75907336 | J24: 23.75907336 | K24: 0 | L24: 246150 | M24: 246150 | N24: 5196 | O24: 0 | P24: 47.37297921 | Q24: 47.37297921 | R24: 0 | S24: 369222 | T24: 369222 | U24: 10376 | V24: 0 | W24: 35.58423285 | X24: 35.58423285
A25: 32 | B25: 1 | C25: BLACKDUCK | D25: 0 | E25: 12254 | F25: 12254 | G25: 636 | H25: 0 | I25: 19.2672956 | J25: 19.2672956 | K25: 0 | L25: 24509 | M25: 24509 | N25: 606 | O25: 0 | P25: 40.44389439 | Q25: 40.44389439 | R25: 0 | S25: 36763 | T25: 36763 | U25: 1242 | V25: 0 | W25: 29.59983897 | X25: 29.59983897
A26: 36 | B26: 1 | C26: KELLIHER | D26: 0 | E26: 8306 | F26: 8306 | G26: 285 | H26: 0 | I26: 29.14385965 | J26: 29.14385965 | K26: 0 | L26: 16613 | M26: 16613 | N26: 290 | O26: 0 | P26: 57.2862069 | Q26: 57.2862069 | R26: 0 | S26: 24919 | T26: 24919 | U26: 575 | V26: 0 | W26: 43.3373913 | X26: 43.3373913
A27: 38 | B27: 1 | C27: RED LAKE | D27: 0 | E27: 53090 | F27: 53090 | G27: 1611 | H27: 0 | I27: 32.95468653 | J27: 32.95468653 | K27: 0 | L27: 106182 | M27: 106182 | N27: 1664 | O27: 0 | P27: 63.81129808 | Q27: 63.81129808 | R27: 0 | S27: 159272 | T27: 159272 | U27: 3275 | V27: 0 | W27: 48.63267176 | X27: 48.63267176
A28: 47 | B28: 1 | C28: SAUK RAPIDS | D28: 0 | E28: 89507 | F28: 89507 | G28: 4374 | H28: 0 | I28: 20.46342021 | J28: 20.46342021 | K28: 0 | L28: 179018 | M28: 179018 | N28: 4375 | O28: 0 | P28: 40.9184 | Q28: 40.9184 | R28: 0 | S28: 268525 | T28: 268525 | U28: 8749 | V28: 0 | W28: 30.69207909 | X28: 30.69207909
A29: 51 | B29: 1 | C29: FOLEY | D29: 0 | E29: 39923 | F29: 39923 | G29: 1817 | H29: 0 | I29: 21.97193176 | J29: 21.97193176 | K29: 0 | L29: 79847 | M29: 79847 | N29: 1781 | O29: 0 | P29: 44.83267827 | Q29: 44.83267827 | R29: 0 | S29: 119770 | T29: 119770 | U29: 3598 | V29: 0 | W29: 33.28793774 | X29: 33.28793774
A30: 75 | B30: 1 | C30: ST. CLAIR | D30: 0 | E30: 13866 | F30: 13866 | G30: 670 | H30: 0 | I30: 20.69552239 | J30: 20.69552239 | K30: 0 | L30: 27733 | M30: 27733 | N30: 649 | O30: 0 | P30: 42.73189522 | Q30: 42.73189522 | R30: 0 | S30: 41599 | T30: 41599 | U30: 1319 | V30: 0 | W30: 31.53828658 | X30: 31.53828658
A31: 77 | B31: 1 | C31: MANKATO | D31: 0 | E31: 201489 | F31: 201489 | G31: 8483 | H31: 0 | I31: 23.75209242 | J31: 23.75209242 | K31: 0 | L31: 402986 | M31: 402986 | N31: 8419 | O31: 0 | P31: 47.8662549 | Q31: 47.8662549 | R31: 0 | S31: 604475 | T31: 604475 | U31: 16902 | V31: 0 | W31: 35.76351911 | X31: 35.76351911
A32: 81 | B32: 1 | C32: COMFREY | D32: 0 | E32: 4764 | F32: 4764 | G32: 149 | H32: 0 | I32: 31.97315436 | J32: 31.97315436 | K32: 0 | L32: 9528 | M32: 9528 | N32: 149 | O32: 0 | P32: 63.94630872 | Q32: 63.94630872 | R32: 0 | S32: 14292 | T32: 14292 | U32: 298 | V32: 0 | W32: 47.95973154 | X32: 47.95973154
A33: 84 | B33: 1 | C33: SLEEPY EYE | D33: 0 | E33: 13246 | F33: 13246 | G33: 555 | H33: 0 | I33: 23.86666667 | J33: 23.86666667 | K33: 0 | L33: 26492 | M33: 26492 | N33: 540 | O33: 0 | P33: 49.05925926 | Q33: 49.05925926 | R33: 0 | S33: 39738 | T33: 39738 | U33: 1095 | V33: 0 | W33: 36.29041096 | X33: 36.29041096
A34: 85 | B34: 1 | C34: SPRINGFIELD | D34: 0 | E34: 13819 | F34: 13819 | G34: 545 | H34: 0 | I34: 25.3559633 | J34: 25.3559633 | K34: 0 | L34: 27640 | M34: 27640 | N34: 534 | O34: 0 | P34: 51.76029963 | Q34: 51.76029963 | R34: 0 | S34: 41459 | T34: 41459 | U34: 1079 | V34: 0 | W34: 38.42354032 | X34: 38.42354032
A35: 88 | B35: 1 | C35: NEW ULM | D35: 0 | E35: 43140 | F35: 43140 | G35: 2057 | H35: 0 | I35: 20.97228974 | J35: 20.97228974 | K35: 0 | L35: 86281 | M35: 86281 | N35: 2055 | O35: 0 | P35: 41.98588808 | Q35: 41.98588808 | R35: 0 | S35: 129421 | T35: 129421 | U35: 4112 | V35: 0 | W35: 31.4739786 | X35: 31.4739786
A36: 91 | B36: 1 | C36: BARNUM | D36: 0 | E36: 19090 | F36: 19090 | G36: 753 | H36: 0 | I36: 25.35192563 | J36: 25.35192563 | K36: 0 | L36: 38181 | M36: 38181 | N36: 749 | O36: 0 | P36: 50.97596796 | Q36: 50.97596796 | R36: 0 | S36: 57271 | T36: 57271 | U36: 1502 | V36: 0 | W36: 38.1298269 | X36: 38.1298269
A37: 93 | B37: 1 | C37: CARLTON | D37: 0 | E37: 10879 | F37: 10879 | G37: 460 | H37: 0 | I37: 23.65 | J37: 23.65 | K37: 0 | L37: 21758 | M37: 21758 | N37: 452 | O37: 0 | P37: 48.13716814 | Q37: 48.13716814 | R37: 0 | S37: 32637 | T37: 32637 | U37: 912 | V37: 0 | W37: 35.78618421 | X37: 35.78618421
A38: 94 | B38: 1 | C38: CLOQUET | D38: 0 | E38: 62461 | F38: 62461 | G38: 2707 | H38: 0 | I38: 23.07388253 | J38: 23.07388253 | K38: 0 | L38: 124925 | M38: 124925 | N38: 2760 | O38: 0 | P38: 45.26268116 | Q38: 45.26268116 | R38: 0 | S38: 187386 | T38: 187386 | U38: 5467 | V38: 0 | W38: 34.27583684 | X38: 34.27583684
A39: 95 | B39: 1 | C39: CROMWELL | D39: 0 | E39: 6782 | F39: 6782 | G39: 310 | H39: 0 | I39: 21.87741935 | J39: 21.87741935 | K39: 0 | L39: 13564 | M39: 13564 | N39: 310 | O39: 0 | P39: 43.75483871 | Q39: 43.75483871 | R39: 0 | S39: 20346 | T39: 20346 | U39: 620 | V39: 0 | W39: 32.81612903 | X39: 32.81612903
A40: 97 | B40: 1 | C40: MOOSE LAKE | D40: 0 | E40: 15524 | F40: 15524 | G40: 665 | H40: 0 | I40: 23.3443609 | J40: 23.3443609 | K40: 0 | L40: 31049 | M40: 31049 | N40: 671 | O40: 0 | P40: 46.27272727 | Q40: 46.27272727 | R40: 0 | S40: 46573 | T40: 46573 | U40: 1336 | V40: 0 | W40: 34.86002994 | X40: 34.86002994
A41: 99 | B41: 1 | C41: ESKO | D41: 0 | E41: 25379 | F41: 25379 | G41: 1212 | H41: 0 | I41: 20.93976898 | J41: 20.93976898 | K41: 0 | L41: 50758 | M41: 50758 | N41: 1212 | O41: 0 | P41: 41.87953795 | Q41: 41.87953795 | R41: 0 | S41: 76137 | T41: 76137 | U41: 2424 | V41: 0 | W41: 31.40965347 | X41: 31.40965347
A42: 100 | B42: 1 | C42: WRENSHALL | D42: 0 | E42: 8217 | F42: 8217 | G42: 341 | H42: 0 | I42: 24.09677419 | J42: 24.09677419 | K42: 0 | L42: 16434 | M42: 16434 | N42: 346 | O42: 0 | P42: 47.49710983 | Q42: 47.49710983 | R42: 0 | S42: 24651 | T42: 24651 | U42: 687 | V42: 0 | W42: 35.88209607 | X42: 35.88209607
A43: 108 | B43: 1 | C43: NORWOOD | D43: 0 | E43: 23149 | F43: 23149 | G43: 948 | H43: 0 | I43: 24.41877637 | J43: 24.41877637 | K43: 0 | L43: 46298 | M43: 46298 | N43: 928 | O43: 0 | P43: 49.89008621 | Q43: 49.89008621 | R43: 0 | S43: 69447 | T43: 69447 | U43: 1876 | V43: 0 | W43: 37.01865672 | X43: 37.01865672
A44: 110 | B44: 1 | C44: WACONIA | D44: 0 | E44: 87168 | F44: 87168 | G44: 4090 | H44: 0 | I44: 21.31246944 | J44: 21.31246944 | K44: 0 | L44: 174339 | M44: 174339 | N44: 4035 | O44: 0 | P44: 43.20669145 | Q44: 43.20669145 | R44: 0 | S44: 261507 | T44: 261507 | U44: 8125 | V44: 0 | W44: 32.18547692 | X44: 32.18547692
A45: 111 | B45: 1 | C45: WATERTOWN-MAYER | D45: 0 | E45: 35133 | F45: 35133 | G45: 1676 | H45: 0 | I45: 20.9624105 | J45: 20.9624105 | K45: 0 | L45: 70268 | M45: 70268 | N45: 1627 | O45: 0 | P45: 43.18869084 | Q45: 43.18869084 | R45: 0 | S45: 105401 | T45: 105401 | U45: 3303 | V45: 0 | W45: 31.91068725 | X45: 31.91068725
A46: 112 | B46: 1 | C46: EASTERN CARVER CTY | D46: 0 | E46: 259717 | F46: 259717 | G46: 9667 | H46: 0 | I46: 26.86634944 | J46: 26.86634944 | K46: 0 | L46: 519445 | M46: 519445 | N46: 9836 | O46: 0 | P46: 52.81059374 | Q46: 52.81059374 | R46: 0 | S46: 779162 | T46: 779162 | U46: 19503 | V46: 0 | W46: 39.95087935 | X46: 39.95087935
A47: 113 | B47: 1 | C47: WALKER-AKELEY | D47: 0 | E47: 18803 | F47: 18803 | G47: 716 | H47: 0 | I47: 26.26117318 | J47: 26.26117318 | K47: 0 | L47: 37607 | M47: 37607 | N47: 702 | O47: 0 | P47: 53.57122507 | Q47: 53.57122507 | R47: 0 | S47: 56410 | T47: 56410 | U47: 1418 | V47: 0 | W47: 39.78138223 | X47: 39.78138223
A48: 115 | B48: 1 | C48: CASS LAKE | D48: 0 | E48: 35577 | F48: 35577 | G48: 1086 | H48: 0 | I48: 32.75966851 | J48: 32.75966851 | K48: 0 | L48: 71155 | M48: 71155 | N48: 1125 | O48: 0 | P48: 63.24888889 | Q48: 63.24888889 | R48: 0 | S48: 106732 | T48: 106732 | U48: 2211 | V48: 0 | W48: 48.27317956 | X48: 48.27317956
A49: 116 | B49: 1 | C49: PILLAGER | D49: 0 | E49: 21479 | F49: 21479 | G49: 1072 | H49: 0 | I49: 20.0363806 | J49: 20.0363806 | K49: 0 | L49: 42959 | M49: 42959 | N49: 1121 | O49: 0 | P49: 38.3220339 | Q49: 38.3220339 | R49: 0 | S49: 64438 | T49: 64438 | U49: 2193 | V49: 0 | W49: 29.38349293 | X49: 29.38349293
A50: 118 | B50: 1 | C50: NORTHLAND | D50: 0 | E50: 10905 | F50: 10905 | G50: 326 | H50: 0 | I50: 33.45092025 | J50: 33.45092025 | K50: 0 | L50: 21811 | M50: 21811 | N50: 328 | O50: 0 | P50: 66.49695122 | Q50: 66.49695122 | R50: 0 | S50: 32716 | T50: 32716 | U50: 654 | V50: 0 | W50: 50.02446483 | X50: 50.02446483
A51: 129 | B51: 1 | C51: MONTEVIDEO | D51: 0 | E51: 37139 | F51: 37139 | G51: 1454 | H51: 0 | I51: 25.54264099 | J51: 25.54264099 | K51: 0 | L51: 74280 | M51: 74280 | N51: 1445 | O51: 0 | P51: 51.40484429 | Q51: 51.40484429 | R51: 0 | S51: 111419 | T51: 111419 | U51: 2899 | V51: 0 | W51: 38.43359779 | X51: 38.43359779
A52: 138 | B52: 1 | C52: NORTH BRANCH | D52: 0 | E52: 65833 | F52: 65833 | G52: 2974 | H52: 0 | I52: 22.13618023 | J52: 22.13618023 | K52: 0 | L52: 131669 | M52: 131669 | N52: 2982 | O52: 0 | P52: 44.15459423 | Q52: 44.15459423 | R52: 0 | S52: 197502 | T52: 197502 | U52: 5956 | V52: 0 | W52: 33.16017461 | X52: 33.16017461
A53: 139 | B53: 1 | C53: RUSH CITY | D53: 0 | E53: 32062 | F53: 32062 | G53: 870 | H53: 0 | I53: 36.85287356 | J53: 36.85287356 | K53: 0 | L53: 64125 | M53: 64125 | N53: 873 | O53: 0 | P53: 73.45360825 | Q53: 73.45360825 | R53: 0 | S53: 96187 | T53: 96187 | U53: 1743 | V53: 0 | W53: 55.18473896 | X53: 55.18473896
A54: 146 | B54: 1 | C54: BARNESVILLE | D54: 0 | E54: 18147 | F54: 18147 | G54: 902 | H54: 0 | I54: 20.11862528 | J54: 20.11862528 | K54: 0 | L54: 36295 | M54: 36295 | N54: 891 | O54: 0 | P54: 40.73512907 | Q54: 40.73512907 | R54: 0 | S54: 54442 | T54: 54442 | U54: 1793 | V54: 0 | W54: 30.36363636 | X54: 30.36363636
A55: 150 | B55: 1 | C55: HAWLEY | D55: 0 | E55: 22396 | F55: 22396 | G55: 913 | H55: 0 | I55: 24.53012048 | J55: 24.53012048 | K55: 0 | L55: 44793 | M55: 44793 | N55: 921 | O55: 0 | P55: 48.63517915 | Q55: 48.63517915 | R55: 0 | S55: 67189 | T55: 67189 | U55: 1834 | V55: 0 | W55: 36.63522356 | X55: 36.63522356
A56: 152 | B56: 1 | C56: MOORHEAD | D56: 0 | E56: 148644 | F56: 148644 | G56: 6391 | H56: 0 | I56: 23.25833203 | J56: 23.25833203 | K56: 0 | L56: 297295 | M56: 297295 | N56: 6469 | O56: 0 | P56: 45.95687123 | Q56: 45.95687123 | R56: 0 | S56: 445939 | T56: 445939 | U56: 12860 | V56: 0 | W56: 34.67643857 | X56: 34.67643857
A57: 160 | B57: 70 | C57: MINNESOTA STATE ACADEMIES | D57: 0 | E57: 14976 | F57: 14976 | G57: 0 | H57: 0 | K57: 0 | L57: 29952 | M57: 29952 | N57: 0 | O57: 0 | R57: 0 | S57: 44928 | T57: 44928 | U57: 0
A58: 160.2 | B58: 90 | C58: FARIBAULT TRANSFER | D58: 0 | E58: 0 | F58: 0 | G58: 0 | H58: 0 | K58: 0 | L58: 0 | M58: 0 | N58: 0 | O58: 0 | R58: 0 | S58: 0 | T58: 0 | U58: 0
A59: 162 | B59: 1 | C59: BAGLEY | D59: 0 | E59: 20818 | F59: 20818 | G59: 1004 | H59: 0 | I59: 20.73505976 | J59: 20.73505976 | K59: 0 | L59: 41637 | M59: 41637 | N59: 1035 | O59: 0 | P59: 40.22898551 | Q59: 40.22898551 | R59: 0 | S59: 62455 | T59: 62455 | U59: 2039 | V59: 0 | W59: 30.63021089 | X59: 30.63021089
A60: 166 | B60: 1 | C60: COOK COUNTY | D60: 0 | E60: 12401 | F60: 12401 | G60: 452 | H60: 0 | I60: 27.43584071 | J60: 27.43584071 | K60: 0 | L60: 24802 | M60: 24802 | N60: 431 | O60: 0 | P60: 57.54524362 | Q60: 57.54524362 | R60: 0 | S60: 37203 | T60: 37203 | U60: 883 | V60: 0 | W60: 42.13250283 | X60: 42.13250283
A61: 173 | B61: 1 | C61: MOUNTAIN LAKE | D61: 0 | E61: 12452 | F61: 12452 | G61: 478 | H61: 0 | I61: 26.05020921 | J61: 26.05020921 | K61: 0 | L61: 24904 | M61: 24904 | N61: 476 | O61: 0 | P61: 52.31932773 | Q61: 52.31932773 | R61: 0 | S61: 37356 | T61: 37356 | U61: 954 | V61: 0 | W61: 39.1572327 | X61: 39.1572327
A62: 177 | B62: 1 | C62: WINDOM | D62: 0 | E62: 25650 | F62: 25650 | G62: 1068 | H62: 0 | I62: 24.01685393 | J62: 24.01685393 | K62: 0 | L62: 51301 | M62: 51301 | N62: 1077 | O62: 0 | P62: 47.63324048 | Q62: 47.63324048 | R62: 0 | S62: 76951 | T62: 76951 | U62: 2145 | V62: 0 | W62: 35.87459207 | X62: 35.87459207
A63: 181 | B63: 1 | C63: BRAINERD | D63: 0 | E63: 161166 | F63: 161166 | G63: 6541 | H63: 0 | I63: 24.63935178 | J63: 24.63935178 | K63: 0 | L63: 322339 | M63: 322339 | N63: 6571 | O63: 0 | P63: 49.05478618 | Q63: 49.05478618 | R63: 0 | S63: 483505 | T63: 483505 | U63: 13112 | V63: 0 | W63: 36.875 | X63: 36.875
A64: 182 | B64: 1 | C64: CROSBY | D64: 0 | E64: 24147 | F64: 24147 | G64: 1018 | H64: 0 | I64: 23.72003929 | J64: 23.72003929 | K64: 0 | L64: 48295 | M64: 48295 | N64: 997 | O64: 0 | P64: 48.44032096 | Q64: 48.44032096 | R64: 0 | S64: 72442 | T64: 72442 | U64: 2015 | V64: 0 | W64: 35.95136476 | X64: 35.95136476
A65: 186 | B65: 1 | C65: PEQUOT LAKES | D65: 0 | E65: 34380 | F65: 34380 | G65: 1660 | H65: 0 | I65: 20.71084337 | J65: 20.71084337 | K65: 0 | L65: 68761 | M65: 68761 | N65: 1631 | O65: 0 | P65: 42.15879828 | Q65: 42.15879828 | R65: 0 | S65: 103141 | T65: 103141 | U65: 3291 | V65: 0 | W65: 31.34032209 | X65: 31.34032209
A66: 191 | B66: 1 | C66: BURNSVILLE | D66: 0 | E66: 275868 | F66: 275868 | G66: 8940 | H66: 0 | I66: 30.85771812 | J66: 30.85771812 | K66: 0 | L66: 551748 | M66: 551748 | N66: 8902 | O66: 0 | P66: 61.98022916 | Q66: 61.98022916 | R66: 0 | S66: 827616 | T66: 827616 | U66: 17842 | V66: 0 | W66: 46.38583118 | X66: 46.38583118
A67: 192 | B67: 1 | C67: FARMINGTON | D67: 0 | E67: 163488 | F67: 163488 | G67: 6761 | H67: 0 | I67: 24.18103831 | J67: 24.18103831 | K67: 0 | L67: 326982 | M67: 326982 | N67: 6688 | O67: 0 | P67: 48.89084928 | Q67: 48.89084928 | R67: 0 | S67: 490470 | T67: 490470 | U67: 13449 | V67: 0 | W67: 36.46888244 | X67: 36.46888244
A68: 194 | B68: 1 | C68: LAKEVILLE | D68: 0 | E68: 265987 | F68: 265987 | G68: 10515 | H68: 0 | I68: 25.29595816 | J68: 25.29595816 | K68: 0 | L68: 531986 | M68: 531986 | N68: 10089 | O68: 0 | P68: 52.72930915 | Q68: 52.72930915 | R68: 0 | S68: 797973 | T68: 797973 | U68: 20604 | V68: 0 | W68: 38.7290332 | X68: 38.7290332
A69: 195 | B69: 1 | C69: RANDOLPH | D69: 0 | E69: 13346 | F69: 13346 | G69: 676 | H69: 0 | I69: 19.74260355 | J69: 19.74260355 | K69: 0 | L69: 26693 | M69: 26693 | N69: 684 | O69: 0 | P69: 39.0248538 | Q69: 39.0248538 | R69: 0 | S69: 40039 | T69: 40039 | U69: 1360 | V69: 0 | W69: 29.44044118 | X69: 29.44044118
A70: 196 | B70: 1 | C70: ROSEMOUNT-APPLE | D70: 0 | E70: 805805 | F70: 805805 | G70: 27776 | H70: 0 | I70: 29.01083669 | J70: 29.01083669 | K70: 0 | L70: 1611645 | M70: 1611645 | N70: 27855 | O70: 0 | P70: 57.85837372 | Q70: 57.85837372 | R70: 0 | S70: 2417450 | T70: 2417450 | U70: 55631 | V70: 0 | W70: 43.45508799 | X70: 43.45508799
A71: 197 | B71: 1 | C71: WEST ST. PAUL | D71: 0 | E71: 144022 | F71: 144022 | G71: 4893 | H71: 0 | I71: 29.43429389 | J71: 29.43429389 | K71: 0 | L71: 288050 | M71: 288050 | N71: 4915 | O71: 0 | P71: 58.60630722 | Q71: 58.60630722 | R71: 0 | S71: 432072 | T71: 432072 | U71: 9808 | V71: 0 | W71: 44.05301794 | X71: 44.05301794
A72: 199 | B72: 1 | C72: INVER GROVE | D72: 0 | E72: 92633 | F72: 92633 | G72: 3869 | H72: 0 | I72: 23.94236237 | J72: 23.94236237 | K72: 0 | L72: 185271 | M72: 185271 | N72: 3843 | O72: 0 | P72: 48.20999219 | Q72: 48.20999219 | R72: 0 | S72: 277904 | T72: 277904 | U72: 7712 | V72: 0 | W72: 36.03526971 | X72: 36.03526971
A73: 200 | B73: 1 | C73: HASTINGS | D73: 0 | E73: 104737 | F73: 104737 | G73: 4343 | H73: 0 | I73: 24.11627907 | J73: 24.11627907 | K73: 0 | L73: 209479 | M73: 209479 | N73: 4319 | O73: 0 | P73: 48.50173651 | Q73: 48.50173651 | R73: 0 | S73: 314216 | T73: 314216 | U73: 8662 | V73: 0 | W73: 36.27522512 | X73: 36.27522512
A74: 203 | B74: 1 | C74: HAYFIELD | D74: 0 | E74: 16931 | F74: 16931 | G74: 689 | H74: 0 | I74: 24.57329463 | J74: 24.57329463 | K74: 0 | L74: 33862 | M74: 33862 | N74: 689 | O74: 0 | P74: 49.14658926 | Q74: 49.14658926 | R74: 0 | S74: 50793 | T74: 50793 | U74: 1378 | V74: 0 | W74: 36.85994194 | X74: 36.85994194
A75: 204 | B75: 1 | C75: KASSON-MANTORVIL | D75: 0 | E75: =F75 -> 42817 | F75: 42817 | G75: 2082 | H75: 0 | I75: =F75/G75 -> 20.56532181 | J75: =F75/G75 -> 20.56532181 | K75: 0 | L75: =M75 -> 85636 | M75: 85636 | N75: 2092 | O75: 0 | P75: =M75/N75 -> 40.93499044 | Q75: =M75/N75 -> 40.93499044 | R75: =D75+K75 -> 0 | S75: 128453 | T75: 128453 | U75: 4174 | V75: =R75/U75 -> 0 | W75: =S75/U75 -> 30.77455678 | X75: =T75/U75 -> 30.77455678
A76: 206 | B76: 1 | C76: ALEXANDRIA | D76: 0 | E76: 95639 | F76: 95639 | G76: 4128 | H76: 0 | I76: 23.1683624 | J76: 23.1683624 | K76: 0 | L76: 191283 | M76: 191283 | N76: 4161 | O76: 0 | P76: 45.9704398 | Q76: 45.9704398 | R76: 0 | S76: 286922 | T76: 286922 | U76: 8289 | V76: 0 | W76: 34.61479069 | X76: 34.61479069
A77: 213 | B77: 1 | C77: OSAKIS | D77: 0 | E77: 17470 | F77: 17470 | G77: 813 | H77: 0 | I77: 21.48831488 | J77: 21.48831488 | K77: 0 | L77: 34941 | M77: 34941 | N77: 810 | O77: 0 | P77: 43.13703704 | Q77: 43.13703704 | R77: 0 | S77: 52411 | T77: 52411 | U77: 1623 | V77: 0 | W77: 32.2926679 | X77: 32.2926679
A78: 227 | B78: 1 | C78: CHATFIELD | D78: 0 | E78: 18380 | F78: 18380 | G78: 899 | H78: 0 | I78: 20.44493882 | J78: 20.44493882 | K78: 0 | L78: 36760 | M78: 36760 | N78: 892 | O78: 0 | P78: 41.21076233 | Q78: 41.21076233 | R78: 0 | S78: 55140 | T78: 55140 | U78: 1791 | V78: 0 | W78: 30.78726968 | X78: 30.78726968
A79: 229 | B79: 1 | C79: LANESBORO | D79: 0 | E79: 7669 | F79: 7669 | G79: 305 | H79: 0 | I79: 25.1442623 | J79: 25.1442623 | K79: 0 | L79: 15338 | M79: 15338 | N79: 295 | O79: 0 | P79: 51.99322034 | Q79: 51.99322034 | R79: 0 | S79: 23007 | T79: 23007 | U79: 600 | V79: 0 | W79: 38.345 | X79: 38.345
A80: 238 | B80: 1 | C80: MABEL-CANTON | D80: 0 | E80: 6089 | F80: 6089 | G80: 246 | H80: 0 | I80: 24.75203252 | J80: 24.75203252 | K80: 0 | L80: 12179 | M80: 12179 | N80: 244 | O80: 0 | P80: 49.91393443 | Q80: 49.91393443 | R80: 0 | S80: 18268 | T80: 18268 | U80: 490 | V80: 0 | W80: 37.28163265 | X80: 37.28163265
A81: 239 | B81: 1 | C81: RUSHFORD-PETERSO | D81: 0 | E81: 16207 | F81: 16207 | G81: 637 | H81: 0 | I81: 25.44270016 | J81: 25.44270016 | K81: 0 | L81: 32415 | M81: 32415 | N81: 625 | O81: 0 | P81: 51.864 | Q81: 51.864 | R81: 0 | S81: 48622 | T81: 48622 | U81: 1262 | V81: 0 | W81: 38.52773376 | X81: 38.52773376
A82: 241 | B82: 1 | C82: ALBERT LEA | D82: 0 | E82: 93311 | F82: 93311 | G82: 3427 | H82: 0 | I82: 27.22818792 | J82: 27.22818792 | K82: 0 | L82: 186625 | M82: 186625 | N82: 3437 | O82: 0 | P82: 54.2988071 | Q82: 54.2988071 | R82: 0 | S82: 279936 | T82: 279936 | U82: 6864 | V82: 0 | W82: 40.78321678 | X82: 40.78321678
A83: 242 | B83: 1 | C83: ALDEN | D83: 0 | E83: 10941 | F83: 10941 | G83: 492 | H83: 0 | I83: 22.23780488 | J83: 22.23780488 | K83: 0 | L83: 21881 | M83: 21881 | N83: 492 | O83: 0 | P83: 44.47357724 | Q83: 44.47357724 | R83: 0 | S83: 32822 | T83: 32822 | U83: 984 | V83: 0 | W83: 33.35569106 | X83: 33.35569106
A84: 252 | B84: 1 | C84: CANNON FALLS | D84: 0 | E84: 23727 | F84: 23727 | G84: 1129 | H84: 0 | I84: 21.01594331 | J84: 21.01594331 | K84: 0 | L84: 47455 | M84: 47455 | N84: 1112 | O84: 0 | P84: 42.67535971 | Q84: 42.67535971 | R84: 0 | S84: 71182 | T84: 71182 | U84: 2241 | V84: 0 | W84: 31.76349844 | X84: 31.76349844
A85: 253 | B85: 1 | C85: GOODHUE | D85: 0 | E85: 13083 | F85: 13083 | G85: 636 | H85: 0 | I85: 20.57075472 | J85: 20.57075472 | K85: 0 | L85: 26167 | M85: 26167 | N85: 635 | O85: 0 | P85: 41.20787402 | Q85: 41.20787402 | R85: 0 | S85: 39250 | T85: 39250 | U85: 1271 | V85: 0 | W85: 30.88119591 | X85: 30.88119591
A86: 255 | B86: 1 | C86: PINE ISLAND | D86: 0 | E86: 27299 | F86: 27299 | G86: 1280 | H86: 0 | I86: 21.32734375 | J86: 21.32734375 | K86: 0 | L86: 54600 | M86: 54600 | N86: 1288 | O86: 0 | P86: 42.39130435 | Q86: 42.39130435 | R86: 0 | S86: 81899 | T86: 81899 | U86: 2568 | V86: 0 | W86: 31.89213396 | X86: 31.89213396
A87: 256 | B87: 1 | C87: RED WING | D87: 0 | E87: 61560 | F87: 61560 | G87: 2660 | H87: 0 | I87: 23.14285714 | J87: 23.14285714 | K87: 0 | L87: 123123 | M87: 123123 | N87: 2623 | O87: 0 | P87: 46.93976363 | Q87: 46.93976363 | R87: 0 | S87: 184683 | T87: 184683 | U87: 5283 | V87: 0 | W87: 34.95797842 | X87: 34.95797842
A88: 261 | B88: 1 | C88: ASHBY | D88: 0 | E88: 5419 | F88: 5419 | G88: 274 | H88: 0 | I88: 19.77737226 | J88: 19.77737226 | K88: 0 | L88: 10838 | M88: 10838 | N88: 283 | O88: 0 | P88: 38.29681979 | Q88: 38.29681979 | R88: 0 | S88: 16257 | T88: 16257 | U88: 557 | V88: 0 | W88: 29.18671454 | X88: 29.18671454
A89: 264 | B89: 1 | C89: HERMAN-NORCROSS | D89: 0 | E89: 3192 | F89: 3192 | G89: 118 | H89: 0 | I89: 27.05084746 | J89: 27.05084746 | K89: 0 | L89: 6383 | M89: 6383 | N89: 116 | O89: 0 | P89: 55.02586207 | Q89: 55.02586207 | R89: 0 | S89: 9575 | T89: 9575 | U89: 234 | V89: 0 | W89: 40.91880342 | X89: 40.91880342
A90: 270 | B90: 1 | C90: HOPKINS | D90: 0 | E90: 220824 | F90: 220824 | G90: 6970 | H90: 0 | I90: 31.682066 | J90: 31.682066 | K90: 0 | L90: 441657 | M90: 441657 | N90: 6987 | O90: 0 | P90: 63.21124946 | Q90: 63.21124946 | R90: 0 | S90: 662481 | T90: 662481 | U90: 13957 | V90: 0 | W90: 47.46585943 | X90: 47.46585943
A91: 271 | B91: 1 | C91: BLOOMINGTON | D91: 0 | E91: 321903 | F91: 321903 | G91: 10604 | H91: 0 | I91: 30.35675217 | J91: 30.35675217 | K91: 0 | L91: 643820 | M91: 643820 | N91: 10459 | O91: 0 | P91: 61.55655416 | Q91: 61.55655416 | R91: 0 | S91: 965723 | T91: 965723 | U91: 21063 | V91: 0 | W91: 45.84926174 | X91: 45.84926174
A92: 272 | B92: 1 | C92: EDEN PRAIRIE | D92: 0 | E92: 265105 | F92: 265105 | G92: 8602 | H92: 0 | I92: 30.81899558 | J92: 30.81899558 | K92: 0 | L92: 530222 | M92: 530222 | N92: 8455 | O92: 0 | P92: 62.71105855 | Q92: 62.71105855 | R92: 0 | S92: 795327 | T92: 795327 | U92: 17057 | V92: 0 | W92: 46.62760157 | X92: 46.62760157
A93: 273 | B93: 1 | C93: EDINA | D93: 0 | E93: 241269 | F93: 241269 | G93: 8548 | H93: 0 | I93: 28.22519888 | J93: 28.22519888 | K93: 0 | L93: 482549 | M93: 482549 | N93: 8559 | O93: 0 | P93: 56.37913308 | Q93: 56.37913308 | R93: 0 | S93: 723818 | T93: 723818 | U93: 17107 | V93: 0 | W93: 42.31121763 | X93: 42.31121763
A94: 276 | B94: 1 | C94: MINNETONKA | D94: 0 | E94: 275858 | F94: 275858 | G94: 10550 | H94: 0 | I94: 26.14767773 | J94: 26.14767773 | K94: 0 | L94: 551729 | M94: 551729 | N94: 10652 | O94: 0 | P94: 51.79581299 | Q94: 51.79581299 | R94: 0 | S94: 827587 | T94: 827587 | U94: 21202 | V94: 0 | W94: 39.03344024 | X94: 39.03344024
A95: 277 | B95: 1 | C95: WESTONKA | D95: 0 | E95: 59530 | F95: 59530 | G95: 2298 | H95: 0 | I95: 25.9051349 | J95: 25.9051349 | K95: 0 | L95: 119062 | M95: 119062 | N95: 2296 | O95: 0 | P95: 51.85627178 | Q95: 51.85627178 | R95: 0 | S95: 178592 | T95: 178592 | U95: 4594 | V95: 0 | W95: 38.87505442 | X95: 38.87505442
A96: 278 | B96: 1 | C96: ORONO | D96: 0 | E96: 75546 | F96: 75546 | G96: 2810 | H96: 0 | I96: 26.88469751 | J96: 26.88469751 | K96: 0 | L96: 151096 | M96: 151096 | N96: 2814 | O96: 0 | P96: 53.69438522 | Q96: 53.69438522 | R96: 0 | S96: 226642 | T96: 226642 | U96: 5624 | V96: 0 | W96: 40.29907539 | X96: 40.29907539
A97: 279 | B97: 1 | C97: OSSEO | D97: 0 | E97: 585709 | F97: 585709 | G97: 20654 | H97: 0 | I97: 28.35813886 | J97: 28.35813886 | K97: 0 | L97: 1171443 | M97: 1171443 | N97: 20751 | O97: 0 | P97: 56.45236374 | Q97: 56.45236374 | R97: 0 | S97: 1757152 | T97: 1757152 | U97: 41405 | V97: 0 | W97: 42.43815964 | X97: 42.43815964
A98: 280 | B98: 1 | C98: RICHFIELD | D98: 0 | E98: 133435 | F98: 133435 | G98: 4183 | H98: 0 | I98: 31.89935453 | J98: 31.89935453 | K98: 0 | L98: 266876 | M98: 266876 | N98: 4003 | O98: 0 | P98: 66.66899825 | Q98: 66.66899825 | R98: 0 | S98: 400311 | T98: 400311 | U98: 8186 | V98: 0 | W98: 48.90190569 | X98: 48.90190569
A99: 281 | B99: 1 | C99: ROBBINSDALE | D99: 0 | E99: 370970 | F99: 370970 | G99: 12927 | H99: 0 | I99: 28.69730022 | J99: 28.69730022 | K99: 0 | L99: 741957 | M99: 741957 | N99: 13162 | O99: 0 | P99: 56.3711442 | Q99: 56.3711442 | R99: 0 | S99: 1112927 | T99: 1112927 | U99: 26089 | V99: 0 | W99: 42.65886006 | X99: 42.65886006
A100: 282 | B100: 1 | C100: ST. ANTHONY-NEW | D100: 0 | E100: 43404 | F100: 43404 | G100: 1778 | H100: 0 | I100: 24.41169854 | J100: 24.41169854 | K100: 0 | L100: 86810 | M100: 86810 | N100: 1776 | O100: 0 | P100: 48.8795045 | Q100: 48.8795045 | R100: 0 | S100: 130214 | T100: 130214 | U100: 3554 | V100: 0 | W100: 36.63871694 | X100: 36.63871694
A101: 283 | B101: 1 | C101: ST. LOUIS PARK | D101: 0 | E101: 136614 | F101: 136614 | G101: 4641 | H101: 0 | I101: 29.43632838 | J101: 29.43632838 | K101: 0 | L101: 273235 | M101: 273235 | N101: 4611 | O101: 0 | P101: 59.25721102 | Q101: 59.25721102 | R101: 0 | S101: 409849 | T101: 409849 | U101: 9252 | V101: 0 | W101: 44.29842196 | X101: 44.29842196
A102: 284 | B102: 1 | C102: WAYZATA | D102: 0 | E102: 298287 | F102: 298287 | G102: 11692 | H102: 0 | I102: 25.51205953 | J102: 25.51205953 | K102: 0 | L102: 596587 | M102: 596587 | N102: 11920 | O102: 0 | P102: 50.04924497 | Q102: 50.04924497 | R102: 0 | S102: 894874 | T102: 894874 | U102: 23612 | V102: 0 | W102: 37.89911909 | X102: 37.89911909
A103: 286 | B103: 1 | C103: BROOKLYN CENTER | D103: 0 | E103: 58721 | F103: 58721 | G103: 2405 | H103: 0 | I103: 24.41621622 | J103: 24.41621622 | K103: 0 | L103: 117445 | M103: 117445 | N103: 2405 | O103: 0 | P103: 48.83367983 | Q103: 48.83367983 | R103: 0 | S103: 176166 | T103: 176166 | U103: 4810 | V103: 0 | W103: 36.62494802 | X103: 36.62494802
A104: 294 | B104: 1 | C104: HOUSTON | D104: 0 | E104: 34182 | F104: 34182 | G104: 2024 | H104: 0 | I104: 16.88833992 | J104: 16.88833992 | K104: 0 | L104: 68366 | M104: 68366 | N104: 2025 | O104: 0 | P104: 33.76098765 | Q104: 33.76098765 | R104: 0 | S104: 102548 | T104: 102548 | U104: 4049 | V104: 0 | W104: 25.32674735 | X104: 25.32674735
A105: 297 | B105: 1 | C105: SPRING GROVE | D105: 0 | E105: 8312 | F105: 8312 | G105: 348 | H105: 0 | I105: 23.88505747 | J105: 23.88505747 | K105: 0 | L105: 16624 | M105: 16624 | N105: 346 | O105: 0 | P105: 48.04624277 | Q105: 48.04624277 | R105: 0 | S105: 24936 | T105: 24936 | U105: 694 | V105: 0 | W105: 35.93083573 | X105: 35.93083573
A106: 299 | B106: 1 | C106: CALEDONIA | D106: 0 | E106: 16025 | F106: 16025 | G106: 685 | H106: 0 | I106: 23.39416058 | J106: 23.39416058 | K106: 0 | L106: 32052 | M106: 32052 | N106: 691 | O106: 0 | P106: 46.38494935 | Q106: 46.38494935 | R106: 0 | S106: 48077 | T106: 48077 | U106: 1376 | V106: 0 | W106: 34.93968023 | X106: 34.93968023
A107: 300 | B107: 1 | C107: LACRESCENT | D107: 0 | E107: 25768 | F107: 25768 | G107: 1110 | H107: 0 | I107: 23.21441441 | J107: 23.21441441 | K107: 0 | L107: 51537 | M107: 51537 | N107: 1071 | O107: 0 | P107: 48.12044818 | Q107: 48.12044818 | R107: 0 | S107: 77305 | T107: 77305 | U107: 2181 | V107: 0 | W107: 35.44475011 | X107: 35.44475011
A108: 306 | B108: 1 | C108: LAPORTE | D108: 0 | E108: 6404 | F108: 6404 | G108: 310 | H108: 0 | I108: 20.65806452 | J108: 20.65806452 | K108: 0 | L108: 12808 | M108: 12808 | N108: 313 | O108: 0 | P108: 40.9201278 | Q108: 40.9201278 | R108: 0 | S108: 19212 | T108: 19212 | U108: 623 | V108: 0 | W108: 30.83788122 | X108: 30.83788122
A109: 308 | B109: 1 | C109: NEVIS | D109: 0 | E109: 13325 | F109: 13325 | G109: 625 | H109: 0 | I109: 21.32 | J109: 21.32 | K109: 0 | L109: 26650 | M109: 26650 | N109: 616 | O109: 0 | P109: 43.26298701 | Q109: 43.26298701 | R109: 0 | S109: 39975 | T109: 39975 | U109: 1241 | V109: 0 | W109: 32.21192587 | X109: 32.21192587
A110: 309 | B110: 1 | C110: PARK RAPIDS | D110: 0 | E110: 34189 | F110: 34189 | G110: 1577 | H110: 0 | I110: 21.67977172 | J110: 21.67977172 | K110: 0 | L110: 68380 | M110: 68380 | N110: 1582 | O110: 0 | P110: 43.22376738 | Q110: 43.22376738 | R110: 0 | S110: 102569 | T110: 102569 | U110: 3159 | V110: 0 | W110: 32.46881925 | X110: 32.46881925
A111: 314 | B111: 1 | C111: BRAHAM | D111: 0 | E111: 17849 | F111: 17849 | G111: 764 | H111: 0 | I111: 23.36256545 | J111: 23.36256545 | K111: 0 | L111: 35699 | M111: 35699 | N111: 764 | O111: 0 | P111: 46.72643979 | Q111: 46.72643979 | R111: 0 | S111: 53548 | T111: 53548 | U111: 1528 | V111: 0 | W111: 35.04450262 | X111: 35.04450262
A112: 316 | B112: 1 | C112: GREENWAY | D112: 0 | E112: 23497 | F112: 23497 | G112: 1049 | H112: 0 | I112: 22.39942803 | J112: 22.39942803 | K112: 0 | L112: 46994 | M112: 46994 | N112: 1048 | O112: 0 | P112: 44.84160305 | Q112: 44.84160305 | R112: 0 | S112: 70491 | T112: 70491 | U112: 2097 | V112: 0 | W112: 33.61516452 | X112: 33.61516452
A113: 317 | B113: 1 | C113: DEER RIVER | D113: 0 | E113: 24593 | F113: 24593 | G113: 931 | H113: 0 | I113: 26.41568206 | J113: 26.41568206 | K113: 0 | L113: 49187 | M113: 49187 | N113: 922 | O113: 0 | P113: 53.34815618 | Q113: 53.34815618 | R113: 0 | S113: 73780 | T113: 73780 | U113: 1853 | V113: 0 | W113: 39.81651376 | X113: 39.81651376
A114: 318 | B114: 1 | C114: GRAND RAPIDS | D114: 0 | E114: 95646 | F114: 95646 | G114: 3981 | H114: 0 | I114: 24.0256217 | J114: 24.0256217 | K114: 0 | L114: 191296 | M114: 191296 | N114: 4011 | O114: 0 | P114: 47.69284468 | Q114: 47.69284468 | R114: 0 | S114: 286942 | T114: 286942 | U114: 7992 | V114: 0 | W114: 35.90365365 | X114: 35.90365365
A115: 319 | B115: 1 | C115: NASHWAUK-KEEWATI | D115: 0 | E115: 14337 | F115: 14337 | G115: 553 | H115: 0 | I115: 25.92585895 | J115: 25.92585895 | K115: 0 | L115: 28675 | M115: 28675 | N115: 539 | O115: 0 | P115: 53.20037106 | Q115: 53.20037106 | R115: 0 | S115: 43012 | T115: 43012 | U115: 1092 | V115: 0 | W115: 39.38827839 | X115: 39.38827839
A116: 323 | B116: 2 | C116: FRANCONIA | D116: 0 | E116: 0 | F116: 0 | G116: 30 | H116: 0 | I116: 0 | J116: 0 | K116: 0 | L116: 0 | M116: 0 | N116: 24 | O116: 0 | P116: 0 | Q116: 0 | R116: 0 | S116: 0 | T116: 0 | U116: 54 | V116: 0 | W116: 0 | X116: 0
A117: 330 | B117: 1 | C117: HERON LAKE-OKABE | D117: 0 | E117: 7714 | F117: 7714 | G117: 248 | H117: 0 | I117: 31.10483871 | J117: 31.10483871 | K117: 0 | L117: 15428 | M117: 15428 | N117: 243 | O117: 0 | P117: 63.48971193 | Q117: 63.48971193 | R117: 0 | S117: 23142 | T117: 23142 | U117: 491 | V117: 0 | W117: 47.13238289 | X117: 47.13238289
A118: 332 | B118: 1 | C118: MORA | D118: 0 | E118: 39236 | F118: 39236 | G118: 1600 | H118: 0 | I118: 24.5225 | J118: 24.5225 | K118: 0 | L118: 78474 | M118: 78474 | N118: 1575 | O118: 0 | P118: 49.8247619 | Q118: 49.8247619 | R118: 0 | S118: 117710 | T118: 117710 | U118: 3175 | V118: 0 | W118: 37.07401575 | X118: 37.07401575
A119: 333 | B119: 1 | C119: OGILVIE | D119: 0 | E119: 12114 | F119: 12114 | G119: 466 | H119: 0 | I119: 25.99570815 | J119: 25.99570815 | K119: 0 | L119: 24228 | M119: 24228 | N119: 473 | O119: 0 | P119: 51.22198732 | Q119: 51.22198732 | R119: 0 | S119: 36342 | T119: 36342 | U119: 939 | V119: 0 | W119: 38.7028754 | X119: 38.7028754
A120: 345 | B120: 1 | C120: NEW LONDON-SPICE | D120: 0 | E120: 32292 | F120: 32292 | G120: 1471 | H120: 0 | I120: 21.95241332 | J120: 21.95241332 | K120: 0 | L120: 64586 | M120: 64586 | N120: 1480 | O120: 0 | P120: 43.63918919 | Q120: 43.63918919 | R120: 0 | S120: 96878 | T120: 96878 | U120: 2951 | V120: 0 | W120: 32.82887157 | X120: 32.82887157
A121: 347 | B121: 1 | C121: WILLMAR | D121: 0 | E121: 102444 | F121: 102444 | G121: 4184 | H121: 0 | I121: 24.48470363 | J121: 24.48470363 | K121: 0 | L121: 204893 | M121: 204893 | N121: 4223 | O121: 0 | P121: 48.51835188 | Q121: 48.51835188 | R121: 0 | S121: 307337 | T121: 307337 | U121: 8407 | V121: 0 | W121: 36.5572737 | X121: 36.5572737
A122: 356 | B122: 1 | C122: LANCASTER | D122: 0 | E122: 4612 | F122: 4612 | G122: 144 | H122: 0 | I122: 32.02777778 | J122: 32.02777778 | K122: 0 | L122: 9223 | M122: 9223 | N122: 144 | O122: 0 | P122: 64.04861111 | Q122: 64.04861111 | R122: 0 | S122: 13835 | T122: 13835 | U122: 288 | V122: 0 | W122: 48.03819444 | X122: 48.03819444
A123: 361 | B123: 1 | C123: INTERNATIONAL FA | D123: 0 | E123: 24050 | F123: 24050 | G123: 1068 | H123: 0 | I123: 22.51872659 | J123: 22.51872659 | K123: 0 | L123: 48101 | M123: 48101 | N123: 1047 | O123: 0 | P123: 45.9417383 | Q123: 45.9417383 | R123: 0 | S123: 72151 | T123: 72151 | U123: 2115 | V123: 0 | W123: 34.11394799 | X123: 34.11394799
A124: 362 | B124: 1 | C124: LITTLEFORK-BIG F | D124: 0 | E124: 7584 | F124: 7584 | G124: 333 | H124: 0 | I124: 22.77477477 | J124: 22.77477477 | K124: 0 | L124: 15168 | M124: 15168 | N124: 321 | O124: 0 | P124: 47.25233645 | Q124: 47.25233645 | R124: 0 | S124: 22752 | T124: 22752 | U124: 654 | V124: 0 | W124: 34.78899083 | X124: 34.78899083
A125: 363 | B125: 1 | C125: SOUTH KOOCHICHIN | D125: 0 | E125: 10292 | F125: 10292 | G125: 241 | H125: 0 | I125: 42.70539419 | J125: 42.70539419 | K125: 0 | L125: 20583 | M125: 20583 | N125: 247 | O125: 0 | P125: 83.33198381 | Q125: 83.33198381 | R125: 0 | S125: 30875 | T125: 30875 | U125: 488 | V125: 0 | W125: 63.26844262 | X125: 63.26844262
A126: 378 | B126: 1 | C126: DAWSON | D126: 0 | E126: 13017 | F126: 13017 | G126: 543 | H126: 0 | I126: 23.97237569 | J126: 23.97237569 | K126: 0 | L126: 26034 | M126: 26034 | N126: 530 | O126: 0 | P126: 49.12075472 | Q126: 49.12075472 | R126: 0 | S126: 39051 | T126: 39051 | U126: 1073 | V126: 0 | W126: 36.39422181 | X126: 36.39422181
A127: 381 | B127: 1 | C127: LAKE SUPERIOR | D127: 0 | E127: 35761 | F127: 35761 | G127: 1360 | H127: 0 | I127: 26.29485294 | J127: 26.29485294 | K127: 0 | L127: 71524 | M127: 71524 | N127: 1365 | O127: 0 | P127: 52.3985348 | Q127: 52.3985348 | R127: 0 | S127: 107285 | T127: 107285 | U127: 2725 | V127: 0 | W127: 39.3706422 | X127: 39.3706422
A128: 390 | B128: 1 | C128: LAKE OF THE WOOD | D128: 0 | E128: 11692 | F128: 11692 | G128: 464 | H128: 0 | I128: 25.19827586 | J128: 25.19827586 | K128: 0 | L128: 23384 | M128: 23384 | N128: 459 | O128: 0 | P128: 50.94553377 | Q128: 50.94553377 | R128: 0 | S128: 35076 | T128: 35076 | U128: 923 | V128: 0 | W128: 38.00216685 | X128: 38.00216685
A129: 391 | B129: 1 | C129: CLEVELAND | D129: 0 | E129: 9448 | F129: 9448 | G129: 497 | H129: 0 | I129: 19.01006036 | J129: 19.01006036 | K129: 0 | L129: 18897 | M129: 18897 | N129: 496 | O129: 0 | P129: 38.09879032 | Q129: 38.09879032 | R129: 0 | S129: 28345 | T129: 28345 | U129: 993 | V129: 0 | W129: 28.5448137 | X129: 28.5448137
A130: 402 | B130: 1 | C130: HENDRICKS | D130: 0 | E130: 3745 | F130: 3745 | G130: 111 | H130: 0 | I130: 33.73873874 | J130: 33.73873874 | K130: 0 | L130: 7490 | M130: 7490 | N130: 110 | O130: 0 | P130: 68.09090909 | Q130: 68.09090909 | R130: 0 | S130: 11235 | T130: 11235 | U130: 221 | V130: 0 | W130: 50.83710407 | X130: 50.83710407
A131: 403 | B131: 1 | C131: IVANHOE | D131: 0 | E131: 2223 | F131: 2223 | G131: 150 | H131: 0 | I131: 14.82 | J131: 14.82 | K131: 0 | L131: 4446 | M131: 4446 | N131: 155 | O131: 0 | P131: 28.68387097 | Q131: 28.68387097 | R131: 0 | S131: 6669 | T131: 6669 | U131: 305 | V131: 0 | W131: 21.86557377 | X131: 21.86557377
A132: 404 | B132: 1 | C132: LAKE BENTON | D132: 0 | E132: 3094 | F132: 3094 | G132: 200 | H132: 0 | I132: 15.47 | J132: 15.47 | K132: 0 | L132: 6188 | M132: 6188 | N132: 190 | O132: 0 | P132: 32.56842105 | Q132: 32.56842105 | R132: 0 | S132: 9282 | T132: 9282 | U132: 390 | V132: 0 | W132: 23.8 | X132: 23.8
A133: 413 | B133: 1 | C133: MARSHALL | D133: 0 | E133: 60542 | F133: 60542 | G133: 2506 | H133: 0 | I133: 24.15881883 | J133: 24.15881883 | K133: 0 | L133: 121086 | M133: 121086 | N133: 2523 | O133: 0 | P133: 47.99286564 | Q133: 47.99286564 | R133: 0 | S133: 181628 | T133: 181628 | U133: 5029 | V133: 0 | W133: 36.11612647 | X133: 36.11612647
A134: 414 | B134: 1 | C134: MINNEOTA | D134: 0 | E134: 11732 | F134: 11732 | G134: 456 | H134: 0 | I134: 25.72807018 | J134: 25.72807018 | K134: 0 | L134: 23465 | M134: 23465 | N134: 453 | O134: 0 | P134: 51.799117 | Q134: 51.799117 | R134: 0 | S134: 35197 | T134: 35197 | U134: 909 | V134: 0 | W134: 38.72057206 | X134: 38.72057206
A135: 415 | B135: 1 | C135: LYND | D135: 0 | E135: 4336 | F135: 4336 | G135: 194 | H135: 0 | I135: 22.35051546 | J135: 22.35051546 | K135: 0 | L135: 8673 | M135: 8673 | N135: 164 | O135: 0 | P135: 52.88414634 | Q135: 52.88414634 | R135: 0 | S135: 13009 | T135: 13009 | U135: 358 | V135: 0 | W135: 36.33798883 | X135: 36.33798883
A136: 423 | B136: 1 | C136: HUTCHINSON | D136: 0 | E136: 67145 | F136: 67145 | G136: 2760 | H136: 0 | I136: 24.32789855 | J136: 24.32789855 | K136: 0 | L136: 134293 | M136: 134293 | N136: 2704 | O136: 0 | P136: 49.66457101 | Q136: 49.66457101 | R136: 0 | S136: 201438 | T136: 201438 | U136: 5464 | V136: 0 | W136: 36.86639824 | X136: 36.86639824
A137: 424 | B137: 1 | C137: LESTER PRAIRIE | D137: 0 | E137: 9285 | F137: 9285 | G137: 442 | H137: 0 | I137: 21.00678733 | J137: 21.00678733 | K137: 0 | L137: 18570 | M137: 18570 | N137: 444 | O137: 0 | P137: 41.82432432 | Q137: 41.82432432 | R137: 0 | S137: 27855 | T137: 27855 | U137: 886 | V137: 0 | W137: 31.43905192 | X137: 31.43905192
A138: 432 | B138: 1 | C138: MAHNOMEN | D138: 0 | E138: 16559 | F138: 16559 | G138: 609 | H138: 0 | I138: 27.19047619 | J138: 27.19047619 | K138: 0 | L138: 33118 | M138: 33118 | N138: 606 | O138: 0 | P138: 54.65016502 | Q138: 54.65016502 | R138: 0 | S138: 49677 | T138: 49677 | U138: =G138+N138 -> 1215 | V138: 0 | W138: 40.88641975 | X138: 40.88641975
A139: 435 | B139: 1 | C139: WAUBUN | D139: 0 | E139: =F139 -> 16492 | F139: 16492 | G139: 577 | H139: 0 | I139: =F139/G139 -> 28.58232236 | J139: =F139/G139 -> 28.58232236 | K139: 0 | L139: =M139 -> 32985 | M139: 32985 | N139: 584 | O139: 0 | P139: =M139/N139 -> 56.48116438 | Q139: =M139/N139 -> 56.48116438 | R139: =D139+K139 -> 0 | S139: 49477 | T139: 49477 | U139: 1161 | V139: =R139/U139 -> 0 | W139: =S139/U139 -> 42.61584841 | X139: =T139/U139 -> 42.61584841
A140: 441 | B140: 1 | C140: MARSHALL CTY CENTRAL | D140: 0 | E140: 9484 | F140: 9484 | G140: 387 | H140: 0 | I140: 24.50645995 | J140: 24.50645995 | K140: 0 | L140: 18969 | M140: 18969 | N140: 381 | O140: 0 | P140: 49.78740157 | Q140: 49.78740157 | R140: 0 | S140: 28453 | T140: 28453 | U140: 768 | V140: 0 | W140: 37.04817708 | X140: 37.04817708
A141: 447 | B141: 1 | C141: GRYGLA | D141: 0 | E141: 5311 | F141: 5311 | G141: 154 | H141: 0 | I141: 34.48701299 | J141: 34.48701299 | K141: 0 | L141: 10622 | M141: 10622 | N141: 156 | O141: 0 | P141: 68.08974359 | Q141: 68.08974359 | R141: 0 | S141: 15933 | T141: 15933 | U141: 310 | V141: 0 | W141: 51.39677419 | X141: 51.39677419
A142: 458 | B142: 1 | C142: TRUMAN | D142: 0 | E142: 5604 | F142: 5604 | G142: 219 | H142: 0 | I142: 25.5890411 | J142: 25.5890411 | K142: 0 | L142: 11208 | M142: 11208 | N142: 216 | O142: 0 | P142: 51.88888889 | Q142: 51.88888889 | R142: 0 | S142: 16812 | T142: 16812 | U142: 435 | V142: 0 | W142: 38.64827586 | X142: 38.64827586
A143: 463 | B143: 1 | C143: EDEN VALLEY | D143: 0 | E143: 20476 | F143: 20476 | G143: 962 | H143: 0 | I143: 21.28482328 | J143: 21.28482328 | K143: 0 | L143: 40954 | M143: 40954 | N143: 938 | O143: 0 | P143: 43.66098081 | Q143: 43.66098081 | R143: 0 | S143: 61430 | T143: 61430 | U143: 1900 | V143: 0 | W143: 32.33157895 | X143: 32.33157895
A144: 465 | B144: 1 | C144: LITCHFIELD | D144: 0 | E144: 34248 | F144: 34248 | G144: 1548 | H144: 0 | I144: 22.12403101 | J144: 22.12403101 | K144: 0 | L144: 68497 | M144: 68497 | N144: 1526 | O144: 0 | P144: 44.88663172 | Q144: 44.88663172 | R144: 0 | S144: 102745 | T144: 102745 | U144: 3074 | V144: 0 | W144: 33.42387768 | X144: 33.42387768
A145: 466 | B145: 1 | C145: DASSEL-COKATO | D145: 0 | E145: 49686 | F145: 49686 | G145: 2214 | H145: 0 | I145: 22.44173442 | J145: 22.44173442 | K145: 0 | L145: 99375 | M145: 99375 | N145: 2193 | O145: 0 | P145: 45.31463748 | Q145: 45.31463748 | R145: 0 | S145: 149061 | T145: 149061 | U145: 4407 | V145: 0 | W145: 33.82368958 | X145: 33.82368958
A146: 473 | B146: 1 | C146: ISLE | D146: 0 | E146: 9527 | F146: 9527 | G146: 452 | H146: 0 | I146: 21.07743363 | J146: 21.07743363 | K146: 0 | L146: 19055 | M146: 19055 | N146: 452 | O146: 0 | P146: 42.15707965 | Q146: 42.15707965 | R146: 0 | S146: 28582 | T146: 28582 | U146: 904 | V146: 0 | W146: 31.61725664 | X146: 31.61725664
A147: 477 | B147: 1 | C147: PRINCETON | D147: 0 | E147: 70085 | F147: 70085 | G147: 3119 | H147: 0 | I147: 22.47034306 | J147: 22.47034306 | K147: 0 | L147: 140174 | M147: 140174 | N147: 3104 | O147: 0 | P147: 45.15914948 | Q147: 45.15914948 | R147: 0 | S147: 210259 | T147: 210259 | U147: 6223 | V147: 0 | W147: 33.78740157 | X147: 33.78740157
A148: 480 | B148: 1 | C148: ONAMIA | D148: 0 | E148: 18233 | F148: 18233 | G148: 633 | H148: 0 | I148: 28.80410742 | J148: 28.80410742 | K148: 0 | L148: 36467 | M148: 36467 | N148: 631 | O148: 0 | P148: 57.79239303 | Q148: 57.79239303 | R148: 0 | S148: 54700 | T148: 54700 | U148: 1264 | V148: 0 | W148: 43.27531646 | X148: 43.27531646
A149: 482 | B149: 1 | C149: LITTLE FALLS | D149: 0 | E149: 64302 | F149: 64302 | G149: 2306 | H149: 0 | I149: 27.88464874 | J149: 27.88464874 | K149: 0 | L149: 128607 | M149: 128607 | N149: 2283 | O149: 0 | P149: 56.33245729 | Q149: 56.33245729 | R149: 0 | S149: 192909 | T149: 192909 | U149: 4589 | V149: 0 | W149: 42.03726302 | X149: 42.03726302
A150: 484 | B150: 1 | C150: PIERZ | D150: 0 | E150: 23383 | F150: 23383 | G150: 1122 | H150: 0 | I150: 20.84046346 | J150: 20.84046346 | K150: 0 | L150: 46767 | M150: 46767 | N150: 1115 | O150: 0 | P150: 41.94349776 | Q150: 41.94349776 | R150: 0 | S150: 70150 | T150: 70150 | U150: 2237 | V150: 0 | W150: 31.3589629 | X150: 31.3589629
A151: 485 | B151: 1 | C151: ROYALTON | D151: 0 | E151: 16992 | F151: 16992 | G151: 937 | H151: 0 | I151: 18.13447172 | J151: 18.13447172 | K151: 0 | L151: 33985 | M151: 33985 | N151: 938 | O151: 0 | P151: 36.23134328 | Q151: 36.23134328 | R151: 0 | S151: 50977 | T151: 50977 | U151: 1875 | V151: 0 | W151: 27.18773333 | X151: 27.18773333
A152: 486 | B152: 1 | C152: SWANVILLE | D152: 0 | E152: 6381 | F152: 6381 | G152: 317 | H152: 0 | I152: 20.12933754 | J152: 20.12933754 | K152: 0 | L152: 12763 | M152: 12763 | N152: 312 | O152: 0 | P152: 40.90705128 | Q152: 40.90705128 | R152: 0 | S152: 19144 | T152: 19144 | U152: 629 | V152: 0 | W152: 30.43561208 | X152: 30.43561208
A153: 487 | B153: 1 | C153: UPSALA | D153: 0 | E153: 7501 | F153: 7501 | G153: 372 | H153: 0 | I153: 20.16397849 | J153: 20.16397849 | K153: 0 | L153: 15002 | M153: 15002 | N153: 374 | O153: 0 | P153: 40.11229947 | Q153: 40.11229947 | R153: 0 | S153: 22503 | T153: 22503 | U153: 746 | V153: 0 | W153: 30.16487936 | X153: 30.16487936
A154: 492 | B154: 1 | C154: AUSTIN | D154: 0 | E154: 125646 | F154: 125646 | G154: 4782 | H154: 0 | I154: 26.27478043 | J154: 26.27478043 | K154: 0 | L154: 251297 | M154: 251297 | N154: 4726 | O154: 0 | P154: 53.17329666 | Q154: 53.17329666 | R154: 0 | S154: 376943 | T154: 376943 | U154: 9508 | V154: 0 | W154: 39.64482541 | X154: 39.64482541
A155: 495 | B155: 1 | C155: GRAND MEADOW | D155: 0 | E155: 10158 | F155: 10158 | G155: 414 | H155: 0 | I155: 24.53623188 | J155: 24.53623188 | K155: 0 | L155: 20316 | M155: 20316 | N155: 412 | O155: 0 | P155: 49.31067961 | Q155: 49.31067961 | R155: 0 | S155: 30474 | T155: 30474 | U155: 826 | V155: 0 | W155: 36.89346247 | X155: 36.89346247
A156: 497 | B156: 1 | C156: LYLE | D156: 0 | E156: 5733 | F156: 5733 | G156: 246 | H156: 0 | I156: 23.30487805 | J156: 23.30487805 | K156: 0 | L156: 11465 | M156: 11465 | N156: 239 | O156: 0 | P156: 47.9707113 | Q156: 47.9707113 | R156: 0 | S156: 17198 | T156: 17198 | U156: 485 | V156: 0 | W156: 35.45979381 | X156: 35.45979381
A157: 499 | B157: 1 | C157: LEROY | D157: 0 | E157: 7102 | F157: 7102 | G157: 273 | H157: 0 | I157: 26.01465201 | J157: 26.01465201 | K157: 0 | L157: 14204 | M157: 14204 | N157: 270 | O157: 0 | P157: 52.60740741 | Q157: 52.60740741 | R157: 0 | S157: 21306 | T157: 21306 | U157: 543 | V157: 0 | W157: 39.23756906 | X157: 39.23756906
A158: 500 | B158: 1 | C158: SOUTHLAND | D158: 0 | E158: 12392 | F158: 12392 | G158: 407 | H158: 0 | I158: 30.44717445 | J158: 30.44717445 | K158: 0 | L158: 24785 | M158: 24785 | N158: 386 | O158: 0 | P158: 64.20984456 | Q158: 64.20984456 | R158: 0 | S158: 37177 | T158: 37177 | U158: 793 | V158: 0 | W158: 46.8814628 | X158: 46.8814628
A159: 505 | B159: 1 | C159: FULDA | D159: 0 | E159: 9836 | F159: 9836 | G159: 300 | H159: 0 | I159: 32.78666667 | J159: 32.78666667 | K159: 0 | L159: 19672 | M159: 19672 | N159: 292 | O159: 0 | P159: 67.36986301 | Q159: 67.36986301 | R159: 0 | S159: 29508 | T159: 29508 | U159: 592 | V159: 0 | W159: 49.84459459 | X159: 49.84459459
A160: 507 | B160: 1 | C160: NICOLLET | D160: 0 | E160: 7275 | F160: 7275 | G160: 366 | H160: 0 | I160: 19.87704918 | J160: 19.87704918 | K160: 0 | L160: 14550 | M160: 14550 | N160: 363 | O160: 0 | P160: 40.08264463 | Q160: 40.08264463 | R160: 0 | S160: 21825 | T160: 21825 | U160: 729 | V160: 0 | W160: 29.9382716 | X160: 29.9382716
A161: 508 | B161: 1 | C161: ST. PETER | D161: 0 | E161: 46157 | F161: 46157 | G161: 2071 | H161: 0 | I161: 22.28730082 | J161: 22.28730082 | K161: 0 | L161: 92316 | M161: 92316 | N161: 2067 | O161: 0 | P161: 44.66182874 | Q161: 44.66182874 | R161: 0 | S161: 138473 | T161: 138473 | U161: 4138 | V161: 0 | W161: 33.4637506 | X161: 33.4637506
A162: 511 | B162: 1 | C162: ADRIAN | D162: 0 | E162: 11309 | F162: 11309 | G162: 549 | H162: 0 | I162: 20.5992714 | J162: 20.5992714 | K162: 0 | L162: 22619 | M162: 22619 | N162: 551 | O162: 0 | P162: 41.0508167 | Q162: 41.0508167 | R162: 0 | S162: 33928 | T162: 33928 | U162: 1100 | V162: 0 | W162: 30.84363636 | X162: 30.84363636
A163: 514 | B163: 1 | C163: ELLSWORTH | D163: 0 | E163: 4448 | F163: 4448 | G163: 136 | H163: 0 | I163: 32.70588235 | J163: 32.70588235 | K163: 0 | L163: 8897 | M163: 8897 | N163: 134 | O163: 0 | P163: 66.39552239 | Q163: 66.39552239 | R163: 0 | S163: 13345 | T163: 13345 | U163: 270 | V163: 0 | W163: 49.42592593 | X163: 49.42592593
A164: 518 | B164: 1 | C164: WORTHINGTON | D164: 0 | E164: 76294 | F164: 76294 | G164: 3236 | H164: 0 | I164: 23.57663782 | J164: 23.57663782 | K164: 0 | L164: 152592 | M164: 152592 | N164: 3316 | O164: 0 | P164: 46.01688782 | Q164: 46.01688782 | R164: 0 | S164: 228886 | T164: 228886 | U164: 6552 | V164: 0 | W164: 34.93376068 | X164: 34.93376068
A165: 531 | B165: 1 | C165: BYRON | D165: 0 | E165: 41075 | F165: 41075 | G165: 2081 | H165: 0 | I165: 19.73810668 | J165: 19.73810668 | K165: 0 | L165: 82151 | M165: 82151 | N165: 2126 | O165: 0 | P165: 38.64111007 | Q165: 38.64111007 | R165: 0 | S165: 123226 | T165: 123226 | U165: 4207 | V165: 0 | W165: 29.29070597 | X165: 29.29070597
A166: 533 | B166: 1 | C166: DOVER-EYOTA | D166: 0 | E166: 24146 | F166: 24146 | G166: 1190 | H166: 0 | I166: 20.2907563 | J166: 20.2907563 | K166: 0 | L166: 48293 | M166: 48293 | N166: 1191 | O166: 0 | P166: 40.54827876 | Q166: 40.54827876 | R166: 0 | S166: 72439 | T166: 72439 | U166: 2381 | V166: 0 | W166: 30.42377152 | X166: 30.42377152
A167: 534 | B167: 1 | C167: STEWARTVILLE | D167: 0 | E167: 42192 | F167: 42192 | G167: 2076 | H167: 0 | I167: 20.32369942 | J167: 20.32369942 | K167: 0 | L167: 84385 | M167: 84385 | N167: 2072 | O167: 0 | P167: 40.72635135 | Q167: 40.72635135 | R167: 0 | S167: 126577 | T167: 126577 | U167: 4148 | V167: 0 | W167: 30.51518804 | X167: 30.51518804
A168: 535 | B168: 1 | C168: ROCHESTER | D168: 0 | E168: 440794 | F168: 440794 | G168: 17352 | H168: 0 | I168: 25.40306593 | J168: 25.40306593 | K168: 0 | L168: 881606 | M168: 881606 | N168: 17445 | O168: 0 | P168: 50.53631413 | Q168: 50.53631413 | R168: 0 | S168: 1322400 | T168: 1322400 | U168: 34797 | V168: 0 | W168: 38.00327614 | X168: 38.00327614
A169: 542 | B169: 1 | C169: BATTLE LAKE | D169: 0 | E169: 9564 | F169: 9564 | G169: 436 | H169: 0 | I169: 21.93577982 | J169: 21.93577982 | K169: 0 | L169: 19129 | M169: 19129 | N169: 426 | O169: 0 | P169: 44.90375587 | Q169: 44.90375587 | R169: 0 | S169: 28693 | T169: 28693 | U169: 862 | V169: 0 | W169: 33.28654292 | X169: 33.28654292
A170: 544 | B170: 1 | C170: FERGUS FALLS | D170: 0 | E170: 52336 | F170: 52336 | G170: 2407 | H170: 0 | I170: 21.74324886 | J170: 21.74324886 | K170: 0 | L170: 104674 | M170: 104674 | N170: 2387 | O170: 0 | P170: 43.85169669 | Q170: 43.85169669 | R170: 0 | S170: 157010 | T170: 157010 | U170: 4794 | V170: 0 | W170: 32.75135586 | X170: 32.75135586
A171: 545 | B171: 1 | C171: HENNING | D171: 0 | E171: 8605 | F171: 8605 | G171: 355 | H171: 0 | I171: 24.23943662 | J171: 24.23943662 | K171: 0 | L171: 17210 | M171: 17210 | N171: 348 | O171: 0 | P171: 49.45402299 | Q171: 49.45402299 | R171: 0 | S171: 25815 | T171: 25815 | U171: 703 | V171: 0 | W171: 36.72119488 | X171: 36.72119488
A172: 547 | B172: 1 | C172: PARKERS PRAIRIE | D172: 0 | E172: 11976 | F172: 11976 | G172: 544 | H172: 0 | I172: 22.01470588 | J172: 22.01470588 | K172: 0 | L172: 23952 | M172: 23952 | N172: 532 | O172: 0 | P172: 45.02255639 | Q172: 45.02255639 | R172: 0 | S172: 35928 | T172: 35928 | U172: 1076 | V172: 0 | W172: 33.39033457 | X172: 33.39033457
A173: 548 | B173: 1 | C173: PELICAN RAPIDS | D173: 0 | E173: 22522 | F173: 22522 | G173: 897 | H173: 0 | I173: 25.10813824 | J173: 25.10813824 | K173: 0 | L173: 45046 | M173: 45046 | N173: 884 | O173: 0 | P173: 50.95701357 | Q173: 50.95701357 | R173: 0 | S173: 67568 | T173: 67568 | U173: 1781 | V173: 0 | W173: 37.93823695 | X173: 37.93823695
A174: 549 | B174: 1 | C174: PERHAM | D174: 0 | E174: 30862 | F174: 30862 | G174: 1406 | H174: 0 | I174: 21.95021337 | J174: 21.95021337 | K174: 0 | L174: 61725 | M174: 61725 | N174: 1403 | O174: 0 | P174: 43.99501069 | Q174: 43.99501069 | R174: 0 | S174: 92587 | T174: 92587 | U174: 2809 | V174: 0 | W174: 32.96084016 | X174: 32.96084016
A175: 550 | B175: 1 | C175: UNDERWOOD | D175: 0 | E175: 11409 | F175: 11409 | G175: 557 | H175: 0 | I175: 20.48294434 | J175: 20.48294434 | K175: 0 | L175: 22819 | M175: 22819 | N175: 559 | O175: 0 | P175: 40.82110912 | Q175: 40.82110912 | R175: 0 | S175: 34228 | T175: 34228 | U175: 1116 | V175: 0 | W175: 30.6702509 | X175: 30.6702509
A176: 553 | B176: 1 | C176: NEW YORK MILLS | D176: 0 | E176: 14200 | F176: 14200 | G176: 747 | H176: 0 | I176: 19.00937082 | J176: 19.00937082 | K176: 0 | L176: 28401 | M176: 28401 | N176: 743 | O176: 0 | P176: 38.22476447 | Q176: 38.22476447 | R176: 0 | S176: 42601 | T176: 42601 | U176: 1490 | V176: 0 | W176: 28.59127517 | X176: 28.59127517
